Workbook

Sheet 2024-2025
BS1: Data | BT1: Sărbători legale
BS2: 2024-11-30 | BT2: Sfântul Andrei
BS3: 2024-12-01 | BT3: Ziua Națională a României
BS4: 2024-12-25 | BT4: Crăciun prima zi
BS5: 2024-12-26 | BT5: Crăciun a doua zi
BS6: 2025-01-01 | BT6: Anul Nou prima zi
BS7: 2025-01-02 | BT7: Anul Nou a doua zi
BS8: 2025-01-06 | BT8: Boboteaza
BS9: 2025-01-07 | BT9: Sfântul Ioan Botezătorul
BS10: 2025-01-24 | BT10: Ziua Unirii Principatelor Române
BS11: 2025-04-18 | BT11: Vinerea Mare
BC12: parteneri adiacenti | BD12: UR | BP12: parteneri adiacenti | BQ12: UR | BS12: 2025-04-20 | BT12: Paștele
A13: EVIDENȚA LIMITĂRILOR ȘI/SAU ÎNTRERUPERILOR PLANIFICATE ȘI NEPLANIFICATE pentru anul gazier 2024 - 2025 / RECORD OF THE PLANNED AND UNPLANNED LIMITATIONS AND/OR INTERRUPTIONS related to the gas year 2024 - 2025 | AR13: Lucrari neprogramate | BB13: NU6 | BC13: =SUBTOTAL(9,AS:AS) -> 89 | BD13: =SUBTOTAL(9,AV:AV) -> 2449 | BF13: Lucrari programate | BO13: NU5 | BP13: =SUBTOTAL(9,BG:BG) -> 43 | BQ13: =SUBTOTAL(9,BJ:BJ) -> 1292 | BS13: 2025-04-21 | BT13: Paștele
AR14: Partener adiacent | AU14: UR | BB14: NUafectati | BC14: =SUBTOTAL(9,AT:AT) -> 89 | BD14: =SUBTOTAL(9,AW:AW) -> 2449 | BF14: Partener adiacent | BI14: UR | BO14: NUafectati | BP14: =SUBTOTAL(9,BH:BH) -> 43 | BQ14: =SUBTOTAL(9,BK:BK) -> 1292 | BS14: 2025-05-01 | BT14: Ziua Muncii
A15: Nr. crt. / Item No. | B15: Tip limitare/întrerupere / Type of limitation/interruption | D15: Denumire lucrare/motiv limitare și/sau întrerupere / Name of the works/reason for the limitation and/or interruption | E15: Locația limitării/întreruperii / Location of the limitation/interruption | L15: Punct de ieșire/intrare afectat / Affected exit/entry point | T15: Cod punct relevant / Code of the relevant point | U15: UR/operator de sistem adiacent afectat / Affected network user/adjacent system operator | W15: Perioada planificată de execuție a lucrării / Planned period for the execution of the works | X15: Data și ora limitării/întreruperii / Date and hour of the limitation/interruption | Z15: Data și ora reluării prestării serviciului / Date and hour the service supply is resumed | AB15: Exploatarea Teritorială / Regional Office | AC15: Observații / Comments | AD15: Justificarea modificării perioadei planificate de execuție a lucrări | AE15: Data și ora efectivă de limitare/întrerupere | AG15: Data și ora efectivă de reluare a prestării serviciului | AI15: Data și ora informării UR | AK15: Data și ora informării partenerului adiacent | AM15: Foaia de manevră | AN15: A fost afectat producătorul (în cazul PM) sau consumatorul final (în cazul SM)? (DA/NU) | AO15: Observatii | AP15: Program bugetat | AR15: Numar de ore de la producerea intreruperii / limitarii pana la anuntarea partenerului adiacent (trebuie sa fie mai mic decat 6) | AS15: NU6 | AT15: NUafectati | AU15: Numar de ore de la producerea intreruperii / limitarii pana la anuntarea UR (trebuie sa fie mai mic decat 6) | AV15: NU6 | AW15: NUafectati | AX15: Durata intreruperii / limitarii [ore] (daca este mai mare de 24, trebuie sa fie completata celula aferenta de pe coloana BA) | AY15: NU24 | AZ15: Nuafectati | BA15: Partener adiacent informat din 12 in 12 ore, daca durata mai mare de 24h (DA/NU) | BB15: NU6 | BC15: =BC13+BD13 -> 2538 | BD15: IP51 | BF15: Numar de zile lucratoare de anuntare partener adiacent pana la limitare / intrerupere (trebuie sa fie mai mare de 5) | BG15: NU5 | BH15: NUafectati | BI15: Numar de zile de anuntare UR pana la limitare / intrerupere (trebuie sa fie mai mare de 5) | BJ15: NU5 | BK15: NUafectati | BL15: Numar ore intre data anuntata si cea efectiva de reluare (trebuie sa fie mai mic sau egal cu 0) | BM15: NUreluate | BN15: NUafectati | BO15: NU5 | BP15: =BP13+BQ13 -> 1335 | BQ15: IP61 | BS15: 2025-06-01 | BT15: Ziua Copilului
E16: Siruta / Siruta code | F16: Localitate / Locality | G16: Județ / County | H16: Coordonate GPS început / GPS coordinates-beginning | J16: Coordonate GPS sfârșit / GPS coordinates-end | L16: Puncte de ieșire din SNT / NTS exit points | P16: Puncte de intrare în SNT / NTS entry points | BB16: NUafectati | BC16: =BC14+BD14 -> 2538 | BD16: =IF(BC16=0,1,BC15/BC16) -> 1 | BO16: NUafectati | BP16: =BP14+BQ14 -> 1335 | BQ16: =IF(BP16=0,1,BP15/BP16) -> 1 | BS16: 2025-06-08 | BT16: Rusalii
B17: neplanificată / unplanned | C17: planificată / planned | L17: Limitare / Limitation | N17: Întrerupere / Interruption | P17: Limitare / Limitation | R17: Întrerupere / Interruption | X17: Data / Date | Y17: Ora / Hour | Z17: Data / Date | AA17: Ora / Hour | AE17: Data | AF17: Ora | AG17: Data | AH17: Ora | AI17: Data | AJ17: Ora | AK17: Data | AL17: Ora | BB17: NU24 | BC17: =SUBTOTAL(9,AY:AY) -> 9 | BD17: IP52 | BO17: NUreluare | BP17: =SUBTOTAL(9,BM:BM) -> 1335 | BQ17: IP62 | BS17: 2025-06-09 | BT17: Rusalii
H18: X1 | I18: Y1 | J18: X2 | K18: Y2 | L18: Cod / Code | M18: Denumire / Name | N18: Cod / Code | O18: Denumire / Name | P18: Cod / Code | Q18: Denumire / Name | R18: Cod / Code | S18: Denumire / Name | U18: UR / Network user | V18: Operator de sistem adiacent / Adjacent system operator | BB18: NUafectati | BC18: =SUBTOTAL(9,AZ:AZ) -> 9 | BD18: =IF(BC18=0,1,BC17/BC18) -> 1 | BO18: NUafectati | BP18: =SUBTOTAL(9,BN:BN) -> 1335 | BQ18: =IF(BP18=0,1,BP17/BP18) -> 1 | BS18: 2025-08-15 | BT18: Adormirea Maicii Domnului
A19: 0 | B19: 1 | C19: 2 | D19: 3 | E19: 4 | F19: 5 | G19: 6 | H19: 7 | I19: 8 | J19: 9 | K19: 10 | L19: 11 | M19: 12 | N19: 13 | O19: 14 | P19: 15 | Q19: 16 | R19: 17 | S19: 18 | T19: 19 | U19: 20 | V19: 21 | W19: 22 | X19: 23 | Y19: 24 | Z19: 25 | AA19: 26 | AB19: 27 | AC19: 28 | AD19: 29 | AE19: 30 | AF19: 31 | AG19: 32 | AH19: 33 | AI19: 34 | AJ19: 35 | AK19: 36 | AL19: 37 | AM19: 38 | AN19: 39 | AO19: 40 | AP19: 41
A20: 1 | B20: - | C20: x | D20: Pregătire conductă de transport gaze naturale DN 700 Seleuș - Cristur - Bățani în vederea transformării în conductă godevilabilă - etapa 2B (jud. Harghita) | E20: 85591 | F20: Secuieni HG | G20: Harghita | H20: 498017.44 | I20: 528594.77 | J20: 498017.44 | K20: 528594.77 | L20: - | M20: - | N20: SM0374D0 | O20: Secuieni I HG | P20: - | Q20: - | R20: - | S20: - | T20: SM-SD001 | U20: Nova Power, Distrigaz Vest, Engie, E.on Energie, Electrica Furnizare, Energy Core, Energy Distribution, PPC Energie, Entrex, Euro Seven, Eye Mall, Premier Energy Trading, Gaz Est, Getica 95, Local Gaz, Met România, MVM Future, Next Energy Distribution, Neogas Grid, Petrom, Premier Energy, Gas Provider, Renovatio, Romgaz, MDA Energy, Solprim, Tinmar, Transenergo, Vimetco | V20: Neogas Grid | W20: aprilie - septembrie 2025 | X20: 2025-04-09 | Y20: 09:00:00 | Z20: 2025-04-09 | AA20: 15:00:00 | AB20: Brașov | AC20: Efectuată | AE20: 2025-04-09 | AF20: 09:00:00 | AG20: 2025-04-09 | AH20: 14:53:00 | AI20: 2025-04-01 | AJ20: 15:20:00 | AK20: 2025-04-01 | AL20: 14:54:00 | AM20: 29935/07.04.2025 | AN20: DA | AP20: PLRRM 2025-2030 Anexa1_II_A1 | AR20: =IF(B20="X",IF(AN20="","Afectat sau NU?",IF(AN20="DA",IF(((AK20+AL20)-(AE20+AF20))*24<-720,"Neinformat",((AK20+AL20)-(AE20+AF20))*24),"Nu a fost afectat producator/consumator")),"") ->  | AS20: =IF(B20="X",IF(AN20="DA",IF(AR20<6,LEN(TRIM(V20))-LEN(SUBSTITUTE(V20,CHAR(44),""))+1,0),"-"),"") ->  | AT20: =IF(B20="X",IF(AN20="DA",LEN(TRIM(V20))-LEN(SUBSTITUTE(V20,CHAR(44),""))+1,"-"),"") ->  | AU20: =IF(B20="X",IF(AN20="","Afectat sau NU?",IF(AN20="DA",IF(((AI20+AJ20)-(AE20+AF20))*24<-720,"Neinformat",((AI20+AJ20)-(AE20+AF20))*24),"Nu a fost afectat producator/consumator")),"") ->  | AV20: =IF(B20="X",IF(AN20="DA",IF(AU20<6,LEN(TRIM(U20))-LEN(SUBSTITUTE(U20,CHAR(44),""))+1,0),"-"),"") ->  | AW20: =IF(B20="X",IF(AN20="DA",LEN(TRIM(U20))-LEN(SUBSTITUTE(U20,CHAR(44),""))+1,"-"),"") ->  | AX20: =IF(B20="X",IF(AN20="","Afectat sau NU?",IF(AN20="DA",((AG20+AH20)-(AE20+AF20))*24,"Nu a fost afectat producator/consumator")),"") ->  | AY20: =IF(B20="X",IF(AN20="DA",IF(AX20>24,IF(BA20="NU",0,LEN(TRIM(V20))-LEN(SUBSTITUTE(V20,CHAR(44),""))+1),0),"-"),"") ->  | AZ20: =IF(B20="X",IF(AN20="DA",IF(AX20>24,LEN(TRIM(V20))-LEN(SUBSTITUTE(V20,CHAR(44),""))+1,0),"-"),"") ->  | BF20: =IF(C20="X",IF(AN20="","Afectat sau NU?",IF(AN20="DA",IF(AK20="","Neinformat",NETWORKDAYS((AK20+1)+AL20,(AE20-1)+AF20,$BS$2:$BS$18)),"Nu a fost afectat producator/consumator")),"") -> 5 | BG20: =IF(C20="X",IF(AN20="DA",IF(AND(BF20>=5,AK20<>""),LEN(TRIM(V20))-LEN(SUBSTITUTE(V20,CHAR(44),""))+1,0),"-"),"") -> 1 | BH20: =IF(C20="X",IF(AN20="DA",LEN(TRIM(V20))-LEN(SUBSTITUTE(V20,CHAR(44),""))+1,"-"),"") -> 1 | BI20: =IF(C20="X",IF(AN20="","Afectat sau NU?",IF(AN20="DA",IF(AI20="","Neinformat",NETWORKDAYS((AI20+1)+AJ20,(AE20-1)+AF20,$BS$2:$BS$18)),"Nu a fost afectat producator/consumator")),"") -> 5 | BJ20: =IF(C20="X",IF(AN20="DA",IF(AND(BI20>=5,AI20<>""),LEN(TRIM(U20))-LEN(SUBSTITUTE(U20,CHAR(44),""))+1,0),"-"),"") -> 29 | BK20: =IF(C20="X",IF(AN20="DA",LEN(TRIM(U20))-LEN(SUBSTITUTE(U20,CHAR(44),""))+1,"-"),"") -> 29 | BL20: =IF(C20="X",IF(AN20="","Afectat sau NU?",IF(AN20="DA",((AG20+AH20)-(Z20+AA20))*24,"Nu a fost afectat producator/consumator")),"") -> -0.1166666667 | BM20: =IF(C20="X",IF(AN20<>"DA","-",IF(AND(AN20="DA",BL20<=0),LEN(TRIM(V20))-LEN(SUBSTITUTE(V20,CHAR(44),""))+1+LEN(TRIM(U20))-LEN(SUBSTITUTE(U20,CHAR(44),""))+1,0)),"") -> 30 | BN20: =IF(C20="X",IF(AN20="DA",LEN(TRIM(V20))-LEN(SUBSTITUTE(V20,CHAR(44),""))+1+LEN(TRIM(U20))-LEN(SUBSTITUTE(U20,CHAR(44),""))+1,"-"),"") -> 30
A21: =A20+1 -> 2 | B21: - | C21: x | D21: Pregătire conductă de transport gaze naturale DN 700 Seleuș - Cristur - Bățani în vederea transformării în conductă godevilabilă - etapa 2B (jud. Harghita) | E21: 85591 | F21: Secuieni HG | G21: Harghita | H21: 498017.44 | I21: 528594.77 | J21: 498017.44 | K21: 528594.77 | L21: - | M21: - | N21: SM0374D1 | O21: Secuieni II HG | P21: - | Q21: - | R21: - | S21: - | T21: SM-SD001 | U21: Nova Power, Distrigaz Vest, Engie, E.on Energie, Electrica Furnizare, Energy Core, Energy Distribution, PPC Energie, Entrex, Euro Seven, Eye Mall, Premier Energy Trading, Gaz Est, Getica 95, Local Gaz, Met România, MVM Future, Next Energy Distribution, Neogas Grid, Petrom, Premier Energy, Gas Provider, Renovatio, Romgaz, MDA Energy, Solprim, Tinmar, Transenergo, Vimetco | V21: Neogas Grid | W21: aprilie - septembrie 2025 | X21: 2025-04-09 | Y21: 09:00:00 | Z21: 2025-04-09 | AA21: 15:00:00 | AB21: Brașov | AC21: Efectuată | AE21: 2025-04-09 | AF21: 09:00:00 | AG21: 2025-04-09 | AH21: 14:53:00 | AI21: 2025-04-01 | AJ21: 15:20:00 | AK21: 2025-04-01 | AL21: 14:54:00 | AM21: 29935/07.04.2025 | AN21: DA | AP21: PLRRM 2025-2030 Anexa1_II_A1 | BF21: =IF(C21="X",IF(AN21="","Afectat sau NU?",IF(AN21="DA",IF(AK21="","Neinformat",NETWORKDAYS((AK21+1)+AL21,(AE21-1)+AF21,$BS$2:$BS$18)),"Nu a fost afectat producator/consumator")),"") -> 5 | BG21: 1 | BH21: 1 | BI21: =IF(C21="X",IF(AN21="","Afectat sau NU?",IF(AN21="DA",IF(AI21="","Neinformat",NETWORKDAYS((AI21+1)+AJ21,(AE21-1)+AF21,$BS$2:$BS$18)),"Nu a fost afectat producator/consumator")),"") -> 5 | BJ21: 29 | BK21: 29 | BL21: =IF(C21="X",IF(AN21="","Afectat sau NU?",IF(AN21="DA",((AG21+AH21)-(Z21+AA21))*24,"Nu a fost afectat producator/consumator")),"") -> -0.1166666667 | BM21: 30 | BN21: 30
A22: =A21+1 -> 3 | B22: - | C22: x | D22: Pregătire conductă de transport gaze naturale DN 700 Seleuș - Cristur - Bățani în vederea transformării în conductă godevilabilă - etapa 2B (jud. Harghita) | E22: 83534 | F22: Cristuru Secuiesc | G22: Harghita | H22: 502768.61 | I22: 530742.38 | J22: 502768.61 | K22: 530742.38 | L22: - | M22: - | N22: SM0373D0 | O22: Cristuru Secuiesc | P22: - | Q22: - | R22: - | S22: - | T22: SM-SD001 | U22: Nova Power, Colterm, CPL Concordia, Delgaz, Design Proiect, Distrigaz Vest, Engie, E.on Energie, Electrica Furnizare, Electric Planners, Energy Core, Energy Distribution, PPC Energie, Entrex, Eye Mall, Premier Energy Trading, Gaz Est, Gazmir, Getica 95, Local Gaz, Mihoc Oil, Met România, MVM Future, Next Energy Distribution, Petrom, Premier Energy, Prisma Serv, Gas Provider, Renovatio, Romgaz, RWE Supply, MDA Energy, Solprim, Tinmar, Transenergo, Gaz Vest Trading | V22: Delgaz Grid | W22: aprilie - septembrie 2025 | X22: 2025-05-28 | Y22: 09:00:00 | Z22: 2025-05-28 | AA22: 15:00:00 | AB22: Brașov | AC22: Efectuată | AE22: 2025-05-28 | AF22: 09:00:00 | AG22: 2025-05-28 | AH22: 15:00:00 | AI22: 2025-05-07 | AJ22: 14:07:00 | AK22: 2025-05-07 | AL22: 12:06:00 | AM22: 44474/27.05.2025 | AN22: DA | AP22: PLRRM 2025-2030 Anexa1_II_A1 | BF22: =IF(C22="X",IF(AN22="","Afectat sau NU?",IF(AN22="DA",IF(AK22="","Neinformat",NETWORKDAYS((AK22+1)+AL22,(AE22-1)+AF22,$BS$2:$BS$18)),"Nu a fost afectat producator/consumator")),"") -> 14 | BG22: 1 | BH22: 1 | BI22: 14 | BJ22: 36 | BK22: 36 | BL22: 0 | BM22: 37 | BN22: 37
A23: 4 | B23: - | C23: x | D23: Pregătire conductă de transport gaze naturale DN 700 Seleuș - Cristur - Bățani în vederea transformării în conductă godevilabilă - etapa 2B (jud. Harghita) | E23: 85225 | F23: Porumbenii Mici | G23: Harghita | H23: 508390.27 | I23: 530075.4 | J23: 508390.27 | K23: 530075.4 | L23: - | M23: - | N23: SM0382D0 | O23: Porumbenii Mici | P23: - | Q23: - | R23: - | S23: - | T23: SM-SD001 | V23: Neogas Grid | W23: aprilie - septembrie 2025 | AB23: Brașov | AC23: Efectuată (Lucrarea a fost efectuată în data de 13.06.2025, fără afectarea serviciului de transport gaze naturale.) | AP23: PLRRM 2025-2030 Anexa1_II_A1 | BF23: Afectat sau NU? | BG23: - | BH23: - | BI23: Afectat sau NU? | BJ23: - | BK23: - | BL23: Afectat sau NU? | BM23: - | BN23: -
A24: 5 | B24: - | C24: x | D24: Pregătire conductă de transport gaze naturale DN 700 Seleuș - Cristur - Bățani în vederea transformării în conductă godevilabilă - etapa 2B (jud. Harghita) | E24: 85216 | F24: Porumbenii Mari | G24: Harghita | H24: 510974.58 | I24: 529794.75 | J24: 510974.58 | K24: 529794.75 | L24: - | M24: - | N24: SM0383D0 | O24: Porumbenii Mari | P24: - | Q24: - | R24: - | S24: - | T24: SM-SD001 | U24: Nova Power, Distrigaz Vest, Engie, E.on Energie, Electrica Furnizare, Energy Core, Energy Distribution, PPC Energie, Entrex, Euro Seven, Eye Mall, Premier Energy Trading, Gaz Est, Getica 95, Local Gaz, Met România, MVM Future, Next Energy Distribution, Neogas Grid, Petrom, Premier Energy, Gas Provider, Renovatio, Romgaz, MDA Energy, Solprim, Tinmar, Transenergo, Vimetco | V24: Neogas Grid | W24: aprilie - septembrie 2025 | X24: 2025-06-10 | Y24: 09:00:00 | Z24: 2025-06-10 | AA24: 13:00:00 | AB24: Brașov | AC24: Efectuată | AE24: 2025-06-10 | AF24: 09:00:00 | AG24: 2025-06-10 | AH24: 13:00:00 | AI24: 2025-05-28 | AJ24: 15:45:00 | AK24: 2025-05-28 | AL24: 15:30:00 | AM24: 47441/04.06.2025 | AN24: DA | AP24: PLRRM 2025-2030 Anexa1_II_A1 | BF24: 7 | BG24: 1 | BH24: 1 | BI24: 7 | BJ24: 29 | BK24: 29 | BL24: 0 | BM24: 30 | BN24: 30
A25: 6 | B25: - | C25: x | D25: Pregătire conductă de transport gaze naturale DN 700 Seleuș - Cristur - Bățani în vederea transformării în conductă godevilabilă - etapa 2B (jud. Harghita) | E25: 85190 | F25: Lutița | G25: Harghita | H25: 514498.48 | I25: 528362.57 | J25: 514498.48 | K25: 528362.57 | L25: - | M25: - | N25: SM0384D0 | O25: Lutița | P25: - | Q25: - | R25: - | S25: - | T25: SM-SD001 | V25: Delgaz Grid | W25: aprilie - septembrie 2025 | AB25: Brașov | AP25: PLRRM 2025-2030 Anexa1_II_A1 | BF25: Afectat sau NU? | BG25: - | BH25: - | BI25: Afectat sau NU? | BJ25: - | BK25: - | BL25: Afectat sau NU? | BM25: - | BN25: -
A26: 7 | B26: - | C26: x | D26: Reabilitare conductă DN700 Bățani - Onești, Etapa 1- pregătirea conductei pentru transformarea în conductă godevilabilă | E26: 86197 | F26: Tușnad | G26: Harghita | H26: 566491.57 | I26: 515633.51 | J26: 566491.57 | K26: 515633.51 | L26: - | M26: - | N26: SM0397D0 | O26: Tușnad | P26: - | Q26: - | R26: - | S26: - | T26: SM-SD001 | V26: Delgaz Grid | W26: iunie - septembrie 2025 anul gazier 2025 - 2026 | AB26: Brașov | AD26: Se află în faza de proiectare. | AP26: PLRRM 2025-2030 Anexa1_II_B1 | BF26: Afectat sau NU? | BG26: - | BH26: - | BI26: Afectat sau NU? | BJ26: - | BK26: - | BL26: Afectat sau NU? | BM26: - | BN26: -
A27: 8 | B27: - | C27: x | D27: Reabilitare conductă DN700 Bățani - Onești, Etapa 1- pregătirea conductei pentru transformarea în conductă godevilabilă | E27: 64880 | F27: Turia | G27: Covasna | H27: 574240.05 | I27: 512562.4 | J27: 574240.05 | K27: 512562.4 | L27: - | M27: - | N27: SM0398D0 | O27: SC Prod Dărăguș Turia Balvanyos | P27: - | Q27: - | R27: - | S27: - | T27: SM-CF001 | V27: Dărăguș SRL | W27: iunie - septembrie 2025 anul gazier 2025 - 2026 | AB27: Brașov | AD27: Se află în faza de proiectare. | AP27: PLRRM 2025-2030 Anexa1_II_B1 | AR27: =IF(B27="X",IF(AN27="","Afectat sau NU?",IF(AN27="DA",IF(((AK27+AL27)-(AE27+AF27))*24<-720,"Neinformat",((AK27+AL27)-(AE27+AF27))*24),"Nu a fost afectat producator/consumator")),"") ->  | AS27: =IF(B27="X",IF(AN27="DA",IF(AR27<6,LEN(TRIM(V27))-LEN(SUBSTITUTE(V27,CHAR(44),""))+1,0),"-"),"") ->  | AT27: =IF(B27="X",IF(AN27="DA",LEN(TRIM(V27))-LEN(SUBSTITUTE(V27,CHAR(44),""))+1,"-"),"") ->  | AU27: =IF(B27="X",IF(AN27="","Afectat sau NU?",IF(AN27="DA",IF(((AI27+AJ27)-(AE27+AF27))*24<-720,"Neinformat",((AI27+AJ27)-(AE27+AF27))*24),"Nu a fost afectat producator/consumator")),"") ->  | AV27: =IF(B27="X",IF(AN27="DA",IF(AU27<6,LEN(TRIM(U27))-LEN(SUBSTITUTE(U27,CHAR(44),""))+1,0),"-"),"") ->  | AW27: =IF(B27="X",IF(AN27="DA",LEN(TRIM(U27))-LEN(SUBSTITUTE(U27,CHAR(44),""))+1,"-"),"") ->  | AX27: =IF(B27="X",IF(AN27="","Afectat sau NU?",IF(AN27="DA",((AG27+AH27)-(AE27+AF27))*24,"Nu a fost afectat producator/consumator")),"") ->  | AY27: =IF(B27="X",IF(AN27="DA",IF(AX27>24,IF(BA27="NU",0,LEN(TRIM(V27))-LEN(SUBSTITUTE(V27,CHAR(44),""))+1),0),"-"),"") ->  | AZ27: =IF(B27="X",IF(AN27="DA",IF(AX27>24,LEN(TRIM(V27))-LEN(SUBSTITUTE(V27,CHAR(44),""))+1,0),"-"),"") ->  | BF27: Afectat sau NU? | BG27: =IF(C27="X",IF(AN27="DA",IF(AND(BF27>=5,AK27<>""),LEN(TRIM(V27))-LEN(SUBSTITUTE(V27,CHAR(44),""))+1,0),"-"),"") -> - | BH27: =IF(C27="X",IF(AN27="DA",LEN(TRIM(V27))-LEN(SUBSTITUTE(V27,CHAR(44),""))+1,"-"),"") -> - | BI27: Afectat sau NU? | BJ27: =IF(C27="X",IF(AN27="DA",IF(AND(BI27>=5,AI27<>""),LEN(TRIM(U27))-LEN(SUBSTITUTE(U27,CHAR(44),""))+1,0),"-"),"") -> - | BK27: =IF(C27="X",IF(AN27="DA",LEN(TRIM(U27))-LEN(SUBSTITUTE(U27,CHAR(44),""))+1,"-"),"") -> - | BL27: =IF(C27="X",IF(AN27="","Afectat sau NU?",IF(AN27="DA",((AG27+AH27)-(Z27+AA27))*24,"Nu a fost afectat producator/consumator")),"") -> Afectat sau NU? | BM27: =IF(C27="X",IF(AN27<>"DA","-",IF(AND(AN27="DA",BL27<=0),LEN(TRIM(V27))-LEN(SUBSTITUTE(V27,CHAR(44),""))+1+LEN(TRIM(U27))-LEN(SUBSTITUTE(U27,CHAR(44),""))+1,0)),"") -> - | BN27: =IF(C27="X",IF(AN27="DA",LEN(TRIM(V27))-LEN(SUBSTITUTE(V27,CHAR(44),""))+1+LEN(TRIM(U27))-LEN(SUBSTITUTE(U27,CHAR(44),""))+1,"-"),"") -> -
A28: 9 | B28: - | C28: x | D28: Reabilitare conductă DN700 Bățani - Onești, Etapa 1- pregătirea conductei pentru transformarea în conductă godevilabilă | E28: 64470 | F28: Lemnia | G28: Covasna | H28: 597464.45 | I28: 506826.16 | J28: 597464.45 | K28: 506826.16 | L28: - | M28: - | N28: SM0407D0 | O28: Lemnia | P28: - | Q28: - | R28: - | S28: - | T28: SM-SD001 | V28: Distrigaz Sud Rețele | W28: iunie - septembrie 2025 anul gazier 2025 - 2026 | AB28: Brașov | AD28: Se află în faza de proiectare. | AP28: PLRRM 2025-2030 Anexa1_II_B1 | AR28: =IF(B28="X",IF(AN28="","Afectat sau NU?",IF(AN28="DA",IF(((AK28+AL28)-(AE28+AF28))*24<-720,"Neinformat",((AK28+AL28)-(AE28+AF28))*24),"Nu a fost afectat producator/consumator")),"") ->  | AS28: =IF(B28="X",IF(AN28="DA",IF(AR28<6,LEN(TRIM(V28))-LEN(SUBSTITUTE(V28,CHAR(44),""))+1,0),"-"),"") ->  | AT28: =IF(B28="X",IF(AN28="DA",LEN(TRIM(V28))-LEN(SUBSTITUTE(V28,CHAR(44),""))+1,"-"),"") ->  | AU28: =IF(B28="X",IF(AN28="","Afectat sau NU?",IF(AN28="DA",IF(((AI28+AJ28)-(AE28+AF28))*24<-720,"Neinformat",((AI28+AJ28)-(AE28+AF28))*24),"Nu a fost afectat producator/consumator")),"") ->  | AV28: =IF(B28="X",IF(AN28="DA",IF(AU28<6,LEN(TRIM(U28))-LEN(SUBSTITUTE(U28,CHAR(44),""))+1,0),"-"),"") ->  | AW28: =IF(B28="X",IF(AN28="DA",LEN(TRIM(U28))-LEN(SUBSTITUTE(U28,CHAR(44),""))+1,"-"),"") ->  | AX28: =IF(B28="X",IF(AN28="","Afectat sau NU?",IF(AN28="DA",((AG28+AH28)-(AE28+AF28))*24,"Nu a fost afectat producator/consumator")),"") ->  | AY28: =IF(B28="X",IF(AN28="DA",IF(AX28>24,IF(BA28="NU",0,LEN(TRIM(V28))-LEN(SUBSTITUTE(V28,CHAR(44),""))+1),0),"-"),"") ->  | AZ28: =IF(B28="X",IF(AN28="DA",IF(AX28>24,LEN(TRIM(V28))-LEN(SUBSTITUTE(V28,CHAR(44),""))+1,0),"-"),"") ->  | BF28: Afectat sau NU? | BG28: =IF(C28="X",IF(AN28="DA",IF(AND(BF28>=5,AK28<>""),LEN(TRIM(V28))-LEN(SUBSTITUTE(V28,CHAR(44),""))+1,0),"-"),"") -> - | BH28: =IF(C28="X",IF(AN28="DA",LEN(TRIM(V28))-LEN(SUBSTITUTE(V28,CHAR(44),""))+1,"-"),"") -> - | BI28: Afectat sau NU? | BJ28: =IF(C28="X",IF(AN28="DA",IF(AND(BI28>=5,AI28<>""),LEN(TRIM(U28))-LEN(SUBSTITUTE(U28,CHAR(44),""))+1,0),"-"),"") -> - | BK28: =IF(C28="X",IF(AN28="DA",LEN(TRIM(U28))-LEN(SUBSTITUTE(U28,CHAR(44),""))+1,"-"),"") -> - | BL28: =IF(C28="X",IF(AN28="","Afectat sau NU?",IF(AN28="DA",((AG28+AH28)-(Z28+AA28))*24,"Nu a fost afectat producator/consumator")),"") -> Afectat sau NU? | BM28: =IF(C28="X",IF(AN28<>"DA","-",IF(AND(AN28="DA",BL28<=0),LEN(TRIM(V28))-LEN(SUBSTITUTE(V28,CHAR(44),""))+1+LEN(TRIM(U28))-LEN(SUBSTITUTE(U28,CHAR(44),""))+1,0)),"") -> - | BN28: =IF(C28="X",IF(AN28="DA",LEN(TRIM(V28))-LEN(SUBSTITUTE(V28,CHAR(44),""))+1+LEN(TRIM(U28))-LEN(SUBSTITUTE(U28,CHAR(44),""))+1,"-"),"") -> -
A29: 10 | B29: - | C29: x | D29: Reabilitare conductă DN700 Bățani - Onești, Etapa 1- pregătirea conductei pentru transformarea în conductă godevilabilă | E29: 23804 | F29: Oituz | G29: Bacău | H29: 622831.62 | I29: 524130.32 | J29: 622831.62 | K29: 524130.32 | L29: - | M29: - | N29: SM0386D0 | O29: Oituz | P29: - | Q29: - | R29: - | S29: - | T29: SM-SD001 | V29: Delgaz Grid | W29: iunie - septembrie 2025 anul gazier 2025 - 2026 | AB29: Bacău | AD29: Se află în procedură de licitație. | AP29: PLRRM 2025-2030 Anexa1_II_B1 | BF29: Afectat sau NU? | BG29: - | BH29: - | BI29: Afectat sau NU? | BJ29: - | BK29: - | BL29: Afectat sau NU? | BM29: - | BN29: -
A30: 11 | B30: - | C30: x | D30: Reabilitare conductă DN700 Bățani - Onești, Etapa 1- pregătirea conductei pentru transformarea în conductă godevilabilă | E30: 23804 | F30: Oituz | G30: Bacău | H30: 623001.97 | I30: 524169.25 | J30: 623001.97 | K30: 524169.25 | L30: - | M30: - | N30: SM0387D0 | O30: SC Pa&Co Internațional Oituz | P30: - | Q30: - | R30: - | S30: - | T30: SM-CF001 | V30: Pa&Co International | W30: iunie - septembrie 2025 anul gazier 2025 - 2026 | AB30: Bacău | AD30: Se află în procedură de licitație. | AP30: PLRRM 2025-2030 Anexa1_II_B1 | BF30: Afectat sau NU? | BG30: - | BH30: - | BI30: Afectat sau NU? | BJ30: - | BK30: - | BL30: Afectat sau NU? | BM30: - | BN30: -
A31: 12 | B31: - | C31: x | D31: Reabilitare conductă DN700 Bățani - Onești, Etapa 1- pregătirea conductei pentru transformarea în conductă godevilabilă | E31: 23804 | F31: Oituz | G31: Bacău | H31: 624041.5 | I31: 524592.28 | J31: 624041.5 | K31: 524592.28 | L31: - | M31: - | N31: SM0909D0 | O31: Pa&Co Internațional Oituz locuință | P31: - | Q31: - | R31: - | S31: - | T31: SM-CF001 | V31: Pa&Co International | W31: iunie - septembrie 2025 anul gazier 2025 - 2026 | AB31: Bacău | AD31: Se află în procedură de licitație. | AP31: PLRRM 2025-2030 Anexa1_II_B1 | AR31: =IF(B31="X",IF(AN31="","Afectat sau NU?",IF(AN31="DA",IF(((AK31+AL31)-(AE31+AF31))*24<-720,"Neinformat",((AK31+AL31)-(AE31+AF31))*24),"Nu a fost afectat producator/consumator")),"") ->  | AS31: =IF(B31="X",IF(AN31="DA",IF(AR31<6,LEN(TRIM(V31))-LEN(SUBSTITUTE(V31,CHAR(44),""))+1,0),"-"),"") ->  | AT31: =IF(B31="X",IF(AN31="DA",LEN(TRIM(V31))-LEN(SUBSTITUTE(V31,CHAR(44),""))+1,"-"),"") ->  | AU31: =IF(B31="X",IF(AN31="","Afectat sau NU?",IF(AN31="DA",IF(((AI31+AJ31)-(AE31+AF31))*24<-720,"Neinformat",((AI31+AJ31)-(AE31+AF31))*24),"Nu a fost afectat producator/consumator")),"") ->  | AV31: =IF(B31="X",IF(AN31="DA",IF(AU31<6,LEN(TRIM(U31))-LEN(SUBSTITUTE(U31,CHAR(44),""))+1,0),"-"),"") ->  | AW31: =IF(B31="X",IF(AN31="DA",LEN(TRIM(U31))-LEN(SUBSTITUTE(U31,CHAR(44),""))+1,"-"),"") ->  | AX31: =IF(B31="X",IF(AN31="","Afectat sau NU?",IF(AN31="DA",((AG31+AH31)-(AE31+AF31))*24,"Nu a fost afectat producator/consumator")),"") ->  | AY31: =IF(B31="X",IF(AN31="DA",IF(AX31>24,IF(BA31="NU",0,LEN(TRIM(V31))-LEN(SUBSTITUTE(V31,CHAR(44),""))+1),0),"-"),"") ->  | AZ31: =IF(B31="X",IF(AN31="DA",IF(AX31>24,LEN(TRIM(V31))-LEN(SUBSTITUTE(V31,CHAR(44),""))+1,0),"-"),"") ->  | BF31: Afectat sau NU? | BG31: =IF(C31="X",IF(AN31="DA",IF(AND(BF31>=5,AK31<>""),LEN(TRIM(V31))-LEN(SUBSTITUTE(V31,CHAR(44),""))+1,0),"-"),"") -> - | BH31: =IF(C31="X",IF(AN31="DA",LEN(TRIM(V31))-LEN(SUBSTITUTE(V31,CHAR(44),""))+1,"-"),"") -> - | BI31: Afectat sau NU? | BJ31: =IF(C31="X",IF(AN31="DA",IF(AND(BI31>=5,AI31<>""),LEN(TRIM(U31))-LEN(SUBSTITUTE(U31,CHAR(44),""))+1,0),"-"),"") -> - | BK31: =IF(C31="X",IF(AN31="DA",LEN(TRIM(U31))-LEN(SUBSTITUTE(U31,CHAR(44),""))+1,"-"),"") -> - | BL31: =IF(C31="X",IF(AN31="","Afectat sau NU?",IF(AN31="DA",((AG31+AH31)-(Z31+AA31))*24,"Nu a fost afectat producator/consumator")),"") -> Afectat sau NU? | BM31: =IF(C31="X",IF(AN31<>"DA","-",IF(AND(AN31="DA",BL31<=0),LEN(TRIM(V31))-LEN(SUBSTITUTE(V31,CHAR(44),""))+1+LEN(TRIM(U31))-LEN(SUBSTITUTE(U31,CHAR(44),""))+1,0)),"") -> - | BN31: =IF(C31="X",IF(AN31="DA",LEN(TRIM(V31))-LEN(SUBSTITUTE(V31,CHAR(44),""))+1+LEN(TRIM(U31))-LEN(SUBSTITUTE(U31,CHAR(44),""))+1,"-"),"") -> -
A32: 13 | B32: - | C32: x | D32: Reabilitare conductă DN700 Bățani - Onești, Etapa 1- pregătirea conductei pentru transformarea în conductă godevilabilă | E32: 22585 | F32: Filipești | G32: Bacău | H32: 632633.77 | I32: 526820.44 | J32: 632633.77 | K32: 526820.44 | L32: - | M32: - | N32: SM0128D0 | O32: SC Fabrica de pâine Șerban Filipești | P32: - | Q32: - | R32: - | S32: - | T32: SM-CF001 | V32: Fabrica de pâine Șerban | W32: iunie - septembrie 2025 anul gazier 2025 - 2026 | AB32: Bacău | AD32: Se află în procedură de licitație. | AP32: PLRRM 2025-2030 Anexa1_II_B1 | AR32: =IF(B32="X",IF(AN32="","Afectat sau NU?",IF(AN32="DA",IF(((AK32+AL32)-(AE32+AF32))*24<-720,"Neinformat",((AK32+AL32)-(AE32+AF32))*24),"Nu a fost afectat producator/consumator")),"") ->  | AS32: =IF(B32="X",IF(AN32="DA",IF(AR32<6,LEN(TRIM(V32))-LEN(SUBSTITUTE(V32,CHAR(44),""))+1,0),"-"),"") ->  | AT32: =IF(B32="X",IF(AN32="DA",LEN(TRIM(V32))-LEN(SUBSTITUTE(V32,CHAR(44),""))+1,"-"),"") ->  | AU32: =IF(B32="X",IF(AN32="","Afectat sau NU?",IF(AN32="DA",IF(((AI32+AJ32)-(AE32+AF32))*24<-720,"Neinformat",((AI32+AJ32)-(AE32+AF32))*24),"Nu a fost afectat producator/consumator")),"") ->  | AV32: =IF(B32="X",IF(AN32="DA",IF(AU32<6,LEN(TRIM(U32))-LEN(SUBSTITUTE(U32,CHAR(44),""))+1,0),"-"),"") ->  | AW32: =IF(B32="X",IF(AN32="DA",LEN(TRIM(U32))-LEN(SUBSTITUTE(U32,CHAR(44),""))+1,"-"),"") ->  | AX32: =IF(B32="X",IF(AN32="","Afectat sau NU?",IF(AN32="DA",((AG32+AH32)-(AE32+AF32))*24,"Nu a fost afectat producator/consumator")),"") ->  | AY32: =IF(B32="X",IF(AN32="DA",IF(AX32>24,IF(BA32="NU",0,LEN(TRIM(V32))-LEN(SUBSTITUTE(V32,CHAR(44),""))+1),0),"-"),"") ->  | AZ32: =IF(B32="X",IF(AN32="DA",IF(AX32>24,LEN(TRIM(V32))-LEN(SUBSTITUTE(V32,CHAR(44),""))+1,0),"-"),"") ->  | BF32: Afectat sau NU? | BG32: =IF(C32="X",IF(AN32="DA",IF(AND(BF32>=5,AK32<>""),LEN(TRIM(V32))-LEN(SUBSTITUTE(V32,CHAR(44),""))+1,0),"-"),"") -> - | BH32: =IF(C32="X",IF(AN32="DA",LEN(TRIM(V32))-LEN(SUBSTITUTE(V32,CHAR(44),""))+1,"-"),"") -> - | BI32: Afectat sau NU? | BJ32: =IF(C32="X",IF(AN32="DA",IF(AND(BI32>=5,AI32<>""),LEN(TRIM(U32))-LEN(SUBSTITUTE(U32,CHAR(44),""))+1,0),"-"),"") -> - | BK32: =IF(C32="X",IF(AN32="DA",LEN(TRIM(U32))-LEN(SUBSTITUTE(U32,CHAR(44),""))+1,"-"),"") -> - | BL32: =IF(C32="X",IF(AN32="","Afectat sau NU?",IF(AN32="DA",((AG32+AH32)-(Z32+AA32))*24,"Nu a fost afectat producator/consumator")),"") -> Afectat sau NU? | BM32: =IF(C32="X",IF(AN32<>"DA","-",IF(AND(AN32="DA",BL32<=0),LEN(TRIM(V32))-LEN(SUBSTITUTE(V32,CHAR(44),""))+1+LEN(TRIM(U32))-LEN(SUBSTITUTE(U32,CHAR(44),""))+1,0)),"") -> - | BN32: =IF(C32="X",IF(AN32="DA",LEN(TRIM(V32))-LEN(SUBSTITUTE(V32,CHAR(44),""))+1+LEN(TRIM(U32))-LEN(SUBSTITUTE(U32,CHAR(44),""))+1,"-"),"") -> -
A33: 14 | B33: - | C33: x | D33: Pregătire conductă de transport gaze naturale DN 500 Munteni - Bârlad în vederea transformării în conductă godevilabilă | E33: 166538 | F33: Tutova | G33: Vaslui | H33: 697349.73 | I33: 516890.65 | J33: 697349.73 | K33: 516890.65 | L33: - | M33: - | N33: SM1151D0 | O33: Tutova | P33: - | Q33: - | R33: - | S33: - | T33: SM-SD001 | V33: Gaz Est | W33: iunie - septembrie 2025 anul gazier 2025 - 2026 | AB33: Brăila | AD33: Se află în procedură de licitație. | AP33: PLRRM 2025-2030 Anexa1_II_B3 | AR33: =IF(B33="X",IF(AN33="","Afectat sau NU?",IF(AN33="DA",IF(((AK33+AL33)-(AE33+AF33))*24<-720,"Neinformat",((AK33+AL33)-(AE33+AF33))*24),"Nu a fost afectat producator/consumator")),"") ->  | AS33: =IF(B33="X",IF(AN33="DA",IF(AR33<6,LEN(TRIM(V33))-LEN(SUBSTITUTE(V33,CHAR(44),""))+1,0),"-"),"") ->  | AT33: =IF(B33="X",IF(AN33="DA",LEN(TRIM(V33))-LEN(SUBSTITUTE(V33,CHAR(44),""))+1,"-"),"") ->  | AU33: =IF(B33="X",IF(AN33="","Afectat sau NU?",IF(AN33="DA",IF(((AI33+AJ33)-(AE33+AF33))*24<-720,"Neinformat",((AI33+AJ33)-(AE33+AF33))*24),"Nu a fost afectat producator/consumator")),"") ->  | AV33: =IF(B33="X",IF(AN33="DA",IF(AU33<6,LEN(TRIM(U33))-LEN(SUBSTITUTE(U33,CHAR(44),""))+1,0),"-"),"") ->  | AW33: =IF(B33="X",IF(AN33="DA",LEN(TRIM(U33))-LEN(SUBSTITUTE(U33,CHAR(44),""))+1,"-"),"") ->  | AX33: =IF(B33="X",IF(AN33="","Afectat sau NU?",IF(AN33="DA",((AG33+AH33)-(AE33+AF33))*24,"Nu a fost afectat producator/consumator")),"") ->  | AY33: =IF(B33="X",IF(AN33="DA",IF(AX33>24,IF(BA33="NU",0,LEN(TRIM(V33))-LEN(SUBSTITUTE(V33,CHAR(44),""))+1),0),"-"),"") ->  | AZ33: =IF(B33="X",IF(AN33="DA",IF(AX33>24,LEN(TRIM(V33))-LEN(SUBSTITUTE(V33,CHAR(44),""))+1,0),"-"),"") ->  | BF33: Afectat sau NU? | BG33: =IF(C33="X",IF(AN33="DA",IF(AND(BF33>=5,AK33<>""),LEN(TRIM(V33))-LEN(SUBSTITUTE(V33,CHAR(44),""))+1,0),"-"),"") -> - | BH33: =IF(C33="X",IF(AN33="DA",LEN(TRIM(V33))-LEN(SUBSTITUTE(V33,CHAR(44),""))+1,"-"),"") -> - | BI33: Afectat sau NU? | BJ33: =IF(C33="X",IF(AN33="DA",IF(AND(BI33>=5,AI33<>""),LEN(TRIM(U33))-LEN(SUBSTITUTE(U33,CHAR(44),""))+1,0),"-"),"") -> - | BK33: =IF(C33="X",IF(AN33="DA",LEN(TRIM(U33))-LEN(SUBSTITUTE(U33,CHAR(44),""))+1,"-"),"") -> - | BL33: =IF(C33="X",IF(AN33="","Afectat sau NU?",IF(AN33="DA",((AG33+AH33)-(Z33+AA33))*24,"Nu a fost afectat producator/consumator")),"") -> Afectat sau NU? | BM33: =IF(C33="X",IF(AN33<>"DA","-",IF(AND(AN33="DA",BL33<=0),LEN(TRIM(V33))-LEN(SUBSTITUTE(V33,CHAR(44),""))+1+LEN(TRIM(U33))-LEN(SUBSTITUTE(U33,CHAR(44),""))+1,0)),"") -> - | BN33: =IF(C33="X",IF(AN33="DA",LEN(TRIM(V33))-LEN(SUBSTITUTE(V33,CHAR(44),""))+1+LEN(TRIM(U33))-LEN(SUBSTITUTE(U33,CHAR(44),""))+1,"-"),"") -> -
A34: 15 | B34: - | C34: x | D34: Pregătire conductă de transport gaze naturale DN 500 Munteni - Bârlad în vederea transformării în conductă godevilabilă | E34: 75828 | F34: Buciumeni | G34: Galați | H34: 677419.66 | I34: 506159.21 | J34: 677419.66 | K34: 506159.21 | L34: - | M34: - | N34: SM0515D0 | O34: Buciumeni Mănăstire | P34: - | Q34: - | R34: - | S34: - | T34: SM-SD001 | V34: Distrigaz Sud Rețele | W34: iunie - septembrie 2025 anul gazier 2025 - 2026 | AB34: Brăila | AD34: Se află în procedură de licitație. | AP34: PLRRM 2025-2030 Anexa1_II_B3 | BF34: Afectat sau NU? | BG34: - | BH34: - | BI34: Afectat sau NU? | BJ34: - | BK34: - | BL34: Afectat sau NU? | BM34: - | BN34: -
A35: 16 | B35: - | C35: x | D35: Reabilitare conductă DN 500 Coroi - Ungheni, etapa I - pregătirea conductei pentru transformare în conductă godevilabilă | E35: 117952 | F35: Corunca | G35: Mureș | H35: 470037.27 | I35: 557385.33 | J35: 470037.27 | K35: 557385.33 | L35: - | M35: - | N35: - | O35: - | P35: - | Q35: - | R35: PM0177 | S35: Mureș SU P9 | T35: PM-PP001 | V35: Romgaz | W35: iunie - septembrie 2025 anul gazier 2025 - 2026 | AB35: Mediaș | AD35: Se află încă în faza de proiectare (dificultăți în obținerea acordului proprietarilor și la scoaterea din circuitul agricol a unor terenuri). | AP35: PLRRM 2025-2030 Anexa1_II_B7 | BF35: Afectat sau NU? | BG35: - | BH35: - | BI35: Afectat sau NU? | BJ35: - | BK35: - | BL35: Afectat sau NU? | BM35: - | BN35: -
A36: 17 | B36: - | C36: x | D36: Reabilitare conductă DN 500 Coroi - Ungheni, etapa I - pregătirea conductei pentru transformare în conductă godevilabilă | E36: 116199 | F36: Coroi | G36: Mureș | H36: 470200.08 | I36: 545077.49 | J36: 470200.08 | K36: 545077.49 | L36: - | M36: - | N36: SM0689D0 | O36: Coroi | P36: - | Q36: - | R36: - | S36: - | T36: SM-SD001 | V36: Delgaz Grid | W36: iunie - septembrie 2025 anul gazier 2025 - 2026 | AB36: Mediaș | AD36: Se află încă în faza de proiectare (dificultăți în obținerea acordului proprietarilor și la scoaterea din circuitul agricol a unor terenuri). | AP36: PLRRM 2025-2030 Anexa1_II_B7 | AR36: =IF(B36="X",IF(AN36="","Afectat sau NU?",IF(AN36="DA",IF(((AK36+AL36)-(AE36+AF36))*24<-720,"Neinformat",((AK36+AL36)-(AE36+AF36))*24),"Nu a fost afectat producator/consumator")),"") ->  | AS36: =IF(B36="X",IF(AN36="DA",IF(AR36<6,LEN(TRIM(V36))-LEN(SUBSTITUTE(V36,CHAR(44),""))+1,0),"-"),"") ->  | AT36: =IF(B36="X",IF(AN36="DA",LEN(TRIM(V36))-LEN(SUBSTITUTE(V36,CHAR(44),""))+1,"-"),"") ->  | AU36: =IF(B36="X",IF(AN36="","Afectat sau NU?",IF(AN36="DA",IF(((AI36+AJ36)-(AE36+AF36))*24<-720,"Neinformat",((AI36+AJ36)-(AE36+AF36))*24),"Nu a fost afectat producator/consumator")),"") ->  | AV36: =IF(B36="X",IF(AN36="DA",IF(AU36<6,LEN(TRIM(U36))-LEN(SUBSTITUTE(U36,CHAR(44),""))+1,0),"-"),"") ->  | AW36: =IF(B36="X",IF(AN36="DA",LEN(TRIM(U36))-LEN(SUBSTITUTE(U36,CHAR(44),""))+1,"-"),"") ->  | AX36: =IF(B36="X",IF(AN36="","Afectat sau NU?",IF(AN36="DA",((AG36+AH36)-(AE36+AF36))*24,"Nu a fost afectat producator/consumator")),"") ->  | AY36: =IF(B36="X",IF(AN36="DA",IF(AX36>24,IF(BA36="NU",0,LEN(TRIM(V36))-LEN(SUBSTITUTE(V36,CHAR(44),""))+1),0),"-"),"") ->  | AZ36: =IF(B36="X",IF(AN36="DA",IF(AX36>24,LEN(TRIM(V36))-LEN(SUBSTITUTE(V36,CHAR(44),""))+1,0),"-"),"") ->  | BF36: Afectat sau NU? | BG36: =IF(C36="X",IF(AN36="DA",IF(AND(BF36>=5,AK36<>""),LEN(TRIM(V36))-LEN(SUBSTITUTE(V36,CHAR(44),""))+1,0),"-"),"") -> - | BH36: =IF(C36="X",IF(AN36="DA",LEN(TRIM(V36))-LEN(SUBSTITUTE(V36,CHAR(44),""))+1,"-"),"") -> - | BI36: Afectat sau NU? | BJ36: =IF(C36="X",IF(AN36="DA",IF(AND(BI36>=5,AI36<>""),LEN(TRIM(U36))-LEN(SUBSTITUTE(U36,CHAR(44),""))+1,0),"-"),"") -> - | BK36: =IF(C36="X",IF(AN36="DA",LEN(TRIM(U36))-LEN(SUBSTITUTE(U36,CHAR(44),""))+1,"-"),"") -> - | BL36: =IF(C36="X",IF(AN36="","Afectat sau NU?",IF(AN36="DA",((AG36+AH36)-(Z36+AA36))*24,"Nu a fost afectat producator/consumator")),"") -> Afectat sau NU? | BM36: =IF(C36="X",IF(AN36<>"DA","-",IF(AND(AN36="DA",BL36<=0),LEN(TRIM(V36))-LEN(SUBSTITUTE(V36,CHAR(44),""))+1+LEN(TRIM(U36))-LEN(SUBSTITUTE(U36,CHAR(44),""))+1,0)),"") -> - | BN36: =IF(C36="X",IF(AN36="DA",LEN(TRIM(V36))-LEN(SUBSTITUTE(V36,CHAR(44),""))+1+LEN(TRIM(U36))-LEN(SUBSTITUTE(U36,CHAR(44),""))+1,"-"),"") -> -
A37: 18 | B37: - | C37: x | D37: Pregătire conductă de transport gaze naturale DN400 Micfalău - Sfântu Gheorghe în vederea transformării în conductă godevilabilă | E37: 64924 | F37: Arcuș | G37: Covasna | H37: 562663.42 | I37: 487853.33 | J37: 562663.42 | K37: 487853.33 | L37: - | M37: - | N37: SM0390D0 | O37: SC Lengyel Arcuș | P37: - | Q37: - | R37: - | S37: - | T37: SM-CF001 | V37: Import Export Lengyel | W37: iunie - septembrie 2025 anul gazier 2025 - 2026 | AB37: Brașov | AD37: Se află în procedură de achiziție. | AP37: PLRRM 2025-2030 Anexa1_II_B6 | BF37: Afectat sau NU? | BG37: - | BH37: - | BI37: Afectat sau NU? | BJ37: - | BK37: - | BL37: Afectat sau NU? | BM37: - | BN37: -
A38: 19 | B38: - | C38: x | D38: Pregătire conductă de transport gaze naturale DN400 Micfalău - Sfântu Gheorghe în vederea transformării în conductă godevilabilă | E38: 64513 | F38: Micfalău | G38: Covasna | H38: 564376.28 | I38: 505066.32 | J38: 564376.28 | K38: 505066.32 | L38: - | M38: - | N38: SM1003D0 | O38: Micfalău | P38: - | Q38: - | R38: - | S38: - | T38: SM-SD001 | V38: Oligopol | W38: iunie - septembrie 2025 anul gazier 2025 - 2026 | AB38: Brașov | AD38: Se află în procedură de achiziție. | AP38: PLRRM 2025-2030 Anexa1_II_B6 | BF38: Afectat sau NU? | BG38: - | BH38: - | BI38: Afectat sau NU? | BJ38: - | BK38: - | BL38: Afectat sau NU? | BM38: - | BN38: -
A39: 20 | B39: - | C39: x | D39: Pregătire conductă de transport gaze naturale DN700 Inel București, tronson Linde Gaz - Moara Domnească în vederea transformării în conductă godevilabilă | E39: 179132 | F39: București | G39: București | H39: 577613.29 | I39: 325145.01 | J39: 577613.29 | K39: 325145.01 | L39: - | M39: - | N39: SM0151D0 | O39: București CET Vest | P39: - | Q39: - | R39: - | S39: - | T39: SM-SD001 | V39: Distrigaz Sud Rețele | W39: iunie - septembrie 2025 anul gazier 2025 - 2026 | AB39: București | AD39: Se află în procedură de achiziție. | AP39: PLRRM 2025-2030 Anexa1_II_B8 | BF39: Afectat sau NU? | BG39: - | BH39: - | BI39: Afectat sau NU? | BJ39: - | BK39: - | BL39: Afectat sau NU? | BM39: - | BN39: -
A40: 21 | B40: - | C40: x | D40: Pregătire conductă de transport gaze naturale DN700 Inel București, tronson Linde Gaz - Moara Domnească în vederea transformării în conductă godevilabilă | E40: 102053 | F40: Olteni | G40: Ilfov | H40: 577911.69 | I40: 322107.23 | J40: 577911.69 | K40: 322107.23 | L40: - | M40: - | N40: SM1224D0 | O40: Olteni | P40: - | Q40: - | R40: - | S40: - | T40: SM-SD001 | V40: Premier Energy | W40: iunie - septembrie 2025 anul gazier 2025 - 2026 | AB40: București | AD40: Se află în procedură de achiziție. | AP40: PLRRM 2025-2030 Anexa1_II_B8 | AR40: =IF(B40="X",IF(AN40="","Afectat sau NU?",IF(AN40="DA",IF(((AK40+AL40)-(AE40+AF40))*24<-720,"Neinformat",((AK40+AL40)-(AE40+AF40))*24),"Nu a fost afectat producator/consumator")),"") ->  | AS40: =IF(B40="X",IF(AN40="DA",IF(AR40<6,LEN(TRIM(V40))-LEN(SUBSTITUTE(V40,CHAR(44),""))+1,0),"-"),"") ->  | AT40: =IF(B40="X",IF(AN40="DA",LEN(TRIM(V40))-LEN(SUBSTITUTE(V40,CHAR(44),""))+1,"-"),"") ->  | AU40: =IF(B40="X",IF(AN40="","Afectat sau NU?",IF(AN40="DA",IF(((AI40+AJ40)-(AE40+AF40))*24<-720,"Neinformat",((AI40+AJ40)-(AE40+AF40))*24),"Nu a fost afectat producator/consumator")),"") ->  | AV40: =IF(B40="X",IF(AN40="DA",IF(AU40<6,LEN(TRIM(U40))-LEN(SUBSTITUTE(U40,CHAR(44),""))+1,0),"-"),"") ->  | AW40: =IF(B40="X",IF(AN40="DA",LEN(TRIM(U40))-LEN(SUBSTITUTE(U40,CHAR(44),""))+1,"-"),"") ->  | AX40: =IF(B40="X",IF(AN40="","Afectat sau NU?",IF(AN40="DA",((AG40+AH40)-(AE40+AF40))*24,"Nu a fost afectat producator/consumator")),"") ->  | AY40: =IF(B40="X",IF(AN40="DA",IF(AX40>24,IF(BA40="NU",0,LEN(TRIM(V40))-LEN(SUBSTITUTE(V40,CHAR(44),""))+1),0),"-"),"") ->  | AZ40: =IF(B40="X",IF(AN40="DA",IF(AX40>24,LEN(TRIM(V40))-LEN(SUBSTITUTE(V40,CHAR(44),""))+1,0),"-"),"") ->  | BF40: Afectat sau NU? | BG40: =IF(C40="X",IF(AN40="DA",IF(AND(BF40>=5,AK40<>""),LEN(TRIM(V40))-LEN(SUBSTITUTE(V40,CHAR(44),""))+1,0),"-"),"") -> - | BH40: =IF(C40="X",IF(AN40="DA",LEN(TRIM(V40))-LEN(SUBSTITUTE(V40,CHAR(44),""))+1,"-"),"") -> - | BI40: Afectat sau NU? | BJ40: =IF(C40="X",IF(AN40="DA",IF(AND(BI40>=5,AI40<>""),LEN(TRIM(U40))-LEN(SUBSTITUTE(U40,CHAR(44),""))+1,0),"-"),"") -> - | BK40: =IF(C40="X",IF(AN40="DA",LEN(TRIM(U40))-LEN(SUBSTITUTE(U40,CHAR(44),""))+1,"-"),"") -> - | BL40: =IF(C40="X",IF(AN40="","Afectat sau NU?",IF(AN40="DA",((AG40+AH40)-(Z40+AA40))*24,"Nu a fost afectat producator/consumator")),"") -> Afectat sau NU? | BM40: =IF(C40="X",IF(AN40<>"DA","-",IF(AND(AN40="DA",BL40<=0),LEN(TRIM(V40))-LEN(SUBSTITUTE(V40,CHAR(44),""))+1+LEN(TRIM(U40))-LEN(SUBSTITUTE(U40,CHAR(44),""))+1,0)),"") -> - | BN40: =IF(C40="X",IF(AN40="DA",LEN(TRIM(V40))-LEN(SUBSTITUTE(V40,CHAR(44),""))+1+LEN(TRIM(U40))-LEN(SUBSTITUTE(U40,CHAR(44),""))+1,"-"),"") -> -
A41: 22 | B41: - | C41: x | D41: Pregătire conductă de transport gaze naturale DN700 Inel București, tronson Linde Gaz - Moara Domnească în vederea transformării în conductă godevilabilă | E41: 179230 | F41: Bragadiru | G41: Ilfov | H41: 578545.56 | I41: 319774.34 | J41: 578545.56 | K41: 319774.34 | L41: - | M41: - | N41: SM0250D1 | O41: SC Goodwork Bragadiru | P41: - | Q41: - | R41: - | S41: - | T41: SM-SD001 | V41: Distrigaz Sud Rețele | W41: iunie - septembrie 2025 anul gazier 2025 - 2026 | AB41: București | AD41: Se află în procedură de achiziție. | AP41: PLRRM 2025-2030 Anexa1_II_B8 | AR41: =IF(B41="X",IF(AN41="","Afectat sau NU?",IF(AN41="DA",IF(((AK41+AL41)-(AE41+AF41))*24<-720,"Neinformat",((AK41+AL41)-(AE41+AF41))*24),"Nu a fost afectat producator/consumator")),"") ->  | AS41: =IF(B41="X",IF(AN41="DA",IF(AR41<6,LEN(TRIM(V41))-LEN(SUBSTITUTE(V41,CHAR(44),""))+1,0),"-"),"") ->  | AT41: =IF(B41="X",IF(AN41="DA",LEN(TRIM(V41))-LEN(SUBSTITUTE(V41,CHAR(44),""))+1,"-"),"") ->  | AU41: =IF(B41="X",IF(AN41="","Afectat sau NU?",IF(AN41="DA",IF(((AI41+AJ41)-(AE41+AF41))*24<-720,"Neinformat",((AI41+AJ41)-(AE41+AF41))*24),"Nu a fost afectat producator/consumator")),"") ->  | AV41: =IF(B41="X",IF(AN41="DA",IF(AU41<6,LEN(TRIM(U41))-LEN(SUBSTITUTE(U41,CHAR(44),""))+1,0),"-"),"") ->  | AW41: =IF(B41="X",IF(AN41="DA",LEN(TRIM(U41))-LEN(SUBSTITUTE(U41,CHAR(44),""))+1,"-"),"") ->  | AX41: =IF(B41="X",IF(AN41="","Afectat sau NU?",IF(AN41="DA",((AG41+AH41)-(AE41+AF41))*24,"Nu a fost afectat producator/consumator")),"") ->  | AY41: =IF(B41="X",IF(AN41="DA",IF(AX41>24,IF(BA41="NU",0,LEN(TRIM(V41))-LEN(SUBSTITUTE(V41,CHAR(44),""))+1),0),"-"),"") ->  | AZ41: =IF(B41="X",IF(AN41="DA",IF(AX41>24,LEN(TRIM(V41))-LEN(SUBSTITUTE(V41,CHAR(44),""))+1,0),"-"),"") ->  | BF41: Afectat sau NU? | BG41: =IF(C41="X",IF(AN41="DA",IF(AND(BF41>=5,AK41<>""),LEN(TRIM(V41))-LEN(SUBSTITUTE(V41,CHAR(44),""))+1,0),"-"),"") -> - | BH41: =IF(C41="X",IF(AN41="DA",LEN(TRIM(V41))-LEN(SUBSTITUTE(V41,CHAR(44),""))+1,"-"),"") -> - | BI41: Afectat sau NU? | BJ41: =IF(C41="X",IF(AN41="DA",IF(AND(BI41>=5,AI41<>""),LEN(TRIM(U41))-LEN(SUBSTITUTE(U41,CHAR(44),""))+1,0),"-"),"") -> - | BK41: =IF(C41="X",IF(AN41="DA",LEN(TRIM(U41))-LEN(SUBSTITUTE(U41,CHAR(44),""))+1,"-"),"") -> - | BL41: =IF(C41="X",IF(AN41="","Afectat sau NU?",IF(AN41="DA",((AG41+AH41)-(Z41+AA41))*24,"Nu a fost afectat producator/consumator")),"") -> Afectat sau NU? | BM41: =IF(C41="X",IF(AN41<>"DA","-",IF(AND(AN41="DA",BL41<=0),LEN(TRIM(V41))-LEN(SUBSTITUTE(V41,CHAR(44),""))+1+LEN(TRIM(U41))-LEN(SUBSTITUTE(U41,CHAR(44),""))+1,0)),"") -> - | BN41: =IF(C41="X",IF(AN41="DA",LEN(TRIM(V41))-LEN(SUBSTITUTE(V41,CHAR(44),""))+1+LEN(TRIM(U41))-LEN(SUBSTITUTE(U41,CHAR(44),""))+1,"-"),"") -> -
A42: 23 | B42: - | C42: x | D42: Pregătire conductă de transport gaze naturale DN700 Inel București, tronson Linde Gaz - Moara Domnească în vederea transformării în conductă godevilabilă | E42: 179230 | F42: Bragadiru | G42: Ilfov | H42: 578545.56 | I42: 319774.34 | J42: 578545.56 | K42: 319774.34 | L42: - | M42: - | N42: SM0250D2 | O42: Bragadiru | P42: - | Q42: - | R42: - | S42: - | T42: SM-SD001 | V42: Distrigaz Sud Rețele | W42: iunie - septembrie 2025 anul gazier 2025 - 2026 | AB42: București | AD42: Se află în procedură de achiziție. | AP42: PLRRM 2025-2030 Anexa1_II_B8 | BF42: Afectat sau NU? | BG42: - | BH42: - | BI42: Afectat sau NU? | BJ42: - | BK42: - | BL42: Afectat sau NU? | BM42: - | BN42: -
A43: 24 | B43: - | C43: x | D43: Pregătire conductă de transport gaze naturale DN700 Inel București, tronson Linde Gaz - Moara Domnească în vederea transformării în conductă godevilabilă | E43: 179230 | F43: Bragadiru | G43: Ilfov | H43: 579794.53 | I43: 320163.29 | J43: 579794.53 | K43: 320163.29 | L43: - | M43: - | N43: SM0940D0 | O43: SC Acvatot Bragadiru | P43: - | Q43: - | R43: - | S43: - | T43: SM-CF001 | V43: Acvatot | W43: iunie - septembrie 2025 anul gazier 2025 - 2026 | AB43: București | AD43: Se află în procedură de achiziție. | AP43: PLRRM 2025-2030 Anexa1_II_B8 | BF43: Afectat sau NU? | BG43: - | BH43: - | BI43: Afectat sau NU? | BJ43: - | BK43: - | BL43: Afectat sau NU? | BM43: - | BN43: -
A44: 25 | B44: - | C44: x | D44: Pregătire conductă de transport gaze naturale DN700 Inel București, tronson Linde Gaz - Moara Domnească în vederea transformării în conductă godevilabilă | E44: 179418 | F44: Măgurele | G44: Ilfov | H44: 583333.36 | I44: 319855.82 | J44: 583333.36 | K44: 319855.82 | L44: - | M44: - | N44: SM0252D0 | O44: Măgurele București | P44: - | Q44: - | R44: - | S44: - | T44: SM-SD001 | V44: Distrigaz Sud Rețele | W44: iunie - septembrie 2025 anul gazier 2025 - 2026 | AB44: București | AD44: Se află în procedură de achiziție. | AP44: PLRRM 2025-2030 Anexa1_II_B8 | BF44: Afectat sau NU? | BG44: - | BH44: - | BI44: Afectat sau NU? | BJ44: - | BK44: - | BL44: Afectat sau NU? | BM44: - | BN44: -
A45: 26 | B45: - | C45: x | D45: Pregătire conductă de transport gaze naturale DN700 Inel București, tronson Linde Gaz - Moara Domnească în vederea transformării în conductă godevilabilă | E45: 179258 | F45: Chiajna | G45: Ilfov | H45: 576726.57 | I45: 326494.11 | J45: 576726.57 | K45: 326494.11 | L45: - | M45: - | N45: SM0154D0 | O45: SC Linde Gaz București | P45: - | Q45: - | R45: - | S45: - | T45: SM-SD001 | V45: Distrigaz Sud Rețele | W45: iunie - septembrie 2025 anul gazier 2025 - 2026 | AB45: București | AD45: Se află în procedură de achiziție. | AP45: PLRRM 2025-2030 Anexa1_II_B8 | BF45: Afectat sau NU? | BG45: - | BH45: - | BI45: Afectat sau NU? | BJ45: - | BK45: - | BL45: Afectat sau NU? | BM45: - | BN45: -
A46: 27 | B46: - | C46: x | D46: Pregătire conductă de transport gaze naturale DN700 Inel București, tronson Linde Gaz - Moara Domnească în vederea transformării în conductă godevilabilă | E46: 179258 | F46: Chiajna | G46: Ilfov | H46: 576624.94 | I46: 327167.41 | J46: 576624.94 | K46: 327167.41 | L46: - | M46: - | N46: SM0170D0 | O46: SC Complex Carrefour Chiajna | P46: - | Q46: - | R46: - | S46: - | T46: SM-SD001 | V46: Distrigaz Sud Rețele | W46: iunie - septembrie 2025 anul gazier 2025 - 2026 | AB46: București | AD46: Se află în procedură de achiziție. | AP46: PLRRM 2025-2030 Anexa1_II_B8 | BF46: Afectat sau NU? | BG46: - | BH46: - | BI46: Afectat sau NU? | BJ46: - | BK46: - | BL46: Afectat sau NU? | BM46: - | BN46: -
A47: 28 | B47: - | C47: x | D47: Pregătire conductă de transport gaze naturale DN700 Inel București, tronson Linde Gaz - Moara Domnească în vederea transformării în conductă godevilabilă | E47: 179490 | F47: Otopeni | G47: Ilfov | H47: 585204.41 | I47: 338698.66 | J47: 585204.41 | K47: 338698.66 | L47: - | M47: - | N47: SM0169D0 | O47: SC Eurial Iinvest Otopeni | P47: - | Q47: - | R47: - | S47: - | T47: SM-CF001 | V47: Eurial Invest | W47: iunie - septembrie 2025 anul gazier 2025 - 2026 | AB47: București | AD47: Se află în procedură de achiziție. | AP47: PLRRM 2025-2030 Anexa1_II_B8 | BF47: Afectat sau NU? | BG47: - | BH47: - | BI47: Afectat sau NU? | BJ47: - | BK47: - | BL47: Afectat sau NU? | BM47: - | BN47: -
A48: 29 | B48: - | C48: x | D48: Pregătire conductă de transport gaze naturale DN700 Inel București, tronson Linde Gaz - Moara Domnească în vederea transformării în conductă godevilabilă | E48: 179490 | F48: Otopeni | G48: Ilfov | H48: 586006.49 | I48: 338926.93 | J48: 586006.49 | K48: 338926.93 | L48: - | M48: - | N48: SM0127D0 | O48: Otopeni | P48: - | Q48: - | R48: - | S48: - | T48: SM-SD001 | V48: Premier Energy | W48: iunie - septembrie 2025 anul gazier 2025 - 2026 | AB48: București | AD48: Se află în procedură de achiziție. | AP48: PLRRM 2025-2030 Anexa1_II_B8 | BF48: Afectat sau NU? | BG48: - | BH48: - | BI48: Afectat sau NU? | BJ48: - | BK48: - | BL48: Afectat sau NU? | BM48: - | BN48: -
A49: 30 | B49: - | C49: x | D49: Pregătire conductă de transport gaze naturale DN700 Inel București, tronson Linde Gaz - Moara Domnească în vederea transformării în conductă godevilabilă | E49: 105589 | F49: Tunari | G49: Ilfov | H49: 590859.85 | I49: 338211.21 | J49: 590859.85 | K49: 338211.21 | L49: - | M49: - | N49: SM0168D0 | O49: București Tunari | P49: - | Q49: - | R49: - | S49: - | T49: SM-SD001 | V49: Distrigaz Sud Rețele | W49: iunie - septembrie 2025 anul gazier 2025 - 2026 | AB49: București | AD49: Se află în procedură de achiziție. | AP49: PLRRM 2025-2030 Anexa1_II_B8 | BF49: Afectat sau NU? | BG49: - | BH49: - | BI49: Afectat sau NU? | BJ49: - | BK49: - | BL49: Afectat sau NU? | BM49: - | BN49: -
A50: 31 | B50: - | C50: x | D50: Pregătire conductă de transport gaze naturale DN700 Inel București, tronson Linde Gaz - Moara Domnească în vederea transformării în conductă godevilabilă | E50: 105589 | F50: Tunari | G50: Ilfov | H50: 590859.85 | I50: 338211.21 | J50: 590859.85 | K50: 338211.21 | L50: - | M50: - | N50: SM0168D1 | O50: Cartier Pipera | P50: - | Q50: - | R50: - | S50: - | T50: SM-SD001 | V50: Premier Energy | W50: iunie - septembrie 2025 anul gazier 2025 - 2026 | AB50: București | AD50: Se află în procedură de achiziție. | AP50: PLRRM 2025-2030 Anexa1_II_B8 | BF50: Afectat sau NU? | BG50: - | BH50: - | BI50: Afectat sau NU? | BJ50: - | BK50: - | BL50: Afectat sau NU? | BM50: - | BN50: -
A51: 32 | B51: - | C51: x | D51: Pregătire conductă de transport gaze naturale DN700 Inel București, tronson Linde Gaz - Moara Domnească în vederea transformării în conductă godevilabilă | E51: 105428 | F51: Ștefăneștii de Jos | G51: Ilfov | H51: 595033.82 | I51: 336741.93 | J51: 595033.82 | K51: 336741.93 | L51: - | M51: - | N51: SM1072D0 | O51: Ștefăneștii de Jos | P51: - | Q51: - | R51: - | S51: - | T51: SM-SD001 | V51: Distrigaz Sud Rețele | W51: iunie - septembrie 2025 anul gazier 2025 - 2026 | AB51: București | AD51: Se află în procedură de achiziție. | AP51: PLRRM 2025-2030 Anexa1_II_B8 | BF51: Afectat sau NU? | BG51: - | BH51: - | BI51: Afectat sau NU? | BJ51: - | BK51: - | BL51: Afectat sau NU? | BM51: - | BN51: -
A52: 33 | B52: - | C52: x | D52: Montare robinet de reglare în NT Hurezani pe direcția Hurezani - Corbu - București, fir godevilabil | E52: 80515 | F52: Hurezani | G52: Gorj | H52: 394174.23 | I52: 369081.88 | J52: 394174.23 | K52: 369081.88 | L52: - | M52: - | N52: - | O52: - | P52: PM0062 | Q52: Hurezani - Bulbuceni | R52: - | S52: - | T52: PM-PP001 | V52: Petrom | W52: iulie - septembrie 2025 | AB52: Craiova | AP52: PMDI 2025-2027 Anexa1_A2 | BF52: Afectat sau NU? | BG52: - | BH52: - | BI52: Afectat sau NU? | BJ52: - | BK52: - | BL52: Afectat sau NU? | BM52: - | BN52: -
A53: 34 | B53: - | C53: x | D53: Punere în siguranță conductă de transport gaze naturale DN800 Butimanu - Brazi, la subtraversare râu Prahova, zona Stăncești, jud. Prahova | E53: 130721 | F53: Brazii de Sus | G53: Prahova | H53: 578964.7 | I53: 376015.84 | J53: 578964.7 | K53: 376015.84 | L53: - | M53: - | N53: SM1248D0 | O53: Cogenerare Brazi | P53: - | Q53: - | R53: - | S53: - | T53: SM-CF001 | V53: Petrom (livrare directă) | W53: octombrie 2024 18 noiembrie - 31 decembrie 2024 | AB53: București | AC53: Efectuată (Lucrarea a fost efectuată în perioada 07 - 09.04.2025, fără afectarea serviciului de transport gaze naturale. Consumatorul Cogenerare Brazi era oprit pentru revizia programată.) | AD53: Necesitate schimbare mod de execuție | AP53: PMDI 2025-2027 Anexa3_A.1.2 | BF53: Afectat sau NU? | BG53: - | BH53: - | BI53: Afectat sau NU? | BJ53: - | BK53: - | BL53: Afectat sau NU? | BM53: - | BN53: -
A54: 35 | B54: - | C54: x | D54: Punere în siguranță traversare aeriană râu Târnava Mică cu conducta de transport gaze naturale DN200 Fântânele - Sovata, zona Trei Sate, jud. Mureș | E54: 114863 | F54: Sovata | G54: Mureș | H54: 504263.48 | I54: 564867.51 | J54: 504263.48 | K54: 564867.51 | L54: - | M54: - | N54: SM0833D0 | O54: Sovata | P54: - | Q54: - | R54: - | S54: - | T54: SM-SD001 | V54: Delgaz Grid | W54: martie - aprilie 2025 | AB54: Brașov | AC54: Efectuată (Lucrarea a fost efectuată în data de 19.06.2025 în regim de neplanificată, având acceptul partenerului adiacent de întrerupere a serviciului de transport gaze naturale - a se vedea poziția nr. 209) | AP54: PMDI 2025-2027 Anexa3_A.1.5 | BF54: Afectat sau NU? | BG54: - | BH54: - | BI54: Afectat sau NU? | BJ54: - | BK54: - | BL54: Afectat sau NU? | BM54: - | BN54: -
A55: 36 | B55: - | C55: x | D55: Punere în siguranță traversare aeriană râu Târnava Mică cu conducta de transport gaze naturale DN200 Fântânele - Sovata, zona Trei Sate, jud. Mureș | E55: 117088 | F55: Chibed | G55: Mureș | H55: 497565.41 | I55: 558773.85 | J55: 497565.41 | K55: 558773.85 | L55: - | M55: - | N55: SM0832D0 | O55: Chibed | P55: - | Q55: - | R55: - | S55: - | T55: SM-SD001 | V55: Delgaz Grid | W55: martie - aprilie 2025 | AB55: Brașov | AC55: Efectuată (Lucrarea a fost efectuată în data de 19.06.2025 în regim de neplanificată, având acceptul partenerului adiacent de întrerupere a serviciului de transport gaze naturale - a se vedea poziția nr. 210) | AP55: PMDI 2025-2027 Anexa3_A.1.5 | BF55: Afectat sau NU? | BG55: - | BH55: - | BI55: Afectat sau NU? | BJ55: - | BK55: - | BL55: Afectat sau NU? | BM55: - | BN55: -
A56: 37 | B56: - | C56: x | D56: Punere în siguranță traversare aeriană râu Târnava Mică cu conducta de transport gaze naturale DN200 Fântânele - Sovata, zona Trei Sate, jud. Mureș | E56: 117051 | F56: Ghindari | G56: Mureș | H56: 494820.65 | I56: 555599.49 | J56: 494820.65 | K56: 555599.49 | L56: - | M56: - | N56: SM0830D0 | O56: Ghindari | P56: - | Q56: - | R56: - | S56: - | T56: SM-SD001 | V56: Delgaz Grid | W56: martie - aprilie 2025 | AB56: Brașov | AC56: Efectuată (Lucrarea a fost efectuată în data de 19.06.2025 în regim de neplanificată, având acceptul partenerului adiacent de întrerupere a serviciului de transport gaze naturale - a se vedea poziția nr. 211) | AP56: PMDI 2025-2027 Anexa3_A.1.5 | BF56: Afectat sau NU? | BG56: - | BH56: - | BI56: Afectat sau NU? | BJ56: - | BK56: - | BL56: Afectat sau NU? | BM56: - | BN56: -
A57: 38 | B57: - | C57: x | D57: Punere în siguranță traversare aeriană râu Târnava Mică cu conducta de transport gaze naturale DN200 Fântânele - Sovata, zona Trei Sate, jud. Mureș | E57: 117104 | F57: Trei Sate | G57: Mureș | H57: 492745.84 | I57: 552655.76 | J57: 492745.84 | K57: 552655.76 | L57: - | M57: - | N57: SM0831D0 | O57: Trei Sate | P57: - | Q57: - | R57: - | S57: - | T57: SM-SD001 | V57: Delgaz Grid | W57: martie - aprilie 2025 | AB57: Brașov | AC57: Efectuată (Lucrarea a fost efectuată în data de 19.06.2025 în regim de neplanificată, având acceptul partenerului adiacent de întrerupere a serviciului de transport gaze naturale - a se vedea poziția nr. 212) | AP57: PMDI 2025-2027 Anexa3_A.1.5 | AR57: =IF(B57="X",IF(AN57="","Afectat sau NU?",IF(AN57="DA",IF(((AK57+AL57)-(AE57+AF57))*24<-720,"Neinformat",((AK57+AL57)-(AE57+AF57))*24),"Nu a fost afectat producator/consumator")),"") ->  | AS57: =IF(B57="X",IF(AN57="DA",IF(AR57<6,LEN(TRIM(V57))-LEN(SUBSTITUTE(V57,CHAR(44),""))+1,0),"-"),"") ->  | AT57: =IF(B57="X",IF(AN57="DA",LEN(TRIM(V57))-LEN(SUBSTITUTE(V57,CHAR(44),""))+1,"-"),"") ->  | AU57: =IF(B57="X",IF(AN57="","Afectat sau NU?",IF(AN57="DA",IF(((AI57+AJ57)-(AE57+AF57))*24<-720,"Neinformat",((AI57+AJ57)-(AE57+AF57))*24),"Nu a fost afectat producator/consumator")),"") ->  | AV57: =IF(B57="X",IF(AN57="DA",IF(AU57<6,LEN(TRIM(U57))-LEN(SUBSTITUTE(U57,CHAR(44),""))+1,0),"-"),"") ->  | AW57: =IF(B57="X",IF(AN57="DA",LEN(TRIM(U57))-LEN(SUBSTITUTE(U57,CHAR(44),""))+1,"-"),"") ->  | AX57: =IF(B57="X",IF(AN57="","Afectat sau NU?",IF(AN57="DA",((AG57+AH57)-(AE57+AF57))*24,"Nu a fost afectat producator/consumator")),"") ->  | AY57: =IF(B57="X",IF(AN57="DA",IF(AX57>24,IF(BA57="NU",0,LEN(TRIM(V57))-LEN(SUBSTITUTE(V57,CHAR(44),""))+1),0),"-"),"") ->  | AZ57: =IF(B57="X",IF(AN57="DA",IF(AX57>24,LEN(TRIM(V57))-LEN(SUBSTITUTE(V57,CHAR(44),""))+1,0),"-"),"") ->  | BF57: Afectat sau NU? | BG57: =IF(C57="X",IF(AN57="DA",IF(AND(BF57>=5,AK57<>""),LEN(TRIM(V57))-LEN(SUBSTITUTE(V57,CHAR(44),""))+1,0),"-"),"") -> - | BH57: =IF(C57="X",IF(AN57="DA",LEN(TRIM(V57))-LEN(SUBSTITUTE(V57,CHAR(44),""))+1,"-"),"") -> - | BI57: Afectat sau NU? | BJ57: =IF(C57="X",IF(AN57="DA",IF(AND(BI57>=5,AI57<>""),LEN(TRIM(U57))-LEN(SUBSTITUTE(U57,CHAR(44),""))+1,0),"-"),"") -> - | BK57: =IF(C57="X",IF(AN57="DA",LEN(TRIM(U57))-LEN(SUBSTITUTE(U57,CHAR(44),""))+1,"-"),"") -> - | BL57: =IF(C57="X",IF(AN57="","Afectat sau NU?",IF(AN57="DA",((AG57+AH57)-(Z57+AA57))*24,"Nu a fost afectat producator/consumator")),"") -> Afectat sau NU? | BM57: =IF(C57="X",IF(AN57<>"DA","-",IF(AND(AN57="DA",BL57<=0),LEN(TRIM(V57))-LEN(SUBSTITUTE(V57,CHAR(44),""))+1+LEN(TRIM(U57))-LEN(SUBSTITUTE(U57,CHAR(44),""))+1,0)),"") -> - | BN57: =IF(C57="X",IF(AN57="DA",LEN(TRIM(V57))-LEN(SUBSTITUTE(V57,CHAR(44),""))+1+LEN(TRIM(U57))-LEN(SUBSTITUTE(U57,CHAR(44),""))+1,"-"),"") -> -
A58: 39 | B58: - | C58: x | D58: Punere în siguranță traversare aeriană râu Târnava Mică cu conducta de transport gaze naturale DN200 Fântânele - Sovata, zona Trei Sate, jud. Mureș | E58: 119340 | F58: Sângeorgiu de Pădure | G58: Mureș | H58: 486832.99 | I58: 546523.44 | J58: 486832.99 | K58: 546523.44 | L58: - | M58: - | N58: SM1169D0 | O58: Sângeorgiu de Pădure | P58: - | Q58: - | R58: - | S58: - | T58: SM-SD001 | V58: Delgaz Grid | W58: martie - aprilie 2025 | AB58: Brașov | AC58: Efectuată (Lucrarea a fost efectuată în data de 19.06.2025 în regim de neplanificată, având acceptul partenerului adiacent de întrerupere a serviciului de transport gaze naturale - a se vedea poziția nr. 213) | AP58: PMDI 2025-2027 Anexa3_A.1.5 | BF58: Afectat sau NU? | BG58: - | BH58: - | BI58: Afectat sau NU? | BJ58: - | BK58: - | BL58: Afectat sau NU? | BM58: - | BN58: -
A59: 40 | B59: - | C59: x | D59: Punere în siguranță traversare aeriană râu Târnava Mică cu conducta de transport gaze naturale DN200 Fântânele - Sovata, zona Trei Sate, jud. Mureș | E59: 116803 | F59: Fântânele MS | G59: Mureș | H59: 482896.63 | I59: 546920.18 | J59: 482896.63 | K59: 546920.18 | L59: - | M59: - | N59: SM0828D0 | O59: Fântânele MS | P59: - | Q59: - | R59: - | S59: - | T59: SM-SD001 | V59: Delgaz Grid | W59: martie - aprilie 2025 | AB59: Brașov | AC59: Efectuată (Lucrarea a fost efectuată în data de 19.06.2025 în regim de neplanificată, având acceptul partenerului adiacent de întrerupere a serviciului de transport gaze naturale - a se vedea poziția nr. 214) | AP59: PMDI 2025-2027 Anexa3_A.1.5 | BF59: Afectat sau NU? | BG59: - | BH59: - | BI59: Afectat sau NU? | BJ59: - | BK59: - | BL59: Afectat sau NU? | BM59: - | BN59: -
A60: 41 | B60: - | C60: x | D60: Punere în siguranță traversare aeriană râu Târnava Mică cu conducta de transport gaze naturale DN200 Fântânele - Sovata, zona Trei Sate, jud. Mureș | E60: 115664 | F60: Chendu | G60: Mureș | H60: 479572.9 | I60: 544201.52 | J60: 479572.9 | K60: 544201.52 | L60: - | M60: - | N60: SM0825D0 | O60: Chendu Valea Nirajului | P60: - | Q60: - | R60: - | S60: - | T60: SM-SD001 | V60: Delgaz Grid | W60: martie - aprilie 2025 | AB60: Brașov | AC60: Efectuată (Lucrarea a fost efectuată în data de 19.06.2025 în regim de neplanificată, având acceptul partenerului adiacent de întrerupere a serviciului de transport gaze naturale - a se vedea poziția nr. 215) | AP60: PMDI 2025-2027 Anexa3_A.1.5 | BF60: Afectat sau NU? | BG60: - | BH60: - | BI60: Afectat sau NU? | BJ60: - | BK60: - | BL60: Afectat sau NU? | BM60: - | BN60: -
A61: 42 | B61: - | C61: x | D61: Înlocuire tronson pe conducta DN500 Moinești - Dărmănești, zona localității Dărmăneasca - Dărmănești, jud. Bacău | E61: 22175 | F61: Dărmănești | G61: Bacău | H61: 612570.19 | I61: 542380.7 | J61: 612570.19 | K61: 542380.7 | L61: - | M61: - | N61: SM0431D0 | O61: Dărmănești | P61: - | Q61: - | R61: - | S61: - | T61: SM-SD001 | V61: Delgaz Grid | W61: mai - iunie 2025 anul gazier 2026 - 2027 | AB61: Bacău | AD61: Replanificare - Necesitate revizuire proiect tehnic, dificultăți în obținerea acordului proprietarilor de teren | AP61: PMDI 2025-2027 Anexa3_A.1.8 | BF61: Afectat sau NU? | BG61: - | BH61: - | BI61: Afectat sau NU? | BJ61: - | BK61: - | BL61: Afectat sau NU? | BM61: - | BN61: -
A62: 43 | B62: - | C62: x | D62: Punere în siguranță subtraversare pârâu Nisipoasa cu conducta de transport gaze naturale DN400 Govora - Drăgășani, zona satului Scăioși, județul Vâlcea | E62: 171888 | F62: Orlești | G62: Vâlcea | H62: 439992.75 | I62: 365775.3 | J62: 439992.75 | K62: 365775.3 | L62: - | M62: - | N62: SM0013D0 | O62: Orlești | P62: - | Q62: - | R62: - | S62: - | T62: SM-SD001 | V62: Premier Energy | W62: aprilie - mai 2025 anul gazier 2026 - 2027 | AB62: Craiova | AD62: Replanificare -Necesitate revizuire proiect tehnic. | AP62: PMDI 2025-2027 Anexa3_A.2.1 | BF62: Afectat sau NU? | BG62: - | BH62: - | BI62: Afectat sau NU? | BJ62: - | BK62: - | BL62: Afectat sau NU? | BM62: - | BN62: -
A63: 44 | B63: - | C63: x | D63: Punere în siguranță subtraversare pârâu Nisipoasa cu conducta de transport gaze naturale DN400 Govora - Drăgășani, zona satului Scăioși, județul Vâlcea | E63: 171888 | F63: Orlești | G63: Vâlcea | H63: 439996.49 | I63: 365791.26 | J63: 439996.49 | K63: 365791.26 | L63: - | M63: - | N63: SM0235D0 | O63: SC Conpet Orlești | P63: - | Q63: - | R63: - | S63: - | T63: SM-CF001 | V63: Conpet | W63: aprilie - mai 2025 anul gazier 2026 - 2027 | AB63: Craiova | AD63: Replanificare -Necesitate revizuire proiect tehnic. | AP63: PMDI 2025-2027 Anexa3_A.2.1 | BF63: Afectat sau NU? | BG63: - | BH63: - | BI63: Afectat sau NU? | BJ63: - | BK63: - | BL63: Afectat sau NU? | BM63: - | BN63: -
A64: 45 | B64: - | C64: x | D64: Punere în siguranță subtraversare pârâu Nisipoasa cu conducta de transport gaze naturale DN400 Govora - Drăgășani, zona satului Scăioși, județul Vâlcea | E64: 172466 | F64: Prundeni | G64: Vâlcea | H64: 441343.76 | I64: 358180.34 | J64: 441343.76 | K64: 358180.34 | L64: - | M64: - | N64: SM0223D0 | O64: Prundeni | P64: - | Q64: - | R64: - | S64: - | T64: SM-SD001 | V64: Distrigaz Sud Rețele | W64: aprilie - mai 2025 anul gazier 2026 - 2027 | AB64: Craiova | AD64: Replanificare -Necesitate revizuire proiect tehnic. | AP64: PMDI 2025-2027 Anexa3_A.2.1 | BF64: Afectat sau NU? | BG64: - | BH64: - | BI64: Afectat sau NU? | BJ64: - | BK64: - | BL64: Afectat sau NU? | BM64: - | BN64: -
A65: 46 | B65: - | C65: x | D65: Punere în siguranță conductă de transport gaze naturale DN350 Cășei - Baia Mare la subtraversarea pârâului Bloaja, zona localității Cernești, jud. Maramureș | E65: 107591 | F65: Cernești | G65: Maramureș | H65: 405677.94 | I65: 669355.84 | J65: 405677.94 | K65: 669355.84 | L65: - | M65: - | N65: SM0231D0 | O65: Cernești | P65: - | Q65: - | R65: - | S65: - | T65: SM-SD001 | V65: Delgaz Grid | W65: aprilie - mai 2025 anul gazier 2026 - 2027 | AB65: Cluj | AD65: Replanificare - Necesitate revizuire proiect tehnic | AP65: PMDI 2025-2027 Anexa3_A.2.2 | BF65: Afectat sau NU? | BG65: - | BH65: - | BI65: Afectat sau NU? | BJ65: - | BK65: - | BL65: Afectat sau NU? | BM65: - | BN65: -
A66: 47 | B66: - | C66: x | D66: Punere în siguranță conductă de transport gaze naturale DN350 Cășei - Baia Mare la subtraversarea pârâului Bloaja, zona localității Cernești, jud. Maramureș | E66: 107742 | F66: Copalnic Mănăștur | G66: Maramureș | H66: 401137.44 | I66: 668510.33 | J66: 401137.44 | K66: 668510.33 | L66: - | M66: - | N66: SM0572D0 | O66: Copalnic Mănăștur | P66: - | Q66: - | R66: - | S66: - | T66: SM-SD001 | V66: Delgaz Grid | W66: aprilie - mai 2025 anul gazier 2026 - 2027 | AB66: Cluj | AD66: Replanificare - Necesitate revizuire proiect tehnic | AP66: PMDI 2025-2027 Anexa3_A.2.2 | BF66: Afectat sau NU? | BG66: - | BH66: - | BI66: Afectat sau NU? | BJ66: - | BK66: - | BL66: Afectat sau NU? | BM66: - | BN66: -
A67: 48 | B67: - | C67: x | D67: Punere în siguranță conductă de transport gaze naturale DN350 Cășei - Baia Mare la subtraversarea pârâului Bloaja, zona localității Cernești, jud. Maramureș | E67: 107813 | F67: Lăschia | G67: Maramureș | H67: 404980.43 | I67: 672595.62 | J67: 404980.43 | K67: 672595.62 | L67: - | M67: - | N67: SM0564D0 | O67: Lăschia | P67: - | Q67: - | R67: - | S67: - | T67: SM-SD001 | V67: Delgaz Grid | W67: aprilie - mai 2025 anul gazier 2026 - 2027 | AB67: Cluj | AD67: Replanificare - Necesitate revizuire proiect tehnic | AP67: PMDI 2025-2027 Anexa3_A.2.2 | BF67: Afectat sau NU? | BG67: - | BH67: - | BI67: Afectat sau NU? | BJ67: - | BK67: - | BL67: Afectat sau NU? | BM67: - | BN67: -
A68: 49 | B68: - | C68: x | D68: Punere în siguranță conductă de transport gaze naturale DN350 Cășei - Baia Mare la subtraversarea pârâului Bloaja, zona localității Cernești, jud. Maramureș | E68: 108062 | F68: Chechiș | G68: Maramureș | H68: 397455.61 | I68: 677915.17 | J68: 397455.61 | K68: 677915.17 | L68: - | M68: - | N68: SM0560D0 | O68: Chechiș | P68: - | Q68: - | R68: - | S68: - | T68: SM-SD001 | V68: Delgaz Grid | W68: aprilie - mai 2025 anul gazier 2026 - 2027 | AB68: Cluj | AD68: Replanificare - Necesitate revizuire proiect tehnic | AP68: PMDI 2025-2027 Anexa3_A.2.2 | BF68: Afectat sau NU? | BG68: - | BH68: - | BI68: Afectat sau NU? | BJ68: - | BK68: - | BL68: Afectat sau NU? | BM68: - | BN68: -
A69: 50 | B69: - | C69: x | D69: Punere în siguranță conductă de transport gaze naturale DN300 Satu Mare - Baia Mare la subtraversarea pârâului Ilba, zona localității Ilba, jud. Maramureș | E69: 107671 | F69: Cicărlău | G69: Maramureș | H69: 379806.83 | I69: 688893.65 | J69: 379806.83 | K69: 688893.65 | L69: - | M69: - | N69: SM0575D0 | O69: Cicărlău | P69: - | Q69: - | R69: - | S69: - | T69: SM-SD001 | V69: Delgaz Grid | W69: iulie - septembrie 2025 anul gazier 2026 - 2027 | AB69: Cluj | AD69: Replanificare - Necesitate revizuire proiect tehnic | AP69: PMDI 2025-2027 Anexa3_A.2.4 | BF69: Afectat sau NU? | BG69: - | BH69: - | BI69: Afectat sau NU? | BJ69: - | BK69: - | BL69: Afectat sau NU? | BM69: - | BN69: -
A70: 51 | B70: - | C70: x | D70: Punere în siguranță a subtraversării râului Ampoi cu conducta de transport gaze naturale DN200 Alba Iulia - Zlatna, zona localității Presaca Ampoiului, jud. Alba | E70: 1945 | F70: Zlatna | G70: Alba | H70: 364259.01 | I70: 513275.46 | J70: 364259.01 | K70: 513275.46 | L70: - | M70: - | N70: SM0287D0 | O70: Zlatna | P70: - | Q70: - | R70: - | S70: - | T70: SM-SD001 | V70: Delgaz Grid | W70: mai - iulie 2025 anul gazier 2026 - 2027 | AB70: Mediaș | AD70: Replanificare - Necesitate revizuire proiect tehnic | AP70: PMDI 2025-2027 Anexa3_A.2.5 | BF70: Afectat sau NU? | BG70: - | BH70: - | BI70: Afectat sau NU? | BJ70: - | BK70: - | BL70: Afectat sau NU? | BM70: - | BN70: -
A71: 52 | B71: - | C71: x | D71: Punere în siguranță a conductei de transport gaze naturale DN300 Simeria - SRM Hunedoara I, zona localităților Bârcea Mică și Peștișu Mare, județul Hunedoara | E71: 86829 | F71: Hunedoara | G71: Hunedoara | H71: 337564.08 | I71: 478608.33 | J71: 337564.08 | K71: 478608.33 | L71: - | M71: - | N71: SM0306D1 | O71: SC Mittal Steel Hunedoara | P71: - | Q71: - | R71: - | S71: - | T71: SM-CF001 | V71: Arcelormittal | W71: iulie - septembrie 2025 anul gazier 2026 - 2027 | AB71: Arad | AD71: Replanificare - Necesitate revizuire proiect tehnic | AP71: PMDI 2025-2027 Anexa3_A.2.6 | BF71: Afectat sau NU? | BG71: - | BH71: - | BI71: Afectat sau NU? | BJ71: - | BK71: - | BL71: Afectat sau NU? | BM71: - | BN71: -
A72: 53 | B72: - | C72: x | D72: Punere în siguranță a conductei de transport gaze naturale DN300 Simeria - SRM Hunedoara I, zona localităților Bârcea Mică și Peștișu Mare, județul Hunedoara | E72: 86874 | F72: Pestișu Mare | G72: Hunedoara | H72: 337564.08 | I72: 478608.33 | J72: 337564.08 | K72: 478608.33 | L72: - | M72: - | N72: SM0306D2 | O72: Pestișu Mare | P72: - | Q72: - | R72: - | S72: - | T72: SM-SD001 | V72: Delgaz Grid | W72: iulie - septembrie 2025 anul gazier 2026 - 2027 | AB72: Arad | AD72: Replanificare - Necesitate revizuire proiect tehnic | AP72: PMDI 2025-2027 Anexa3_A.2.6 | BF72: Afectat sau NU? | BG72: - | BH72: - | BI72: Afectat sau NU? | BJ72: - | BK72: - | BL72: Afectat sau NU? | BM72: - | BN72: -
A73: 54 | B73: - | C73: x | D73: Punere în siguranță traversare aeriană peste râu Plapcea cu conducta de transport gaze naturale DN100 racord alimentare SRM Scornicești, jud. Olt | E73: 128720 | F73: Scornicești | G73: Olt | H73: 464063.3 | I73: 341644.19 | J73: 464063.3 | K73: 341644.19 | L73: - | M73: - | N73: SM0241D0 | O73: Scornicești | P73: - | Q73: - | R73: - | S73: - | T73: SM-SD001 | V73: Distrigaz Sud Rețele | W73: iulie - septembrie 2025 anul gazier 2026 - 2027 | AB73: Craiova | AD73: Replanificare - Necesitate revizuire proiect tehnic | AP73: PMDI 2025-2027 Anexa3_A.2.7 | BF73: Afectat sau NU? | BG73: - | BH73: - | BI73: Afectat sau NU? | BJ73: - | BK73: - | BL73: Afectat sau NU? | BM73: - | BN73: -
A74: 55 | B74: - | C74: x | D74: Punere în siguranță a subtraversării râului Cibin cu conducta de transport gaze naturale DN400 limita județ Alba - Sibiu, zona localității Orlat, jud. Sibiu | E74: 143511 | F74: Poplaca | G74: Sibiu | H74: 426356.76 | I74: 470948.65 | J74: 426356.76 | K74: 470948.65 | L74: - | M74: - | N74: SM1061D0 | O74: SC Mânzat Prod Poplaca | P74: - | Q74: - | R74: - | S74: - | T74: SM-CF001 | V74: Mânzat Prod | W74: martie - aprilie 2025 | AB74: Mediaș | AC74: Efectuată (Lucrarea a fost efectuată în data de 03.06.2025, fără afectarea serviciului de transport gaze naturale.) | AP74: PMDI 2025-2027 Anexa3_A.1.12 | BF74: Afectat sau NU? | BG74: - | BH74: - | BI74: Afectat sau NU? | BJ74: - | BK74: - | BL74: Afectat sau NU? | BM74: - | BN74: -
A75: 56 | B75: - | C75: x | D75: Adaptare la teren și montare gară de primire GODEVIL DN700 pe conducta de transport gaze naturale DN 700 Inel București | E75: 102053 | F75: Olteni | G75: Ilfov | H75: 577911.69 | I75: 322107.23 | J75: 577911.69 | K75: 322107.23 | L75: - | M75: - | N75: SM1224D0 | O75: Olteni | P75: - | Q75: - | R75: - | S75: - | T75: SM-SD001 | V75: Premier Energy | W75: iulie - septembrie 2025 anul gazier 2025 - 2026 | AB75: București | AD75: În stadiu de promovare la licitație | AP75: PMDI 2025-2027 Anexa3_A.2.9 | BF75: Afectat sau NU? | BG75: - | BH75: - | BI75: Afectat sau NU? | BJ75: - | BK75: - | BL75: Afectat sau NU? | BM75: - | BN75: -
A76: 57 | B76: - | C76: x | D76: Punere în siguranță a conductei de transport gaze naturale DN300 Agârbiciu - Sibiu, zona Șeica Mare | E76: 145676 | F76: Șeica Mare | G76: Sibiu | H76: 434864.28 | I76: 502349.67 | J76: 434864.28 | K76: 502349.67 | L76: - | M76: - | N76: SM0737D0 | O76: Șeica Mare | P76: - | Q76: - | R76: - | S76: - | T76: SM-SD001 | V76: Delgaz Grid | W76: iulie - septembrie 2025 | AB76: Mediaș | AP76: PMDI 2025-2027 Anexa9_6 | BF76: Afectat sau NU? | BG76: - | BH76: - | BI76: Afectat sau NU? | BJ76: - | BK76: - | BL76: Afectat sau NU? | BM76: - | BN76: -
A77: 58 | B77: - | C77: x | D77: Punere în siguranță a conductei de transport gaze naturale DN80 racord Alimentare Ucea de Jos și adaptare la teren SRM Ucea de Jos | E77: 42110 | F77: Ucea de Jos | G77: Brașov | H77: 474571.17 | I77: 476371.61 | J77: 474571.17 | K77: 476371.61 | L77: - | M77: - | N77: SM0811D0 | O77: Ucea de Jos | P77: - | Q77: - | R77: - | S77: - | T77: SM-SD001 | V77: Distrigaz Sud Rețele | W77: iulie - septembrie 2025 anul gazier 2026 - 2027 | AB77: Mediaș | AD77: Replanificare - Necesitate revizuire proiect tehnic | AP77: PMDI 2025-2027 Anexa3_A.2.14 | BF77: Afectat sau NU? | BG77: - | BH77: - | BI77: Afectat sau NU? | BJ77: - | BK77: - | BL77: Afectat sau NU? | BM77: - | BN77: -
A78: 59 | B78: - | C78: x | D78: Punere în siguranță a conductei de transport gaze naturale DN500 Schitu Golești - Tigveni la traversarea aeriană a pârâului Valea Danului, zona localității Valea Danului, jud. Argeș | E78: 13891 | F78: Albești de Argeș | G78: Argeș | H78: 474126.09 | I78: 410441.12 | J78: 474126.09 | K78: 410441.12 | L78: - | M78: - | N78: SM1244D0 | O78: Albești de Argeș | P78: - | Q78: - | R78: - | S78: - | T78: SM-SD001 | V78: Distrigaz Sud Rețele | W78: iulie - septembrie 2025 anul gazier 2026 - 2027 | AB78: Craiova | AD78: Replanificare - Necesitate revizuire proiect tehnic | AP78: PMDI 2025-2027 Anexa3_A.2.15 | BF78: Afectat sau NU? | BG78: - | BH78: - | BI78: Afectat sau NU? | BJ78: - | BK78: - | BL78: Afectat sau NU? | BM78: - | BN78: -
A79: 60 | B79: - | C79: x | D79: Punere în siguranță traversare aeriană a pârâului Paloș cu conducta de transport gaze naturale DN300 Beia - Hoghiz, zona SPC Paloș, jud. Brașov | E79: 40786 | F79: Beia | G79: Brașov | H79: 516259.68 | I79: 516736.5 | J79: 516259.68 | K79: 516736.5 | L79: - | M79: - | N79: - | O79: - | P79: - | Q79: - | R79: PM0009 | S79: Beia | T79: PM-PP001 | V79: Romgaz | W79: iulie - august 2025 | AB79: Mediaș | AC79: Efectuată (Lucrarea a fost efectuată în data de 04.02.2025 în regim de neplanificată, având acceptul partenerului adiacent de întrerupere a serviciului de transport gaze naturale - a se vedea poziția nr. 123) | AP79: PMDI 2025-2027 Anexa3_A.1.19 | BF79: Afectat sau NU? | BG79: - | BH79: - | BI79: Afectat sau NU? | BJ79: - | BK79: - | BL79: Afectat sau NU? | BM79: - | BN79: -
A80: 61 | B80: - | C80: x | D80: Punere în siguranță a conductei de transport gaze naturale DN300 ocolire Piatra Neamț, zona Văleni și montarea unei instalații de reglare presiune gaze naturale în zona localității Săvinești, jud. Neamț | E80: 120780 | F80: Dumbrava Roșie | G80: Neamț | H80: 608289.74 | I80: 600284.41 | J80: 608289.74 | K80: 600284.41 | L80: - | M80: - | N80: SM0990D0 | O80: SC Prodprosper Piatra Neamț | P80: - | Q80: - | R80: - | S80: - | T80: SM-CF001 | V80: Prodprosper | W80: martie - aprilie 2025 anul gazier 2025 - 2026 | AB80: Bacău | AD80: Dificultăți în livrarea în totalitate a echipamentelor necesare efectuării lucrării. | AP80: PMDI 2025-2027 Anexa3_A.1.20 | BF80: Afectat sau NU? | BG80: - | BH80: - | BI80: Afectat sau NU? | BJ80: - | BK80: - | BL80: Afectat sau NU? | BM80: - | BN80: -
A81: 62 | B81: - | C81: x | D81: Punere în siguranță a conductei de transport gaze naturale DN300 ocolire Piatra Neamț, zona Văleni și montarea unei instalații de reglare presiune gaze naturale în zona localității Săvinești, jud. Neamț | E81: 120780 | F81: Dumbrava Roșie | G81: Neamț | H81: 608005.06 | I81: 600248.89 | J81: 608005.06 | K81: 600248.89 | L81: - | M81: - | N81: SM1108D0 | O81: Dumbrava Roșie | P81: - | Q81: - | R81: - | S81: - | T81: SM-SD001 | V81: Prisma Serv | W81: martie - aprilie 2025 anul gazier 2025 - 2026 | AB81: Bacău | AD81: Dificultăți în livrarea în totalitate a echipamentelor necesare efectuării lucrării. | AP81: PMDI 2025-2027 Anexa3_A.1.20 | BF81: Afectat sau NU? | BG81: - | BH81: - | BI81: Afectat sau NU? | BJ81: - | BK81: - | BL81: Afectat sau NU? | BM81: - | BN81: -
A82: 63 | B82: - | C82: x | D82: Punere în siguranță a conductei de transport gaze naturale DN300 ocolire Piatra Neamț, zona Văleni și montarea unei instalații de reglare presiune gaze naturale în zona localității Săvinești, jud. Neamț | E82: 120735 | F82: Piatra Neamț | G82: Neamț | H82: 606028.79 | I82: 601634.85 | J82: 606028.79 | K82: 601634.85 | L82: - | M82: - | N82: SM1137D0 | O82: Piatra Neamț III | P82: - | Q82: - | R82: - | S82: - | T82: SM-SD001 | V82: Delgaz Grid | W82: martie - aprilie 2025 anul gazier 2025 - 2026 | AB82: Bacău | AD82: Dificultăți în livrarea în totalitate a echipamentelor necesare efectuării lucrării. | AP82: PMDI 2025-2027 Anexa3_A.1.20 | BF82: Afectat sau NU? | BG82: - | BH82: - | BI82: Afectat sau NU? | BJ82: - | BK82: - | BL82: Afectat sau NU? | BM82: - | BN82: -
A83: 64 | B83: - | C83: x | D83: Punere în siguranță a conductei de transport gaze naturale DN300 ocolire Piatra Neamț, zona Văleni și montarea unei instalații de reglare presiune gaze naturale în zona localității Săvinești, jud. Neamț | E83: 120735 | F83: Piatra Neamț | G83: Neamț | H83: 602403.67 | I83: 604575.78 | J83: 602403.67 | K83: 604575.78 | L83: - | M83: - | N83: SM0454D0 | O83: Piatra Neamț II | P83: - | Q83: - | R83: - | S83: - | T83: SM-SD001 | V83: Delgaz Grid | W83: martie - aprilie 2025 anul gazier 2025 - 2026 | AB83: Bacău | AD83: Dificultăți în livrarea în totalitate a echipamentelor necesare efectuării lucrării. | AP83: PMDI 2025-2027 Anexa3_A.1.20 | BF83: Afectat sau NU? | BG83: - | BH83: - | BI83: Afectat sau NU? | BJ83: - | BK83: - | BL83: Afectat sau NU? | BM83: - | BN83: -
A84: 65 | B84: - | C84: x | D84: Punere în siguranță a conductei de transport gaze naturale DN300 ocolire Piatra Neamț, zona Văleni și montarea unei instalații de reglare presiune gaze naturale în zona localității Săvinești, jud. Neamț | E84: 120735 | F84: Piatra Neamț | G84: Neamț | H84: 602458.57 | I84: 604700.67 | J84: 602458.57 | K84: 604700.67 | L84: - | M84: - | N84: SM1074D0 | O84: Petrocart Piatra Neamț | P84: - | Q84: - | R84: - | S84: - | T84: SM-CF001 | V84: Petrocart | W84: martie - aprilie 2025 anul gazier 2025 - 2026 | AB84: Bacău | AD84: Dificultăți în livrarea în totalitate a echipamentelor necesare efectuării lucrării. | AP84: PMDI 2025-2027 Anexa3_A.1.20 | BF84: Afectat sau NU? | BG84: - | BH84: - | BI84: Afectat sau NU? | BJ84: - | BK84: - | BL84: Afectat sau NU? | BM84: - | BN84: -
A85: 66 | B85: - | C85: x | D85: Punere în siguranță a conductei de transport gaze naturale DN300 ocolire Piatra Neamț, zona Văleni și montarea unei instalații de reglare presiune gaze naturale în zona localității Săvinești, jud. Neamț | E85: 124974 | F85: Bistrița NT | G85: Neamț | H85: 600864.35 | I85: 604564.74 | J85: 600864.35 | K85: 604564.74 | L85: - | M85: - | N85: SM0307D0 | O85: SC TLSIT Bistrița NT | P85: - | Q85: - | R85: - | S85: - | T85: SM-CF001 | V85: TLSIT | W85: martie - aprilie 2025 anul gazier 2025 - 2026 | AB85: Bacău | AD85: Dificultăți în livrarea în totalitate a echipamentelor necesare efectuării lucrării. | AP85: PMDI 2025-2027 Anexa3_A.1.20 | BF85: =IF(C85="X",IF(AN85="","Afectat sau NU?",IF(AN85="DA",IF(AK85="","Neinformat",NETWORKDAYS((AK85+1)+AL85,(AE85-1)+AF85,$BS$2:$BS$18)),"Nu a fost afectat producator/consumator")),"") -> Afectat sau NU? | BG85: - | BH85: - | BI85: =IF(C85="X",IF(AN85="","Afectat sau NU?",IF(AN85="DA",IF(AI85="","Neinformat",NETWORKDAYS((AI85+1)+AJ85,(AE85-1)+AF85,$BS$2:$BS$18)),"Nu a fost afectat producator/consumator")),"") -> Afectat sau NU? | BJ85: - | BK85: - | BL85: Afectat sau NU? | BM85: - | BN85: -
A86: =A85+1 -> 67 | B86: - | C86: x | D86: Punere în siguranță a conductei de transport gaze naturale DN300 ocolire Piatra Neamț, zona Văleni și montarea unei instalații de reglare presiune gaze naturale în zona localității Săvinești, jud. Neamț | E86: 124974 | F86: Bistrița NT | G86: Neamț | H86: 599003.24 | I86: 605471.14 | J86: 599003.24 | K86: 605471.14 | L86: - | M86: - | N86: SM0455D0 | O86: Bistrița NT | P86: - | Q86: - | R86: - | S86: - | T86: SM-SD001 | V86: Delgaz Grid | W86: martie - aprilie 2025 anul gazier 2025 - 2026 | AB86: Bacău | AD86: Dificultăți în livrarea în totalitate a echipamentelor necesare efectuării lucrării. | AP86: PMDI 2025-2027 Anexa3_A.1.20 | BF86: Afectat sau NU? | BG86: - | BH86: - | BI86: Afectat sau NU? | BJ86: - | BK86: - | BL86: Afectat sau NU? | BM86: - | BN86: -
A87: 68 | B87: - | C87: x | D87: Punere în siguranță a conductei de transport gaze naturale DN300 ocolire Piatra Neamț, zona Văleni și montarea unei instalații de reglare presiune gaze naturale în zona localității Săvinești, jud. Neamț | E87: 124965 | F87: Bisericani | G87: Neamț | H87: 594524.28 | I87: 607357.25 | J87: 594524.28 | K87: 607357.25 | L87: - | M87: - | N87: SM0456D0 | O87: Spitalul de Pneumoftiziologie Bisericani | P87: - | Q87: - | R87: - | S87: - | T87: SM-CF001 | V87: Spitalul de Pneumoftiziologie | W87: martie - aprilie 2025 anul gazier 2025 - 2026 | AB87: Bacău | AD87: Dificultăți în livrarea în totalitate a echipamentelor necesare efectuării lucrării. | AP87: PMDI 2025-2027 Anexa3_A.1.20 | AR87: =IF(B87="X",IF(AN87="","Afectat sau NU?",IF(AN87="DA",IF(((AK87+AL87)-(AE87+AF87))*24<-720,"Neinformat",((AK87+AL87)-(AE87+AF87))*24),"Nu a fost afectat producator/consumator")),"") ->  | AS87: =IF(B87="X",IF(AN87="DA",IF(AR87<6,LEN(TRIM(V87))-LEN(SUBSTITUTE(V87,CHAR(44),""))+1,0),"-"),"") ->  | AT87: =IF(B87="X",IF(AN87="DA",LEN(TRIM(V87))-LEN(SUBSTITUTE(V87,CHAR(44),""))+1,"-"),"") ->  | AU87: =IF(B87="X",IF(AN87="","Afectat sau NU?",IF(AN87="DA",IF(((AI87+AJ87)-(AE87+AF87))*24<-720,"Neinformat",((AI87+AJ87)-(AE87+AF87))*24),"Nu a fost afectat producator/consumator")),"") ->  | AV87: =IF(B87="X",IF(AN87="DA",IF(AU87<6,LEN(TRIM(U87))-LEN(SUBSTITUTE(U87,CHAR(44),""))+1,0),"-"),"") ->  | AW87: =IF(B87="X",IF(AN87="DA",LEN(TRIM(U87))-LEN(SUBSTITUTE(U87,CHAR(44),""))+1,"-"),"") ->  | AX87: =IF(B87="X",IF(AN87="","Afectat sau NU?",IF(AN87="DA",((AG87+AH87)-(AE87+AF87))*24,"Nu a fost afectat producator/consumator")),"") ->  | AY87: =IF(B87="X",IF(AN87="DA",IF(AX87>24,IF(BA87="NU",0,LEN(TRIM(V87))-LEN(SUBSTITUTE(V87,CHAR(44),""))+1),0),"-"),"") ->  | AZ87: =IF(B87="X",IF(AN87="DA",IF(AX87>24,LEN(TRIM(V87))-LEN(SUBSTITUTE(V87,CHAR(44),""))+1,0),"-"),"") ->  | BF87: Afectat sau NU? | BG87: =IF(C87="X",IF(AN87="DA",IF(AND(BF87>=5,AK87<>""),LEN(TRIM(V87))-LEN(SUBSTITUTE(V87,CHAR(44),""))+1,0),"-"),"") -> - | BH87: =IF(C87="X",IF(AN87="DA",LEN(TRIM(V87))-LEN(SUBSTITUTE(V87,CHAR(44),""))+1,"-"),"") -> - | BI87: Afectat sau NU? | BJ87: =IF(C87="X",IF(AN87="DA",IF(AND(BI87>=5,AI87<>""),LEN(TRIM(U87))-LEN(SUBSTITUTE(U87,CHAR(44),""))+1,0),"-"),"") -> - | BK87: =IF(C87="X",IF(AN87="DA",LEN(TRIM(U87))-LEN(SUBSTITUTE(U87,CHAR(44),""))+1,"-"),"") -> - | BL87: =IF(C87="X",IF(AN87="","Afectat sau NU?",IF(AN87="DA",((AG87+AH87)-(Z87+AA87))*24,"Nu a fost afectat producator/consumator")),"") -> Afectat sau NU? | BM87: =IF(C87="X",IF(AN87<>"DA","-",IF(AND(AN87="DA",BL87<=0),LEN(TRIM(V87))-LEN(SUBSTITUTE(V87,CHAR(44),""))+1+LEN(TRIM(U87))-LEN(SUBSTITUTE(U87,CHAR(44),""))+1,0)),"") -> - | BN87: =IF(C87="X",IF(AN87="DA",LEN(TRIM(V87))-LEN(SUBSTITUTE(V87,CHAR(44),""))+1+LEN(TRIM(U87))-LEN(SUBSTITUTE(U87,CHAR(44),""))+1,"-"),"") -> -
A88: 69 | B88: - | C88: x | D88: Punere în siguranță a conductei de transport gaze naturale DN300 ocolire Piatra Neamț, zona Văleni și montarea unei instalații de reglare presiune gaze naturale în zona localității Săvinești, jud. Neamț | E88: 124992 | F88: Vaduri | G88: Neamț | H88: 595164.76 | I88: 604317.65 | J88: 595164.76 | K88: 604317.65 | L88: - | M88: - | N88: SM0457D0 | O88: SC UNOPAN Vaduri | P88: - | Q88: - | R88: - | S88: - | T88: SM-CF001 | V88: Unopan | W88: martie - aprilie 2025 anul gazier 2025 - 2026 | AB88: Bacău | AD88: Dificultăți în livrarea în totalitate a echipamentelor necesare efectuării lucrării. | AP88: PMDI 2025-2027 Anexa3_A.1.20 | BF88: Afectat sau NU? | BG88: - | BH88: - | BI88: Afectat sau NU? | BJ88: - | BK88: - | BL88: Afectat sau NU? | BM88: - | BN88: -
A89: 70 | B89: - | C89: x | D89: Punere în siguranță a conductei de transport gaze naturale DN300 ocolire Piatra Neamț, zona Văleni și montarea unei instalații de reglare presiune gaze naturale în zona localității Săvinești, jud. Neamț | E89: 124992 | F89: Vaduri | G89: Neamț | H89: 595078.51 | I89: 604354.39 | J89: 595078.51 | K89: 604354.39 | L89: - | M89: - | N89: SM0461D0 | O89: SC KOBER Vaduri | P89: - | Q89: - | R89: - | S89: - | T89: SM-CF001 | V89: Kober | W89: martie - aprilie 2025 anul gazier 2025 - 2026 | AB89: Bacău | AD89: Dificultăți în livrarea în totalitate a echipamentelor necesare efectuării lucrării. | AP89: PMDI 2025-2027 Anexa3_A.1.20 | BF89: Afectat sau NU? | BG89: - | BH89: - | BI89: Afectat sau NU? | BJ89: - | BK89: - | BL89: Afectat sau NU? | BM89: - | BN89: -
A90: 71 | B90: - | C90: x | D90: Punere în siguranță a conductei de transport gaze naturale DN300 ocolire Piatra Neamț, zona Văleni și montarea unei instalații de reglare presiune gaze naturale în zona localității Săvinești, jud. Neamț | E90: 124992 | F90: Vaduri | G90: Neamț | H90: 594758.28 | I90: 604040.56 | J90: 594758.28 | K90: 604040.56 | L90: - | M90: - | N90: SM1052D0 | O90: Vaduri | P90: - | Q90: - | R90: - | S90: - | T90: SM-SD001 | V90: Delgaz Grid | W90: martie - aprilie 2025 anul gazier 2025 - 2026 | AB90: Bacău | AD90: Dificultăți în livrarea în totalitate a echipamentelor necesare efectuării lucrării. | AP90: PMDI 2025-2027 Anexa3_A.1.20 | BF90: Afectat sau NU? | BG90: - | BH90: - | BI90: Afectat sau NU? | BJ90: - | BK90: - | BL90: Afectat sau NU? | BM90: - | BN90: -
A91: 72 | B91: - | C91: x | D91: Punere în siguranță a conductei de transport gaze naturale DN300 ocolire Piatra Neamț, zona Văleni și montarea unei instalații de reglare presiune gaze naturale în zona localității Săvinești, jud. Neamț | E91: 123665 | F91: Stejaru | G91: Neamț | H91: 589703.3 | I91: 602610.3 | J91: 589703.3 | K91: 602610.3 | L91: - | M91: - | N91: SM0458D0 | O91: Stejaru | P91: - | Q91: - | R91: - | S91: - | T91: SM-SD001 | V91: Delgaz Grid | W91: martie - aprilie 2025 anul gazier 2025 - 2026 | AB91: Bacău | AD91: Dificultăți în livrarea în totalitate a echipamentelor necesare efectuării lucrării. | AP91: PMDI 2025-2027 Anexa3_A.1.20 | BF91: Afectat sau NU? | BG91: - | BH91: - | BI91: Afectat sau NU? | BJ91: - | BK91: - | BL91: Afectat sau NU? | BM91: - | BN91: -
A92: 73 | B92: - | C92: x | D92: Punere în siguranță a conductei de transport gaze naturale DN300 ocolire Piatra Neamț, zona Văleni și montarea unei instalații de reglare presiune gaze naturale în zona localității Săvinești, jud. Neamț | E92: 120977 | F92: Bicaz | G92: Neamț | H92: 583336.33 | I92: 601827.11 | J92: 583336.33 | K92: 601827.11 | L92: - | M92: - | N92: SM0459D0 | O92: Bicaz | P92: - | Q92: - | R92: - | S92: - | T92: SM-SD001 | V92: Delgaz Grid | W92: martie - aprilie 2025 anul gazier 2025 - 2026 | AB92: Bacău | AD92: Dificultăți în livrarea în totalitate a echipamentelor necesare efectuării lucrării. | AP92: PMDI 2025-2027 Anexa3_A.1.20 | BF92: Afectat sau NU? | BG92: - | BH92: - | BI92: Afectat sau NU? | BJ92: - | BK92: - | BL92: Afectat sau NU? | BM92: - | BN92: -
A93: 74 | B93: - | C93: x | D93: Modernizare instalație tehnologică SRM Miercurea Ciuc | E93: 83339 | F93: Miercurea Ciuc | G93: Harghita | H93: 559632.47 | I93: 541553.11 | J93: 559632.47 | K93: 541553.11 | L93: - | M93: - | N93: SM0415D1 | O93: Miercurea Ciuc | P93: - | Q93: - | R93: - | S93: - | T93: SM-SD001 | V93: Delgaz Grid | W93: august - septembrie 2025 anul gazier 2025 - 2026 | AB93: Brașov | AD93: Se află în procedură de achiziție. | AP93: PMDI 2025-2027 Anexa5_B.16 | AR93: =IF(B93="X",IF(AN93="","Afectat sau NU?",IF(AN93="DA",IF(((AK93+AL93)-(AE93+AF93))*24<-720,"Neinformat",((AK93+AL93)-(AE93+AF93))*24),"Nu a fost afectat producator/consumator")),"") ->  | AS93: =IF(B93="X",IF(AN93="DA",IF(AR93<6,LEN(TRIM(V93))-LEN(SUBSTITUTE(V93,CHAR(44),""))+1,0),"-"),"") ->  | AT93: =IF(B93="X",IF(AN93="DA",LEN(TRIM(V93))-LEN(SUBSTITUTE(V93,CHAR(44),""))+1,"-"),"") ->  | AU93: =IF(B93="X",IF(AN93="","Afectat sau NU?",IF(AN93="DA",IF(((AI93+AJ93)-(AE93+AF93))*24<-720,"Neinformat",((AI93+AJ93)-(AE93+AF93))*24),"Nu a fost afectat producator/consumator")),"") ->  | AV93: =IF(B93="X",IF(AN93="DA",IF(AU93<6,LEN(TRIM(U93))-LEN(SUBSTITUTE(U93,CHAR(44),""))+1,0),"-"),"") ->  | AW93: =IF(B93="X",IF(AN93="DA",LEN(TRIM(U93))-LEN(SUBSTITUTE(U93,CHAR(44),""))+1,"-"),"") ->  | AX93: =IF(B93="X",IF(AN93="","Afectat sau NU?",IF(AN93="DA",((AG93+AH93)-(AE93+AF93))*24,"Nu a fost afectat producator/consumator")),"") ->  | AY93: =IF(B93="X",IF(AN93="DA",IF(AX93>24,IF(BA93="NU",0,LEN(TRIM(V93))-LEN(SUBSTITUTE(V93,CHAR(44),""))+1),0),"-"),"") ->  | AZ93: =IF(B93="X",IF(AN93="DA",IF(AX93>24,LEN(TRIM(V93))-LEN(SUBSTITUTE(V93,CHAR(44),""))+1,0),"-"),"") ->  | BF93: Afectat sau NU? | BG93: =IF(C93="X",IF(AN93="DA",IF(AND(BF93>=5,AK93<>""),LEN(TRIM(V93))-LEN(SUBSTITUTE(V93,CHAR(44),""))+1,0),"-"),"") -> - | BH93: =IF(C93="X",IF(AN93="DA",LEN(TRIM(V93))-LEN(SUBSTITUTE(V93,CHAR(44),""))+1,"-"),"") -> - | BI93: Afectat sau NU? | BJ93: =IF(C93="X",IF(AN93="DA",IF(AND(BI93>=5,AI93<>""),LEN(TRIM(U93))-LEN(SUBSTITUTE(U93,CHAR(44),""))+1,0),"-"),"") -> - | BK93: =IF(C93="X",IF(AN93="DA",LEN(TRIM(U93))-LEN(SUBSTITUTE(U93,CHAR(44),""))+1,"-"),"") -> - | BL93: =IF(C93="X",IF(AN93="","Afectat sau NU?",IF(AN93="DA",((AG93+AH93)-(Z93+AA93))*24,"Nu a fost afectat producator/consumator")),"") -> Afectat sau NU? | BM93: =IF(C93="X",IF(AN93<>"DA","-",IF(AND(AN93="DA",BL93<=0),LEN(TRIM(V93))-LEN(SUBSTITUTE(V93,CHAR(44),""))+1+LEN(TRIM(U93))-LEN(SUBSTITUTE(U93,CHAR(44),""))+1,0)),"") -> - | BN93: =IF(C93="X",IF(AN93="DA",LEN(TRIM(V93))-LEN(SUBSTITUTE(V93,CHAR(44),""))+1+LEN(TRIM(U93))-LEN(SUBSTITUTE(U93,CHAR(44),""))+1,"-"),"") -> -
A94: 75 | B94: - | C94: x | D94: Modernizare instalație tehnologică SRM Miercurea Ciuc | E94: 83339 | F94: Miercurea Ciuc | G94: Harghita | H94: 559632.47 | I94: 541553.11 | J94: 559632.47 | K94: 541553.11 | L94: - | M94: - | N94: SM0415D2 | O94: SC Heineken M. Ciuc | P94: - | Q94: - | R94: - | S94: - | T94: SM-CF001 | V94: Heineken România | W94: august - septembrie 2025 anul gazier 2025 - 2026 | AB94: Brașov | AD94: Se află în procedură de achiziție. | AP94: PMDI 2025-2027 Anexa5_B.16 | AR94: =IF(B94="X",IF(AN94="","Afectat sau NU?",IF(AN94="DA",IF(((AK94+AL94)-(AE94+AF94))*24<-720,"Neinformat",((AK94+AL94)-(AE94+AF94))*24),"Nu a fost afectat producator/consumator")),"") ->  | AS94: =IF(B94="X",IF(AN94="DA",IF(AR94<6,LEN(TRIM(V94))-LEN(SUBSTITUTE(V94,CHAR(44),""))+1,0),"-"),"") ->  | AT94: =IF(B94="X",IF(AN94="DA",LEN(TRIM(V94))-LEN(SUBSTITUTE(V94,CHAR(44),""))+1,"-"),"") ->  | AU94: =IF(B94="X",IF(AN94="","Afectat sau NU?",IF(AN94="DA",IF(((AI94+AJ94)-(AE94+AF94))*24<-720,"Neinformat",((AI94+AJ94)-(AE94+AF94))*24),"Nu a fost afectat producator/consumator")),"") ->  | AV94: =IF(B94="X",IF(AN94="DA",IF(AU94<6,LEN(TRIM(U94))-LEN(SUBSTITUTE(U94,CHAR(44),""))+1,0),"-"),"") ->  | AW94: =IF(B94="X",IF(AN94="DA",LEN(TRIM(U94))-LEN(SUBSTITUTE(U94,CHAR(44),""))+1,"-"),"") ->  | AX94: =IF(B94="X",IF(AN94="","Afectat sau NU?",IF(AN94="DA",((AG94+AH94)-(AE94+AF94))*24,"Nu a fost afectat producator/consumator")),"") ->  | AY94: =IF(B94="X",IF(AN94="DA",IF(AX94>24,IF(BA94="NU",0,LEN(TRIM(V94))-LEN(SUBSTITUTE(V94,CHAR(44),""))+1),0),"-"),"") ->  | AZ94: =IF(B94="X",IF(AN94="DA",IF(AX94>24,LEN(TRIM(V94))-LEN(SUBSTITUTE(V94,CHAR(44),""))+1,0),"-"),"") ->  | BF94: Afectat sau NU? | BG94: =IF(C94="X",IF(AN94="DA",IF(AND(BF94>=5,AK94<>""),LEN(TRIM(V94))-LEN(SUBSTITUTE(V94,CHAR(44),""))+1,0),"-"),"") -> - | BH94: =IF(C94="X",IF(AN94="DA",LEN(TRIM(V94))-LEN(SUBSTITUTE(V94,CHAR(44),""))+1,"-"),"") -> - | BI94: Afectat sau NU? | BJ94: =IF(C94="X",IF(AN94="DA",IF(AND(BI94>=5,AI94<>""),LEN(TRIM(U94))-LEN(SUBSTITUTE(U94,CHAR(44),""))+1,0),"-"),"") -> - | BK94: =IF(C94="X",IF(AN94="DA",LEN(TRIM(U94))-LEN(SUBSTITUTE(U94,CHAR(44),""))+1,"-"),"") -> - | BL94: =IF(C94="X",IF(AN94="","Afectat sau NU?",IF(AN94="DA",((AG94+AH94)-(Z94+AA94))*24,"Nu a fost afectat producator/consumator")),"") -> Afectat sau NU? | BM94: =IF(C94="X",IF(AN94<>"DA","-",IF(AND(AN94="DA",BL94<=0),LEN(TRIM(V94))-LEN(SUBSTITUTE(V94,CHAR(44),""))+1+LEN(TRIM(U94))-LEN(SUBSTITUTE(U94,CHAR(44),""))+1,0)),"") -> - | BN94: =IF(C94="X",IF(AN94="DA",LEN(TRIM(V94))-LEN(SUBSTITUTE(V94,CHAR(44),""))+1+LEN(TRIM(U94))-LEN(SUBSTITUTE(U94,CHAR(44),""))+1,"-"),"") -> -
A95: 76 | B95: - | C95: x | D95: Modernizare instalație tehnologică SRM Arad I | E95: 9271 | F95: Arad | G95: Arad | H95: 216711.59 | I95: 524249.53 | J95: 216711.59 | K95: 524249.53 | L95: - | M95: - | N95: SM0349D0 | O95: Arad I | P95: - | Q95: - | R95: - | S95: - | T95: SM-SD001 | V95: Delgaz Grid | W95: iunie - august 2025 | AB95: Arad | AP95: PMDI 2025-2027 Anexa5_A.5 | AR95: =IF(B95="X",IF(AN95="","Afectat sau NU?",IF(AN95="DA",IF(((AK95+AL95)-(AE95+AF95))*24<-720,"Neinformat",((AK95+AL95)-(AE95+AF95))*24),"Nu a fost afectat producator/consumator")),"") ->  | AS95: =IF(B95="X",IF(AN95="DA",IF(AR95<6,LEN(TRIM(V95))-LEN(SUBSTITUTE(V95,CHAR(44),""))+1,0),"-"),"") ->  | AT95: =IF(B95="X",IF(AN95="DA",LEN(TRIM(V95))-LEN(SUBSTITUTE(V95,CHAR(44),""))+1,"-"),"") ->  | AU95: =IF(B95="X",IF(AN95="","Afectat sau NU?",IF(AN95="DA",IF(((AI95+AJ95)-(AE95+AF95))*24<-720,"Neinformat",((AI95+AJ95)-(AE95+AF95))*24),"Nu a fost afectat producator/consumator")),"") ->  | AV95: =IF(B95="X",IF(AN95="DA",IF(AU95<6,LEN(TRIM(U95))-LEN(SUBSTITUTE(U95,CHAR(44),""))+1,0),"-"),"") ->  | AW95: =IF(B95="X",IF(AN95="DA",LEN(TRIM(U95))-LEN(SUBSTITUTE(U95,CHAR(44),""))+1,"-"),"") ->  | AX95: =IF(B95="X",IF(AN95="","Afectat sau NU?",IF(AN95="DA",((AG95+AH95)-(AE95+AF95))*24,"Nu a fost afectat producator/consumator")),"") ->  | AY95: =IF(B95="X",IF(AN95="DA",IF(AX95>24,IF(BA95="NU",0,LEN(TRIM(V95))-LEN(SUBSTITUTE(V95,CHAR(44),""))+1),0),"-"),"") ->  | AZ95: =IF(B95="X",IF(AN95="DA",IF(AX95>24,LEN(TRIM(V95))-LEN(SUBSTITUTE(V95,CHAR(44),""))+1,0),"-"),"") ->  | BF95: Afectat sau NU? | BG95: =IF(C95="X",IF(AN95="DA",IF(AND(BF95>=5,AK95<>""),LEN(TRIM(V95))-LEN(SUBSTITUTE(V95,CHAR(44),""))+1,0),"-"),"") -> - | BH95: =IF(C95="X",IF(AN95="DA",LEN(TRIM(V95))-LEN(SUBSTITUTE(V95,CHAR(44),""))+1,"-"),"") -> - | BI95: Afectat sau NU? | BJ95: =IF(C95="X",IF(AN95="DA",IF(AND(BI95>=5,AI95<>""),LEN(TRIM(U95))-LEN(SUBSTITUTE(U95,CHAR(44),""))+1,0),"-"),"") -> - | BK95: =IF(C95="X",IF(AN95="DA",LEN(TRIM(U95))-LEN(SUBSTITUTE(U95,CHAR(44),""))+1,"-"),"") -> - | BL95: =IF(C95="X",IF(AN95="","Afectat sau NU?",IF(AN95="DA",((AG95+AH95)-(Z95+AA95))*24,"Nu a fost afectat producator/consumator")),"") -> Afectat sau NU? | BM95: =IF(C95="X",IF(AN95<>"DA","-",IF(AND(AN95="DA",BL95<=0),LEN(TRIM(V95))-LEN(SUBSTITUTE(V95,CHAR(44),""))+1+LEN(TRIM(U95))-LEN(SUBSTITUTE(U95,CHAR(44),""))+1,0)),"") -> - | BN95: =IF(C95="X",IF(AN95="DA",LEN(TRIM(V95))-LEN(SUBSTITUTE(V95,CHAR(44),""))+1+LEN(TRIM(U95))-LEN(SUBSTITUTE(U95,CHAR(44),""))+1,"-"),"") -> -
A96: 77 | B96: - | C96: x | D96: Racord și SRM Toplița, jud.Harghita | E96: 83641 | F96: Toplița | G96: Harghita | H96: 528657.96 | I96: 602897.47 | J96: 528657.96 | K96: 602897.47 | L96: - | M96: - | N96: SM1332D0 | O96: Toplița | P96: - | Q96: - | R96: - | S96: - | T96: SM-SD001 | V96: Delgaz Grid | W96: noiembrie - decembrie 2024 01.04 - 30.06.2025 anul gazier 2025 - 2026 | AB96: Brașov | AD96: Ordin de sistare a lucrărilor nr.95962/14.11.2024 intrat în vigoare la data de 14.11.2024. Dificultăți în livrarea în totalitate a echipamentelor necesare efectuării lucrării. | AP96: PMDI 2025-2027 Anexa17_A.5 | BF96: Afectat sau NU? | BG96: - | BH96: - | BI96: Afectat sau NU? | BJ96: - | BK96: - | BL96: Afectat sau NU? | BM96: - | BN96: -
A97: 78 | B97: - | C97: x | D97: Racord și SRM Vatra Dornei, jud. Suceava | E97: 146753 | F97: Vatra Dornei | G97: Suceava | H97: 527675.3 | I97: 650536.9 | J97: 527675.3 | K97: 650536.9 | L97: - | M97: - | N97: SM1333D0 | O97: Vatra Dornei | P97: - | Q97: - | R97: - | S97: - | T97: SM-SD001 | V97: Nova Power | W97: februarie - martie 2025 17.04.2025 - 30.06.2025 anul gazier 2025 - 2026 | AB97: Bacău | AD97: Condiții meteo nefavorabile. Dificultăți în livrarea în totalitate a echipamentelor necesare efectuării lucrării. | AP97: PMDI 2025-2027 Anexa17_A.7 | BF97: Afectat sau NU? | BG97: - | BH97: - | BI97: Afectat sau NU? | BJ97: - | BK97: - | BL97: Afectat sau NU? | BM97: - | BN97: -
A98: 79 | B98: - | C98: x | D98: Mărire capacitate SRM Cârligi, jud. Neamț | E98: 22601 | F98: Filipești | G98: Bacău | H98: 640082.97 | I98: 586330.47 | J98: 640082.97 | K98: 586330.47 | L98: - | M98: - | N98: SM1206D0 | O98: Cârligi | P98: - | Q98: - | R98: - | S98: - | T98: SM-SD001 | V98: Mihoc Oil | W98: noiembrie - decembrie 2024 01.04 - 30.06.2025 anul gazier 2025 - 2026 | AB98: Bacău | AD98: Ordin de sistare a lucrărilor nr.98276/22.11.2024 intrat în vigoare la data de 22.11.2024. Dificultăți în livrarea în totalitate a echipamentelor necesare efectuării lucrării. | AP98: PMDI 2025-2027 Anexa17_A.8 | BF98: Afectat sau NU? | BG98: - | BH98: - | BI98: Afectat sau NU? | BJ98: - | BK98: - | BL98: Afectat sau NU? | BM98: - | BN98: -
A99: 80 | B99: - | C99: x | D99: Mărire capacitate SRM Brătuleni Vorovești, jud. Iași | E99: 95079 | F99: Iași | G99: Iași | H99: 688243.26 | I99: 633571.56 | J99: 688243.26 | K99: 633571.56 | L99: - | M99: - | N99: SM0480D1 | O99: SC Antibiotice Iași | P99: - | Q99: - | R99: - | S99: - | T99: SM-CF001 | V99: Antibiotice | W99: iulie - august 2025 anul gazier 2025 - 2026 | AB99: Bacău | AD99: Ordin de începere a lucrărilor cu data de 03.07.2025, cu termen de execuție 8 luni, condiționat de întreruperea consumatorului doar în perioada iulie-august, conform comunicărilor transmise. | AP99: PMDI 2025-2027 Anexa17_A.14 | BF99: Afectat sau NU? | BG99: - | BH99: - | BI99: Afectat sau NU? | BJ99: - | BK99: - | BL99: Afectat sau NU? | BM99: - | BN99: -
A100: 81 | B100: - | C100: x | D100: Mărire capacitate SRM Brătuleni Vorovești, jud. Iași | E100: 95079 | F100: Iași | G100: Iași | H100: 688240.6 | I100: 633587.41 | J100: 688240.6 | K100: 633587.41 | L100: - | M100: - | N100: SM0480D2 | O100: Uricani | P100: - | Q100: - | R100: - | S100: - | T100: SM-SD001 | V100: Delgaz Grid | W100: iulie - august 2025 anul gazier 2025 - 2026 | AB100: Bacău | AD100: Ordin de începere a lucrărilor cu data de 03.07.2025, cu termen de execuție 8 luni, condiționat de întreruperea consumatorului doar în perioada iulie-august, conform comunicărilor transmise. | AP100: PMDI 2025-2027 Anexa17_A.14 | AR100: =IF(B100="X",IF(AN100="","Afectat sau NU?",IF(AN100="DA",IF(((AK100+AL100)-(AE100+AF100))*24<-720,"Neinformat",((AK100+AL100)-(AE100+AF100))*24),"Nu a fost afectat producator/consumator")),"") ->  | AS100: =IF(B100="X",IF(AN100="DA",IF(AR100<6,LEN(TRIM(V100))-LEN(SUBSTITUTE(V100,CHAR(44),""))+1,0),"-"),"") ->  | AT100: =IF(B100="X",IF(AN100="DA",LEN(TRIM(V100))-LEN(SUBSTITUTE(V100,CHAR(44),""))+1,"-"),"") ->  | AU100: =IF(B100="X",IF(AN100="","Afectat sau NU?",IF(AN100="DA",IF(((AI100+AJ100)-(AE100+AF100))*24<-720,"Neinformat",((AI100+AJ100)-(AE100+AF100))*24),"Nu a fost afectat producator/consumator")),"") ->  | AV100: =IF(B100="X",IF(AN100="DA",IF(AU100<6,LEN(TRIM(U100))-LEN(SUBSTITUTE(U100,CHAR(44),""))+1,0),"-"),"") ->  | AW100: =IF(B100="X",IF(AN100="DA",LEN(TRIM(U100))-LEN(SUBSTITUTE(U100,CHAR(44),""))+1,"-"),"") ->  | AX100: =IF(B100="X",IF(AN100="","Afectat sau NU?",IF(AN100="DA",((AG100+AH100)-(AE100+AF100))*24,"Nu a fost afectat producator/consumator")),"") ->  | AY100: =IF(B100="X",IF(AN100="DA",IF(AX100>24,IF(BA100="NU",0,LEN(TRIM(V100))-LEN(SUBSTITUTE(V100,CHAR(44),""))+1),0),"-"),"") ->  | AZ100: =IF(B100="X",IF(AN100="DA",IF(AX100>24,LEN(TRIM(V100))-LEN(SUBSTITUTE(V100,CHAR(44),""))+1,0),"-"),"") ->  | BF100: Afectat sau NU? | BG100: =IF(C100="X",IF(AN100="DA",IF(AND(BF100>=5,AK100<>""),LEN(TRIM(V100))-LEN(SUBSTITUTE(V100,CHAR(44),""))+1,0),"-"),"") -> - | BH100: =IF(C100="X",IF(AN100="DA",LEN(TRIM(V100))-LEN(SUBSTITUTE(V100,CHAR(44),""))+1,"-"),"") -> - | BI100: Afectat sau NU? | BJ100: =IF(C100="X",IF(AN100="DA",IF(AND(BI100>=5,AI100<>""),LEN(TRIM(U100))-LEN(SUBSTITUTE(U100,CHAR(44),""))+1,0),"-"),"") -> - | BK100: =IF(C100="X",IF(AN100="DA",LEN(TRIM(U100))-LEN(SUBSTITUTE(U100,CHAR(44),""))+1,"-"),"") -> - | BL100: =IF(C100="X",IF(AN100="","Afectat sau NU?",IF(AN100="DA",((AG100+AH100)-(Z100+AA100))*24,"Nu a fost afectat producator/consumator")),"") -> Afectat sau NU? | BM100: =IF(C100="X",IF(AN100<>"DA","-",IF(AND(AN100="DA",BL100<=0),LEN(TRIM(V100))-LEN(SUBSTITUTE(V100,CHAR(44),""))+1+LEN(TRIM(U100))-LEN(SUBSTITUTE(U100,CHAR(44),""))+1,0)),"") -> - | BN100: =IF(C100="X",IF(AN100="DA",LEN(TRIM(V100))-LEN(SUBSTITUTE(V100,CHAR(44),""))+1+LEN(TRIM(U100))-LEN(SUBSTITUTE(U100,CHAR(44),""))+1,"-"),"") -> -
A101: 82 | B101: - | C101: x | D101: Mărire capacitate SRM Brătuleni Vorovești, jud. Iași | E101: 95079 | F101: Iași | G101: Iași | H101: 688243.26 | I101: 633571.56 | J101: 688243.26 | K101: 633571.56 | L101: - | M101: - | N101: SM0480D3 | O101: Brătuleni-Vorovești | P101: - | Q101: - | R101: - | S101: - | T101: SM-SD001 | V101: Gazmir Iași | W101: iulie - august 2025 anul gazier 2025 - 2026 | AB101: Bacău | AD101: Ordin de începere a lucrărilor cu data de 03.07.2025, cu termen de execuție 8 luni, condiționat de întreruperea consumatorului doar în perioada iulie-august, conform comunicărilor transmise. | AP101: PMDI 2025-2027 Anexa17_A.14 | AR101: =IF(B101="X",IF(AN101="","Afectat sau NU?",IF(AN101="DA",IF(((AK101+AL101)-(AE101+AF101))*24<-720,"Neinformat",((AK101+AL101)-(AE101+AF101))*24),"Nu a fost afectat producator/consumator")),"") ->  | AS101: =IF(B101="X",IF(AN101="DA",IF(AR101<6,LEN(TRIM(V101))-LEN(SUBSTITUTE(V101,CHAR(44),""))+1,0),"-"),"") ->  | AT101: =IF(B101="X",IF(AN101="DA",LEN(TRIM(V101))-LEN(SUBSTITUTE(V101,CHAR(44),""))+1,"-"),"") ->  | AU101: =IF(B101="X",IF(AN101="","Afectat sau NU?",IF(AN101="DA",IF(((AI101+AJ101)-(AE101+AF101))*24<-720,"Neinformat",((AI101+AJ101)-(AE101+AF101))*24),"Nu a fost afectat producator/consumator")),"") ->  | AV101: =IF(B101="X",IF(AN101="DA",IF(AU101<6,LEN(TRIM(U101))-LEN(SUBSTITUTE(U101,CHAR(44),""))+1,0),"-"),"") ->  | AW101: =IF(B101="X",IF(AN101="DA",LEN(TRIM(U101))-LEN(SUBSTITUTE(U101,CHAR(44),""))+1,"-"),"") ->  | AX101: =IF(B101="X",IF(AN101="","Afectat sau NU?",IF(AN101="DA",((AG101+AH101)-(AE101+AF101))*24,"Nu a fost afectat producator/consumator")),"") ->  | AY101: =IF(B101="X",IF(AN101="DA",IF(AX101>24,IF(BA101="NU",0,LEN(TRIM(V101))-LEN(SUBSTITUTE(V101,CHAR(44),""))+1),0),"-"),"") ->  | AZ101: =IF(B101="X",IF(AN101="DA",IF(AX101>24,LEN(TRIM(V101))-LEN(SUBSTITUTE(V101,CHAR(44),""))+1,0),"-"),"") ->  | BF101: Afectat sau NU? | BG101: =IF(C101="X",IF(AN101="DA",IF(AND(BF101>=5,AK101<>""),LEN(TRIM(V101))-LEN(SUBSTITUTE(V101,CHAR(44),""))+1,0),"-"),"") -> - | BH101: =IF(C101="X",IF(AN101="DA",LEN(TRIM(V101))-LEN(SUBSTITUTE(V101,CHAR(44),""))+1,"-"),"") -> - | BI101: Afectat sau NU? | BJ101: =IF(C101="X",IF(AN101="DA",IF(AND(BI101>=5,AI101<>""),LEN(TRIM(U101))-LEN(SUBSTITUTE(U101,CHAR(44),""))+1,0),"-"),"") -> - | BK101: =IF(C101="X",IF(AN101="DA",LEN(TRIM(U101))-LEN(SUBSTITUTE(U101,CHAR(44),""))+1,"-"),"") -> - | BL101: =IF(C101="X",IF(AN101="","Afectat sau NU?",IF(AN101="DA",((AG101+AH101)-(Z101+AA101))*24,"Nu a fost afectat producator/consumator")),"") -> Afectat sau NU? | BM101: =IF(C101="X",IF(AN101<>"DA","-",IF(AND(AN101="DA",BL101<=0),LEN(TRIM(V101))-LEN(SUBSTITUTE(V101,CHAR(44),""))+1+LEN(TRIM(U101))-LEN(SUBSTITUTE(U101,CHAR(44),""))+1,0)),"") -> - | BN101: =IF(C101="X",IF(AN101="DA",LEN(TRIM(V101))-LEN(SUBSTITUTE(V101,CHAR(44),""))+1+LEN(TRIM(U101))-LEN(SUBSTITUTE(U101,CHAR(44),""))+1,"-"),"") -> -
A102: 83 | B102: - | C102: x | D102: Mărire capacitate SRM Tamășeni, jud. Neamț | E102: 120913 | F102: Simionești | G102: Neamț | H102: 642886.71 | I102: 610114.08 | J102: 642886.71 | K102: 610114.08 | L102: - | M102: - | N102: SM1097D0 | O102: Tămășeni | P102: - | Q102: - | R102: - | S102: - | T102: SM-SD001 | V102: Mihoc Oil | W102: august - septembrie 2025 anul gazier 2025 - 2026 | AB102: Bacău | AD102: Ordin de începere a lucrărilor cu data de 09.10.2025 | AP102: PMDI 2025-2027 Anexa17_A.20 | AR102: =IF(B102="X",IF(AN102="","Afectat sau NU?",IF(AN102="DA",IF(((AK102+AL102)-(AE102+AF102))*24<-720,"Neinformat",((AK102+AL102)-(AE102+AF102))*24),"Nu a fost afectat producator/consumator")),"") ->  | AS102: =IF(B102="X",IF(AN102="DA",IF(AR102<6,LEN(TRIM(V102))-LEN(SUBSTITUTE(V102,CHAR(44),""))+1,0),"-"),"") ->  | AT102: =IF(B102="X",IF(AN102="DA",LEN(TRIM(V102))-LEN(SUBSTITUTE(V102,CHAR(44),""))+1,"-"),"") ->  | AU102: =IF(B102="X",IF(AN102="","Afectat sau NU?",IF(AN102="DA",IF(((AI102+AJ102)-(AE102+AF102))*24<-720,"Neinformat",((AI102+AJ102)-(AE102+AF102))*24),"Nu a fost afectat producator/consumator")),"") ->  | AV102: =IF(B102="X",IF(AN102="DA",IF(AU102<6,LEN(TRIM(U102))-LEN(SUBSTITUTE(U102,CHAR(44),""))+1,0),"-"),"") ->  | AW102: =IF(B102="X",IF(AN102="DA",LEN(TRIM(U102))-LEN(SUBSTITUTE(U102,CHAR(44),""))+1,"-"),"") ->  | AX102: =IF(B102="X",IF(AN102="","Afectat sau NU?",IF(AN102="DA",((AG102+AH102)-(AE102+AF102))*24,"Nu a fost afectat producator/consumator")),"") ->  | AY102: =IF(B102="X",IF(AN102="DA",IF(AX102>24,IF(BA102="NU",0,LEN(TRIM(V102))-LEN(SUBSTITUTE(V102,CHAR(44),""))+1),0),"-"),"") ->  | AZ102: =IF(B102="X",IF(AN102="DA",IF(AX102>24,LEN(TRIM(V102))-LEN(SUBSTITUTE(V102,CHAR(44),""))+1,0),"-"),"") ->  | BF102: Afectat sau NU? | BG102: =IF(C102="X",IF(AN102="DA",IF(AND(BF102>=5,AK102<>""),LEN(TRIM(V102))-LEN(SUBSTITUTE(V102,CHAR(44),""))+1,0),"-"),"") -> - | BH102: =IF(C102="X",IF(AN102="DA",LEN(TRIM(V102))-LEN(SUBSTITUTE(V102,CHAR(44),""))+1,"-"),"") -> - | BI102: Afectat sau NU? | BJ102: =IF(C102="X",IF(AN102="DA",IF(AND(BI102>=5,AI102<>""),LEN(TRIM(U102))-LEN(SUBSTITUTE(U102,CHAR(44),""))+1,0),"-"),"") -> - | BK102: =IF(C102="X",IF(AN102="DA",LEN(TRIM(U102))-LEN(SUBSTITUTE(U102,CHAR(44),""))+1,"-"),"") -> - | BL102: =IF(C102="X",IF(AN102="","Afectat sau NU?",IF(AN102="DA",((AG102+AH102)-(Z102+AA102))*24,"Nu a fost afectat producator/consumator")),"") -> Afectat sau NU? | BM102: =IF(C102="X",IF(AN102<>"DA","-",IF(AND(AN102="DA",BL102<=0),LEN(TRIM(V102))-LEN(SUBSTITUTE(V102,CHAR(44),""))+1+LEN(TRIM(U102))-LEN(SUBSTITUTE(U102,CHAR(44),""))+1,0)),"") -> - | BN102: =IF(C102="X",IF(AN102="DA",LEN(TRIM(V102))-LEN(SUBSTITUTE(V102,CHAR(44),""))+1+LEN(TRIM(U102))-LEN(SUBSTITUTE(U102,CHAR(44),""))+1,"-"),"") -> -
A103: 84 | B103: - | C103: x | D103: Racord și SRM Roserv Green Energy Onești, jud. Bacău | E103: 20581 | F103: Borzești | G103: Bacău | H103: 641673.29 | I103: 528386.47 | J103: 641673.29 | K103: 528386.47 | L103: - | M103: - | N103: SM1077D1 | O103: SC Chimcomplex Borzești I | P103: - | Q103: - | R103: - | S103: - | T103: SM-CF001 | V103: Chimcomplex | W103: august - septembrie 2025 anul gazier 2025 - 2026 | AB103: Bacău | AD103: În achiziție | AP103: PMDI 2025-2027 Anexa17_B.2 | AR103: =IF(B103="X",IF(AN103="","Afectat sau NU?",IF(AN103="DA",IF(((AK103+AL103)-(AE103+AF103))*24<-720,"Neinformat",((AK103+AL103)-(AE103+AF103))*24),"Nu a fost afectat producator/consumator")),"") ->  | AS103: =IF(B103="X",IF(AN103="DA",IF(AR103<6,LEN(TRIM(V103))-LEN(SUBSTITUTE(V103,CHAR(44),""))+1,0),"-"),"") ->  | AT103: =IF(B103="X",IF(AN103="DA",LEN(TRIM(V103))-LEN(SUBSTITUTE(V103,CHAR(44),""))+1,"-"),"") ->  | AU103: =IF(B103="X",IF(AN103="","Afectat sau NU?",IF(AN103="DA",IF(((AI103+AJ103)-(AE103+AF103))*24<-720,"Neinformat",((AI103+AJ103)-(AE103+AF103))*24),"Nu a fost afectat producator/consumator")),"") ->  | AV103: =IF(B103="X",IF(AN103="DA",IF(AU103<6,LEN(TRIM(U103))-LEN(SUBSTITUTE(U103,CHAR(44),""))+1,0),"-"),"") ->  | AW103: =IF(B103="X",IF(AN103="DA",LEN(TRIM(U103))-LEN(SUBSTITUTE(U103,CHAR(44),""))+1,"-"),"") ->  | AX103: =IF(B103="X",IF(AN103="","Afectat sau NU?",IF(AN103="DA",((AG103+AH103)-(AE103+AF103))*24,"Nu a fost afectat producator/consumator")),"") ->  | AY103: =IF(B103="X",IF(AN103="DA",IF(AX103>24,IF(BA103="NU",0,LEN(TRIM(V103))-LEN(SUBSTITUTE(V103,CHAR(44),""))+1),0),"-"),"") ->  | AZ103: =IF(B103="X",IF(AN103="DA",IF(AX103>24,LEN(TRIM(V103))-LEN(SUBSTITUTE(V103,CHAR(44),""))+1,0),"-"),"") ->  | BF103: Afectat sau NU? | BG103: =IF(C103="X",IF(AN103="DA",IF(AND(BF103>=5,AK103<>""),LEN(TRIM(V103))-LEN(SUBSTITUTE(V103,CHAR(44),""))+1,0),"-"),"") -> - | BH103: =IF(C103="X",IF(AN103="DA",LEN(TRIM(V103))-LEN(SUBSTITUTE(V103,CHAR(44),""))+1,"-"),"") -> - | BI103: Afectat sau NU? | BJ103: =IF(C103="X",IF(AN103="DA",IF(AND(BI103>=5,AI103<>""),LEN(TRIM(U103))-LEN(SUBSTITUTE(U103,CHAR(44),""))+1,0),"-"),"") -> - | BK103: =IF(C103="X",IF(AN103="DA",LEN(TRIM(U103))-LEN(SUBSTITUTE(U103,CHAR(44),""))+1,"-"),"") -> - | BL103: =IF(C103="X",IF(AN103="","Afectat sau NU?",IF(AN103="DA",((AG103+AH103)-(Z103+AA103))*24,"Nu a fost afectat producator/consumator")),"") -> Afectat sau NU? | BM103: =IF(C103="X",IF(AN103<>"DA","-",IF(AND(AN103="DA",BL103<=0),LEN(TRIM(V103))-LEN(SUBSTITUTE(V103,CHAR(44),""))+1+LEN(TRIM(U103))-LEN(SUBSTITUTE(U103,CHAR(44),""))+1,0)),"") -> - | BN103: =IF(C103="X",IF(AN103="DA",LEN(TRIM(V103))-LEN(SUBSTITUTE(V103,CHAR(44),""))+1+LEN(TRIM(U103))-LEN(SUBSTITUTE(U103,CHAR(44),""))+1,"-"),"") -> -
A104: 85 | B104: - | C104: x | D104: Racord și SRM Roserv Green Energy Onești, jud. Bacău | E104: 20581 | F104: Borzești | G104: Bacău | H104: 641673.29 | I104: 528386.47 | J104: 641673.29 | K104: 528386.47 | L104: - | M104: - | N104: SM1077D2 | O104: SC Chimcomplex Borzești II | P104: - | Q104: - | R104: - | S104: - | T104: SM-CF001 | V104: Chimcomplex | W104: august - septembrie 2025 anul gazier 2025 - 2026 | AB104: Bacău | AD104: În achiziție | AP104: PMDI 2025-2027 Anexa17_B.2 | AR104: =IF(B104="X",IF(AN104="","Afectat sau NU?",IF(AN104="DA",IF(((AK104+AL104)-(AE104+AF104))*24<-720,"Neinformat",((AK104+AL104)-(AE104+AF104))*24),"Nu a fost afectat producator/consumator")),"") ->  | AS104: =IF(B104="X",IF(AN104="DA",IF(AR104<6,LEN(TRIM(V104))-LEN(SUBSTITUTE(V104,CHAR(44),""))+1,0),"-"),"") ->  | AT104: =IF(B104="X",IF(AN104="DA",LEN(TRIM(V104))-LEN(SUBSTITUTE(V104,CHAR(44),""))+1,"-"),"") ->  | AU104: =IF(B104="X",IF(AN104="","Afectat sau NU?",IF(AN104="DA",IF(((AI104+AJ104)-(AE104+AF104))*24<-720,"Neinformat",((AI104+AJ104)-(AE104+AF104))*24),"Nu a fost afectat producator/consumator")),"") ->  | AV104: =IF(B104="X",IF(AN104="DA",IF(AU104<6,LEN(TRIM(U104))-LEN(SUBSTITUTE(U104,CHAR(44),""))+1,0),"-"),"") ->  | AW104: =IF(B104="X",IF(AN104="DA",LEN(TRIM(U104))-LEN(SUBSTITUTE(U104,CHAR(44),""))+1,"-"),"") ->  | AX104: =IF(B104="X",IF(AN104="","Afectat sau NU?",IF(AN104="DA",((AG104+AH104)-(AE104+AF104))*24,"Nu a fost afectat producator/consumator")),"") ->  | AY104: =IF(B104="X",IF(AN104="DA",IF(AX104>24,IF(BA104="NU",0,LEN(TRIM(V104))-LEN(SUBSTITUTE(V104,CHAR(44),""))+1),0),"-"),"") ->  | AZ104: =IF(B104="X",IF(AN104="DA",IF(AX104>24,LEN(TRIM(V104))-LEN(SUBSTITUTE(V104,CHAR(44),""))+1,0),"-"),"") ->  | BF104: Afectat sau NU? | BG104: =IF(C104="X",IF(AN104="DA",IF(AND(BF104>=5,AK104<>""),LEN(TRIM(V104))-LEN(SUBSTITUTE(V104,CHAR(44),""))+1,0),"-"),"") -> - | BH104: =IF(C104="X",IF(AN104="DA",LEN(TRIM(V104))-LEN(SUBSTITUTE(V104,CHAR(44),""))+1,"-"),"") -> - | BI104: Afectat sau NU? | BJ104: =IF(C104="X",IF(AN104="DA",IF(AND(BI104>=5,AI104<>""),LEN(TRIM(U104))-LEN(SUBSTITUTE(U104,CHAR(44),""))+1,0),"-"),"") -> - | BK104: =IF(C104="X",IF(AN104="DA",LEN(TRIM(U104))-LEN(SUBSTITUTE(U104,CHAR(44),""))+1,"-"),"") -> - | BL104: =IF(C104="X",IF(AN104="","Afectat sau NU?",IF(AN104="DA",((AG104+AH104)-(Z104+AA104))*24,"Nu a fost afectat producator/consumator")),"") -> Afectat sau NU? | BM104: =IF(C104="X",IF(AN104<>"DA","-",IF(AND(AN104="DA",BL104<=0),LEN(TRIM(V104))-LEN(SUBSTITUTE(V104,CHAR(44),""))+1+LEN(TRIM(U104))-LEN(SUBSTITUTE(U104,CHAR(44),""))+1,0)),"") -> - | BN104: =IF(C104="X",IF(AN104="DA",LEN(TRIM(V104))-LEN(SUBSTITUTE(V104,CHAR(44),""))+1+LEN(TRIM(U104))-LEN(SUBSTITUTE(U104,CHAR(44),""))+1,"-"),"") -> -
A105: 86 | B105: - | C105: x | D105: Mărire capacitate SRM Biharia, jud. Bihor | E105: 27445 | F105: Biharia | G105: Bihor | H105: 266781.26 | I105: 634631.41 | J105: 266781.26 | K105: 634631.41 | L105: - | M105: - | N105: SM0365D0 | O105: Biharia | P105: - | Q105: - | R105: - | S105: - | T105: SM-SD001 | V105: Delgaz Grid | W105: august - septembrie 2025 iunie 2025 | AB105: Arad | AC105: Efectuată (Lucrarea a fost efectuată în data de 12.06.2025 în regim de neplanificată, având acceptul partenerului adiacent de întrerupere a serviciului de transport gaze naturale - a se vedea poziția nr. 206) | AD105: S-a convenit cu operatorul de distribuție perioada 10 - 13 iunie 2025. | AP105: PMDI 2025-2027 Anexa17_A.21 | AR105: =IF(B105="X",IF(AN105="","Afectat sau NU?",IF(AN105="DA",IF(((AK105+AL105)-(AE105+AF105))*24<-720,"Neinformat",((AK105+AL105)-(AE105+AF105))*24),"Nu a fost afectat producator/consumator")),"") ->  | AS105: =IF(B105="X",IF(AN105="DA",IF(AR105<6,LEN(TRIM(V105))-LEN(SUBSTITUTE(V105,CHAR(44),""))+1,0),"-"),"") ->  | AT105: =IF(B105="X",IF(AN105="DA",LEN(TRIM(V105))-LEN(SUBSTITUTE(V105,CHAR(44),""))+1,"-"),"") ->  | AU105: =IF(B105="X",IF(AN105="","Afectat sau NU?",IF(AN105="DA",IF(((AI105+AJ105)-(AE105+AF105))*24<-720,"Neinformat",((AI105+AJ105)-(AE105+AF105))*24),"Nu a fost afectat producator/consumator")),"") ->  | AV105: =IF(B105="X",IF(AN105="DA",IF(AU105<6,LEN(TRIM(U105))-LEN(SUBSTITUTE(U105,CHAR(44),""))+1,0),"-"),"") ->  | AW105: =IF(B105="X",IF(AN105="DA",LEN(TRIM(U105))-LEN(SUBSTITUTE(U105,CHAR(44),""))+1,"-"),"") ->  | AX105: =IF(B105="X",IF(AN105="","Afectat sau NU?",IF(AN105="DA",((AG105+AH105)-(AE105+AF105))*24,"Nu a fost afectat producator/consumator")),"") ->  | AY105: =IF(B105="X",IF(AN105="DA",IF(AX105>24,IF(BA105="NU",0,LEN(TRIM(V105))-LEN(SUBSTITUTE(V105,CHAR(44),""))+1),0),"-"),"") ->  | AZ105: =IF(B105="X",IF(AN105="DA",IF(AX105>24,LEN(TRIM(V105))-LEN(SUBSTITUTE(V105,CHAR(44),""))+1,0),"-"),"") ->  | BF105: Afectat sau NU? | BG105: =IF(C105="X",IF(AN105="DA",IF(AND(BF105>=5,AK105<>""),LEN(TRIM(V105))-LEN(SUBSTITUTE(V105,CHAR(44),""))+1,0),"-"),"") -> - | BH105: =IF(C105="X",IF(AN105="DA",LEN(TRIM(V105))-LEN(SUBSTITUTE(V105,CHAR(44),""))+1,"-"),"") -> - | BI105: Afectat sau NU? | BJ105: =IF(C105="X",IF(AN105="DA",IF(AND(BI105>=5,AI105<>""),LEN(TRIM(U105))-LEN(SUBSTITUTE(U105,CHAR(44),""))+1,0),"-"),"") -> - | BK105: =IF(C105="X",IF(AN105="DA",LEN(TRIM(U105))-LEN(SUBSTITUTE(U105,CHAR(44),""))+1,"-"),"") -> - | BL105: =IF(C105="X",IF(AN105="","Afectat sau NU?",IF(AN105="DA",((AG105+AH105)-(Z105+AA105))*24,"Nu a fost afectat producator/consumator")),"") -> Afectat sau NU? | BM105: =IF(C105="X",IF(AN105<>"DA","-",IF(AND(AN105="DA",BL105<=0),LEN(TRIM(V105))-LEN(SUBSTITUTE(V105,CHAR(44),""))+1+LEN(TRIM(U105))-LEN(SUBSTITUTE(U105,CHAR(44),""))+1,0)),"") -> - | BN105: =IF(C105="X",IF(AN105="DA",LEN(TRIM(V105))-LEN(SUBSTITUTE(V105,CHAR(44),""))+1+LEN(TRIM(U105))-LEN(SUBSTITUTE(U105,CHAR(44),""))+1,"-"),"") -> -
A106: 87 | B106: - | C106: x | D106: Conducta de transport gaze naturale Deta - Moravița, Jud. Timiș | E106: 157013 | F106: Foeni | G106: Timiș | H106: 175362.56 | I106: 453811.08 | J106: 175362.56 | K106: 453811.08 | L106: - | M106: - | N106: SM1143D0 | O106: Foeni-Petrom | P106: - | Q106: - | R106: - | S106: - | T106: SM-CF001 | V106: Petrom (livrare directă) | W106: august - septembrie 2025 | AB106: Arad | AP106: PMDI 2025-2027 Anexa18_A.3 | AR106: =IF(B106="X",IF(AN106="","Afectat sau NU?",IF(AN106="DA",IF(((AK106+AL106)-(AE106+AF106))*24<-720,"Neinformat",((AK106+AL106)-(AE106+AF106))*24),"Nu a fost afectat producator/consumator")),"") ->  | AS106: =IF(B106="X",IF(AN106="DA",IF(AR106<6,LEN(TRIM(V106))-LEN(SUBSTITUTE(V106,CHAR(44),""))+1,0),"-"),"") ->  | AT106: =IF(B106="X",IF(AN106="DA",LEN(TRIM(V106))-LEN(SUBSTITUTE(V106,CHAR(44),""))+1,"-"),"") ->  | AU106: =IF(B106="X",IF(AN106="","Afectat sau NU?",IF(AN106="DA",IF(((AI106+AJ106)-(AE106+AF106))*24<-720,"Neinformat",((AI106+AJ106)-(AE106+AF106))*24),"Nu a fost afectat producator/consumator")),"") ->  | AV106: =IF(B106="X",IF(AN106="DA",IF(AU106<6,LEN(TRIM(U106))-LEN(SUBSTITUTE(U106,CHAR(44),""))+1,0),"-"),"") ->  | AW106: =IF(B106="X",IF(AN106="DA",LEN(TRIM(U106))-LEN(SUBSTITUTE(U106,CHAR(44),""))+1,"-"),"") ->  | AX106: =IF(B106="X",IF(AN106="","Afectat sau NU?",IF(AN106="DA",((AG106+AH106)-(AE106+AF106))*24,"Nu a fost afectat producator/consumator")),"") ->  | AY106: =IF(B106="X",IF(AN106="DA",IF(AX106>24,IF(BA106="NU",0,LEN(TRIM(V106))-LEN(SUBSTITUTE(V106,CHAR(44),""))+1),0),"-"),"") ->  | AZ106: =IF(B106="X",IF(AN106="DA",IF(AX106>24,LEN(TRIM(V106))-LEN(SUBSTITUTE(V106,CHAR(44),""))+1,0),"-"),"") ->  | BF106: Afectat sau NU? | BG106: =IF(C106="X",IF(AN106="DA",IF(AND(BF106>=5,AK106<>""),LEN(TRIM(V106))-LEN(SUBSTITUTE(V106,CHAR(44),""))+1,0),"-"),"") -> - | BH106: =IF(C106="X",IF(AN106="DA",LEN(TRIM(V106))-LEN(SUBSTITUTE(V106,CHAR(44),""))+1,"-"),"") -> - | BI106: Afectat sau NU? | BJ106: =IF(C106="X",IF(AN106="DA",IF(AND(BI106>=5,AI106<>""),LEN(TRIM(U106))-LEN(SUBSTITUTE(U106,CHAR(44),""))+1,0),"-"),"") -> - | BK106: =IF(C106="X",IF(AN106="DA",LEN(TRIM(U106))-LEN(SUBSTITUTE(U106,CHAR(44),""))+1,"-"),"") -> - | BL106: =IF(C106="X",IF(AN106="","Afectat sau NU?",IF(AN106="DA",((AG106+AH106)-(Z106+AA106))*24,"Nu a fost afectat producator/consumator")),"") -> Afectat sau NU? | BM106: =IF(C106="X",IF(AN106<>"DA","-",IF(AND(AN106="DA",BL106<=0),LEN(TRIM(V106))-LEN(SUBSTITUTE(V106,CHAR(44),""))+1+LEN(TRIM(U106))-LEN(SUBSTITUTE(U106,CHAR(44),""))+1,0)),"") -> - | BN106: =IF(C106="X",IF(AN106="DA",LEN(TRIM(V106))-LEN(SUBSTITUTE(V106,CHAR(44),""))+1+LEN(TRIM(U106))-LEN(SUBSTITUTE(U106,CHAR(44),""))+1,"-"),"") -> -
A107: =A106+1 -> 88 | B107: - | C107: x | D107: Eliminare filtru separator din SRM Slimnic | E107: 145612 | F107: Slimnic | G107: Sibiu | H107: 434946.67 | I107: 491347.6 | J107: 434946.67 | K107: 491347.6 | L107: - | M107: - | N107: SM0741D0 | O107: Slimnic | P107: - | Q107: - | R107: - | S107: - | T107: SM-SD001 | U107: Nova Power, Premier Energy Furnizare, Colterm, CPL Concordia, Delgaz, Design Proiect, Distrigaz Vest, Engie, E.on Energie, Electrica Furnizare, Electric Planners, Energy Core, Energy Distribution, PPC Energie, PPC Energie Muntenia, Entrex, Eye Mall, Premier Energy Trading, Gaz Est, Gazmir, Getica 95, Local Gaz, Mihoc Oil, Met România, MVM Future, Next Energy Distribution, Premier Energy, Petrom, Prisma Serv, Gas Provider, Renovatio, Romgaz, RWE Supply, MDA Energy, Solprim, Tinmar, Transenergo, Gaz Vest Trading | V107: Delgaz Grid | W107: 07 octombrie - 30 noiembrie 2024 | X107: 2024-10-17 | Y107: 10:00:00 | Z107: 2024-10-17 | AA107: 13:00:00 | AB107: Mediaș | AC107: Efectuată | AE107: 2024-10-17 | AF107: 10:00:00 | AG107: 2024-10-17 | AH107: 13:00:00 | AI107: 2024-10-09 | AJ107: 13:37:00 | AK107: 2024-10-08 | AL107: 15:27:00 | AM107: 4577/15.10.2024 | AN107: DA | AP107: forțe proprii | AR107: =IF(B107="X",IF(AN107="","Afectat sau NU?",IF(AN107="DA",IF(((AK107+AL107)-(AE107+AF107))*24<-720,"Neinformat",((AK107+AL107)-(AE107+AF107))*24),"Nu a fost afectat producator/consumator")),"") ->  | AS107: =IF(B107="X",IF(AN107="DA",IF(AR107<6,LEN(TRIM(V107))-LEN(SUBSTITUTE(V107,CHAR(44),""))+1,0),"-"),"") ->  | AT107: =IF(B107="X",IF(AN107="DA",LEN(TRIM(V107))-LEN(SUBSTITUTE(V107,CHAR(44),""))+1,"-"),"") ->  | AU107: =IF(B107="X",IF(AN107="","Afectat sau NU?",IF(AN107="DA",IF(((AI107+AJ107)-(AE107+AF107))*24<-720,"Neinformat",((AI107+AJ107)-(AE107+AF107))*24),"Nu a fost afectat producator/consumator")),"") ->  | AV107: =IF(B107="X",IF(AN107="DA",IF(AU107<6,LEN(TRIM(U107))-LEN(SUBSTITUTE(U107,CHAR(44),""))+1,0),"-"),"") ->  | AW107: =IF(B107="X",IF(AN107="DA",LEN(TRIM(U107))-LEN(SUBSTITUTE(U107,CHAR(44),""))+1,"-"),"") ->  | AX107: =IF(B107="X",IF(AN107="","Afectat sau NU?",IF(AN107="DA",((AG107+AH107)-(AE107+AF107))*24,"Nu a fost afectat producator/consumator")),"") ->  | AY107: =IF(B107="X",IF(AN107="DA",IF(AX107>24,IF(BA107="NU",0,LEN(TRIM(V107))-LEN(SUBSTITUTE(V107,CHAR(44),""))+1),0),"-"),"") ->  | AZ107: =IF(B107="X",IF(AN107="DA",IF(AX107>24,LEN(TRIM(V107))-LEN(SUBSTITUTE(V107,CHAR(44),""))+1,0),"-"),"") ->  | BF107: =IF(C107="X",IF(AN107="","Afectat sau NU?",IF(AN107="DA",IF(AK107="","Neinformat",NETWORKDAYS((AK107+1)+AL107,(AE107-1)+AF107,$BS$2:$BS$18)),"Nu a fost afectat producator/consumator")),"") -> 6 | BG107: =IF(C107="X",IF(AN107="DA",IF(AND(BF107>=5,AK107<>""),LEN(TRIM(V107))-LEN(SUBSTITUTE(V107,CHAR(44),""))+1,0),"-"),"") -> 1 | BH107: =IF(C107="X",IF(AN107="DA",LEN(TRIM(V107))-LEN(SUBSTITUTE(V107,CHAR(44),""))+1,"-"),"") -> 1 | BI107: =IF(C107="X",IF(AN107="","Afectat sau NU?",IF(AN107="DA",IF(AI107="","Neinformat",NETWORKDAYS((AI107+1)+AJ107,(AE107-1)+AF107,$BS$2:$BS$18)),"Nu a fost afectat producator/consumator")),"") -> 5 | BJ107: =IF(C107="X",IF(AN107="DA",IF(AND(BI107>=5,AI107<>""),LEN(TRIM(U107))-LEN(SUBSTITUTE(U107,CHAR(44),""))+1,0),"-"),"") -> 38 | BK107: =IF(C107="X",IF(AN107="DA",LEN(TRIM(U107))-LEN(SUBSTITUTE(U107,CHAR(44),""))+1,"-"),"") -> 38 | BL107: =IF(C107="X",IF(AN107="","Afectat sau NU?",IF(AN107="DA",((AG107+AH107)-(Z107+AA107))*24,"Nu a fost afectat producator/consumator")),"") -> 0 | BM107: =IF(C107="X",IF(AN107<>"DA","-",IF(AND(AN107="DA",BL107<=0),LEN(TRIM(V107))-LEN(SUBSTITUTE(V107,CHAR(44),""))+1+LEN(TRIM(U107))-LEN(SUBSTITUTE(U107,CHAR(44),""))+1,0)),"") -> 39 | BN107: =IF(C107="X",IF(AN107="DA",LEN(TRIM(V107))-LEN(SUBSTITUTE(V107,CHAR(44),""))+1+LEN(TRIM(U107))-LEN(SUBSTITUTE(U107,CHAR(44),""))+1,"-"),"") -> 39
A108: =A107+1 -> 89 | B108: x | C108: - | D108: Lucrări de mentenanță cu caracter urgent în SRM CET Vest București | E108: 403 | F108: București | G108: București | H108: 577613.28 | I108: 325145.01 | J108: 577613.28 | K108: 325145.01 | L108: - | M108: - | N108: SM0151D0 | O108: București Cet Vest | P108: - | Q108: - | R108: - | S108: - | T108: SM-SD001 | U108: Alpha Metal, Nova Power, BTD Construct, Premier Energy Furnizare, Complexul Energetic Oltenia, Crest Energy, Distrigaz Sud Rețele, Distrigaz Vest, Engie, E.on Energie, Electrocentrale București, Electrica Furnizare, Electric Planners, Energy Core, Energy Distribution, PPC Energie, PPC Energie Muntenia, Entrex, Euro Seven, Eye Mall, Premier Energy Trading, Gaz Est, Getica 95, Local Gaz, Met România, Monsson, Termoenergetica București, MVM Future, Next Energy Distribution, Next Energy Partners, Premier Energy, Petrom, Gas Provider, Renovatio, Romgaz, RWE Supply, MDA Energy, Solprim, Sustainable Energy, Termocentrale Constanța, Termo Calor, Tinmar, Transenergo, Termoelectrica Giurgiu, Gaz Vest Trading, Vimetco | V108: Distrigaz Sud Rețele | W108: - | X108: 2024-09-30 | Y108: 10:00:00 | Z108: 2024-10-15 | AA108: 10:00:00 | AB108: București | AC108: Efectuată | AE108: 2024-09-30 | AF108: 10:00:00 | AG108: 2024-10-15 | AH108: 09:55:00 | AI108: 2024-09-30 | AJ108: 10:14:00 | AK108: 2024-09-30 | AL108: 10:04:00 | AM108: - | AN108: NU | AR108: =IF(B108="X",IF(AN108="","Afectat sau NU?",IF(AN108="DA",IF(((AK108+AL108)-(AE108+AF108))*24<-720,"Neinformat",((AK108+AL108)-(AE108+AF108))*24),"Nu a fost afectat producator/consumator")),"") -> Nu a fost afectat producator/consumator | AS108: =IF(B108="X",IF(AN108="DA",IF(AR108<6,LEN(TRIM(V108))-LEN(SUBSTITUTE(V108,CHAR(44),""))+1,0),"-"),"") -> - | AT108: =IF(B108="X",IF(AN108="DA",LEN(TRIM(V108))-LEN(SUBSTITUTE(V108,CHAR(44),""))+1,"-"),"") -> - | AU108: =IF(B108="X",IF(AN108="","Afectat sau NU?",IF(AN108="DA",IF(((AI108+AJ108)-(AE108+AF108))*24<-720,"Neinformat",((AI108+AJ108)-(AE108+AF108))*24),"Nu a fost afectat producator/consumator")),"") -> Nu a fost afectat producator/consumator | AV108: =IF(B108="X",IF(AN108="DA",IF(AU108<6,LEN(TRIM(U108))-LEN(SUBSTITUTE(U108,CHAR(44),""))+1,0),"-"),"") -> - | AW108: =IF(B108="X",IF(AN108="DA",LEN(TRIM(U108))-LEN(SUBSTITUTE(U108,CHAR(44),""))+1,"-"),"") -> - | AX108: =IF(B108="X",IF(AN108="","Afectat sau NU?",IF(AN108="DA",((AG108+AH108)-(AE108+AF108))*24,"Nu a fost afectat producator/consumator")),"") -> Nu a fost afectat producator/consumator | AY108: =IF(B108="X",IF(AN108="DA",IF(AX108>24,IF(BA108="NU",0,LEN(TRIM(V108))-LEN(SUBSTITUTE(V108,CHAR(44),""))+1),0),"-"),"") -> - | AZ108: =IF(B108="X",IF(AN108="DA",IF(AX108>24,LEN(TRIM(V108))-LEN(SUBSTITUTE(V108,CHAR(44),""))+1,0),"-"),"") -> - | BF108: =IF(C108="X",IF(AN108="","Afectat sau NU?",IF(AN108="DA",IF(AK108="","Neinformat",NETWORKDAYS((AK108+1)+AL108,(AE108-1)+AF108,$BS$2:$BS$18)),"Nu a fost afectat producator/consumator")),"") ->  | BG108: =IF(C108="X",IF(AN108="DA",IF(AND(BF108>=5,AK108<>""),LEN(TRIM(V108))-LEN(SUBSTITUTE(V108,CHAR(44),""))+1,0),"-"),"") ->  | BH108: =IF(C108="X",IF(AN108="DA",LEN(TRIM(V108))-LEN(SUBSTITUTE(V108,CHAR(44),""))+1,"-"),"") ->  | BI108: =IF(C108="X",IF(AN108="","Afectat sau NU?",IF(AN108="DA",IF(AI108="","Neinformat",NETWORKDAYS((AI108+1)+AJ108,(AE108-1)+AF108,$BS$2:$BS$18)),"Nu a fost afectat producator/consumator")),"") ->  | BJ108: =IF(C108="X",IF(AN108="DA",IF(AND(BI108>=5,AI108<>""),LEN(TRIM(U108))-LEN(SUBSTITUTE(U108,CHAR(44),""))+1,0),"-"),"") ->  | BK108: =IF(C108="X",IF(AN108="DA",LEN(TRIM(U108))-LEN(SUBSTITUTE(U108,CHAR(44),""))+1,"-"),"") ->  | BL108: =IF(C108="X",IF(AN108="","Afectat sau NU?",IF(AN108="DA",((AG108+AH108)-(Z108+AA108))*24,"Nu a fost afectat producator/consumator")),"") ->  | BM108: =IF(C108="X",IF(AN108<>"DA","-",IF(AND(AN108="DA",BL108<=0),LEN(TRIM(V108))-LEN(SUBSTITUTE(V108,CHAR(44),""))+1+LEN(TRIM(U108))-LEN(SUBSTITUTE(U108,CHAR(44),""))+1,0)),"") ->  | BN108: =IF(C108="X",IF(AN108="DA",LEN(TRIM(V108))-LEN(SUBSTITUTE(V108,CHAR(44),""))+1+LEN(TRIM(U108))-LEN(SUBSTITUTE(U108,CHAR(44),""))+1,"-"),"") -> 
A109: 90 | B109: x | C109: - | D109: Cuplare DN100 racord și SRM Vrancart II | E109: 174879 | F109: Adjud | G109: Vrancea | H109: 669525.05 | I109: 514652.44 | J109: 669525.05 | K109: 514652.44 | L109: - | M109: - | N109: SM1018D0 | O109: SC Vrancart Adjud | P109: - | Q109: - | R109: - | S109: - | T109: SM-CF001 | U109: Petrom | V109: Vrancart | W109: - | X109: 2024-10-02 | Y109: 12:13:00 | Z109: 2024-10-02 | AA109: 18:00:00 | AB109: Bacău | AC109: Efectuată | AE109: 2024-10-02 | AF109: 12:13:00 | AG109: 2024-10-02 | AH109: 17:52:00 | AI109: 2024-10-02 | AJ109: 12:22:00 | AK109: 2024-10-02 | AL109: 12:17:00 | AM109: 81703/02.10.2024 | AN109: DA | AR109: 0.06666666671 | AS109: 1 | AT109: 1 | AU109: 0.15 | AV109: 1 | AW109: 1 | AX109: 5.65 | AY109: 0 | AZ109: 0
A110: 91 | B110: x | C110: - | D110: Lucrări de mentenanță în SRM Cerghid | E110: 119910 | F110: Cerghid | G110: Mureș | H110: 457317.75 | I110: 546240.65 | J110: 457317.75 | K110: 546240.65 | L110: - | M110: - | N110: SM0708D0 | O110: Cerghid | P110: - | Q110: - | R110: - | S110: - | T110: SM-SD001 | U110: Nova Power, Premier Energy Furnizare, Colterm, CPL Concordia, Delgaz, Design Proiect, Distrigaz Vest, Engie, E.on Energie, Electrica Furnizare, Electric Planners, Energy Core, Energy Distribution, PPC Energie, PPC Energie Muntenia, Entrex, Eye Mall, Premier Energy Trading, Gaz Est, Gazmir, Getica 95, Local Gaz, Mihoc Oil, Met România, MVM Future, Next Energy Distribution, Premier Energy, Petrom, Prisma Serv, Gas Provider, Renovatio, Romgaz, RWE Supply, MDA Energy, Solprim, Tinmar, Transenergo, Gaz Vest Trading | V110: Delgaz Grid | W110: - | X110: 2024-10-03 | Y110: 09:00:00 | Z110: 2024-10-03 | AA110: 14:00:00 | AB110: Mediaș | AC110: Efectuată | AE110: 2024-10-03 | AF110: 09:00:00 | AG110: 2024-10-03 | AH110: 14:00:00 | AI110: 2024-10-03 | AJ110: 09:25:00 | AK110: 2024-10-03 | AL110: 09:04:00 | AM110: 4407/02.10.2024 | AN110: DA | AR110: 0.06666666671 | AS110: 1 | AT110: 1 | AU110: 0.4166666666 | AV110: 38 | AW110: 38 | AX110: 5 | AY110: 0 | AZ110: 0
A111: 92 | B111: x | C111: - | D111: Lucrări de mentenanță în SRM Moșnița Nouă | E111: 157834 | F111: Moșnița Veche | G111: Timiș | H111: 214047.13 | I111: 479657.04 | J111: 214047.13 | K111: 479657.04 | L111: - | M111: - | N111: SM1261D0 | O111: Moșnița Nouă | P111: - | Q111: - | R111: - | S111: - | T111: SM-SD001 | U111: Nova Power, Premier Energy Furnizare, Colterm, CPL Concordia, Delgaz, Design Proiect, Distrigaz Vest, Engie, E.on Energie, Electrica Furnizare, Electric Planners, Energy Core, Energy Distribution, PPC Energie, PPC Energie Muntenia, Entrex, Eye Mall, Premier Energy Trading, Gaz Est, Gazmir, Getica 95, Local Gaz, Mihoc Oil, Met România, MVM Future, Next Energy Distribution, Premier Energy, Petrom, Prisma Serv, Gas Provider, Renovatio, Romgaz, RWE Supply, MDA Energy, Solprim, Tinmar, Transenergo, Gaz Vest Trading | V111: Delgaz Grid | W111: - | X111: 2024-10-08 | Y111: 09:10:00 | Z111: 2024-10-08 | AA111: 17:00:00 | AB111: Arad | AC111: Efectuată | AE111: 2024-10-08 | AF111: 09:10:00 | AG111: 2024-10-08 | AH111: 16:50:00 | AI111: 2024-10-08 | AJ111: 09:29:00 | AK111: 2024-10-08 | AL111: 09:16:00 | AM111: 82833/04.10.2024 | AN111: DA | AR111: =IF(B111="X",IF(AN111="","Afectat sau NU?",IF(AN111="DA",IF(((AK111+AL111)-(AE111+AF111))*24<-720,"Neinformat",((AK111+AL111)-(AE111+AF111))*24),"Nu a fost afectat producator/consumator")),"") -> 0.09999999998 | AS111: =IF(B111="X",IF(AN111="DA",IF(AR111<6,LEN(TRIM(V111))-LEN(SUBSTITUTE(V111,CHAR(44),""))+1,0),"-"),"") -> 1 | AT111: =IF(B111="X",IF(AN111="DA",LEN(TRIM(V111))-LEN(SUBSTITUTE(V111,CHAR(44),""))+1,"-"),"") -> 1 | AU111: =IF(B111="X",IF(AN111="","Afectat sau NU?",IF(AN111="DA",IF(((AI111+AJ111)-(AE111+AF111))*24<-720,"Neinformat",((AI111+AJ111)-(AE111+AF111))*24),"Nu a fost afectat producator/consumator")),"") -> 0.3166666667 | AV111: =IF(B111="X",IF(AN111="DA",IF(AU111<6,LEN(TRIM(U111))-LEN(SUBSTITUTE(U111,CHAR(44),""))+1,0),"-"),"") -> 38 | AW111: =IF(B111="X",IF(AN111="DA",LEN(TRIM(U111))-LEN(SUBSTITUTE(U111,CHAR(44),""))+1,"-"),"") -> 38 | AX111: =IF(B111="X",IF(AN111="","Afectat sau NU?",IF(AN111="DA",((AG111+AH111)-(AE111+AF111))*24,"Nu a fost afectat producator/consumator")),"") -> 7.666666667 | AY111: =IF(B111="X",IF(AN111="DA",IF(AX111>24,IF(BA111="NU",0,LEN(TRIM(V111))-LEN(SUBSTITUTE(V111,CHAR(44),""))+1),0),"-"),"") -> 0 | AZ111: =IF(B111="X",IF(AN111="DA",IF(AX111>24,LEN(TRIM(V111))-LEN(SUBSTITUTE(V111,CHAR(44),""))+1,0),"-"),"") -> 0 | BF111: =IF(C111="X",IF(AN111="","Afectat sau NU?",IF(AN111="DA",IF(AK111="","Neinformat",NETWORKDAYS((AK111+1)+AL111,(AE111-1)+AF111,$BS$2:$BS$18)),"Nu a fost afectat producator/consumator")),"") ->  | BG111: =IF(C111="X",IF(AN111="DA",IF(AND(BF111>=5,AK111<>""),LEN(TRIM(V111))-LEN(SUBSTITUTE(V111,CHAR(44),""))+1,0),"-"),"") ->  | BH111: =IF(C111="X",IF(AN111="DA",LEN(TRIM(V111))-LEN(SUBSTITUTE(V111,CHAR(44),""))+1,"-"),"") ->  | BI111: =IF(C111="X",IF(AN111="","Afectat sau NU?",IF(AN111="DA",IF(AI111="","Neinformat",NETWORKDAYS((AI111+1)+AJ111,(AE111-1)+AF111,$BS$2:$BS$18)),"Nu a fost afectat producator/consumator")),"") ->  | BJ111: =IF(C111="X",IF(AN111="DA",IF(AND(BI111>=5,AI111<>""),LEN(TRIM(U111))-LEN(SUBSTITUTE(U111,CHAR(44),""))+1,0),"-"),"") ->  | BK111: =IF(C111="X",IF(AN111="DA",LEN(TRIM(U111))-LEN(SUBSTITUTE(U111,CHAR(44),""))+1,"-"),"") ->  | BL111: =IF(C111="X",IF(AN111="","Afectat sau NU?",IF(AN111="DA",((AG111+AH111)-(Z111+AA111))*24,"Nu a fost afectat producator/consumator")),"") ->  | BM111: =IF(C111="X",IF(AN111<>"DA","-",IF(AND(AN111="DA",BL111<=0),LEN(TRIM(V111))-LEN(SUBSTITUTE(V111,CHAR(44),""))+1+LEN(TRIM(U111))-LEN(SUBSTITUTE(U111,CHAR(44),""))+1,0)),"") ->  | BN111: =IF(C111="X",IF(AN111="DA",LEN(TRIM(V111))-LEN(SUBSTITUTE(V111,CHAR(44),""))+1+LEN(TRIM(U111))-LEN(SUBSTITUTE(U111,CHAR(44),""))+1,"-"),"") -> 
A112: 93 | B112: x | C112: - | D112: Lucrări de mentenanță în SRM Timișoara IV | E112: 155252 | F112: Timișoara | G112: Timiș | H112: 214955.96 | I112: 484273.94 | J112: 214955.96 | K112: 484273.94 | L112: - | M112: - | N112: SM0339D0 | O112: Timișoara IV Aeroportul Milita | P112: - | Q112: - | R112: - | S112: - | T112: SM-SD001 | U112: Nova Power, Premier Energy Furnizare, Colterm, CPL Concordia, Delgaz, Design Proiect, Distrigaz Vest, Engie, E.on Energie, Electrica Furnizare, Electric Planners, Energy Core, Energy Distribution, PPC Energie, PPC Energie Muntenia, Entrex, Eye Mall, Premier Energy Trading, Gaz Est, Gazmir, Getica 95, Local Gaz, Mihoc Oil, Met România, MVM Future, Next Energy Distribution, Premier Energy, Petrom, Prisma Serv, Gas Provider, Renovatio, Romgaz, RWE Supply, MDA Energy, Solprim, Tinmar, Transenergo, Gaz Vest Trading | V112: Delgaz Grid | W112: - | X112: 2024-10-09 | Y112: 08:05:00 | Z112: 2024-10-09 | AA112: 17:00:00 | AB112: Arad | AC112: Efectuată | AE112: 2024-10-09 | AF112: 08:05:00 | AG112: 2024-10-09 | AH112: 16:45:00 | AI112: 2024-10-09 | AJ112: 08:47:00 | AK112: 2024-10-09 | AL112: 08:37:00 | AM112: 82827/04.10.2024 | AN112: DA | AR112: =IF(B112="X",IF(AN112="","Afectat sau NU?",IF(AN112="DA",IF(((AK112+AL112)-(AE112+AF112))*24<-720,"Neinformat",((AK112+AL112)-(AE112+AF112))*24),"Nu a fost afectat producator/consumator")),"") -> 0.5333333333 | AS112: =IF(B112="X",IF(AN112="DA",IF(AR112<6,LEN(TRIM(V112))-LEN(SUBSTITUTE(V112,CHAR(44),""))+1,0),"-"),"") -> 1 | AT112: =IF(B112="X",IF(AN112="DA",LEN(TRIM(V112))-LEN(SUBSTITUTE(V112,CHAR(44),""))+1,"-"),"") -> 1 | AU112: =IF(B112="X",IF(AN112="","Afectat sau NU?",IF(AN112="DA",IF(((AI112+AJ112)-(AE112+AF112))*24<-720,"Neinformat",((AI112+AJ112)-(AE112+AF112))*24),"Nu a fost afectat producator/consumator")),"") -> 0.7 | AV112: =IF(B112="X",IF(AN112="DA",IF(AU112<6,LEN(TRIM(U112))-LEN(SUBSTITUTE(U112,CHAR(44),""))+1,0),"-"),"") -> 38 | AW112: =IF(B112="X",IF(AN112="DA",LEN(TRIM(U112))-LEN(SUBSTITUTE(U112,CHAR(44),""))+1,"-"),"") -> 38 | AX112: =IF(B112="X",IF(AN112="","Afectat sau NU?",IF(AN112="DA",((AG112+AH112)-(AE112+AF112))*24,"Nu a fost afectat producator/consumator")),"") -> 8.666666667 | AY112: =IF(B112="X",IF(AN112="DA",IF(AX112>24,IF(BA112="NU",0,LEN(TRIM(V112))-LEN(SUBSTITUTE(V112,CHAR(44),""))+1),0),"-"),"") -> 0 | AZ112: =IF(B112="X",IF(AN112="DA",IF(AX112>24,LEN(TRIM(V112))-LEN(SUBSTITUTE(V112,CHAR(44),""))+1,0),"-"),"") -> 0 | BF112: =IF(C112="X",IF(AN112="","Afectat sau NU?",IF(AN112="DA",IF(AK112="","Neinformat",NETWORKDAYS((AK112+1)+AL112,(AE112-1)+AF112,$BS$2:$BS$18)),"Nu a fost afectat producator/consumator")),"") ->  | BG112: =IF(C112="X",IF(AN112="DA",IF(AND(BF112>=5,AK112<>""),LEN(TRIM(V112))-LEN(SUBSTITUTE(V112,CHAR(44),""))+1,0),"-"),"") ->  | BH112: =IF(C112="X",IF(AN112="DA",LEN(TRIM(V112))-LEN(SUBSTITUTE(V112,CHAR(44),""))+1,"-"),"") ->  | BI112: =IF(C112="X",IF(AN112="","Afectat sau NU?",IF(AN112="DA",IF(AI112="","Neinformat",NETWORKDAYS((AI112+1)+AJ112,(AE112-1)+AF112,$BS$2:$BS$18)),"Nu a fost afectat producator/consumator")),"") ->  | BJ112: =IF(C112="X",IF(AN112="DA",IF(AND(BI112>=5,AI112<>""),LEN(TRIM(U112))-LEN(SUBSTITUTE(U112,CHAR(44),""))+1,0),"-"),"") ->  | BK112: =IF(C112="X",IF(AN112="DA",LEN(TRIM(U112))-LEN(SUBSTITUTE(U112,CHAR(44),""))+1,"-"),"") ->  | BL112: =IF(C112="X",IF(AN112="","Afectat sau NU?",IF(AN112="DA",((AG112+AH112)-(Z112+AA112))*24,"Nu a fost afectat producator/consumator")),"") ->  | BM112: =IF(C112="X",IF(AN112<>"DA","-",IF(AND(AN112="DA",BL112<=0),LEN(TRIM(V112))-LEN(SUBSTITUTE(V112,CHAR(44),""))+1+LEN(TRIM(U112))-LEN(SUBSTITUTE(U112,CHAR(44),""))+1,0)),"") ->  | BN112: =IF(C112="X",IF(AN112="DA",LEN(TRIM(V112))-LEN(SUBSTITUTE(V112,CHAR(44),""))+1+LEN(TRIM(U112))-LEN(SUBSTITUTE(U112,CHAR(44),""))+1,"-"),"") -> 
A113: 94 | B113: x | C113: - | D113: Lucrări de mentenanță în SRM Utvin | E113: 158724 | F113: Utvin | G113: Timiș | H113: 199343.56 | I113: 475200 | J113: 199343.56 | K113: 475200 | L113: - | M113: - | N113: SM1021D0 | O113: Utvin | P113: - | Q113: - | R113: - | S113: - | T113: SM-SD001 | U113: Nova Power, Premier Energy Furnizare, Distrigaz Vest, Engie, E.on Energie, Electrica Furnizare, Energy Core, Energy Distribution, PPC Energie, PPC Muntenia, Entrex, Euro Seven, Eye Mall, Premier Energy Trading, Gaz Est, Getica 95, Local Gaz, Met România, MVM Future, Next Energy Distribution, Premier Energy, Petrom, Gas Provider, Renovatio, Romgaz, MDA Energy, Solprim, Tinmar, Transenergo, Vimetco | V113: Premier Energy | W113: - | X113: 2024-10-10 | Y113: 09:45:00 | Z113: 2024-10-10 | AA113: 17:00:00 | AB113: Arad | AC113: Efectuată | AE113: 2024-10-10 | AF113: 09:45:00 | AG113: 2024-10-10 | AH113: 15:50:00 | AI113: 2024-10-10 | AJ113: 10:21:00 | AK113: 2024-10-10 | AL113: 10:15:00 | AM113: 82829/04.10.2024 | AN113: DA | AR113: =IF(B113="X",IF(AN113="","Afectat sau NU?",IF(AN113="DA",IF(((AK113+AL113)-(AE113+AF113))*24<-720,"Neinformat",((AK113+AL113)-(AE113+AF113))*24),"Nu a fost afectat producator/consumator")),"") -> 0.5000000001 | AS113: =IF(B113="X",IF(AN113="DA",IF(AR113<6,LEN(TRIM(V113))-LEN(SUBSTITUTE(V113,CHAR(44),""))+1,0),"-"),"") -> 1 | AT113: =IF(B113="X",IF(AN113="DA",LEN(TRIM(V113))-LEN(SUBSTITUTE(V113,CHAR(44),""))+1,"-"),"") -> 1 | AU113: =IF(B113="X",IF(AN113="","Afectat sau NU?",IF(AN113="DA",IF(((AI113+AJ113)-(AE113+AF113))*24<-720,"Neinformat",((AI113+AJ113)-(AE113+AF113))*24),"Nu a fost afectat producator/consumator")),"") -> 0.6 | AV113: =IF(B113="X",IF(AN113="DA",IF(AU113<6,LEN(TRIM(U113))-LEN(SUBSTITUTE(U113,CHAR(44),""))+1,0),"-"),"") -> 30 | AW113: =IF(B113="X",IF(AN113="DA",LEN(TRIM(U113))-LEN(SUBSTITUTE(U113,CHAR(44),""))+1,"-"),"") -> 30 | AX113: =IF(B113="X",IF(AN113="","Afectat sau NU?",IF(AN113="DA",((AG113+AH113)-(AE113+AF113))*24,"Nu a fost afectat producator/consumator")),"") -> 6.083333333 | AY113: =IF(B113="X",IF(AN113="DA",IF(AX113>24,IF(BA113="NU",0,LEN(TRIM(V113))-LEN(SUBSTITUTE(V113,CHAR(44),""))+1),0),"-"),"") -> 0 | AZ113: =IF(B113="X",IF(AN113="DA",IF(AX113>24,LEN(TRIM(V113))-LEN(SUBSTITUTE(V113,CHAR(44),""))+1,0),"-"),"") -> 0 | BF113: =IF(C113="X",IF(AN113="","Afectat sau NU?",IF(AN113="DA",IF(AK113="","Neinformat",NETWORKDAYS((AK113+1)+AL113,(AE113-1)+AF113,$BS$2:$BS$18)),"Nu a fost afectat producator/consumator")),"") ->  | BG113: =IF(C113="X",IF(AN113="DA",IF(AND(BF113>=5,AK113<>""),LEN(TRIM(V113))-LEN(SUBSTITUTE(V113,CHAR(44),""))+1,0),"-"),"") ->  | BH113: =IF(C113="X",IF(AN113="DA",LEN(TRIM(V113))-LEN(SUBSTITUTE(V113,CHAR(44),""))+1,"-"),"") ->  | BI113: =IF(C113="X",IF(AN113="","Afectat sau NU?",IF(AN113="DA",IF(AI113="","Neinformat",NETWORKDAYS((AI113+1)+AJ113,(AE113-1)+AF113,$BS$2:$BS$18)),"Nu a fost afectat producator/consumator")),"") ->  | BJ113: =IF(C113="X",IF(AN113="DA",IF(AND(BI113>=5,AI113<>""),LEN(TRIM(U113))-LEN(SUBSTITUTE(U113,CHAR(44),""))+1,0),"-"),"") ->  | BK113: =IF(C113="X",IF(AN113="DA",LEN(TRIM(U113))-LEN(SUBSTITUTE(U113,CHAR(44),""))+1,"-"),"") ->  | BL113: =IF(C113="X",IF(AN113="","Afectat sau NU?",IF(AN113="DA",((AG113+AH113)-(Z113+AA113))*24,"Nu a fost afectat producator/consumator")),"") ->  | BM113: =IF(C113="X",IF(AN113<>"DA","-",IF(AND(AN113="DA",BL113<=0),LEN(TRIM(V113))-LEN(SUBSTITUTE(V113,CHAR(44),""))+1+LEN(TRIM(U113))-LEN(SUBSTITUTE(U113,CHAR(44),""))+1,0)),"") ->  | BN113: =IF(C113="X",IF(AN113="DA",LEN(TRIM(V113))-LEN(SUBSTITUTE(V113,CHAR(44),""))+1+LEN(TRIM(U113))-LEN(SUBSTITUTE(U113,CHAR(44),""))+1,"-"),"") -> 
A114: 95 | B114: x | C114: - | D114: Lucrări de mentenanță în SRM Valea Iașului | E114: 19702 | F114: Valea Iașului | G114: Argeș | H114: 475797.6 | I114: 409733.31 | J114: 475797.6 | K114: 409733.31 | L114: - | M114: - | N114: SM0218D0 | O114: Spitalul de PNF SF Andrei Valea Iașului | P114: - | Q114: - | R114: - | S114: - | T114: SM-SD001 | U114: Alpha Metal, Nova Power, Premier Energy Furnizare, Complexul Energetic Oltenia, Crest Energy, Distrigaz Sud Rețele, Distrigaz Vest, Engie, E.on Energie, Electrocentrale București, Electrica Furnizare, Electric Planners, Energy Core, Energy Distribution, PPC Energie, PPC Energie Muntenia, Entrex, Euro Seven, Eye Mall, Premier Energy Trading, Gaz Est, Getica 95, Local Gaz, Met România, Monsson, Termoenergetica București, MVM Future, Next Energy Distribution, Next Energy Partners, Premier Energy, Petrom, Gas Provider, Renovatio, Romgaz, RWE Supply, MDA Energy, Solprim, Sustainable Energy, Termocentrale Constanța, Termo Calor, Tinmar, Transenergo, Termoelectrica Giurgiu, Gaz Vest Trading, Vimetco | V114: Distrigaz Sud Rețele | W114: - | X114: 2024-10-10 | Y114: 14:00:00 | Z114: 2024-10-10 | AA114: 18:00:00 | AB114: Craiova | AC114: Efectuată | AE114: 2024-10-10 | AF114: 14:00:00 | AG114: 2024-10-10 | AH114: 14:50:00 | AI114: 2024-10-10 | AJ114: 14:17:00 | AK114: 2024-10-10 | AL114: 14:12:00 | AM114: 84318/09.10.2024 | AN114: DA | AR114: =IF(B114="X",IF(AN114="","Afectat sau NU?",IF(AN114="DA",IF(((AK114+AL114)-(AE114+AF114))*24<-720,"Neinformat",((AK114+AL114)-(AE114+AF114))*24),"Nu a fost afectat producator/consumator")),"") -> 0.2 | AS114: =IF(B114="X",IF(AN114="DA",IF(AR114<6,LEN(TRIM(V114))-LEN(SUBSTITUTE(V114,CHAR(44),""))+1,0),"-"),"") -> 1 | AT114: =IF(B114="X",IF(AN114="DA",LEN(TRIM(V114))-LEN(SUBSTITUTE(V114,CHAR(44),""))+1,"-"),"") -> 1 | AU114: =IF(B114="X",IF(AN114="","Afectat sau NU?",IF(AN114="DA",IF(((AI114+AJ114)-(AE114+AF114))*24<-720,"Neinformat",((AI114+AJ114)-(AE114+AF114))*24),"Nu a fost afectat producator/consumator")),"") -> 0.2833333332 | AV114: =IF(B114="X",IF(AN114="DA",IF(AU114<6,LEN(TRIM(U114))-LEN(SUBSTITUTE(U114,CHAR(44),""))+1,0),"-"),"") -> 45 | AW114: =IF(B114="X",IF(AN114="DA",LEN(TRIM(U114))-LEN(SUBSTITUTE(U114,CHAR(44),""))+1,"-"),"") -> 45 | AX114: =IF(B114="X",IF(AN114="","Afectat sau NU?",IF(AN114="DA",((AG114+AH114)-(AE114+AF114))*24,"Nu a fost afectat producator/consumator")),"") -> 0.8333333333 | AY114: =IF(B114="X",IF(AN114="DA",IF(AX114>24,IF(BA114="NU",0,LEN(TRIM(V114))-LEN(SUBSTITUTE(V114,CHAR(44),""))+1),0),"-"),"") -> 0 | AZ114: =IF(B114="X",IF(AN114="DA",IF(AX114>24,LEN(TRIM(V114))-LEN(SUBSTITUTE(V114,CHAR(44),""))+1,0),"-"),"") -> 0 | BF114: =IF(C114="X",IF(AN114="","Afectat sau NU?",IF(AN114="DA",IF(AK114="","Neinformat",NETWORKDAYS((AK114+1)+AL114,(AE114-1)+AF114,$BS$2:$BS$18)),"Nu a fost afectat producator/consumator")),"") ->  | BG114: =IF(C114="X",IF(AN114="DA",IF(AND(BF114>=5,AK114<>""),LEN(TRIM(V114))-LEN(SUBSTITUTE(V114,CHAR(44),""))+1,0),"-"),"") ->  | BH114: =IF(C114="X",IF(AN114="DA",LEN(TRIM(V114))-LEN(SUBSTITUTE(V114,CHAR(44),""))+1,"-"),"") ->  | BI114: =IF(C114="X",IF(AN114="","Afectat sau NU?",IF(AN114="DA",IF(AI114="","Neinformat",NETWORKDAYS((AI114+1)+AJ114,(AE114-1)+AF114,$BS$2:$BS$18)),"Nu a fost afectat producator/consumator")),"") ->  | BJ114: =IF(C114="X",IF(AN114="DA",IF(AND(BI114>=5,AI114<>""),LEN(TRIM(U114))-LEN(SUBSTITUTE(U114,CHAR(44),""))+1,0),"-"),"") ->  | BK114: =IF(C114="X",IF(AN114="DA",LEN(TRIM(U114))-LEN(SUBSTITUTE(U114,CHAR(44),""))+1,"-"),"") ->  | BL114: =IF(C114="X",IF(AN114="","Afectat sau NU?",IF(AN114="DA",((AG114+AH114)-(Z114+AA114))*24,"Nu a fost afectat producator/consumator")),"") ->  | BM114: =IF(C114="X",IF(AN114<>"DA","-",IF(AND(AN114="DA",BL114<=0),LEN(TRIM(V114))-LEN(SUBSTITUTE(V114,CHAR(44),""))+1+LEN(TRIM(U114))-LEN(SUBSTITUTE(U114,CHAR(44),""))+1,0)),"") ->  | BN114: =IF(C114="X",IF(AN114="DA",LEN(TRIM(V114))-LEN(SUBSTITUTE(V114,CHAR(44),""))+1+LEN(TRIM(U114))-LEN(SUBSTITUTE(U114,CHAR(44),""))+1,"-"),"") -> 
A115: 96 | B115: x | C115: - | D115: Lucrări de mentenanță în SRM Cărani | E115: 158671 | F115: Cărani | G115: Timiș | H115: 203263.35 | I115: 497564.81 | J115: 203263.35 | K115: 497564.81 | L115: - | M115: - | N115: SM1008D0 | O115: Cărani | P115: - | Q115: - | R115: - | S115: - | T115: SM-SD001 | U115: Nova Power, Premier Energy Furnizare, Distrigaz Vest, Engie, E.on Energie, Electrica Furnizare, Energy Distribution, PPC Energie, PPC Muntenia, Entrex, Eye Mall, Premier Energy Trading, Gaz Est, Gaz Vest, Getica 95, Local Gaz, Met România, MVM Future, Premier Energy, Petrom, Gas Provider, Renovatio, Romgaz, Tinmar, Gaz Vest Trading, | V115: Gaz Vest | W115: - | X115: 2024-10-11 | Y115: 09:05:00 | Z115: 2024-10-11 | AA115: 17:00:00 | AB115: Arad | AC115: Efectuată | AE115: 2024-10-11 | AF115: 09:05:00 | AG115: 2024-10-11 | AH115: 13:07:00 | AI115: 2024-10-11 | AJ115: 09:46:00 | AK115: 2024-10-11 | AL115: 09:34:00 | AM115: 82800/04.10.2024 | AN115: DA | AR115: =IF(B115="X",IF(AN115="","Afectat sau NU?",IF(AN115="DA",IF(((AK115+AL115)-(AE115+AF115))*24<-720,"Neinformat",((AK115+AL115)-(AE115+AF115))*24),"Nu a fost afectat producator/consumator")),"") -> 0.4833333333 | AS115: =IF(B115="X",IF(AN115="DA",IF(AR115<6,LEN(TRIM(V115))-LEN(SUBSTITUTE(V115,CHAR(44),""))+1,0),"-"),"") -> 1 | AT115: =IF(B115="X",IF(AN115="DA",LEN(TRIM(V115))-LEN(SUBSTITUTE(V115,CHAR(44),""))+1,"-"),"") -> 1 | AU115: =IF(B115="X",IF(AN115="","Afectat sau NU?",IF(AN115="DA",IF(((AI115+AJ115)-(AE115+AF115))*24<-720,"Neinformat",((AI115+AJ115)-(AE115+AF115))*24),"Nu a fost afectat producator/consumator")),"") -> 0.6833333335 | AV115: =IF(B115="X",IF(AN115="DA",IF(AU115<6,LEN(TRIM(U115))-LEN(SUBSTITUTE(U115,CHAR(44),""))+1,0),"-"),"") -> 25 | AW115: =IF(B115="X",IF(AN115="DA",LEN(TRIM(U115))-LEN(SUBSTITUTE(U115,CHAR(44),""))+1,"-"),"") -> 25 | AX115: =IF(B115="X",IF(AN115="","Afectat sau NU?",IF(AN115="DA",((AG115+AH115)-(AE115+AF115))*24,"Nu a fost afectat producator/consumator")),"") -> 4.033333333 | AY115: =IF(B115="X",IF(AN115="DA",IF(AX115>24,IF(BA115="NU",0,LEN(TRIM(V115))-LEN(SUBSTITUTE(V115,CHAR(44),""))+1),0),"-"),"") -> 0 | AZ115: =IF(B115="X",IF(AN115="DA",IF(AX115>24,LEN(TRIM(V115))-LEN(SUBSTITUTE(V115,CHAR(44),""))+1,0),"-"),"") -> 0 | BF115: =IF(C115="X",IF(AN115="","Afectat sau NU?",IF(AN115="DA",IF(AK115="","Neinformat",NETWORKDAYS((AK115+1)+AL115,(AE115-1)+AF115,$BS$2:$BS$18)),"Nu a fost afectat producator/consumator")),"") ->  | BG115: =IF(C115="X",IF(AN115="DA",IF(AND(BF115>=5,AK115<>""),LEN(TRIM(V115))-LEN(SUBSTITUTE(V115,CHAR(44),""))+1,0),"-"),"") ->  | BH115: =IF(C115="X",IF(AN115="DA",LEN(TRIM(V115))-LEN(SUBSTITUTE(V115,CHAR(44),""))+1,"-"),"") ->  | BI115: =IF(C115="X",IF(AN115="","Afectat sau NU?",IF(AN115="DA",IF(AI115="","Neinformat",NETWORKDAYS((AI115+1)+AJ115,(AE115-1)+AF115,$BS$2:$BS$18)),"Nu a fost afectat producator/consumator")),"") ->  | BJ115: =IF(C115="X",IF(AN115="DA",IF(AND(BI115>=5,AI115<>""),LEN(TRIM(U115))-LEN(SUBSTITUTE(U115,CHAR(44),""))+1,0),"-"),"") ->  | BK115: =IF(C115="X",IF(AN115="DA",LEN(TRIM(U115))-LEN(SUBSTITUTE(U115,CHAR(44),""))+1,"-"),"") ->  | BL115: =IF(C115="X",IF(AN115="","Afectat sau NU?",IF(AN115="DA",((AG115+AH115)-(Z115+AA115))*24,"Nu a fost afectat producator/consumator")),"") ->  | BM115: =IF(C115="X",IF(AN115<>"DA","-",IF(AND(AN115="DA",BL115<=0),LEN(TRIM(V115))-LEN(SUBSTITUTE(V115,CHAR(44),""))+1+LEN(TRIM(U115))-LEN(SUBSTITUTE(U115,CHAR(44),""))+1,0)),"") ->  | BN115: =IF(C115="X",IF(AN115="DA",LEN(TRIM(V115))-LEN(SUBSTITUTE(V115,CHAR(44),""))+1+LEN(TRIM(U115))-LEN(SUBSTITUTE(U115,CHAR(44),""))+1,"-"),"") -> 
A116: 97 | B116: x | C116: - | D116: Deviere conducte DN500 Secuieni - Roman și DN50 racord SRM Motel Trifești | E116: 124732 | F116: Trifești | G116: Neamț | H116: 643529.67 | I116: 598173.91 | J116: 643529.67 | K116: 598173.91 | L116: - | M116: - | N116: SM0926D0 | O116: SC Ragesor Motel Trifești | P116: - | Q116: - | R116: - | S116: - | T116: SM-CF001 | U116: E.on Energie | V116: Ragesor | W116: - | X116: 2024-10-15 | Y116: 08:11:00 | Z116: 2024-10-16 | AA116: 18:00:00 | AB116: Bacău | AC116: Efectuată | AE116: 2024-10-15 | AF116: 08:11:00 | AG116: 2024-10-16 | AH116: 16:12:00 | AI116: 2024-10-15 | AJ116: 08:23:00 | AK116: 2024-10-15 | AL116: 08:12:00 | AM116: 84942/10.10.2024 | AN116: DA | AR116: =IF(B116="X",IF(AN116="","Afectat sau NU?",IF(AN116="DA",IF(((AK116+AL116)-(AE116+AF116))*24<-720,"Neinformat",((AK116+AL116)-(AE116+AF116))*24),"Nu a fost afectat producator/consumator")),"") -> 0.01666666672 | AS116: =IF(B116="X",IF(AN116="DA",IF(AR116<6,LEN(TRIM(V116))-LEN(SUBSTITUTE(V116,CHAR(44),""))+1,0),"-"),"") -> 1 | AT116: =IF(B116="X",IF(AN116="DA",LEN(TRIM(V116))-LEN(SUBSTITUTE(V116,CHAR(44),""))+1,"-"),"") -> 1 | AU116: =IF(B116="X",IF(AN116="","Afectat sau NU?",IF(AN116="DA",IF(((AI116+AJ116)-(AE116+AF116))*24<-720,"Neinformat",((AI116+AJ116)-(AE116+AF116))*24),"Nu a fost afectat producator/consumator")),"") -> 0.2000000001 | AV116: =IF(B116="X",IF(AN116="DA",IF(AU116<6,LEN(TRIM(U116))-LEN(SUBSTITUTE(U116,CHAR(44),""))+1,0),"-"),"") -> 1 | AW116: =IF(B116="X",IF(AN116="DA",LEN(TRIM(U116))-LEN(SUBSTITUTE(U116,CHAR(44),""))+1,"-"),"") -> 1 | AX116: =IF(B116="X",IF(AN116="","Afectat sau NU?",IF(AN116="DA",((AG116+AH116)-(AE116+AF116))*24,"Nu a fost afectat producator/consumator")),"") -> 32.01666667 | AY116: =IF(B116="X",IF(AN116="DA",IF(AX116>24,IF(BA116="NU",0,LEN(TRIM(V116))-LEN(SUBSTITUTE(V116,CHAR(44),""))+1),0),"-"),"") -> 1 | AZ116: =IF(B116="X",IF(AN116="DA",IF(AX116>24,LEN(TRIM(V116))-LEN(SUBSTITUTE(V116,CHAR(44),""))+1,0),"-"),"") -> 1 | BA116: DA | BG116: =IF(C116="X",IF(AN116="DA",IF(AND(BF116>=5,AK116<>""),LEN(TRIM(V116))-LEN(SUBSTITUTE(V116,CHAR(44),""))+1,0),"-"),"") ->  | BH116: =IF(C116="X",IF(AN116="DA",LEN(TRIM(V116))-LEN(SUBSTITUTE(V116,CHAR(44),""))+1,"-"),"") ->  | BJ116: =IF(C116="X",IF(AN116="DA",IF(AND(BI116>=5,AI116<>""),LEN(TRIM(U116))-LEN(SUBSTITUTE(U116,CHAR(44),""))+1,0),"-"),"") ->  | BK116: =IF(C116="X",IF(AN116="DA",LEN(TRIM(U116))-LEN(SUBSTITUTE(U116,CHAR(44),""))+1,"-"),"") ->  | BL116: =IF(C116="X",IF(AN116="","Afectat sau NU?",IF(AN116="DA",((AG116+AH116)-(Z116+AA116))*24,"Nu a fost afectat producator/consumator")),"") ->  | BM116: =IF(C116="X",IF(AN116<>"DA","-",IF(AND(AN116="DA",BL116<=0),LEN(TRIM(V116))-LEN(SUBSTITUTE(V116,CHAR(44),""))+1+LEN(TRIM(U116))-LEN(SUBSTITUTE(U116,CHAR(44),""))+1,0)),"") ->  | BN116: =IF(C116="X",IF(AN116="DA",LEN(TRIM(V116))-LEN(SUBSTITUTE(V116,CHAR(44),""))+1+LEN(TRIM(U116))-LEN(SUBSTITUTE(U116,CHAR(44),""))+1,"-"),"") -> 
A117: 98 | B117: x | C117: - | D117: Deviere conducte DN500 Secuieni - Roman și DN50 racord SRM Motel Trifești | E117: 124242 | F117: Secuieni | G117: Neamț | H117: 640502.03 | I117: 596894.63 | J117: 640502.03 | K117: 596894.63 | L117: - | M117: - | N117: SM0481D0 | O117: Secuieni NT | P117: - | Q117: - | R117: - | S117: - | T117: SM-SD001 | U117: Nova Power, Premier Energy Furnizare, Engie, E.on Energie, PPC Energie, PPC Energie Muntenia, Premier Energy Trading, Local Gaz, Mihoc Oil, Met România, Premier Energy, Petrom, Romgaz | V117: Mihoc Oil | W117: - | X117: 2024-10-15 | Y117: 08:00:00 | Z117: 2024-10-16 | AA117: 18:00:00 | AB117: Bacău | AC117: Efectuată | AE117: 2024-10-15 | AF117: 08:00:00 | AG117: 2024-10-16 | AH117: 14:00:00 | AI117: 2024-10-15 | AJ117: 08:06:00 | AK117: 2024-10-15 | AL117: 08:00:00 | AM117: 84942/10.10.2024 | AN117: DA | AR117: =IF(B117="X",IF(AN117="","Afectat sau NU?",IF(AN117="DA",IF(((AK117+AL117)-(AE117+AF117))*24<-720,"Neinformat",((AK117+AL117)-(AE117+AF117))*24),"Nu a fost afectat producator/consumator")),"") -> 0 | AS117: =IF(B117="X",IF(AN117="DA",IF(AR117<6,LEN(TRIM(V117))-LEN(SUBSTITUTE(V117,CHAR(44),""))+1,0),"-"),"") -> 1 | AT117: =IF(B117="X",IF(AN117="DA",LEN(TRIM(V117))-LEN(SUBSTITUTE(V117,CHAR(44),""))+1,"-"),"") -> 1 | AU117: =IF(B117="X",IF(AN117="","Afectat sau NU?",IF(AN117="DA",IF(((AI117+AJ117)-(AE117+AF117))*24<-720,"Neinformat",((AI117+AJ117)-(AE117+AF117))*24),"Nu a fost afectat producator/consumator")),"") -> 0.09999999998 | AV117: =IF(B117="X",IF(AN117="DA",IF(AU117<6,LEN(TRIM(U117))-LEN(SUBSTITUTE(U117,CHAR(44),""))+1,0),"-"),"") -> 13 | AW117: =IF(B117="X",IF(AN117="DA",LEN(TRIM(U117))-LEN(SUBSTITUTE(U117,CHAR(44),""))+1,"-"),"") -> 13 | AX117: =IF(B117="X",IF(AN117="","Afectat sau NU?",IF(AN117="DA",((AG117+AH117)-(AE117+AF117))*24,"Nu a fost afectat producator/consumator")),"") -> 30 | AY117: =IF(B117="X",IF(AN117="DA",IF(AX117>24,IF(BA117="NU",0,LEN(TRIM(V117))-LEN(SUBSTITUTE(V117,CHAR(44),""))+1),0),"-"),"") -> 1 | AZ117: =IF(B117="X",IF(AN117="DA",IF(AX117>24,LEN(TRIM(V117))-LEN(SUBSTITUTE(V117,CHAR(44),""))+1,0),"-"),"") -> 1 | BA117: DA | BG117: =IF(C117="X",IF(AN117="DA",IF(AND(BF117>=5,AK117<>""),LEN(TRIM(V117))-LEN(SUBSTITUTE(V117,CHAR(44),""))+1,0),"-"),"") ->  | BH117: =IF(C117="X",IF(AN117="DA",LEN(TRIM(V117))-LEN(SUBSTITUTE(V117,CHAR(44),""))+1,"-"),"") ->  | BJ117: =IF(C117="X",IF(AN117="DA",IF(AND(BI117>=5,AI117<>""),LEN(TRIM(U117))-LEN(SUBSTITUTE(U117,CHAR(44),""))+1,0),"-"),"") ->  | BK117: =IF(C117="X",IF(AN117="DA",LEN(TRIM(U117))-LEN(SUBSTITUTE(U117,CHAR(44),""))+1,"-"),"") ->  | BL117: =IF(C117="X",IF(AN117="","Afectat sau NU?",IF(AN117="DA",((AG117+AH117)-(Z117+AA117))*24,"Nu a fost afectat producator/consumator")),"") ->  | BM117: =IF(C117="X",IF(AN117<>"DA","-",IF(AND(AN117="DA",BL117<=0),LEN(TRIM(V117))-LEN(SUBSTITUTE(V117,CHAR(44),""))+1+LEN(TRIM(U117))-LEN(SUBSTITUTE(U117,CHAR(44),""))+1,0)),"") ->  | BN117: =IF(C117="X",IF(AN117="DA",LEN(TRIM(V117))-LEN(SUBSTITUTE(V117,CHAR(44),""))+1+LEN(TRIM(U117))-LEN(SUBSTITUTE(U117,CHAR(44),""))+1,"-"),"") -> 
A118: 99 | B118: x | C118: - | D118: Deviere conductă DN300 Sibiu - Cisnădie, zona traversării pârâului Argintului | E118: 143566 | F118: Șelimbăr | G118: Sibiu | H118: 437767.99 | I118: 473110.8 | J118: 437767.99 | K118: 473110.8 | L118: - | M118: - | N118: SM0762D0 | O118: SC Transilvania Automobile Șelimbăr | P118: - | Q118: - | R118: - | S118: - | T118: SM-CF001 | U118: E.on Energie | V118: Transilvania Automobile | W118: - | X118: 2024-10-15 | Y118: 08:00:00 | Z118: 2024-10-15 | AA118: 18:00:00 | AB118: Mediaș | AC118: Efectuată | AE118: 2024-10-15 | AF118: 08:00:00 | AG118: 2024-10-15 | AH118: 18:00:00 | AI118: 2024-10-15 | AJ118: 08:20:00 | AK118: 2024-10-15 | AL118: 08:06:00 | AM118: 4544/11.10.2024 | AN118: DA | AR118: 0.09999999998 | AS118: 1 | AT118: 1 | AU118: 0.3333333332 | AV118: 1 | AW118: 1 | AX118: 10 | AY118: 0 | AZ118: 0 | BF118: =IF(C118="X",IF(AN118="","Afectat sau NU?",IF(AN118="DA",IF(AK118="","Neinformat",NETWORKDAYS((AK118+1)+AL118,(AE118-1)+AF118,$BS$2:$BS$18)),"Nu a fost afectat producator/consumator")),"") ->  | BI118: =IF(C118="X",IF(AN118="","Afectat sau NU?",IF(AN118="DA",IF(AI118="","Neinformat",NETWORKDAYS((AI118+1)+AJ118,(AE118-1)+AF118,$BS$2:$BS$18)),"Nu a fost afectat producator/consumator")),"") -> 
A119: 100 | B119: x | C119: - | D119: Deviere conductă DN400 Gura Șuții - București | E119: 68636 | F119: Răcari | G119: Dâmbovița | H119: 557141.14 | I119: 348301.15 | J119: 557141.14 | K119: 348301.15 | L119: - | M119: - | N119: SM0145D0 | O119: Răcari | P119: - | Q119: - | R119: - | S119: - | T119: SM-SD001 | U119: Alpha Metal, Nova Power, Premier Energy Furnizare, Complexul Energetic Oltenia, Crest Energy, Distrigaz Sud Rețele, Distrigaz Vest, Engie, E.on Energie, Electrocentrale București, Electrica Furnizare, Electric Planners, Energy Core, Energy Distribution, PPC Energie, PPC Energie Muntenia, Entrex, Euro Seven, Eye Mall, Premier Energy Trading, Gaz Est, Getica 95, Local Gaz, Met România, Monsson, Termoenergetica București, MVM Future, Next Energy Distribution, Next Energy Partners, Premier Energy, Petrom, Gas Provider, Renovatio, Romgaz, RWE Supply, MDA Energy, Solprim, Sustainable Energy, Termocentrale Constanța, Termo Calor, Tinmar, Transenergo, Termoelectrica Giurgiu, Gaz Vest Trading, Vimetco | V119: Distrigaz Sud Rețele | W119: - | X119: 2024-10-17 | Y119: 08:55:00 | Z119: 2024-10-17 | AA119: 17:00:00 | AB119: București | AC119: Efectuată | AE119: 2024-10-17 | AF119: 08:55:00 | AG119: 2024-10-17 | AH119: 17:48:00 | AI119: 2024-10-17 | AJ119: 09:58:00 | AK119: 2024-10-17 | AL119: 09:48:00 | AM119: 85818/14.10.2024 | AN119: DA | AR119: 0.8833333332 | AS119: 1 | AT119: 1 | AU119: 1.05 | AV119: 45 | AW119: 45 | AX119: 8.883333333 | AY119: 0 | AZ119: 0
A120: 101 | B120: x | C120: - | D120: Deviere conductă DN400 Gura Șuții - București | E120: 105543 | F120: Tărtășești | G120: Dâmbovița | H120: 564728.35 | I120: 341817.45 | J120: 564728.35 | K120: 341817.45 | L120: - | M120: - | N120: SM0112D0 | O120: Tărtășești | P120: - | Q120: - | R120: - | S120: - | T120: SM-SD001 | U120: Nova Power, Premier Energy Furnizare, Distrigaz Vest, Engie, E.on Energie, Electrica Furnizare, Energy Core, Energy Distribution, PPC Energie, PPC Muntenia, Entrex, Euro Seven, Eye Mall, Premier Energy Trading, Gaz Est, Getica 95, Local Gaz, Met România, MVM Future, Next Energy Distribution, Premier Energy, Petrom, Gas Provider, Renovatio, Romgaz, MDA Energy, Solprim, Tinmar, Transenergo, Vimetco | V120: Premier Energy | W120: - | X120: 2024-10-17 | Y120: 08:55:00 | Z120: 2024-10-17 | AA120: 17:00:00 | AB120: București | AC120: Efectuată | AE120: 2024-10-17 | AF120: 08:55:00 | AG120: 2024-10-17 | AH120: 17:52:00 | AI120: 2024-10-17 | AJ120: 10:01:00 | AK120: 2024-10-17 | AL120: 09:52:00 | AM120: 85818/14.10.2024 | AN120: DA | AR120: 0.95 | AS120: 1 | AT120: 1 | AU120: 1.1 | AV120: 30 | AW120: 30 | AX120: 8.95 | AY120: 0 | AZ120: 0
A121: 102 | B121: x | C121: - | D121: Deviere conductă DN400 Gura Șuții - București | E121: 104038 | F121: Săbăreni | G121: Giurgiu | H121: 569107.28 | I121: 334140.35 | J121: 569107.28 | K121: 334140.35 | L121: - | M121: - | N121: SM1086D0 | O121: Joița | P121: - | Q121: - | R121: - | S121: - | T121: SM-SD001 | U121: Nova Power, Premier Energy Furnizare, Engie, E.on Energie, Electrica Furnizare, PPC Energie, PPC Energie Muntenia, Euro Seven, Premier Energy Trading, Premier Energy, Petrom, Renovatio, Solprim | V121: Euro Seven Industry | W121: - | X121: 2024-10-17 | Y121: 08:56:00 | Z121: 2024-10-17 | AA121: 17:00:00 | AB121: București | AC121: Efectuată | AE121: 2024-10-17 | AF121: 08:56:00 | AG121: 2024-10-17 | AH121: 17:53:00 | AI121: 2024-10-17 | AJ121: 10:03:00 | AK121: 2024-10-17 | AL121: 09:55:00 | AM121: 85818/14.10.2024 | AN121: DA | AR121: 0.9833333334 | AS121: 1 | AT121: 1 | AU121: 1.116666667 | AV121: 13 | AW121: 13 | AX121: 8.95 | AY121: 0 | AZ121: 0
A122: 103 | B122: x | C122: - | D122: Deviere conductă DN150 racord SRM Avicola Titu | E122: 67915 | F122: Lungulețu | G122: Dâmbovița | H122: 550803.14 | I122: 347565.54 | J122: 550803.14 | K122: 347565.54 | L122: - | M122: - | N122: SM0099D0 | O122: Lungulețu | P122: - | Q122: - | R122: - | S122: - | T122: SM-SD001 | U122: Alpha Metal, Nova Power, Premier Energy Furnizare, Complexul Energetic Oltenia, Crest Energy, Distrigaz Sud Rețele, Distrigaz Vest, Engie, E.on Energie, Electrocentrale București, Electrica Furnizare, Electric Planners, Energy Core, Energy Distribution, PPC Energie, PPC Energie Muntenia, Entrex, Euro Seven, Eye Mall, Premier Energy Trading, Gaz Est, Getica 95, Local Gaz, Met România, Monsson, Termoenergetica București, MVM Future, Next Energy Distribution, Next Energy Partners, Premier Energy, Petrom, Gas Provider, Renovatio, Romgaz, RWE Supply, MDA Energy, Solprim, Sustainable Energy, Termocentrale Constanța, Termo Calor, Tinmar, Transenergo, Termoelectrica Giurgiu, Gaz Vest Trading, Vimetco | V122: Distrigaz Sud Rețele | W122: - | X122: 2024-10-18 | Y122: 07:30:00 | Z122: 2024-10-18 | AA122: 17:00:00 | AB122: București | AC122: Efectuată | AE122: 2024-10-18 | AF122: 07:30:00 | AG122: 2024-10-18 | AH122: 16:48:00 | AI122: 2024-10-18 | AJ122: 07:46:00 | AK122: 2024-10-18 | AL122: 07:39:00 | AM122: 86228/15.10.2024 | AN122: DA | AR122: 0.15 | AS122: 1 | AT122: 1 | AU122: 0.2666666667 | AV122: 45 | AW122: 45 | AX122: 9.3 | AY122: 0 | AZ122: 0
A123: 104 | B123: x | C123: - | D123: Deviere conductă DN150 racord SRM Avicola Titu | E123: 66090 | F123: Potlogi | G123: Dâmbovița | H123: 548362.74 | I123: 345755.78 | J123: 548362.74 | K123: 345755.78 | L123: - | M123: - | N123: SM0146D0 | O123: Titu | P123: - | Q123: - | R123: - | S123: - | T123: SM-SD001 | U123: Alpha Metal, Nova Power, Premier Energy Furnizare, Complexul Energetic Oltenia, Crest Energy, Distrigaz Sud Rețele, Distrigaz Vest, Engie, E.on Energie, Electrocentrale București, Electrica Furnizare, Electric Planners, Energy Core, Energy Distribution, PPC Energie, PPC Energie Muntenia, Entrex, Euro Seven, Eye Mall, Premier Energy Trading, Gaz Est, Getica 95, Local Gaz, Met România, Monsson, Termoenergetica București, MVM Future, Next Energy Distribution, Next Energy Partners, Premier Energy, Petrom, Gas Provider, Renovatio, Romgaz, RWE Supply, MDA Energy, Solprim, Sustainable Energy, Termocentrale Constanța, Termo Calor, Tinmar, Transenergo, Termoelectrica Giurgiu, Gaz Vest Trading, Vimetco | V123: Distrigaz Sud Rețele | W123: - | X123: 2024-10-18 | Y123: 07:31:00 | Z123: 2024-10-18 | AA123: 17:00:00 | AB123: București | AC123: Efectuată | AE123: 2024-10-18 | AF123: 07:31:00 | AG123: 2024-10-18 | AH123: 16:48:00 | AI123: 2024-10-18 | AJ123: 07:46:00 | AK123: 2024-10-18 | AL123: 07:39:00 | AM123: 86228/15.10.2024 | AN123: DA | AR123: 0.1333333332 | AS123: 1 | AT123: 1 | AU123: 0.2499999999 | AV123: 45 | AW123: 45 | AX123: 9.283333333 | AY123: 0 | AZ123: 0
A124: 105 | B124: x | C124: - | D124: Întrerupere accidentală în SRM Păntăsești - Scandic Distillerie | E124: 29305 | F124: Păntășești | G124: Bihor | H124: 301089.51 | I124: 570097.11 | J124: 301089.51 | K124: 570097.11 | L124: - | M124: - | N124: SM1182D0 | O124: Păntășești-Scandic Distillerie | P124: - | Q124: - | R124: - | S124: - | T124: SM-SD001 | U124: Nova Power, Premier Energy Furnizare, Distrigaz Vest, Engie, E.on Energie, Electrica Furnizare, Energy Core, Energy Distribution, PPC Energie, PPC Muntenia, Entrex, Euro Seven, Eye Mall, Premier Energy Trading, Gaz Est, Getica 95, Local Gaz, Met România, MVM Future, Next Energy Distribution, Premier Energy, Petrom, Gas Provider, Renovatio, Romgaz, MDA Energy, Solprim, Tinmar, Transenergo, Vimetco | V124: Premier Energy | W124: - | X124: 2024-10-21 | Y124: 10:57:00 | Z124: 2024-10-21 | AA124: 18:00:00 | AB124: Arad | AC124: Efectuată | AE124: 2024-10-21 | AF124: 10:57:00 | AG124: 2024-10-21 | AH124: 12:36:00 | AI124: 2024-10-21 | AJ124: 11:43:00 | AK124: 2024-10-21 | AL124: 11:37:00 | AM124: - | AN124: DA | AR124: 0.6666666666 | AS124: 1 | AT124: 1 | AU124: 0.7666666665 | AV124: 30 | AW124: 30 | AX124: 1.65 | AY124: 0 | AZ124: 0
A125: 106 | B125: x | C125: - | D125: Întrerupere accidentală în SRM Piatra Neamț III | E125: 120735 | F125: Piatra Neamț | G125: Neamț | H125: 606028.79 | I125: 601634.85 | J125: 606028.79 | K125: 601634.85 | L125: - | M125: - | N125: SM1137D0 | O125: Piatra Neamț III | P125: - | Q125: - | R125: - | S125: - | T125: SM-SD001 | U125: Nova Power, Premier Energy Furnizare, Colterm, CPL Concordia, Delgaz, Design Proiect, Distrigaz Vest, Engie, E.on Energie, Electrica Furnizare, Electric Planners, Energy Core, Energy Distribution, PPC Energie, PPC Energie Muntenia, Entrex, Eye Mall, Premier Energy Trading, Gaz Est, Gazmir, Getica 95, Local Gaz, Mihoc Oil, Met România, MVM Future, Next Energy Distribution, Premier Energy, Petrom, Prisma Serv, Gas Provider, Renovatio, Romgaz, RWE Supply, MDA Energy, Solprim, Tinmar, Transenergo, Gaz Vest Trading | V125: Delgaz Grid | W125: - | X125: 2024-10-23 | Y125: 06:06:00 | Z125: 2024-10-23 | AA125: 07:15:00 | AB125: Bacău | AC125: Efectuată | AE125: 2024-10-23 | AF125: 06:06:00 | AG125: 2024-10-23 | AH125: 07:10:00 | AI125: 2024-10-23 | AJ125: 08:35:00 | AK125: 2024-10-23 | AL125: 08:01:00 | AM125: - | AN125: DA | AR125: =IF(B125="X",IF(AN125="","Afectat sau NU?",IF(AN125="DA",IF(((AK125+AL125)-(AE125+AF125))*24<-720,"Neinformat",((AK125+AL125)-(AE125+AF125))*24),"Nu a fost afectat producator/consumator")),"") -> 1.916666667 | AS125: =IF(B125="X",IF(AN125="DA",IF(AR125<6,LEN(TRIM(V125))-LEN(SUBSTITUTE(V125,CHAR(44),""))+1,0),"-"),"") -> 1 | AT125: =IF(B125="X",IF(AN125="DA",LEN(TRIM(V125))-LEN(SUBSTITUTE(V125,CHAR(44),""))+1,"-"),"") -> 1 | AU125: =IF(B125="X",IF(AN125="","Afectat sau NU?",IF(AN125="DA",IF(((AI125+AJ125)-(AE125+AF125))*24<-720,"Neinformat",((AI125+AJ125)-(AE125+AF125))*24),"Nu a fost afectat producator/consumator")),"") -> 2.483333333 | AV125: =IF(B125="X",IF(AN125="DA",IF(AU125<6,LEN(TRIM(U125))-LEN(SUBSTITUTE(U125,CHAR(44),""))+1,0),"-"),"") -> 38 | AW125: =IF(B125="X",IF(AN125="DA",LEN(TRIM(U125))-LEN(SUBSTITUTE(U125,CHAR(44),""))+1,"-"),"") -> 38 | AX125: =IF(B125="X",IF(AN125="","Afectat sau NU?",IF(AN125="DA",((AG125+AH125)-(AE125+AF125))*24,"Nu a fost afectat producator/consumator")),"") -> 1.066666667 | AY125: =IF(B125="X",IF(AN125="DA",IF(AX125>24,IF(BA125="NU",0,LEN(TRIM(V125))-LEN(SUBSTITUTE(V125,CHAR(44),""))+1),0),"-"),"") -> 0 | AZ125: =IF(B125="X",IF(AN125="DA",IF(AX125>24,LEN(TRIM(V125))-LEN(SUBSTITUTE(V125,CHAR(44),""))+1,0),"-"),"") -> 0 | BF125: =IF(C125="X",IF(AN125="","Afectat sau NU?",IF(AN125="DA",IF(AK125="","Neinformat",NETWORKDAYS((AK125+1)+AL125,(AE125-1)+AF125,$BS$2:$BS$18)),"Nu a fost afectat producator/consumator")),"") ->  | BG125: =IF(C125="X",IF(AN125="DA",IF(AND(BF125>=5,AK125<>""),LEN(TRIM(V125))-LEN(SUBSTITUTE(V125,CHAR(44),""))+1,0),"-"),"") ->  | BH125: =IF(C125="X",IF(AN125="DA",LEN(TRIM(V125))-LEN(SUBSTITUTE(V125,CHAR(44),""))+1,"-"),"") ->  | BI125: =IF(C125="X",IF(AN125="","Afectat sau NU?",IF(AN125="DA",IF(AI125="","Neinformat",NETWORKDAYS((AI125+1)+AJ125,(AE125-1)+AF125,$BS$2:$BS$18)),"Nu a fost afectat producator/consumator")),"") ->  | BJ125: =IF(C125="X",IF(AN125="DA",IF(AND(BI125>=5,AI125<>""),LEN(TRIM(U125))-LEN(SUBSTITUTE(U125,CHAR(44),""))+1,0),"-"),"") ->  | BK125: =IF(C125="X",IF(AN125="DA",LEN(TRIM(U125))-LEN(SUBSTITUTE(U125,CHAR(44),""))+1,"-"),"") ->  | BL125: =IF(C125="X",IF(AN125="","Afectat sau NU?",IF(AN125="DA",((AG125+AH125)-(Z125+AA125))*24,"Nu a fost afectat producator/consumator")),"") ->  | BM125: =IF(C125="X",IF(AN125<>"DA","-",IF(AND(AN125="DA",BL125<=0),LEN(TRIM(V125))-LEN(SUBSTITUTE(V125,CHAR(44),""))+1+LEN(TRIM(U125))-LEN(SUBSTITUTE(U125,CHAR(44),""))+1,0)),"") ->  | BN125: =IF(C125="X",IF(AN125="DA",LEN(TRIM(V125))-LEN(SUBSTITUTE(V125,CHAR(44),""))+1+LEN(TRIM(U125))-LEN(SUBSTITUTE(U125,CHAR(44),""))+1,"-"),"") -> 
A126: 107 | B126: x | C126: - | D126: Lucrări de mentenanță în SRM Bircii | E126: 128383 | F126: Potcoava | G126: Olt | H126: 469086.76 | I126: 333852.36 | J126: 469086.76 | K126: 333852.36 | L126: - | M126: - | N126: SM0242D0 | O126: Potcoava | P126: - | Q126: - | R126: - | S126: - | T126: SM-SD001 | U126: Alpha Metal, Nova Power, Premier Energy Furnizare, Complexul Energetic Oltenia, Crest Energy, Distrigaz Sud Rețele, Distrigaz Vest, Engie, E.on Energie, Electrocentrale București, Electrica Furnizare, Electric Planners, Energy Core, Energy Distribution, PPC Energie, PPC Energie Muntenia, Entrex, Euro Seven, Eye Mall, Premier Energy Trading, Gaz Est, Getica 95, Local Gaz, Met România, Monsson, Termoenergetica București, MVM Future, Next Energy Distribution, Next Energy Partners, Premier Energy, Petrom, Gas Provider, Renovatio, Romgaz, RWE Supply, MDA Energy, Solprim, Sustainable Energy, Termocentrale Constanța, Termo Calor, Tinmar, Transenergo, Termoelectrica Giurgiu, Gaz Vest Trading, Vimetco | V126: Distrigaz Sud Rețele | W126: - | X126: 2024-10-24 | Y126: 09:10:00 | Z126: 2024-10-24 | AA126: 13:30:00 | AB126: Craiova | AC126: Efectuată | AE126: 2024-10-24 | AF126: 09:10:00 | AG126: 2024-10-24 | AH126: 13:30:00 | AI126: 2024-10-24 | AJ126: 09:24:00 | AK126: 2024-10-24 | AL126: 09:16:00 | AM126: 87973/21.10.2024 | AN126: DA | AR126: 0.09999999998 | AS126: 1 | AT126: 1 | AU126: 0.2333333334 | AV126: 45 | AW126: 45 | AX126: 4.333333333 | AY126: 0 | AZ126: 0
A127: 108 | B127: x | C127: - | D127: Lucrări de mentenanță în SRM Bârsești | E127: 77830 | F127: Bârsești | G127: Gorj | H127: 360834.59 | I127: 395978.73 | J127: 360834.59 | K127: 395978.73 | L127: - | M127: - | N127: SM0191D1 | O127: SC Romcim SA PL Târgu Jiu | P127: - | Q127: - | R127: - | S127: - | T127: SM-CF001 | U127: Petrom | V127: Romcim SA | W127: - | X127: 2024-10-30 | Y127: 10:00:00 | Z127: 2024-10-30 | AA127: 14:00:00 | AB127: Craiova | AC127: Efectuată | AE127: 2024-10-30 | AF127: 10:00:00 | AG127: 2024-10-30 | AH127: 13:34:00 | AI127: 2024-10-30 | AJ127: 10:16:00 | AK127: 2024-10-30 | AL127: 10:10:00 | AM127: 90381/29.10.2024 | AN127: DA | AR127: =IF(B127="X",IF(AN127="","Afectat sau NU?",IF(AN127="DA",IF(((AK127+AL127)-(AE127+AF127))*24<-720,"Neinformat",((AK127+AL127)-(AE127+AF127))*24),"Nu a fost afectat producator/consumator")),"") -> 0.1666666667 | AS127: =IF(B127="X",IF(AN127="DA",IF(AR127<6,LEN(TRIM(V127))-LEN(SUBSTITUTE(V127,CHAR(44),""))+1,0),"-"),"") -> 1 | AT127: =IF(B127="X",IF(AN127="DA",LEN(TRIM(V127))-LEN(SUBSTITUTE(V127,CHAR(44),""))+1,"-"),"") -> 1 | AU127: =IF(B127="X",IF(AN127="","Afectat sau NU?",IF(AN127="DA",IF(((AI127+AJ127)-(AE127+AF127))*24<-720,"Neinformat",((AI127+AJ127)-(AE127+AF127))*24),"Nu a fost afectat producator/consumator")),"") -> 0.2666666667 | AV127: =IF(B127="X",IF(AN127="DA",IF(AU127<6,LEN(TRIM(U127))-LEN(SUBSTITUTE(U127,CHAR(44),""))+1,0),"-"),"") -> 1 | AW127: =IF(B127="X",IF(AN127="DA",LEN(TRIM(U127))-LEN(SUBSTITUTE(U127,CHAR(44),""))+1,"-"),"") -> 1 | AX127: =IF(B127="X",IF(AN127="","Afectat sau NU?",IF(AN127="DA",((AG127+AH127)-(AE127+AF127))*24,"Nu a fost afectat producator/consumator")),"") -> 3.566666667 | AY127: =IF(B127="X",IF(AN127="DA",IF(AX127>24,IF(BA127="NU",0,LEN(TRIM(V127))-LEN(SUBSTITUTE(V127,CHAR(44),""))+1),0),"-"),"") -> 0 | AZ127: =IF(B127="X",IF(AN127="DA",IF(AX127>24,LEN(TRIM(V127))-LEN(SUBSTITUTE(V127,CHAR(44),""))+1,0),"-"),"") -> 0 | BF127: =IF(C127="X",IF(AN127="","Afectat sau NU?",IF(AN127="DA",IF(AK127="","Neinformat",NETWORKDAYS((AK127+1)+AL127,(AE127-1)+AF127,$BS$2:$BS$18)),"Nu a fost afectat producator/consumator")),"") ->  | BG127: =IF(C127="X",IF(AN127="DA",IF(AND(BF127>=5,AK127<>""),LEN(TRIM(V127))-LEN(SUBSTITUTE(V127,CHAR(44),""))+1,0),"-"),"") ->  | BH127: =IF(C127="X",IF(AN127="DA",LEN(TRIM(V127))-LEN(SUBSTITUTE(V127,CHAR(44),""))+1,"-"),"") ->  | BI127: =IF(C127="X",IF(AN127="","Afectat sau NU?",IF(AN127="DA",IF(AI127="","Neinformat",NETWORKDAYS((AI127+1)+AJ127,(AE127-1)+AF127,$BS$2:$BS$18)),"Nu a fost afectat producator/consumator")),"") ->  | BJ127: =IF(C127="X",IF(AN127="DA",IF(AND(BI127>=5,AI127<>""),LEN(TRIM(U127))-LEN(SUBSTITUTE(U127,CHAR(44),""))+1,0),"-"),"") ->  | BK127: =IF(C127="X",IF(AN127="DA",LEN(TRIM(U127))-LEN(SUBSTITUTE(U127,CHAR(44),""))+1,"-"),"") ->  | BL127: =IF(C127="X",IF(AN127="","Afectat sau NU?",IF(AN127="DA",((AG127+AH127)-(Z127+AA127))*24,"Nu a fost afectat producator/consumator")),"") ->  | BM127: =IF(C127="X",IF(AN127<>"DA","-",IF(AND(AN127="DA",BL127<=0),LEN(TRIM(V127))-LEN(SUBSTITUTE(V127,CHAR(44),""))+1+LEN(TRIM(U127))-LEN(SUBSTITUTE(U127,CHAR(44),""))+1,0)),"") ->  | BN127: =IF(C127="X",IF(AN127="DA",LEN(TRIM(V127))-LEN(SUBSTITUTE(V127,CHAR(44),""))+1+LEN(TRIM(U127))-LEN(SUBSTITUTE(U127,CHAR(44),""))+1,"-"),"") -> 
A128: 109 | B128: x | C128: - | D128: Înlocuire instalație tehnologică SRM Pașcani II | E128: 95408 | F128: Pașcani | G128: Iași | H128: 631978.04 | I128: 640286.82 | J128: 631978.04 | K128: 640286.82 | L128: - | M128: - | N128: SM0474D0 | O128: Pașcani II | P128: - | Q128: - | R128: - | S128: - | T128: SM-SD001 | U128: Nova Power, Premier Energy Furnizare, Colterm, CPL Concordia, Delgaz, Design Proiect, Distrigaz Vest, Engie, E.on Energie, Electrica Furnizare, Electric Planners, Energy Core, Energy Distribution, PPC Energie, PPC Energie Muntenia, Entrex, Eye Mall, Premier Energy Trading, Gaz Est, Gazmir, Getica 95, Local Gaz, Mihoc Oil, Met România, MVM Future, Next Energy Distribution, Premier Energy, Petrom, Prisma Serv, Gas Provider, Renovatio, Romgaz, RWE Supply, MDA Energy, Solprim, Tinmar, Transenergo, Gaz Vest Trading | V128: Delgaz Grid | W128: - | X128: 2024-10-31 | Y128: 08:48:00 | Z128: 2024-10-31 | AA128: 18:00:00 | AB128: Bacău | AC128: Efectuată | AE128: 2024-10-31 | AF128: 08:48:00 | AG128: 2024-10-31 | AH128: 15:05:00 | AI128: 2024-10-31 | AJ128: 09:16:00 | AK128: 2024-10-31 | AL128: 08:53:00 | AM128: 90315/29.10.2024 | AN128: NU | AR128: =IF(B128="X",IF(AN128="","Afectat sau NU?",IF(AN128="DA",IF(((AK128+AL128)-(AE128+AF128))*24<-720,"Neinformat",((AK128+AL128)-(AE128+AF128))*24),"Nu a fost afectat producator/consumator")),"") -> Nu a fost afectat producator/consumator | AS128: =IF(B128="X",IF(AN128="DA",IF(AR128<6,LEN(TRIM(V128))-LEN(SUBSTITUTE(V128,CHAR(44),""))+1,0),"-"),"") -> - | AT128: =IF(B128="X",IF(AN128="DA",LEN(TRIM(V128))-LEN(SUBSTITUTE(V128,CHAR(44),""))+1,"-"),"") -> - | AU128: =IF(B128="X",IF(AN128="","Afectat sau NU?",IF(AN128="DA",IF(((AI128+AJ128)-(AE128+AF128))*24<-720,"Neinformat",((AI128+AJ128)-(AE128+AF128))*24),"Nu a fost afectat producator/consumator")),"") -> Nu a fost afectat producator/consumator | AV128: =IF(B128="X",IF(AN128="DA",IF(AU128<6,LEN(TRIM(U128))-LEN(SUBSTITUTE(U128,CHAR(44),""))+1,0),"-"),"") -> - | AW128: =IF(B128="X",IF(AN128="DA",LEN(TRIM(U128))-LEN(SUBSTITUTE(U128,CHAR(44),""))+1,"-"),"") -> - | AX128: =IF(B128="X",IF(AN128="","Afectat sau NU?",IF(AN128="DA",((AG128+AH128)-(AE128+AF128))*24,"Nu a fost afectat producator/consumator")),"") -> Nu a fost afectat producator/consumator | AY128: =IF(B128="X",IF(AN128="DA",IF(AX128>24,IF(BA128="NU",0,LEN(TRIM(V128))-LEN(SUBSTITUTE(V128,CHAR(44),""))+1),0),"-"),"") -> - | AZ128: =IF(B128="X",IF(AN128="DA",IF(AX128>24,LEN(TRIM(V128))-LEN(SUBSTITUTE(V128,CHAR(44),""))+1,0),"-"),"") -> - | BF128: =IF(C128="X",IF(AN128="","Afectat sau NU?",IF(AN128="DA",IF(AK128="","Neinformat",NETWORKDAYS((AK128+1)+AL128,(AE128-1)+AF128,$BS$2:$BS$18)),"Nu a fost afectat producator/consumator")),"") ->  | BG128: =IF(C128="X",IF(AN128="DA",IF(AND(BF128>=5,AK128<>""),LEN(TRIM(V128))-LEN(SUBSTITUTE(V128,CHAR(44),""))+1,0),"-"),"") ->  | BH128: =IF(C128="X",IF(AN128="DA",LEN(TRIM(V128))-LEN(SUBSTITUTE(V128,CHAR(44),""))+1,"-"),"") ->  | BI128: =IF(C128="X",IF(AN128="","Afectat sau NU?",IF(AN128="DA",IF(AI128="","Neinformat",NETWORKDAYS((AI128+1)+AJ128,(AE128-1)+AF128,$BS$2:$BS$18)),"Nu a fost afectat producator/consumator")),"") ->  | BJ128: =IF(C128="X",IF(AN128="DA",IF(AND(BI128>=5,AI128<>""),LEN(TRIM(U128))-LEN(SUBSTITUTE(U128,CHAR(44),""))+1,0),"-"),"") ->  | BK128: =IF(C128="X",IF(AN128="DA",LEN(TRIM(U128))-LEN(SUBSTITUTE(U128,CHAR(44),""))+1,"-"),"") ->  | BL128: =IF(C128="X",IF(AN128="","Afectat sau NU?",IF(AN128="DA",((AG128+AH128)-(Z128+AA128))*24,"Nu a fost afectat producator/consumator")),"") ->  | BM128: =IF(C128="X",IF(AN128<>"DA","-",IF(AND(AN128="DA",BL128<=0),LEN(TRIM(V128))-LEN(SUBSTITUTE(V128,CHAR(44),""))+1+LEN(TRIM(U128))-LEN(SUBSTITUTE(U128,CHAR(44),""))+1,0)),"") ->  | BN128: =IF(C128="X",IF(AN128="DA",LEN(TRIM(V128))-LEN(SUBSTITUTE(V128,CHAR(44),""))+1+LEN(TRIM(U128))-LEN(SUBSTITUTE(U128,CHAR(44),""))+1,"-"),"") -> 
A129: 110 | B129: x | C129: - | D129: Deviere conductă DN500 Secuieni - Gherăești, fir I | E129: 120913 | F129: Simionești | G129: Neamț | H129: 642886.71 | I129: 610114.08 | J129: 642886.71 | K129: 610114.08 | L129: - | M129: - | N129: SM1097D0 | O129: Tămășeni | P129: - | Q129: - | R129: - | S129: - | T129: SM-SD001 | U129: Nova Power, Premier Energy Furnizare, Engie, E.on Energie, PPC Energie, PPC Energie Muntenia, Premier Energy Trading, Local Gaz, Mihoc Oil, Met România, Premier Energy, Petrom, Romgaz | V129: Mihoc Oil | W129: - | X129: 2024-10-31 | Y129: 08:00:00 | Z129: 2024-10-31 | AA129: 18:00:00 | AB129: Bacău | AC129: Efectuată | AE129: 2024-10-31 | AF129: 08:00:00 | AG129: 2024-10-31 | AH129: 20:08:00 | AI129: 2024-10-31 | AJ129: 08:26:00 | AK129: 2024-10-31 | AL129: 08:12:00 | AM129: 90776/30.10.2024 | AN129: DA | AR129: 0.2 | AS129: 1 | AT129: 1 | AU129: 0.4333333333 | AV129: 13 | AW129: 13 | AX129: 12.13333333 | AY129: 0 | AZ129: 0
A130: 111 | B130: x | C130: - | D130: Deviere conductă DN500 Secuieni - Gherăești, fir I | E130: 120888 | F130: Cordun | G130: Neamț | H130: 640933.06 | I130: 613500.83 | J130: 640933.06 | K130: 613500.83 | L130: - | M130: - | N130: SM0925D0 | O130: Săbăoani | P130: - | Q130: - | R130: - | S130: - | T130: SM-SD001 | U130: Nova Power, Premier Energy Furnizare, Cordun Gaz, Engie, E.on Energie, Electrica Furnizare, PPC Energie, PPC Energie Muntenia, Premier Energy Trading, Gaz Est, Local Gaz, Premier Energy, Petrom, Romgaz | V130: Cordun Gaz | W130: - | X130: 2024-10-31 | Y130: 08:00:00 | Z130: 2024-10-31 | AA130: 18:00:00 | AB130: Bacău | AC130: Efectuată | AE130: 2024-10-31 | AF130: 08:00:00 | AG130: 2024-10-31 | AH130: 20:45:00 | AI130: 2024-10-31 | AJ130: 08:29:00 | AK130: 2024-10-31 | AL130: 08:13:00 | AM130: 90776/30.10.2024 | AN130: DA | AR130: 0.2166666667 | AS130: 1 | AT130: 1 | AU130: 0.4833333333 | AV130: 14 | AW130: 14 | AX130: 12.75 | AY130: 0 | AZ130: 0
A131: 112 | B131: x | C131: - | D131: Deviere conductă DN500 Secuieni - Gherăești, fir I | E131: 124224 | F131: Traian | G131: Neamt | H131: 645715.12 | I131: 611115.03 | J131: 645715.12 | K131: 611115.03 | L131: - | M131: - | N131: SM0466D0 | O131: SC Suinprod Roman | P131: - | Q131: - | R131: - | S131: - | T131: SM-CF001 | U131: Petrom | V131: Suinprod SA | W131: - | X131: 2024-10-31 | Y131: 08:00:00 | Z131: 2024-10-31 | AA131: 18:00:00 | AB131: Bacău | AC131: Efectuată | AE131: 2024-10-31 | AF131: 08:00:00 | AG131: 2024-10-31 | AH131: 20:47:00 | AI131: 2024-10-31 | AJ131: 08:21:00 | AK131: 2024-10-31 | AL131: 08:12:00 | AM131: 90776/30.10.2024 | AN131: DA | AR131: 0.2 | AS131: 1 | AT131: 1 | AU131: 0.3499999999 | AV131: 1 | AW131: 1 | AX131: 12.78333333 | AY131: 0 | AZ131: 0
A132: 113 | B132: x | C132: - | D132: Înlocuire flanșă electroizolantă cu îmbinare electroizolantă monobloc la SRM Cășeiu | E132: 56675 | F132: Cășeiu | G132: Cluj | H132: 412425.01 | I132: 634002.61 | J132: 412425.01 | K132: 634002.61 | L132: - | M132: - | N132: SM0543D0 | O132: Cășeiu | P132: - | Q132: - | R132: - | S132: - | T132: SM-SD001 | U132: Nova Power, Premier Energy Furnizare, Colterm, CPL Concordia, Delgaz, Design Proiect, Distrigaz Vest, Engie, E.on Energie, Electrica Furnizare, Electric Planners, Energy Core, Energy Distribution, PPC Energie, PPC Energie Muntenia, Entrex, Eye Mall, Premier Energy Trading, Gaz Est, Gazmir, Getica 95, Local Gaz, Mihoc Oil, Met România, MVM Future, Next Energy Distribution, Premier Energy, Petrom, Prisma Serv, Gas Provider, Renovatio, Romgaz, RWE Supply, MDA Energy, Solprim, Termoficare Napoca, Tinmar, Transenergo, Gaz Vest Trading | V132: Delgaz Grid | W132: - | X132: 2024-11-06 | Y132: 09:30:00 | Z132: 2024-11-06 | AA132: 13:30:00 | AB132: Cluj | AC132: Efectuată | AE132: 2024-11-06 | AF132: 09:30:00 | AG132: 2024-11-06 | AH132: 10:30:00 | AI132: 2024-11-06 | AJ132: 09:50:00 | AK132: 2024-11-06 | AL132: 09:31:00 | AM132: 92504/04.11.2024 | AN132: NU | AR132: =IF(B132="X",IF(AN132="","Afectat sau NU?",IF(AN132="DA",IF(((AK132+AL132)-(AE132+AF132))*24<-720,"Neinformat",((AK132+AL132)-(AE132+AF132))*24),"Nu a fost afectat producator/consumator")),"") -> Nu a fost afectat producator/consumator | AS132: =IF(B132="X",IF(AN132="DA",IF(AR132<6,LEN(TRIM(V132))-LEN(SUBSTITUTE(V132,CHAR(44),""))+1,0),"-"),"") -> - | AT132: =IF(B132="X",IF(AN132="DA",LEN(TRIM(V132))-LEN(SUBSTITUTE(V132,CHAR(44),""))+1,"-"),"") -> - | AU132: =IF(B132="X",IF(AN132="","Afectat sau NU?",IF(AN132="DA",IF(((AI132+AJ132)-(AE132+AF132))*24<-720,"Neinformat",((AI132+AJ132)-(AE132+AF132))*24),"Nu a fost afectat producator/consumator")),"") -> Nu a fost afectat producator/consumator | AV132: =IF(B132="X",IF(AN132="DA",IF(AU132<6,LEN(TRIM(U132))-LEN(SUBSTITUTE(U132,CHAR(44),""))+1,0),"-"),"") -> - | AW132: =IF(B132="X",IF(AN132="DA",LEN(TRIM(U132))-LEN(SUBSTITUTE(U132,CHAR(44),""))+1,"-"),"") -> - | AX132: =IF(B132="X",IF(AN132="","Afectat sau NU?",IF(AN132="DA",((AG132+AH132)-(AE132+AF132))*24,"Nu a fost afectat producator/consumator")),"") -> Nu a fost afectat producator/consumator | AY132: =IF(B132="X",IF(AN132="DA",IF(AX132>24,IF(BA132="NU",0,LEN(TRIM(V132))-LEN(SUBSTITUTE(V132,CHAR(44),""))+1),0),"-"),"") -> - | AZ132: =IF(B132="X",IF(AN132="DA",IF(AX132>24,LEN(TRIM(V132))-LEN(SUBSTITUTE(V132,CHAR(44),""))+1,0),"-"),"") -> - | BF132: =IF(C132="X",IF(AN132="","Afectat sau NU?",IF(AN132="DA",IF(AK132="","Neinformat",NETWORKDAYS((AK132+1)+AL132,(AE132-1)+AF132,$BS$2:$BS$18)),"Nu a fost afectat producator/consumator")),"") ->  | BG132: =IF(C132="X",IF(AN132="DA",IF(AND(BF132>=5,AK132<>""),LEN(TRIM(V132))-LEN(SUBSTITUTE(V132,CHAR(44),""))+1,0),"-"),"") ->  | BH132: =IF(C132="X",IF(AN132="DA",LEN(TRIM(V132))-LEN(SUBSTITUTE(V132,CHAR(44),""))+1,"-"),"") ->  | BI132: =IF(C132="X",IF(AN132="","Afectat sau NU?",IF(AN132="DA",IF(AI132="","Neinformat",NETWORKDAYS((AI132+1)+AJ132,(AE132-1)+AF132,$BS$2:$BS$18)),"Nu a fost afectat producator/consumator")),"") ->  | BJ132: =IF(C132="X",IF(AN132="DA",IF(AND(BI132>=5,AI132<>""),LEN(TRIM(U132))-LEN(SUBSTITUTE(U132,CHAR(44),""))+1,0),"-"),"") ->  | BK132: =IF(C132="X",IF(AN132="DA",LEN(TRIM(U132))-LEN(SUBSTITUTE(U132,CHAR(44),""))+1,"-"),"") ->  | BL132: =IF(C132="X",IF(AN132="","Afectat sau NU?",IF(AN132="DA",((AG132+AH132)-(Z132+AA132))*24,"Nu a fost afectat producator/consumator")),"") ->  | BM132: =IF(C132="X",IF(AN132<>"DA","-",IF(AND(AN132="DA",BL132<=0),LEN(TRIM(V132))-LEN(SUBSTITUTE(V132,CHAR(44),""))+1+LEN(TRIM(U132))-LEN(SUBSTITUTE(U132,CHAR(44),""))+1,0)),"") ->  | BN132: =IF(C132="X",IF(AN132="DA",LEN(TRIM(V132))-LEN(SUBSTITUTE(V132,CHAR(44),""))+1+LEN(TRIM(U132))-LEN(SUBSTITUTE(U132,CHAR(44),""))+1,"-"),"") -> 
A133: 114 | B133: x | C133: - | D133: Înlocuire tronsoane pe conducta DN400 Slobozia - Călărași, în zona Radu Negru, etapa II.2 | E133: 94599 | F133: Ștefan Vodă | G133: Călărași | H133: 688361.75 | I133: 318496.47 | J133: 688361.75 | K133: 318496.47 | L133: - | M133: - | N133: SM1179D0 | O133: Ștefan Vodă | P133: - | Q133: - | R133: - | S133: - | T133: SM-SD001 | U133: Nova Power, Premier Energy Furnizare, Engie, E.on Energie, Electrica Furnizare, Energy Distribution, PPC Energie, PPC Energie Muntenia, Premier Energy Trading, Petrom, MDA Energy, Tinmar | V133: Dornacor Invest | W133: - | X133: 2024-11-07 | Y133: 06:32:00 | Z133: 2024-11-07 | AA133: 17:00:00 | AB133: Brăila | AC133: Efectuată | AE133: 2024-11-07 | AF133: 06:32:00 | AG133: 2024-11-07 | AH133: 16:55:00 | AI133: 2024-11-07 | AJ133: 06:44:00 | AK133: 2024-11-07 | AL133: 06:37:00 | AM133: 91727/01.11.2024 | AN133: DA | AR133: =IF(B133="X",IF(AN133="","Afectat sau NU?",IF(AN133="DA",IF(((AK133+AL133)-(AE133+AF133))*24<-720,"Neinformat",((AK133+AL133)-(AE133+AF133))*24),"Nu a fost afectat producator/consumator")),"") -> 0.08333333326 | AS133: =IF(B133="X",IF(AN133="DA",IF(AR133<6,LEN(TRIM(V133))-LEN(SUBSTITUTE(V133,CHAR(44),""))+1,0),"-"),"") -> 1 | AT133: =IF(B133="X",IF(AN133="DA",LEN(TRIM(V133))-LEN(SUBSTITUTE(V133,CHAR(44),""))+1,"-"),"") -> 1 | AU133: =IF(B133="X",IF(AN133="","Afectat sau NU?",IF(AN133="DA",IF(((AI133+AJ133)-(AE133+AF133))*24<-720,"Neinformat",((AI133+AJ133)-(AE133+AF133))*24),"Nu a fost afectat producator/consumator")),"") -> 0.2 | AV133: =IF(B133="X",IF(AN133="DA",IF(AU133<6,LEN(TRIM(U133))-LEN(SUBSTITUTE(U133,CHAR(44),""))+1,0),"-"),"") -> 12 | AW133: =IF(B133="X",IF(AN133="DA",LEN(TRIM(U133))-LEN(SUBSTITUTE(U133,CHAR(44),""))+1,"-"),"") -> 12 | AX133: =IF(B133="X",IF(AN133="","Afectat sau NU?",IF(AN133="DA",((AG133+AH133)-(AE133+AF133))*24,"Nu a fost afectat producator/consumator")),"") -> 10.38333333 | AY133: =IF(B133="X",IF(AN133="DA",IF(AX133>24,IF(BA133="NU",0,LEN(TRIM(V133))-LEN(SUBSTITUTE(V133,CHAR(44),""))+1),0),"-"),"") -> 0 | AZ133: =IF(B133="X",IF(AN133="DA",IF(AX133>24,LEN(TRIM(V133))-LEN(SUBSTITUTE(V133,CHAR(44),""))+1,0),"-"),"") -> 0 | BF133: =IF(C133="X",IF(AN133="","Afectat sau NU?",IF(AN133="DA",IF(AK133="","Neinformat",NETWORKDAYS((AK133+1)+AL133,(AE133-1)+AF133,$BS$2:$BS$18)),"Nu a fost afectat producator/consumator")),"") ->  | BG133: =IF(C133="X",IF(AN133="DA",IF(AND(BF133>=5,AK133<>""),LEN(TRIM(V133))-LEN(SUBSTITUTE(V133,CHAR(44),""))+1,0),"-"),"") ->  | BH133: =IF(C133="X",IF(AN133="DA",LEN(TRIM(V133))-LEN(SUBSTITUTE(V133,CHAR(44),""))+1,"-"),"") ->  | BI133: =IF(C133="X",IF(AN133="","Afectat sau NU?",IF(AN133="DA",IF(AI133="","Neinformat",NETWORKDAYS((AI133+1)+AJ133,(AE133-1)+AF133,$BS$2:$BS$18)),"Nu a fost afectat producator/consumator")),"") ->  | BJ133: =IF(C133="X",IF(AN133="DA",IF(AND(BI133>=5,AI133<>""),LEN(TRIM(U133))-LEN(SUBSTITUTE(U133,CHAR(44),""))+1,0),"-"),"") ->  | BK133: =IF(C133="X",IF(AN133="DA",LEN(TRIM(U133))-LEN(SUBSTITUTE(U133,CHAR(44),""))+1,"-"),"") ->  | BL133: =IF(C133="X",IF(AN133="","Afectat sau NU?",IF(AN133="DA",((AG133+AH133)-(Z133+AA133))*24,"Nu a fost afectat producator/consumator")),"") ->  | BM133: =IF(C133="X",IF(AN133<>"DA","-",IF(AND(AN133="DA",BL133<=0),LEN(TRIM(V133))-LEN(SUBSTITUTE(V133,CHAR(44),""))+1+LEN(TRIM(U133))-LEN(SUBSTITUTE(U133,CHAR(44),""))+1,0)),"") ->  | BN133: =IF(C133="X",IF(AN133="DA",LEN(TRIM(V133))-LEN(SUBSTITUTE(V133,CHAR(44),""))+1+LEN(TRIM(U133))-LEN(SUBSTITUTE(U133,CHAR(44),""))+1,"-"),"") -> 
A134: 115 | B134: x | C134: - | D134: Deviere conductă DN400 Jibou - Gilău | E134: 55482 | F134: Aghireșu | G134: Cluj | H134: 368577.67 | I134: 598853.84 | J134: 368577.67 | K134: 598853.84 | L134: - | M134: - | N134: SM1282D0 | O134: Aghireșu | P134: - | Q134: - | R134: - | S134: - | T134: SM-SD001 | U134: Nova Power, Premier Energy Furnizare, Colterm, CPL Concordia, Delgaz, Design Proiect, Distrigaz Vest, Engie, E.on Energie, Electrica Furnizare, Electric Planners, Energy Core, Energy Distribution, PPC Energie, PPC Energie Muntenia, Entrex, Eye Mall, Premier Energy Trading, Gaz Est, Gazmir, Getica 95, Local Gaz, Mihoc Oil, Met România, MVM Future, Next Energy Distribution, Premier Energy, Petrom, Prisma Serv, Gas Provider, Renovatio, Romgaz, RWE Supply, MDA Energy, Solprim, Termoficare Napoca, Tinmar, Transenergo, Gaz Vest Trading | V134: Delgaz Grid | W134: - | X134: 2024-11-19 | Y134: 07:55:00 | Z134: 2024-11-19 | AA134: 19:00:00 | AB134: Cluj | AC134: Efectuată | AE134: 2024-11-19 | AF134: 07:55:00 | AG134: 2024-11-19 | AH134: 18:50:00 | AI134: 2024-11-19 | AJ134: 08:11:00 | AK134: 2024-11-19 | AL134: 07:56:00 | AM134: 96796/18.11.2024 | AN134: NU | AR134: Nu a fost afectat producator/consumator | AS134: - | AT134: - | AU134: Nu a fost afectat producator/consumator | AV134: - | AW134: - | AX134: Nu a fost afectat producator/consumator | AY134: - | AZ134: -
A135: 116 | B135: x | C135: - | D135: Deviere conductă DN400 Jibou - Gilău | E135: 57911 | F135: Gilău | G135: Cluj | H135: 374985.29 | I135: 586856.97 | J135: 374985.29 | K135: 586856.97 | L135: - | M135: - | N135: SM1170D0 | O135: Gilău | P135: - | Q135: - | R135: - | S135: - | T135: SM-SD001 | U135: Nova Power, Premier Energy Furnizare, Colterm, CPL Concordia, Delgaz, Design Proiect, Distrigaz Vest, Engie, E.on Energie, Electrica Furnizare, Electric Planners, Energy Core, Energy Distribution, PPC Energie, PPC Energie Muntenia, Entrex, Eye Mall, Premier Energy Trading, Gaz Est, Gazmir, Getica 95, Local Gaz, Mihoc Oil, Met România, MVM Future, Next Energy Distribution, Premier Energy, Petrom, Prisma Serv, Gas Provider, Renovatio, Romgaz, RWE Supply, MDA Energy, Solprim, Termoficare Napoca, Tinmar, Transenergo, Gaz Vest Trading | V135: Delgaz Grid | W135: - | X135: 2024-11-19 | Y135: 07:55:00 | Z135: 2024-11-19 | AA135: 19:00:00 | AB135: Cluj | AC135: Efectuată | AE135: 2024-11-19 | AF135: 07:55:00 | AG135: 2024-11-19 | AH135: 18:50:00 | AI135: 2024-11-19 | AJ135: 08:08:00 | AK135: 2024-11-19 | AL135: 07:55:00 | AM135: 96796/18.11.2024 | AN135: NU | AR135: Nu a fost afectat producator/consumator | AS135: - | AT135: - | AU135: Nu a fost afectat producator/consumator | AV135: - | AW135: - | AX135: Nu a fost afectat producator/consumator | AY135: - | AZ135: -
A136: 117 | B136: x | C136: - | D136: Deviere conductă DN400 Jibou - Gilău | E136: 55455 | F136: Huedin | G136: Cluj | H136: 348934.25 | I136: 595825.55 | J136: 348934.25 | K136: 595825.55 | L136: - | M136: - | N136: SM1303D0 | O136: Huedin | P136: - | Q136: - | R136: - | S136: - | T136: SM-SD001 | U136: Nova Power, Premier Energy Furnizare, Engie, E.on Energie, Electrica Furnizare, PPC Energie, PPC Energie Muntenia, Eye Mall, Premier Energy Trading, Gaz Est, Met România, Premier Energy, Petrom, Romgaz,Tinmar | V136: Nova Power | W136: - | X136: 2024-11-19 | Y136: 07:55:00 | Z136: 2024-11-19 | AA136: 19:00:00 | AB136: Cluj | AC136: Efectuată | AE136: 2024-11-19 | AF136: 07:55:00 | AG136: 2024-11-19 | AH136: 18:50:00 | AI136: 2024-11-19 | AJ136: 08:13:00 | AK136: 2024-11-19 | AL136: 07:56:00 | AM136: 96796/18.11.2024 | AN136: NU | AR136: Nu a fost afectat producator/consumator | AS136: - | AT136: - | AU136: Nu a fost afectat producator/consumator | AV136: - | AW136: - | AX136: Nu a fost afectat producator/consumator | AY136: - | AZ136: -
A137: 118 | B137: x | C137: - | D137: Întrerupere accidentală în SRM Bocșa | E137: 50978 | F137: Bocșa | G137: Caraș-Severin | H137: 250520.02 | I137: 437638.02 | J137: 250520.02 | K137: 437638.02 | L137: - | M137: - | N137: SM0320D0 | O137: Bocșa | P137: - | Q137: - | R137: - | S137: - | T137: SM-SD001 | U137: Nova Power, Premier Energy Furnizare, Colterm, CPL Concordia, Delgaz, Design Proiect, Distrigaz Vest, Engie, E.on Energie, Electrica Furnizare, Electric Planners, Energy Core, Energy Distribution, PPC Energie, PPC Energie Muntenia, Entrex, Eye Mall, Premier Energy Trading, Gaz Est, Gazmir, Getica 95, Local Gaz, Mihoc Oil, Met România, MVM Future, Next Energy Distribution, Premier Energy, Petrom, Prisma Serv, Gas Provider, Renovatio, Romgaz, RWE Supply, MDA Energy, Solprim, Termoficare Napoca, Tinmar, Transenergo, Gaz Vest Trading | V137: Delgaz Grid | W137: - | X137: 2024-11-20 | Y137: 03:30:00 | Z137: 2024-11-20 | AA137: 12:00:00 | AB137: Arad | AC137: Efectuată | AE137: 2024-11-20 | AF137: 03:30:00 | AG137: 2024-11-20 | AH137: 06:34:00 | AI137: 2024-11-20 | AJ137: 06:47:00 | AK137: 2024-11-20 | AL137: 06:39:00 | AM137: - | AN137: DA | AR137: =IF(B137="X",IF(AN137="","Afectat sau NU?",IF(AN137="DA",IF(((AK137+AL137)-(AE137+AF137))*24<-720,"Neinformat",((AK137+AL137)-(AE137+AF137))*24),"Nu a fost afectat producator/consumator")),"") -> 3.15 | AS137: =IF(B137="X",IF(AN137="DA",IF(AR137<6,LEN(TRIM(V137))-LEN(SUBSTITUTE(V137,CHAR(44),""))+1,0),"-"),"") -> 1 | AT137: =IF(B137="X",IF(AN137="DA",LEN(TRIM(V137))-LEN(SUBSTITUTE(V137,CHAR(44),""))+1,"-"),"") -> 1 | AU137: =IF(B137="X",IF(AN137="","Afectat sau NU?",IF(AN137="DA",IF(((AI137+AJ137)-(AE137+AF137))*24<-720,"Neinformat",((AI137+AJ137)-(AE137+AF137))*24),"Nu a fost afectat producator/consumator")),"") -> 3.283333333 | AV137: =IF(B137="X",IF(AN137="DA",IF(AU137<6,LEN(TRIM(U137))-LEN(SUBSTITUTE(U137,CHAR(44),""))+1,0),"-"),"") -> 39 | AW137: =IF(B137="X",IF(AN137="DA",LEN(TRIM(U137))-LEN(SUBSTITUTE(U137,CHAR(44),""))+1,"-"),"") -> 39 | AX137: =IF(B137="X",IF(AN137="","Afectat sau NU?",IF(AN137="DA",((AG137+AH137)-(AE137+AF137))*24,"Nu a fost afectat producator/consumator")),"") -> 3.066666667 | AY137: =IF(B137="X",IF(AN137="DA",IF(AX137>24,IF(BA137="NU",0,LEN(TRIM(V137))-LEN(SUBSTITUTE(V137,CHAR(44),""))+1),0),"-"),"") -> 0 | AZ137: =IF(B137="X",IF(AN137="DA",IF(AX137>24,LEN(TRIM(V137))-LEN(SUBSTITUTE(V137,CHAR(44),""))+1,0),"-"),"") -> 0 | BF137: =IF(C137="X",IF(AN137="","Afectat sau NU?",IF(AN137="DA",IF(AK137="","Neinformat",NETWORKDAYS((AK137+1)+AL137,(AE137-1)+AF137,$BS$2:$BS$18)),"Nu a fost afectat producator/consumator")),"") ->  | BG137: =IF(C137="X",IF(AN137="DA",IF(AND(BF137>=5,AK137<>""),LEN(TRIM(V137))-LEN(SUBSTITUTE(V137,CHAR(44),""))+1,0),"-"),"") ->  | BH137: =IF(C137="X",IF(AN137="DA",LEN(TRIM(V137))-LEN(SUBSTITUTE(V137,CHAR(44),""))+1,"-"),"") ->  | BI137: =IF(C137="X",IF(AN137="","Afectat sau NU?",IF(AN137="DA",IF(AI137="","Neinformat",NETWORKDAYS((AI137+1)+AJ137,(AE137-1)+AF137,$BS$2:$BS$18)),"Nu a fost afectat producator/consumator")),"") ->  | BJ137: =IF(C137="X",IF(AN137="DA",IF(AND(BI137>=5,AI137<>""),LEN(TRIM(U137))-LEN(SUBSTITUTE(U137,CHAR(44),""))+1,0),"-"),"") ->  | BK137: =IF(C137="X",IF(AN137="DA",LEN(TRIM(U137))-LEN(SUBSTITUTE(U137,CHAR(44),""))+1,"-"),"") ->  | BL137: =IF(C137="X",IF(AN137="","Afectat sau NU?",IF(AN137="DA",((AG137+AH137)-(Z137+AA137))*24,"Nu a fost afectat producator/consumator")),"") ->  | BM137: =IF(C137="X",IF(AN137<>"DA","-",IF(AND(AN137="DA",BL137<=0),LEN(TRIM(V137))-LEN(SUBSTITUTE(V137,CHAR(44),""))+1+LEN(TRIM(U137))-LEN(SUBSTITUTE(U137,CHAR(44),""))+1,0)),"") ->  | BN137: =IF(C137="X",IF(AN137="DA",LEN(TRIM(V137))-LEN(SUBSTITUTE(V137,CHAR(44),""))+1+LEN(TRIM(U137))-LEN(SUBSTITUTE(U137,CHAR(44),""))+1,"-"),"") -> 
A138: =A137+1 -> 119 | B138: x | C138: - | D138: Întrerupere accidentală în SRM Vatra Dornei | E138: 146753 | F138: Vatra Dornei | G138: Suceava | H138: 527675.3 | I138: 650536.9 | J138: 527675.3 | K138: 650536.9 | L138: - | M138: - | N138: SM1333D0 | O138: Vatra Dornei | P138: - | Q138: - | R138: - | S138: - | T138: SM-SD001 | U138: Nova Power, Premier Energy Furnizare, Engie, E.on Energie, Electrica Furnizare, PPC Energie, PPC Energie Muntenia, Eye Mall, Premier Energy Trading, Gaz Est, Met România, Premier Energy, Petrom, Romgaz,Tinmar | V138: Nova Power | W138: - | X138: 2024-11-25 | Y138: 06:00:00 | Z138: 2024-11-25 | AA138: 18:00:00 | AB138: Bacău | AC138: Efectuată | AE138: 2024-11-25 | AF138: 06:00:00 | AG138: 2024-11-25 | AH138: 08:00:00 | AI138: 2024-11-25 | AJ138: 06:43:00 | AK138: 2024-11-25 | AL138: 06:32:00 | AM138: - | AN138: DA | AR138: =IF(B138="X",IF(AN138="","Afectat sau NU?",IF(AN138="DA",IF(((AK138+AL138)-(AE138+AF138))*24<-720,"Neinformat",((AK138+AL138)-(AE138+AF138))*24),"Nu a fost afectat producator/consumator")),"") -> 0.5333333333 | AS138: =IF(B138="X",IF(AN138="DA",IF(AR138<6,LEN(TRIM(V138))-LEN(SUBSTITUTE(V138,CHAR(44),""))+1,0),"-"),"") -> 1 | AT138: =IF(B138="X",IF(AN138="DA",LEN(TRIM(V138))-LEN(SUBSTITUTE(V138,CHAR(44),""))+1,"-"),"") -> 1 | AU138: =IF(B138="X",IF(AN138="","Afectat sau NU?",IF(AN138="DA",IF(((AI138+AJ138)-(AE138+AF138))*24<-720,"Neinformat",((AI138+AJ138)-(AE138+AF138))*24),"Nu a fost afectat producator/consumator")),"") -> 0.7166666667 | AV138: =IF(B138="X",IF(AN138="DA",IF(AU138<6,LEN(TRIM(U138))-LEN(SUBSTITUTE(U138,CHAR(44),""))+1,0),"-"),"") -> 15 | AW138: =IF(B138="X",IF(AN138="DA",LEN(TRIM(U138))-LEN(SUBSTITUTE(U138,CHAR(44),""))+1,"-"),"") -> 15 | AX138: =IF(B138="X",IF(AN138="","Afectat sau NU?",IF(AN138="DA",((AG138+AH138)-(AE138+AF138))*24,"Nu a fost afectat producator/consumator")),"") -> 2 | AY138: =IF(B138="X",IF(AN138="DA",IF(AX138>24,IF(BA138="NU",0,LEN(TRIM(V138))-LEN(SUBSTITUTE(V138,CHAR(44),""))+1),0),"-"),"") -> 0 | AZ138: =IF(B138="X",IF(AN138="DA",IF(AX138>24,LEN(TRIM(V138))-LEN(SUBSTITUTE(V138,CHAR(44),""))+1,0),"-"),"") -> 0 | BF138: =IF(C138="X",IF(AN138="","Afectat sau NU?",IF(AN138="DA",IF(AK138="","Neinformat",NETWORKDAYS((AK138+1)+AL138,(AE138-1)+AF138,$BS$2:$BS$18)),"Nu a fost afectat producator/consumator")),"") ->  | BG138: =IF(C138="X",IF(AN138="DA",IF(AND(BF138>=5,AK138<>""),LEN(TRIM(V138))-LEN(SUBSTITUTE(V138,CHAR(44),""))+1,0),"-"),"") ->  | BH138: =IF(C138="X",IF(AN138="DA",LEN(TRIM(V138))-LEN(SUBSTITUTE(V138,CHAR(44),""))+1,"-"),"") ->  | BI138: =IF(C138="X",IF(AN138="","Afectat sau NU?",IF(AN138="DA",IF(AI138="","Neinformat",NETWORKDAYS((AI138+1)+AJ138,(AE138-1)+AF138,$BS$2:$BS$18)),"Nu a fost afectat producator/consumator")),"") ->  | BJ138: =IF(C138="X",IF(AN138="DA",IF(AND(BI138>=5,AI138<>""),LEN(TRIM(U138))-LEN(SUBSTITUTE(U138,CHAR(44),""))+1,0),"-"),"") ->  | BK138: =IF(C138="X",IF(AN138="DA",LEN(TRIM(U138))-LEN(SUBSTITUTE(U138,CHAR(44),""))+1,"-"),"") ->  | BL138: =IF(C138="X",IF(AN138="","Afectat sau NU?",IF(AN138="DA",((AG138+AH138)-(Z138+AA138))*24,"Nu a fost afectat producator/consumator")),"") ->  | BM138: =IF(C138="X",IF(AN138<>"DA","-",IF(AND(AN138="DA",BL138<=0),LEN(TRIM(V138))-LEN(SUBSTITUTE(V138,CHAR(44),""))+1+LEN(TRIM(U138))-LEN(SUBSTITUTE(U138,CHAR(44),""))+1,0)),"") ->  | BN138: =IF(C138="X",IF(AN138="DA",LEN(TRIM(V138))-LEN(SUBSTITUTE(V138,CHAR(44),""))+1+LEN(TRIM(U138))-LEN(SUBSTITUTE(U138,CHAR(44),""))+1,"-"),"") -> 
A139: =A138+1 -> 120 | B139: x | C139: - | D139: Deviere conductă DN500 Secuieni - Gherăești, fir II | E139: 122472 | F139: Dulcești | G139: Neamț | H139: 639482.31 | I139: 608448.7 | J139: 639482.31 | K139: 608448.7 | L139: - | M139: - | N139: SM0469D0 | O139: Dulcești | P139: - | Q139: - | R139: - | S139: - | T139: SM-SD001 | U139: Nova Power, Premier Energy Furnizare, Colterm, CPL Concordia, Delgaz, Design Proiect, Distrigaz Vest, Engie, E.on Energie, Electrica Furnizare, Electric Planners, Energy Core, Energy Distribution, PPC Energie, PPC Energie Muntenia, Entrex, Eye Mall, Premier Energy Trading, Gaz Est, Gazmir, Getica 95, Local Gaz, Mihoc Oil, Met România, MVM Future, Next Energy Distribution, Premier Energy, Petrom, Prisma Serv, Gas Provider, Renovatio, Romgaz, RWE Supply, MDA Energy, Solprim, Termoficare Napoca, Tinmar, Transenergo, Gaz Vest Trading | V139: Delgaz Grid | W139: - | X139: 2024-11-26 | Y139: 08:16:00 | Z139: 2024-11-28 | AA139: 17:00:00 | AB139: Bacău | AC139: Efectuată | AE139: 2024-11-26 | AF139: 08:16:00 | AG139: 2024-11-28 | AH139: 17:00:00 | AI139: 2024-11-26 | AJ139: 09:18:00 | AK139: 2024-11-26 | AL139: 08:19:00 | AM139: FM98005/21.11.2024 | AN139: DA | AR139: =IF(B139="X",IF(AN139="","Afectat sau NU?",IF(AN139="DA",IF(((AK139+AL139)-(AE139+AF139))*24<-720,"Neinformat",((AK139+AL139)-(AE139+AF139))*24),"Nu a fost afectat producator/consumator")),"") -> 0.04999999999 | AS139: =IF(B139="X",IF(AN139="DA",IF(AR139<6,LEN(TRIM(V139))-LEN(SUBSTITUTE(V139,CHAR(44),""))+1,0),"-"),"") -> 1 | AT139: =IF(B139="X",IF(AN139="DA",LEN(TRIM(V139))-LEN(SUBSTITUTE(V139,CHAR(44),""))+1,"-"),"") -> 1 | AU139: =IF(B139="X",IF(AN139="","Afectat sau NU?",IF(AN139="DA",IF(((AI139+AJ139)-(AE139+AF139))*24<-720,"Neinformat",((AI139+AJ139)-(AE139+AF139))*24),"Nu a fost afectat producator/consumator")),"") -> 1.033333333 | AV139: =IF(B139="X",IF(AN139="DA",IF(AU139<6,LEN(TRIM(U139))-LEN(SUBSTITUTE(U139,CHAR(44),""))+1,0),"-"),"") -> 39 | AW139: =IF(B139="X",IF(AN139="DA",LEN(TRIM(U139))-LEN(SUBSTITUTE(U139,CHAR(44),""))+1,"-"),"") -> 39 | AX139: =IF(B139="X",IF(AN139="","Afectat sau NU?",IF(AN139="DA",((AG139+AH139)-(AE139+AF139))*24,"Nu a fost afectat producator/consumator")),"") -> 56.73333333 | AY139: =IF(B139="X",IF(AN139="DA",IF(AX139>24,IF(BA139="NU",0,LEN(TRIM(V139))-LEN(SUBSTITUTE(V139,CHAR(44),""))+1),0),"-"),"") -> 1 | AZ139: =IF(B139="X",IF(AN139="DA",IF(AX139>24,LEN(TRIM(V139))-LEN(SUBSTITUTE(V139,CHAR(44),""))+1,0),"-"),"") -> 1 | BA139: DA | BF139: =IF(C139="X",IF(AN139="","Afectat sau NU?",IF(AN139="DA",IF(AK139="","Neinformat",NETWORKDAYS((AK139+1)+AL139,(AE139-1)+AF139,$BS$2:$BS$18)),"Nu a fost afectat producator/consumator")),"") ->  | BG139: =IF(C139="X",IF(AN139="DA",IF(AND(BF139>=5,AK139<>""),LEN(TRIM(V139))-LEN(SUBSTITUTE(V139,CHAR(44),""))+1,0),"-"),"") ->  | BH139: =IF(C139="X",IF(AN139="DA",LEN(TRIM(V139))-LEN(SUBSTITUTE(V139,CHAR(44),""))+1,"-"),"") ->  | BI139: =IF(C139="X",IF(AN139="","Afectat sau NU?",IF(AN139="DA",IF(AI139="","Neinformat",NETWORKDAYS((AI139+1)+AJ139,(AE139-1)+AF139,$BS$2:$BS$18)),"Nu a fost afectat producator/consumator")),"") ->  | BJ139: =IF(C139="X",IF(AN139="DA",IF(AND(BI139>=5,AI139<>""),LEN(TRIM(U139))-LEN(SUBSTITUTE(U139,CHAR(44),""))+1,0),"-"),"") ->  | BK139: =IF(C139="X",IF(AN139="DA",LEN(TRIM(U139))-LEN(SUBSTITUTE(U139,CHAR(44),""))+1,"-"),"") ->  | BL139: =IF(C139="X",IF(AN139="","Afectat sau NU?",IF(AN139="DA",((AG139+AH139)-(Z139+AA139))*24,"Nu a fost afectat producator/consumator")),"") ->  | BM139: =IF(C139="X",IF(AN139<>"DA","-",IF(AND(AN139="DA",BL139<=0),LEN(TRIM(V139))-LEN(SUBSTITUTE(V139,CHAR(44),""))+1+LEN(TRIM(U139))-LEN(SUBSTITUTE(U139,CHAR(44),""))+1,0)),"") ->  | BN139: =IF(C139="X",IF(AN139="DA",LEN(TRIM(V139))-LEN(SUBSTITUTE(V139,CHAR(44),""))+1+LEN(TRIM(U139))-LEN(SUBSTITUTE(U139,CHAR(44),""))+1,"-"),"") -> 
A140: =A139+1 -> 121 | B140: x | C140: - | D140: Lucrări de mentenanță în SRM Snagov | E140: 105179 | F140: Snagov | G140: Ilfov | H140: 589606.49 | I140: 346458.63 | J140: 589606.49 | K140: 346458.63 | L140: - | M140: - | N140: SM0922D0 | O140: Snagov | P140: - | Q140: - | R140: - | S140: - | T140: SM-SD001 | U140: Nova Power, Premier Energy Furnizare, Distrigaz Vest, Engie, E.on Energie, Electrica Furnizare, Energy Core, Energy Distribution, PPC Energie, PPC Muntenia, Entrex, Euro Seven, Eye Mall, Premier Energy Trading, Gaz Est, Getica 95, Local Gaz, Met România, MVM Future, Next Energy Distribution, Premier Energy, Petrom, Gas Provider, Renovatio, Romgaz, MDA Energy, Solprim, Tinmar, Transenergo, Vimetco | V140: Premier Energy | W140: - | X140: 2024-11-26 | Y140: 10:00:00 | Z140: 2024-11-26 | AA140: 14:00:00 | AB140: București | AC140: Efectuată | AE140: 2024-11-26 | AF140: 10:00:00 | AG140: 2024-11-26 | AH140: 10:58:00 | AI140: 2024-11-26 | AJ140: 10:23:00 | AK140: 2024-11-26 | AL140: 10:16:00 | AM140: FM97982/21.11.2024 | AN140: DA | AR140: 0.2666666667 | AS140: 1 | AT140: 1 | AU140: 0.3833333334 | AV140: 30 | AW140: 30 | AX140: 0.9666666667 | AY140: 0 | AZ140: 0
A141: =A140+1 -> 122 | B141: x | C141: - | D141: Cuplare instalație nouă în SRM Sofert Bacău II | E141: 20304 | F141: Bacău | G141: Bacău | H141: 649064.16 | I141: 558509.76 | J141: 649064.16 | K141: 558509.76 | L141: - | M141: - | N141: SM0507D2 | O141: Bacău II | P141: - | Q141: - | R141: - | S141: - | T141: SM-SD001 | U141: Nova Power, Premier Energy Furnizare, Colterm, CPL Concordia, Delgaz, Design Proiect, Distrigaz Vest, Engie, E.on Energie, Electrica Furnizare, Electric Planners, Energy Core, Energy Distribution, PPC Energie, PPC Energie Muntenia, Entrex, Eye Mall, Premier Energy Trading, Gaz Est, Gazmir, Getica 95, Local Gaz, Mihoc Oil, Met România, MVM Future, Next Energy Distribution, Premier Energy, Petrom, Prisma Serv, Gas Provider, Renovatio, Romgaz, RWE Supply, MDA Energy, Solprim, Termoficare Napoca, Tinmar, Transenergo, Gaz Vest Trading | V141: Delgaz Grid | W141: - | X141: 2024-11-26 | Y141: 12:15:00 | Z141: 2024-11-27 | AA141: 18:00:00 | AB141: Bacău | AC141: Efectuată | AE141: 2024-11-26 | AF141: 12:15:00 | AG141: 2024-11-27 | AH141: 16:00:00 | AI141: 2024-11-26 | AJ141: 12:29:00 | AK141: 2024-11-26 | AL141: 12:23:00 | AM141: FM99126/26.11.2024 | AN141: NU | AP141: PMDI 2025-2027 Anexa17_A.26 | AR141: =IF(B141="X",IF(AN141="","Afectat sau NU?",IF(AN141="DA",IF(((AK141+AL141)-(AE141+AF141))*24<-720,"Neinformat",((AK141+AL141)-(AE141+AF141))*24),"Nu a fost afectat producator/consumator")),"") -> Nu a fost afectat producator/consumator | AS141: =IF(B141="X",IF(AN141="DA",IF(AR141<6,LEN(TRIM(V141))-LEN(SUBSTITUTE(V141,CHAR(44),""))+1,0),"-"),"") -> - | AT141: =IF(B141="X",IF(AN141="DA",LEN(TRIM(V141))-LEN(SUBSTITUTE(V141,CHAR(44),""))+1,"-"),"") -> - | AU141: =IF(B141="X",IF(AN141="","Afectat sau NU?",IF(AN141="DA",IF(((AI141+AJ141)-(AE141+AF141))*24<-720,"Neinformat",((AI141+AJ141)-(AE141+AF141))*24),"Nu a fost afectat producator/consumator")),"") -> Nu a fost afectat producator/consumator | AV141: =IF(B141="X",IF(AN141="DA",IF(AU141<6,LEN(TRIM(U141))-LEN(SUBSTITUTE(U141,CHAR(44),""))+1,0),"-"),"") -> - | AW141: =IF(B141="X",IF(AN141="DA",LEN(TRIM(U141))-LEN(SUBSTITUTE(U141,CHAR(44),""))+1,"-"),"") -> - | AX141: =IF(B141="X",IF(AN141="","Afectat sau NU?",IF(AN141="DA",((AG141+AH141)-(AE141+AF141))*24,"Nu a fost afectat producator/consumator")),"") -> Nu a fost afectat producator/consumator | AY141: =IF(B141="X",IF(AN141="DA",IF(AX141>24,IF(BA141="NU",0,LEN(TRIM(V141))-LEN(SUBSTITUTE(V141,CHAR(44),""))+1),0),"-"),"") -> - | AZ141: =IF(B141="X",IF(AN141="DA",IF(AX141>24,LEN(TRIM(V141))-LEN(SUBSTITUTE(V141,CHAR(44),""))+1,0),"-"),"") -> - | BF141: =IF(C141="X",IF(AN141="","Afectat sau NU?",IF(AN141="DA",IF(AK141="","Neinformat",NETWORKDAYS((AK141+1)+AL141,(AE141-1)+AF141,$BS$2:$BS$18)),"Nu a fost afectat producator/consumator")),"") ->  | BG141: =IF(C141="X",IF(AN141="DA",IF(AND(BF141>=5,AK141<>""),LEN(TRIM(V141))-LEN(SUBSTITUTE(V141,CHAR(44),""))+1,0),"-"),"") ->  | BH141: =IF(C141="X",IF(AN141="DA",LEN(TRIM(V141))-LEN(SUBSTITUTE(V141,CHAR(44),""))+1,"-"),"") ->  | BI141: =IF(C141="X",IF(AN141="","Afectat sau NU?",IF(AN141="DA",IF(AI141="","Neinformat",NETWORKDAYS((AI141+1)+AJ141,(AE141-1)+AF141,$BS$2:$BS$18)),"Nu a fost afectat producator/consumator")),"") ->  | BJ141: =IF(C141="X",IF(AN141="DA",IF(AND(BI141>=5,AI141<>""),LEN(TRIM(U141))-LEN(SUBSTITUTE(U141,CHAR(44),""))+1,0),"-"),"") ->  | BK141: =IF(C141="X",IF(AN141="DA",LEN(TRIM(U141))-LEN(SUBSTITUTE(U141,CHAR(44),""))+1,"-"),"") ->  | BL141: =IF(C141="X",IF(AN141="","Afectat sau NU?",IF(AN141="DA",((AG141+AH141)-(Z141+AA141))*24,"Nu a fost afectat producator/consumator")),"") ->  | BM141: =IF(C141="X",IF(AN141<>"DA","-",IF(AND(AN141="DA",BL141<=0),LEN(TRIM(V141))-LEN(SUBSTITUTE(V141,CHAR(44),""))+1+LEN(TRIM(U141))-LEN(SUBSTITUTE(U141,CHAR(44),""))+1,0)),"") ->  | BN141: =IF(C141="X",IF(AN141="DA",LEN(TRIM(V141))-LEN(SUBSTITUTE(V141,CHAR(44),""))+1+LEN(TRIM(U141))-LEN(SUBSTITUTE(U141,CHAR(44),""))+1,"-"),"") -> 
A142: =A141+1 -> 123 | B142: x | C142: - | D142: Punere în siguranță traversare aeriană a pârâului Paloș cu conducta de transport gaze naturale DN300 Beia - Hoghiz, zona SPC Paloș, jud. Brașov | E142: 40786 | F142: Beia | G142: Brașov | H142: 516259.68 | I142: 516736.5 | J142: 516259.68 | K142: 516736.5 | L142: - | M142: - | N142: - | O142: - | P142: - | Q142: - | R142: PM0009 | S142: Beia | T142: PM-PP001 | U142: Romgaz | V142: Romgaz | W142: - | X142: 2025-02-04 | Y142: 07:30:00 | Z142: 2025-02-04 | AA142: 17:00:00 | AB142: Mediaș | AC142: Efectuată | AE142: 2025-02-04 | AF142: 07:30:00 | AG142: 2025-02-04 | AH142: 17:00:00 | AI142: 2025-02-04 | AJ142: 08:35:00 | AK142: 2025-02-04 | AL142: 08:04:00 | AM142: FM508/03.02.2025 | AN142: DA | AP142: PMDI 2025-2027 Anexa3_A.1.19 | AR142: 0.5666666666 | AS142: 1 | AT142: 1 | AU142: 1.083333333 | AV142: 1 | AW142: 1 | AX142: 9.5 | AY142: 0 | AZ142: 0
A143: 124 | B143: x | C143: - | D143: Întrerupere accidentală în SRM Dorobanț | E143: 95765 | F143: Aroneanu | G143: Iași | H143: 695520.63 | I143: 642601.96 | J143: 695520.63 | K143: 642601.96 | L143: - | M143: - | N143: SM1338D0 | O143: Dorobanț | P143: - | Q143: - | R143: - | S143: - | T143: SM-SD001 | U143: Nova Power, Premier Energy Furnizare, Engie, E.on Energie, Electrica Furnizare, PPC Energie, Euro Seven, Eye Mall, Premier Energy Trading, Gaz Est, Gazmir, Met România, Petrom, Premier Energy, Renovatio,Tinmar | V143: Gazmir Iași | W143: - | X143: 2025-02-13 | Y143: 07:00:00 | Z143: 2025-02-13 | AA143: 09:10:00 | AB143: Bacău | AC143: Efectuată | AE143: 2025-02-13 | AF143: 07:00:00 | AG143: 2025-02-13 | AH143: 09:10:00 | AI143: 2025-02-13 | AJ143: 09:15:00 | AK143: 2025-02-13 | AL143: 09:08:00 | AM143: - | AN143: DA | AR143: =IF(B143="X",IF(AN143="","Afectat sau NU?",IF(AN143="DA",IF(((AK143+AL143)-(AE143+AF143))*24<-720,"Neinformat",((AK143+AL143)-(AE143+AF143))*24),"Nu a fost afectat producator/consumator")),"") -> 2.133333333 | AS143: =IF(B143="X",IF(AN143="DA",IF(AR143<6,LEN(TRIM(V143))-LEN(SUBSTITUTE(V143,CHAR(44),""))+1,0),"-"),"") -> 1 | AT143: =IF(B143="X",IF(AN143="DA",LEN(TRIM(V143))-LEN(SUBSTITUTE(V143,CHAR(44),""))+1,"-"),"") -> 1 | AU143: =IF(B143="X",IF(AN143="","Afectat sau NU?",IF(AN143="DA",IF(((AI143+AJ143)-(AE143+AF143))*24<-720,"Neinformat",((AI143+AJ143)-(AE143+AF143))*24),"Nu a fost afectat producator/consumator")),"") -> 2.25 | AV143: =IF(B143="X",IF(AN143="DA",IF(AU143<6,LEN(TRIM(U143))-LEN(SUBSTITUTE(U143,CHAR(44),""))+1,0),"-"),"") -> 16 | AW143: =IF(B143="X",IF(AN143="DA",LEN(TRIM(U143))-LEN(SUBSTITUTE(U143,CHAR(44),""))+1,"-"),"") -> 16 | AX143: =IF(B143="X",IF(AN143="","Afectat sau NU?",IF(AN143="DA",((AG143+AH143)-(AE143+AF143))*24,"Nu a fost afectat producator/consumator")),"") -> 2.166666667 | AY143: =IF(B143="X",IF(AN143="DA",IF(AX143>24,IF(BA143="NU",0,LEN(TRIM(V143))-LEN(SUBSTITUTE(V143,CHAR(44),""))+1),0),"-"),"") -> 0 | AZ143: =IF(B143="X",IF(AN143="DA",IF(AX143>24,LEN(TRIM(V143))-LEN(SUBSTITUTE(V143,CHAR(44),""))+1,0),"-"),"") -> 0 | BF143: =IF(C143="X",IF(AN143="","Afectat sau NU?",IF(AN143="DA",IF(AK143="","Neinformat",NETWORKDAYS((AK143+1)+AL143,(AE143-1)+AF143,$BS$2:$BS$18)),"Nu a fost afectat producator/consumator")),"") ->  | BG143: =IF(C143="X",IF(AN143="DA",IF(AND(BF143>=5,AK143<>""),LEN(TRIM(V143))-LEN(SUBSTITUTE(V143,CHAR(44),""))+1,0),"-"),"") ->  | BH143: =IF(C143="X",IF(AN143="DA",LEN(TRIM(V143))-LEN(SUBSTITUTE(V143,CHAR(44),""))+1,"-"),"") ->  | BI143: =IF(C143="X",IF(AN143="","Afectat sau NU?",IF(AN143="DA",IF(AI143="","Neinformat",NETWORKDAYS((AI143+1)+AJ143,(AE143-1)+AF143,$BS$2:$BS$18)),"Nu a fost afectat producator/consumator")),"") ->  | BJ143: =IF(C143="X",IF(AN143="DA",IF(AND(BI143>=5,AI143<>""),LEN(TRIM(U143))-LEN(SUBSTITUTE(U143,CHAR(44),""))+1,0),"-"),"") ->  | BK143: =IF(C143="X",IF(AN143="DA",LEN(TRIM(U143))-LEN(SUBSTITUTE(U143,CHAR(44),""))+1,"-"),"") ->  | BL143: =IF(C143="X",IF(AN143="","Afectat sau NU?",IF(AN143="DA",((AG143+AH143)-(Z143+AA143))*24,"Nu a fost afectat producator/consumator")),"") ->  | BM143: =IF(C143="X",IF(AN143<>"DA","-",IF(AND(AN143="DA",BL143<=0),LEN(TRIM(V143))-LEN(SUBSTITUTE(V143,CHAR(44),""))+1+LEN(TRIM(U143))-LEN(SUBSTITUTE(U143,CHAR(44),""))+1,0)),"") ->  | BN143: =IF(C143="X",IF(AN143="DA",LEN(TRIM(V143))-LEN(SUBSTITUTE(V143,CHAR(44),""))+1+LEN(TRIM(U143))-LEN(SUBSTITUTE(U143,CHAR(44),""))+1,"-"),"") -> 
A144: 125 | B144: x | C144: - | D144: Lucrări de mentenanță în SRM Sâncrăieni | E144: 85699 | F144: Sâncrăieni | G144: Harghita | H144: 566476.84 | I144: 534834.23 | J144: 566476.84 | K144: 534834.23 | L144: - | M144: - | N144: SM0937D2 | O144: Sâncrăieni | P144: - | Q144: - | R144: - | S144: - | T144: SM-SD001 | U144: Nova Power, Premier Energy Furnizare, Distrigaz Vest, Engie, E.on Energie, Electrica Furnizare, Energy Core, Energy Distribution, PPC Energie, Entrex, Euro Seven, Eye Mall, Premier Energy Trading, Gaz Est, Getica 95, Local Gaz, Met România, MVM Future, Next Energy Distribution, Neogas Grid, Petrom, Premier Energy, Gas Provider, Renovatio, Romgaz, MDA Energy, Solprim, Tinmar, Transenergo, Vimetco | V144: Premier Energy | W144: - | X144: 2025-02-13 | Y144: 11:00:00 | Z144: 2025-02-13 | AA144: 12:00:00 | AB144: Brașov | AC144: Efectuată | AE144: 2025-02-13 | AF144: 11:00:00 | AG144: 2025-02-13 | AH144: 11:10:00 | AI144: 2025-02-13 | AJ144: 11:19:00 | AK144: 2025-02-13 | AL144: 11:06:00 | AM144: FM12137/13.02.2025 | AN144: NU | AR144: =IF(B144="X",IF(AN144="","Afectat sau NU?",IF(AN144="DA",IF(((AK144+AL144)-(AE144+AF144))*24<-720,"Neinformat",((AK144+AL144)-(AE144+AF144))*24),"Nu a fost afectat producator/consumator")),"") -> Nu a fost afectat producator/consumator | AS144: =IF(B144="X",IF(AN144="DA",IF(AR144<6,LEN(TRIM(V144))-LEN(SUBSTITUTE(V144,CHAR(44),""))+1,0),"-"),"") -> - | AT144: =IF(B144="X",IF(AN144="DA",LEN(TRIM(V144))-LEN(SUBSTITUTE(V144,CHAR(44),""))+1,"-"),"") -> - | AU144: =IF(B144="X",IF(AN144="","Afectat sau NU?",IF(AN144="DA",IF(((AI144+AJ144)-(AE144+AF144))*24<-720,"Neinformat",((AI144+AJ144)-(AE144+AF144))*24),"Nu a fost afectat producator/consumator")),"") -> Nu a fost afectat producator/consumator | AV144: =IF(B144="X",IF(AN144="DA",IF(AU144<6,LEN(TRIM(U144))-LEN(SUBSTITUTE(U144,CHAR(44),""))+1,0),"-"),"") -> - | AW144: =IF(B144="X",IF(AN144="DA",LEN(TRIM(U144))-LEN(SUBSTITUTE(U144,CHAR(44),""))+1,"-"),"") -> - | AX144: =IF(B144="X",IF(AN144="","Afectat sau NU?",IF(AN144="DA",((AG144+AH144)-(AE144+AF144))*24,"Nu a fost afectat producator/consumator")),"") -> Nu a fost afectat producator/consumator | AY144: =IF(B144="X",IF(AN144="DA",IF(AX144>24,IF(BA144="NU",0,LEN(TRIM(V144))-LEN(SUBSTITUTE(V144,CHAR(44),""))+1),0),"-"),"") -> - | AZ144: =IF(B144="X",IF(AN144="DA",IF(AX144>24,LEN(TRIM(V144))-LEN(SUBSTITUTE(V144,CHAR(44),""))+1,0),"-"),"") -> - | BF144: =IF(C144="X",IF(AN144="","Afectat sau NU?",IF(AN144="DA",IF(AK144="","Neinformat",NETWORKDAYS((AK144+1)+AL144,(AE144-1)+AF144,$BS$2:$BS$18)),"Nu a fost afectat producator/consumator")),"") ->  | BG144: =IF(C144="X",IF(AN144="DA",IF(AND(BF144>=5,AK144<>""),LEN(TRIM(V144))-LEN(SUBSTITUTE(V144,CHAR(44),""))+1,0),"-"),"") ->  | BH144: =IF(C144="X",IF(AN144="DA",LEN(TRIM(V144))-LEN(SUBSTITUTE(V144,CHAR(44),""))+1,"-"),"") ->  | BI144: =IF(C144="X",IF(AN144="","Afectat sau NU?",IF(AN144="DA",IF(AI144="","Neinformat",NETWORKDAYS((AI144+1)+AJ144,(AE144-1)+AF144,$BS$2:$BS$18)),"Nu a fost afectat producator/consumator")),"") ->  | BJ144: =IF(C144="X",IF(AN144="DA",IF(AND(BI144>=5,AI144<>""),LEN(TRIM(U144))-LEN(SUBSTITUTE(U144,CHAR(44),""))+1,0),"-"),"") ->  | BK144: =IF(C144="X",IF(AN144="DA",LEN(TRIM(U144))-LEN(SUBSTITUTE(U144,CHAR(44),""))+1,"-"),"") ->  | BL144: =IF(C144="X",IF(AN144="","Afectat sau NU?",IF(AN144="DA",((AG144+AH144)-(Z144+AA144))*24,"Nu a fost afectat producator/consumator")),"") ->  | BM144: =IF(C144="X",IF(AN144<>"DA","-",IF(AND(AN144="DA",BL144<=0),LEN(TRIM(V144))-LEN(SUBSTITUTE(V144,CHAR(44),""))+1+LEN(TRIM(U144))-LEN(SUBSTITUTE(U144,CHAR(44),""))+1,0)),"") ->  | BN144: =IF(C144="X",IF(AN144="DA",LEN(TRIM(V144))-LEN(SUBSTITUTE(V144,CHAR(44),""))+1+LEN(TRIM(U144))-LEN(SUBSTITUTE(U144,CHAR(44),""))+1,"-"),"") -> 
A145: =A144+1 -> 126 | B145: - | C145: x | D145: Lucrări de mentenanță în SRM CET Vest București | E145: 403 | F145: București | G145: București | H145: 577613.28 | I145: 325145.01 | J145: 577613.28 | K145: 325145.01 | L145: - | M145: - | N145: SM0151D0 | O145: București Cet Vest | P145: - | Q145: - | R145: - | S145: - | T145: SM-SD001 | U145: Alpha Metal, Nova Power, BTD Construct, Premier Energy Furnizare, Complexul Energetic Oltenia, Crest Energy, Distrigaz Sud Rețele, Distrigaz Vest, Engie, E.on Energie, Electrocentrale București, Electrica Furnizare, Electric Planners, Energy Core, Energy Distribution, PPC Energie, Entrex, Euro Seven, Eye Mall, Premier Energy Trading, Gaz Est, Getica 95, Local Gaz, Met România, Monsson, Termoenergetica București, MVM Future, Next Energy Distribution, Next Energy Partners, Petrom, Premier Energy, Gas Provider, Renovatio, Romgaz, RWE Supply, MDA Energy, Solprim, Stratum Energy, Sustainable Energy, Termocentrale Constanța, Termo Calor, Termo Ploiești, Tinmar, Transenergo, Termoelectrica Giurgiu, Gaz Vest Trading, Vimetco | V145: Distrigaz Sud Rețele | W145: mai - septembrie 2025 28 aprilie - septembrie 2025 | X145: 2025-04-28 | Y145: 10:00:00 | Z145: 2025-05-22 | AA145: 10:00:00 | AB145: București | AC145: Efectuată | AD145: perioadă convenită de comun acord cu partenerul adiacent | AE145: 2025-04-28 | AF145: 10:00:00 | AG145: 2025-05-22 | AH145: 09:48:00 | AI145: 2025-04-16 | AJ145: 10:13:00 | AK145: 2025-04-16 | AL145: 09:46:00 | AM145: 34671/25.04.2025 | AN145: NU | AP145: forțe proprii | BF145: =IF(C145="X",IF(AN145="","Afectat sau NU?",IF(AN145="DA",IF(AK145="","Neinformat",NETWORKDAYS((AK145+1)+AL145,(AE145-1)+AF145,$BS$2:$BS$18)),"Nu a fost afectat producator/consumator")),"") -> Nu a fost afectat producator/consumator | BG145: - | BH145: - | BI145: Nu a fost afectat producator/consumator | BJ145: - | BK145: - | BL145: Nu a fost afectat producator/consumator | BM145: - | BN145: -
A146: =A145+1 -> 127 | B146: - | C146: x | D146: Lucrări de mentenanță în SRM Măgurele București | E146: 179418 | F146: Măgurele | G146: Ilfov | H146: 583333.36 | I146: 319855.82 | J146: 583333.36 | K146: 319855.82 | L146: - | M146: - | N146: SM0252D0 | O146: Măgurele București | P146: - | Q146: - | R146: - | S146: - | T146: SM-SD001 | U146: Alpha Metal, Nova Power, BTD Construct, Complexul Energetic Oltenia, Crest Energy, Distrigaz Sud Rețele, Distrigaz Vest, Engie, E.on Energie, Electrocentrale București, Electrica Furnizare, Electric Planners, Energy Core, Energy Distribution, PPC Energie, Entrex, Euro Seven, Eye Mall, Premier Energy Trading, Gaz Est, Ges Furnizare, Getica 95, Local Gaz, Met România, Monsson, Termoenergetica București, MVM Future, Next Energy Distribution, Petrom, Premier Energy, Gas Provider, Renovatio, Romgaz, RWE Supply, MDA Energy, Solprim, Stratum Energy, Sustainable Energy, Termocentrale Constanța, Termo Calor, Termo Ploiești, Tinmar, Transenergo, Termoelectrica Giurgiu, Gaz Vest Trading, Vimetco | V146: Distrigaz Sud Rețele | W146: mai - septembrie 2025 | X146: 2025-08-27 | Y146: 10:00:00 | Z146: 2025-09-30 | AA146: 10:00:00 | AB146: București | AC146: Efectuată | AE146: 2025-08-27 | AF146: 10:00:00 | AG146: 2025-09-30 | AH146: 09:55:00 | AI146: 2025-08-18 | AJ146: 09:33:00 | AK146: 2025-08-18 | AL146: 09:28:00 | AM146: 71810/25.08.2025 | AN146: NU | AP146: forțe proprii | AR146: =IF(B146="X",IF(AN146="","Afectat sau NU?",IF(AN146="DA",IF(((AK146+AL146)-(AE146+AF146))*24<-720,"Neinformat",((AK146+AL146)-(AE146+AF146))*24),"Nu a fost afectat producator/consumator")),"") ->  | AS146: =IF(B146="X",IF(AN146="DA",IF(AR146<6,LEN(TRIM(V146))-LEN(SUBSTITUTE(V146,CHAR(44),""))+1,0),"-"),"") ->  | AT146: =IF(B146="X",IF(AN146="DA",LEN(TRIM(V146))-LEN(SUBSTITUTE(V146,CHAR(44),""))+1,"-"),"") ->  | AU146: =IF(B146="X",IF(AN146="","Afectat sau NU?",IF(AN146="DA",IF(((AI146+AJ146)-(AE146+AF146))*24<-720,"Neinformat",((AI146+AJ146)-(AE146+AF146))*24),"Nu a fost afectat producator/consumator")),"") ->  | AV146: =IF(B146="X",IF(AN146="DA",IF(AU146<6,LEN(TRIM(U146))-LEN(SUBSTITUTE(U146,CHAR(44),""))+1,0),"-"),"") ->  | AW146: =IF(B146="X",IF(AN146="DA",LEN(TRIM(U146))-LEN(SUBSTITUTE(U146,CHAR(44),""))+1,"-"),"") ->  | AX146: =IF(B146="X",IF(AN146="","Afectat sau NU?",IF(AN146="DA",((AG146+AH146)-(AE146+AF146))*24,"Nu a fost afectat producator/consumator")),"") ->  | AY146: =IF(B146="X",IF(AN146="DA",IF(AX146>24,IF(BA146="NU",0,LEN(TRIM(V146))-LEN(SUBSTITUTE(V146,CHAR(44),""))+1),0),"-"),"") ->  | AZ146: =IF(B146="X",IF(AN146="DA",IF(AX146>24,LEN(TRIM(V146))-LEN(SUBSTITUTE(V146,CHAR(44),""))+1,0),"-"),"") ->  | BF146: =IF(C146="X",IF(AN146="","Afectat sau NU?",IF(AN146="DA",IF(AK146="","Neinformat",NETWORKDAYS((AK146+1)+AL146,(AE146-1)+AF146,$BS$2:$BS$18)),"Nu a fost afectat producator/consumator")),"") -> Nu a fost afectat producator/consumator | BG146: =IF(C146="X",IF(AN146="DA",IF(AND(BF146>=5,AK146<>""),LEN(TRIM(V146))-LEN(SUBSTITUTE(V146,CHAR(44),""))+1,0),"-"),"") -> - | BH146: =IF(C146="X",IF(AN146="DA",LEN(TRIM(V146))-LEN(SUBSTITUTE(V146,CHAR(44),""))+1,"-"),"") -> - | BI146: =IF(C146="X",IF(AN146="","Afectat sau NU?",IF(AN146="DA",IF(AI146="","Neinformat",NETWORKDAYS((AI146+1)+AJ146,(AE146-1)+AF146,$BS$2:$BS$18)),"Nu a fost afectat producator/consumator")),"") -> Nu a fost afectat producator/consumator | BJ146: =IF(C146="X",IF(AN146="DA",IF(AND(BI146>=5,AI146<>""),LEN(TRIM(U146))-LEN(SUBSTITUTE(U146,CHAR(44),""))+1,0),"-"),"") -> - | BK146: =IF(C146="X",IF(AN146="DA",LEN(TRIM(U146))-LEN(SUBSTITUTE(U146,CHAR(44),""))+1,"-"),"") -> - | BL146: =IF(C146="X",IF(AN146="","Afectat sau NU?",IF(AN146="DA",((AG146+AH146)-(Z146+AA146))*24,"Nu a fost afectat producator/consumator")),"") -> Nu a fost afectat producator/consumator | BM146: =IF(C146="X",IF(AN146<>"DA","-",IF(AND(AN146="DA",BL146<=0),LEN(TRIM(V146))-LEN(SUBSTITUTE(V146,CHAR(44),""))+1+LEN(TRIM(U146))-LEN(SUBSTITUTE(U146,CHAR(44),""))+1,0)),"") -> - | BN146: =IF(C146="X",IF(AN146="DA",LEN(TRIM(V146))-LEN(SUBSTITUTE(V146,CHAR(44),""))+1+LEN(TRIM(U146))-LEN(SUBSTITUTE(U146,CHAR(44),""))+1,"-"),"") -> -
A147: =A146+1 -> 128 | B147: - | C147: x | D147: Lucrări de mentenanță în SRM Titan București | E147: 403 | F147: București | G147: București | H147: 594982.35 | I147: 325100.93 | J147: 594982.35 | K147: 325100.93 | L147: - | M147: - | N147: SM0157D0 | O147: București Titan | P147: - | Q147: - | R147: - | S147: - | T147: SM-SD001 | U147: Alpha Metal, Nova Power, BTD Construct, Complexul Energetic Oltenia, Crest Energy, Distrigaz Sud Rețele, Distrigaz Vest, Engie, E.on Energie, Electrocentrale București, Electrica Furnizare, Electric Planners, Energy Core, Energy Distribution, PPC Energie, Entrex, Euro Seven, Eye Mall, Premier Energy Trading, Gaz Est, Ges Furnizare, Getica 95, Local Gaz, Met România, Monsson, Termoenergetica București, MVM Future, Next Energy Distribution, Petrom, Premier Energy, Gas Provider, Renovatio, Romgaz, RWE Supply, MDA Energy, Solprim, Stratum Energy, Sustainable Energy, Termocentrale Constanța, Termo Calor, Termo Ploiești, Tinmar, Transenergo, Termoelectrica Giurgiu, Gaz Vest Trading, Vimetco | V147: Distrigaz Sud Rețele | W147: mai - septembrie 2025 | X147: 2025-07-18 | Y147: 10:00:00 | Z147: 2025-08-26 | AA147: 10:00:00 | AB147: București | AC147: Efectuată | AE147: 2025-07-18 | AF147: 10:25:00 | AG147: 2025-08-26 | AH147: 09:58:00 | AI147: 2025-07-10 | AJ147: 09:26:00 | AK147: 2025-07-10 | AL147: 09:01:00 | AM147: 60933/17.07.2025 | AN147: NU | AP147: forțe proprii | BF147: Nu a fost afectat producator/consumator | BG147: - | BH147: - | BI147: Nu a fost afectat producator/consumator | BJ147: - | BK147: - | BL147: Nu a fost afectat producator/consumator | BM147: - | BN147: -
A148: =A147+1 -> 129 | B148: - | C148: x | D148: Lucrări de mentenanță în SRM 16 Februarie București | E148: 403 | F148: București | G148: București | H148: 580043.32 | I148: 331375.9 | J148: 580043.32 | K148: 331375.9 | L148: - | M148: - | N148: SM0144D0 | O148: București 16 Februarie | P148: - | Q148: - | R148: - | S148: - | T148: SM-SD001 | U148: Alpha Metal, Nova Power, BTD Construct, Complexul Energetic Oltenia, Crest Energy, Distrigaz Sud Rețele, Distrigaz Vest, Engie, E.on Energie, Electrocentrale București, Electrica Furnizare, Electric Planners, Energy Core, Energy Distribution, PPC Energie, Entrex, Euro Seven, Eye Mall, Premier Energy Trading, Gaz Est, Getica 95, Local Gaz, Met România, Monsson, Termoenergetica București, MVM Future, Next Energy Distribution, Next Energy Partners, Petrom, Premier Energy, Gas Provider, Renovatio, Romgaz, RWE Supply, MDA Energy, Solprim, Stratum Energy, Sustainable Energy, Termocentrale Constanța, Termo Calor, Termo Ploiești, Tinmar, Transenergo, Termoelectrica Giurgiu, Gaz Vest Trading, Vimetco | V148: Distrigaz Sud Rețele | W148: mai - septembrie 2025 | X148: 2025-05-23 | Y148: 10:00:00 | Z148: 2025-07-17 | AA148: 10:00:00 | AB148: București | AC148: Efectuată | AE148: 2025-05-23 | AF148: 10:00:00 | AG148: 2025-07-17 | AH148: 09:52:00 | AI148: 2025-05-13 | AJ148: 11:10:00 | AK148: 2025-05-13 | AL148: 11:00:00 | AM148: 42928/21.05.2025 | AN148: NU | AP148: forțe proprii | AR148: =IF(B148="X",IF(AN148="","Afectat sau NU?",IF(AN148="DA",IF(((AK148+AL148)-(AE148+AF148))*24<-720,"Neinformat",((AK148+AL148)-(AE148+AF148))*24),"Nu a fost afectat producator/consumator")),"") ->  | AS148: =IF(B148="X",IF(AN148="DA",IF(AR148<6,LEN(TRIM(V148))-LEN(SUBSTITUTE(V148,CHAR(44),""))+1,0),"-"),"") ->  | AT148: =IF(B148="X",IF(AN148="DA",LEN(TRIM(V148))-LEN(SUBSTITUTE(V148,CHAR(44),""))+1,"-"),"") ->  | AU148: =IF(B148="X",IF(AN148="","Afectat sau NU?",IF(AN148="DA",IF(((AI148+AJ148)-(AE148+AF148))*24<-720,"Neinformat",((AI148+AJ148)-(AE148+AF148))*24),"Nu a fost afectat producator/consumator")),"") ->  | AV148: =IF(B148="X",IF(AN148="DA",IF(AU148<6,LEN(TRIM(U148))-LEN(SUBSTITUTE(U148,CHAR(44),""))+1,0),"-"),"") ->  | AW148: =IF(B148="X",IF(AN148="DA",LEN(TRIM(U148))-LEN(SUBSTITUTE(U148,CHAR(44),""))+1,"-"),"") ->  | AX148: =IF(B148="X",IF(AN148="","Afectat sau NU?",IF(AN148="DA",((AG148+AH148)-(AE148+AF148))*24,"Nu a fost afectat producator/consumator")),"") ->  | AY148: =IF(B148="X",IF(AN148="DA",IF(AX148>24,IF(BA148="NU",0,LEN(TRIM(V148))-LEN(SUBSTITUTE(V148,CHAR(44),""))+1),0),"-"),"") ->  | AZ148: =IF(B148="X",IF(AN148="DA",IF(AX148>24,LEN(TRIM(V148))-LEN(SUBSTITUTE(V148,CHAR(44),""))+1,0),"-"),"") ->  | BF148: =IF(C148="X",IF(AN148="","Afectat sau NU?",IF(AN148="DA",IF(AK148="","Neinformat",NETWORKDAYS((AK148+1)+AL148,(AE148-1)+AF148,$BS$2:$BS$18)),"Nu a fost afectat producator/consumator")),"") -> Nu a fost afectat producator/consumator | BG148: =IF(C148="X",IF(AN148="DA",IF(AND(BF148>=5,AK148<>""),LEN(TRIM(V148))-LEN(SUBSTITUTE(V148,CHAR(44),""))+1,0),"-"),"") -> - | BH148: =IF(C148="X",IF(AN148="DA",LEN(TRIM(V148))-LEN(SUBSTITUTE(V148,CHAR(44),""))+1,"-"),"") -> - | BI148: =IF(C148="X",IF(AN148="","Afectat sau NU?",IF(AN148="DA",IF(AI148="","Neinformat",NETWORKDAYS((AI148+1)+AJ148,(AE148-1)+AF148,$BS$2:$BS$18)),"Nu a fost afectat producator/consumator")),"") -> Nu a fost afectat producator/consumator | BJ148: =IF(C148="X",IF(AN148="DA",IF(AND(BI148>=5,AI148<>""),LEN(TRIM(U148))-LEN(SUBSTITUTE(U148,CHAR(44),""))+1,0),"-"),"") -> - | BK148: =IF(C148="X",IF(AN148="DA",LEN(TRIM(U148))-LEN(SUBSTITUTE(U148,CHAR(44),""))+1,"-"),"") -> - | BL148: =IF(C148="X",IF(AN148="","Afectat sau NU?",IF(AN148="DA",((AG148+AH148)-(Z148+AA148))*24,"Nu a fost afectat producator/consumator")),"") -> Nu a fost afectat producator/consumator | BM148: =IF(C148="X",IF(AN148<>"DA","-",IF(AND(AN148="DA",BL148<=0),LEN(TRIM(V148))-LEN(SUBSTITUTE(V148,CHAR(44),""))+1+LEN(TRIM(U148))-LEN(SUBSTITUTE(U148,CHAR(44),""))+1,0)),"") -> - | BN148: =IF(C148="X",IF(AN148="DA",LEN(TRIM(V148))-LEN(SUBSTITUTE(V148,CHAR(44),""))+1+LEN(TRIM(U148))-LEN(SUBSTITUTE(U148,CHAR(44),""))+1,"-"),"") -> -
A149: =A148+1 -> 130 | B149: x | C149: - | D149: Remediere emanații de gaze naturale pe DN250 racord SRM Buzău | E149: 44827 | F149: Buzău | G149: Buzău | H149: 643078.57 | I149: 405160.02 | J149: 643078.57 | K149: 405160.02 | L149: - | M149: - | N149: SM0179D0 | O149: Buzău | P149: - | Q149: - | R149: - | S149: - | T149: SM-SD001 | U149: Alpha Metal, Nova Power, Bepco, BTD Construct, Premier Energy Furnizare, Complexul Energetic Oltenia, Crest Energy, Distrigaz Sud Rețele, Distrigaz Vest, Engie, E.on Energie, Electrocentrale București, Electrica Furnizare, Electric Planners, Energy Core, Energy Distribution, PPC Energie, Entrex, Euro Seven, Eye Mall, Premier Energy Trading, Gaz Est, Getica 95, Local Gaz, Met România, Monsson, Termoenergetica București, MVM Future, Next Energy Distribution, Next Energy Partners, Petrom, Premier Energy, Gas Provider, Renovatio, Romgaz, RWE Supply, MDA Energy, Solprim, Stratum Energy, Sustainable Energy, Termocentrale Constanța, Termo Calor, Termo Ploiești, Tinmar, Transenergo, Termoelectrica Giurgiu, Vest Energo, Gaz Vest Trading, Vimetco | V149: Distrigaz Sud Rețele | W149: - | X149: 2025-03-06 | Y149: 17:09:00 | Z149: 2025-03-06 | AA149: 19:50:00 | AB149: Brăila | AC149: Efectuată | AE149: 2025-03-06 | AF149: 17:09:00 | AG149: 2025-03-06 | AH149: 18:39:00 | AI149: 2025-03-06 | AJ149: 17:54:00 | AK149: 2025-03-06 | AL149: 17:13:00 | AM149: - | AN149: DA | AR149: 0.06666666671 | AS149: 1 | AT149: 1 | AU149: 0.75 | AV149: 49 | AW149: 49 | AX149: 1.5 | AY149: 0 | AZ149: 0
A150: 131 | B150: x | C150: - | D150: Deviere conductă DN400 Bărbuncești - Satu Nou | E150: 49643 | F150: Bărbuncești | G150: Buzău | H150: 625768.22 | I150: 414382.25 | J150: 625768.22 | K150: 414382.25 | L150: - | M150: - | N150: - | O150: - | P150: - | Q150: - | R150: PM0032 | S150: Bărbuncești | T150: PM-PP001 | U150: Petrom | V150: OMV Petrom | W150: - | X150: 2025-03-19 | Y150: 07:05:00 | Z150: 2025-03-19 | AA150: 18:00:00 | AB150: Brăila | AC150: Efectuată | AE150: 2025-03-19 | AF150: 07:05:00 | AG150: 2025-03-19 | AH150: 17:12:00 | AI150: 2025-03-19 | AJ150: 07:14:00 | AK150: 2025-03-19 | AL150: 07:07:00 | AM150: 21877/14.03.2025 | AN150: DA | AR150: =IF(B150="X",IF(AN150="","Afectat sau NU?",IF(AN150="DA",IF(((AK150+AL150)-(AE150+AF150))*24<-720,"Neinformat",((AK150+AL150)-(AE150+AF150))*24),"Nu a fost afectat producator/consumator")),"") -> 0.03333333327 | AS150: =IF(B150="X",IF(AN150="DA",IF(AR150<6,LEN(TRIM(V150))-LEN(SUBSTITUTE(V150,CHAR(44),""))+1,0),"-"),"") -> 1 | AT150: =IF(B150="X",IF(AN150="DA",LEN(TRIM(V150))-LEN(SUBSTITUTE(V150,CHAR(44),""))+1,"-"),"") -> 1 | AU150: =IF(B150="X",IF(AN150="","Afectat sau NU?",IF(AN150="DA",IF(((AI150+AJ150)-(AE150+AF150))*24<-720,"Neinformat",((AI150+AJ150)-(AE150+AF150))*24),"Nu a fost afectat producator/consumator")),"") -> 0.15 | AV150: =IF(B150="X",IF(AN150="DA",IF(AU150<6,LEN(TRIM(U150))-LEN(SUBSTITUTE(U150,CHAR(44),""))+1,0),"-"),"") -> 1 | AW150: =IF(B150="X",IF(AN150="DA",LEN(TRIM(U150))-LEN(SUBSTITUTE(U150,CHAR(44),""))+1,"-"),"") -> 1 | AX150: =IF(B150="X",IF(AN150="","Afectat sau NU?",IF(AN150="DA",((AG150+AH150)-(AE150+AF150))*24,"Nu a fost afectat producator/consumator")),"") -> 10.11666667 | AY150: =IF(B150="X",IF(AN150="DA",IF(AX150>24,IF(BA150="NU",0,LEN(TRIM(V150))-LEN(SUBSTITUTE(V150,CHAR(44),""))+1),0),"-"),"") -> 0 | AZ150: =IF(B150="X",IF(AN150="DA",IF(AX150>24,LEN(TRIM(V150))-LEN(SUBSTITUTE(V150,CHAR(44),""))+1,0),"-"),"") -> 0 | BF150: =IF(C150="X",IF(AN150="","Afectat sau NU?",IF(AN150="DA",IF(AK150="","Neinformat",NETWORKDAYS((AK150+1)+AL150,(AE150-1)+AF150,$BS$2:$BS$18)),"Nu a fost afectat producator/consumator")),"") ->  | BG150: =IF(C150="X",IF(AN150="DA",IF(AND(BF150>=5,AK150<>""),LEN(TRIM(V150))-LEN(SUBSTITUTE(V150,CHAR(44),""))+1,0),"-"),"") ->  | BH150: =IF(C150="X",IF(AN150="DA",LEN(TRIM(V150))-LEN(SUBSTITUTE(V150,CHAR(44),""))+1,"-"),"") ->  | BI150: =IF(C150="X",IF(AN150="","Afectat sau NU?",IF(AN150="DA",IF(AI150="","Neinformat",NETWORKDAYS((AI150+1)+AJ150,(AE150-1)+AF150,$BS$2:$BS$18)),"Nu a fost afectat producator/consumator")),"") ->  | BJ150: =IF(C150="X",IF(AN150="DA",IF(AND(BI150>=5,AI150<>""),LEN(TRIM(U150))-LEN(SUBSTITUTE(U150,CHAR(44),""))+1,0),"-"),"") ->  | BK150: =IF(C150="X",IF(AN150="DA",LEN(TRIM(U150))-LEN(SUBSTITUTE(U150,CHAR(44),""))+1,"-"),"") ->  | BL150: =IF(C150="X",IF(AN150="","Afectat sau NU?",IF(AN150="DA",((AG150+AH150)-(Z150+AA150))*24,"Nu a fost afectat producator/consumator")),"") ->  | BM150: =IF(C150="X",IF(AN150<>"DA","-",IF(AND(AN150="DA",BL150<=0),LEN(TRIM(V150))-LEN(SUBSTITUTE(V150,CHAR(44),""))+1+LEN(TRIM(U150))-LEN(SUBSTITUTE(U150,CHAR(44),""))+1,0)),"") ->  | BN150: =IF(C150="X",IF(AN150="DA",LEN(TRIM(V150))-LEN(SUBSTITUTE(V150,CHAR(44),""))+1+LEN(TRIM(U150))-LEN(SUBSTITUTE(U150,CHAR(44),""))+1,"-"),"") -> 
A151: 132 | B151: - | C151: x | D151: Înlocuire și relocare robinet R16 și refulator r14 pe conducta DN400 Gura Șuții - București (Joița) | E151: 104038 | F151: Săbăreni | G151: Giurgiu | H151: 569107.28 | I151: 334140.35 | J151: 569107.28 | K151: 334140.35 | L151: - | M151: - | N151: SM1086D0 | O151: Joița | P151: - | Q151: - | R151: - | S151: - | T151: SM-SD001 | V151: Euro Seven Industry | W151: iunie - septembrie 2025 | AB151: București | AP151: forțe proprii - Sucursala | BF151: Afectat sau NU? | BG151: - | BH151: - | BI151: Afectat sau NU? | BJ151: - | BK151: - | BL151: Afectat sau NU? | BM151: - | BN151: -
A152: =A151+1 -> 133 | B152: - | C152: x | D152: Înlocuire și relocare robinet R16 și refulator r14 pe conducta DN400 Gura Șuții - București (Joița) | E152: 105543 | F152: Tărtășești | G152: Dâmbovița | H152: 564728.35 | I152: 341817.45 | J152: 564728.35 | K152: 341817.45 | L152: - | M152: - | N152: SM0112D0 | O152: Tărtășești | P152: - | Q152: - | R152: - | S152: - | T152: SM-SD001 | V152: Premier Energy | W152: iunie - septembrie 2025 | AB152: București | AP152: forțe proprii - Sucursala | AR152: =IF(B152="X",IF(AN152="","Afectat sau NU?",IF(AN152="DA",IF(((AK152+AL152)-(AE152+AF152))*24<-720,"Neinformat",((AK152+AL152)-(AE152+AF152))*24),"Nu a fost afectat producator/consumator")),"") ->  | AS152: =IF(B152="X",IF(AN152="DA",IF(AR152<6,LEN(TRIM(V152))-LEN(SUBSTITUTE(V152,CHAR(44),""))+1,0),"-"),"") ->  | AT152: =IF(B152="X",IF(AN152="DA",LEN(TRIM(V152))-LEN(SUBSTITUTE(V152,CHAR(44),""))+1,"-"),"") ->  | AU152: =IF(B152="X",IF(AN152="","Afectat sau NU?",IF(AN152="DA",IF(((AI152+AJ152)-(AE152+AF152))*24<-720,"Neinformat",((AI152+AJ152)-(AE152+AF152))*24),"Nu a fost afectat producator/consumator")),"") ->  | AV152: =IF(B152="X",IF(AN152="DA",IF(AU152<6,LEN(TRIM(U152))-LEN(SUBSTITUTE(U152,CHAR(44),""))+1,0),"-"),"") ->  | AW152: =IF(B152="X",IF(AN152="DA",LEN(TRIM(U152))-LEN(SUBSTITUTE(U152,CHAR(44),""))+1,"-"),"") ->  | AX152: =IF(B152="X",IF(AN152="","Afectat sau NU?",IF(AN152="DA",((AG152+AH152)-(AE152+AF152))*24,"Nu a fost afectat producator/consumator")),"") ->  | AY152: =IF(B152="X",IF(AN152="DA",IF(AX152>24,IF(BA152="NU",0,LEN(TRIM(V152))-LEN(SUBSTITUTE(V152,CHAR(44),""))+1),0),"-"),"") ->  | AZ152: =IF(B152="X",IF(AN152="DA",IF(AX152>24,LEN(TRIM(V152))-LEN(SUBSTITUTE(V152,CHAR(44),""))+1,0),"-"),"") ->  | BF152: Afectat sau NU? | BG152: =IF(C152="X",IF(AN152="DA",IF(AND(BF152>=5,AK152<>""),LEN(TRIM(V152))-LEN(SUBSTITUTE(V152,CHAR(44),""))+1,0),"-"),"") -> - | BH152: =IF(C152="X",IF(AN152="DA",LEN(TRIM(V152))-LEN(SUBSTITUTE(V152,CHAR(44),""))+1,"-"),"") -> - | BI152: Afectat sau NU? | BJ152: =IF(C152="X",IF(AN152="DA",IF(AND(BI152>=5,AI152<>""),LEN(TRIM(U152))-LEN(SUBSTITUTE(U152,CHAR(44),""))+1,0),"-"),"") -> - | BK152: =IF(C152="X",IF(AN152="DA",LEN(TRIM(U152))-LEN(SUBSTITUTE(U152,CHAR(44),""))+1,"-"),"") -> - | BL152: =IF(C152="X",IF(AN152="","Afectat sau NU?",IF(AN152="DA",((AG152+AH152)-(Z152+AA152))*24,"Nu a fost afectat producator/consumator")),"") -> Afectat sau NU? | BM152: =IF(C152="X",IF(AN152<>"DA","-",IF(AND(AN152="DA",BL152<=0),LEN(TRIM(V152))-LEN(SUBSTITUTE(V152,CHAR(44),""))+1+LEN(TRIM(U152))-LEN(SUBSTITUTE(U152,CHAR(44),""))+1,0)),"") -> - | BN152: =IF(C152="X",IF(AN152="DA",LEN(TRIM(V152))-LEN(SUBSTITUTE(V152,CHAR(44),""))+1+LEN(TRIM(U152))-LEN(SUBSTITUTE(U152,CHAR(44),""))+1,"-"),"") -> -
A153: 134 | B153: - | C153: x | D153: Înlocuire și relocare robinet R16 și refulator r14 pe conducta DN400 Gura Șuții - București (Joița) | E153: 68636 | F153: Răcari | G153: Dâmbovița | H153: 557141.14 | I153: 348301.15 | J153: 557141.14 | K153: 348301.15 | L153: - | M153: - | N153: SM0145D0 | O153: Răcari | P153: - | Q153: - | R153: - | S153: - | T153: SM-SD001 | V153: Distrigaz Sud Rețele | W153: iunie - septembrie 2025 | AB153: București | AP153: forțe proprii - Sucursala | AR153: =IF(B153="X",IF(AN153="","Afectat sau NU?",IF(AN153="DA",IF(((AK153+AL153)-(AE153+AF153))*24<-720,"Neinformat",((AK153+AL153)-(AE153+AF153))*24),"Nu a fost afectat producator/consumator")),"") ->  | AS153: =IF(B153="X",IF(AN153="DA",IF(AR153<6,LEN(TRIM(V153))-LEN(SUBSTITUTE(V153,CHAR(44),""))+1,0),"-"),"") ->  | AT153: =IF(B153="X",IF(AN153="DA",LEN(TRIM(V153))-LEN(SUBSTITUTE(V153,CHAR(44),""))+1,"-"),"") ->  | AU153: =IF(B153="X",IF(AN153="","Afectat sau NU?",IF(AN153="DA",IF(((AI153+AJ153)-(AE153+AF153))*24<-720,"Neinformat",((AI153+AJ153)-(AE153+AF153))*24),"Nu a fost afectat producator/consumator")),"") ->  | AV153: =IF(B153="X",IF(AN153="DA",IF(AU153<6,LEN(TRIM(U153))-LEN(SUBSTITUTE(U153,CHAR(44),""))+1,0),"-"),"") ->  | AW153: =IF(B153="X",IF(AN153="DA",LEN(TRIM(U153))-LEN(SUBSTITUTE(U153,CHAR(44),""))+1,"-"),"") ->  | AX153: =IF(B153="X",IF(AN153="","Afectat sau NU?",IF(AN153="DA",((AG153+AH153)-(AE153+AF153))*24,"Nu a fost afectat producator/consumator")),"") ->  | AY153: =IF(B153="X",IF(AN153="DA",IF(AX153>24,IF(BA153="NU",0,LEN(TRIM(V153))-LEN(SUBSTITUTE(V153,CHAR(44),""))+1),0),"-"),"") ->  | AZ153: =IF(B153="X",IF(AN153="DA",IF(AX153>24,LEN(TRIM(V153))-LEN(SUBSTITUTE(V153,CHAR(44),""))+1,0),"-"),"") ->  | BF153: Afectat sau NU? | BG153: =IF(C153="X",IF(AN153="DA",IF(AND(BF153>=5,AK153<>""),LEN(TRIM(V153))-LEN(SUBSTITUTE(V153,CHAR(44),""))+1,0),"-"),"") -> - | BH153: =IF(C153="X",IF(AN153="DA",LEN(TRIM(V153))-LEN(SUBSTITUTE(V153,CHAR(44),""))+1,"-"),"") -> - | BI153: Afectat sau NU? | BJ153: =IF(C153="X",IF(AN153="DA",IF(AND(BI153>=5,AI153<>""),LEN(TRIM(U153))-LEN(SUBSTITUTE(U153,CHAR(44),""))+1,0),"-"),"") -> - | BK153: =IF(C153="X",IF(AN153="DA",LEN(TRIM(U153))-LEN(SUBSTITUTE(U153,CHAR(44),""))+1,"-"),"") -> - | BL153: =IF(C153="X",IF(AN153="","Afectat sau NU?",IF(AN153="DA",((AG153+AH153)-(Z153+AA153))*24,"Nu a fost afectat producator/consumator")),"") -> Afectat sau NU? | BM153: =IF(C153="X",IF(AN153<>"DA","-",IF(AND(AN153="DA",BL153<=0),LEN(TRIM(V153))-LEN(SUBSTITUTE(V153,CHAR(44),""))+1+LEN(TRIM(U153))-LEN(SUBSTITUTE(U153,CHAR(44),""))+1,0)),"") -> - | BN153: =IF(C153="X",IF(AN153="DA",LEN(TRIM(V153))-LEN(SUBSTITUTE(V153,CHAR(44),""))+1+LEN(TRIM(U153))-LEN(SUBSTITUTE(U153,CHAR(44),""))+1,"-"),"") -> -
A154: 135 | B154: - | C154: x | D154: Montare robinet pentru demontare filtre conice în SRM Cefin Chiajna (Iveco) | E154: 179258 | F154: Chiajna | G154: Ilfov | H154: 576624.94 | I154: 327167.41 | J154: 576624.94 | K154: 327167.41 | L154: - | M154: - | N154: SM0911D0 | O154: Cefin (Iveco) Chiajna | P154: - | Q154: - | R154: - | S154: - | T154: SM-SD001 | V154: Distrigaz Sud Rețele | W154: iunie - septembrie 2025 | AB154: București | AP154: forțe proprii | AR154: =IF(B154="X",IF(AN154="","Afectat sau NU?",IF(AN154="DA",IF(((AK154+AL154)-(AE154+AF154))*24<-720,"Neinformat",((AK154+AL154)-(AE154+AF154))*24),"Nu a fost afectat producator/consumator")),"") ->  | AS154: =IF(B154="X",IF(AN154="DA",IF(AR154<6,LEN(TRIM(V154))-LEN(SUBSTITUTE(V154,CHAR(44),""))+1,0),"-"),"") ->  | AT154: =IF(B154="X",IF(AN154="DA",LEN(TRIM(V154))-LEN(SUBSTITUTE(V154,CHAR(44),""))+1,"-"),"") ->  | AU154: =IF(B154="X",IF(AN154="","Afectat sau NU?",IF(AN154="DA",IF(((AI154+AJ154)-(AE154+AF154))*24<-720,"Neinformat",((AI154+AJ154)-(AE154+AF154))*24),"Nu a fost afectat producator/consumator")),"") ->  | AV154: =IF(B154="X",IF(AN154="DA",IF(AU154<6,LEN(TRIM(U154))-LEN(SUBSTITUTE(U154,CHAR(44),""))+1,0),"-"),"") ->  | AW154: =IF(B154="X",IF(AN154="DA",LEN(TRIM(U154))-LEN(SUBSTITUTE(U154,CHAR(44),""))+1,"-"),"") ->  | AX154: =IF(B154="X",IF(AN154="","Afectat sau NU?",IF(AN154="DA",((AG154+AH154)-(AE154+AF154))*24,"Nu a fost afectat producator/consumator")),"") ->  | AY154: =IF(B154="X",IF(AN154="DA",IF(AX154>24,IF(BA154="NU",0,LEN(TRIM(V154))-LEN(SUBSTITUTE(V154,CHAR(44),""))+1),0),"-"),"") ->  | AZ154: =IF(B154="X",IF(AN154="DA",IF(AX154>24,LEN(TRIM(V154))-LEN(SUBSTITUTE(V154,CHAR(44),""))+1,0),"-"),"") ->  | BF154: =IF(C154="X",IF(AN154="","Afectat sau NU?",IF(AN154="DA",IF(AK154="","Neinformat",NETWORKDAYS((AK154+1)+AL154,(AE154-1)+AF154,$BS$2:$BS$18)),"Nu a fost afectat producator/consumator")),"") -> Afectat sau NU? | BG154: =IF(C154="X",IF(AN154="DA",IF(AND(BF154>=5,AK154<>""),LEN(TRIM(V154))-LEN(SUBSTITUTE(V154,CHAR(44),""))+1,0),"-"),"") -> - | BH154: =IF(C154="X",IF(AN154="DA",LEN(TRIM(V154))-LEN(SUBSTITUTE(V154,CHAR(44),""))+1,"-"),"") -> - | BI154: =IF(C154="X",IF(AN154="","Afectat sau NU?",IF(AN154="DA",IF(AI154="","Neinformat",NETWORKDAYS((AI154+1)+AJ154,(AE154-1)+AF154,$BS$2:$BS$18)),"Nu a fost afectat producator/consumator")),"") -> Afectat sau NU? | BJ154: =IF(C154="X",IF(AN154="DA",IF(AND(BI154>=5,AI154<>""),LEN(TRIM(U154))-LEN(SUBSTITUTE(U154,CHAR(44),""))+1,0),"-"),"") -> - | BK154: =IF(C154="X",IF(AN154="DA",LEN(TRIM(U154))-LEN(SUBSTITUTE(U154,CHAR(44),""))+1,"-"),"") -> - | BL154: =IF(C154="X",IF(AN154="","Afectat sau NU?",IF(AN154="DA",((AG154+AH154)-(Z154+AA154))*24,"Nu a fost afectat producator/consumator")),"") -> Afectat sau NU? | BM154: =IF(C154="X",IF(AN154<>"DA","-",IF(AND(AN154="DA",BL154<=0),LEN(TRIM(V154))-LEN(SUBSTITUTE(V154,CHAR(44),""))+1+LEN(TRIM(U154))-LEN(SUBSTITUTE(U154,CHAR(44),""))+1,0)),"") -> - | BN154: =IF(C154="X",IF(AN154="DA",LEN(TRIM(V154))-LEN(SUBSTITUTE(V154,CHAR(44),""))+1+LEN(TRIM(U154))-LEN(SUBSTITUTE(U154,CHAR(44),""))+1,"-"),"") -> -
A155: 136 | B155: - | C155: x | D155: Montare robinet pentru demontare filtre conice în SRM Lungulețu | E155: 67915 | F155: Lungulețu | G155: Dâmbovița | H155: 550803.29 | I155: 347564.85 | J155: 550803.29 | K155: 347564.85 | L155: - | M155: - | N155: SM0099D0 | O155: Lungulețu | P155: - | Q155: - | R155: - | S155: - | T155: SM-SD001 | U155: Alpha Metal, Nova Power, BTD Construct, Complexul Energetic Oltenia, Crest Energy, Distrigaz Sud Rețele, Distrigaz Vest, Engie, E.on Energie, Electrocentrale București, Electrica Furnizare, Electric Planners, Energy Core, Energy Distribution, PPC Energie, Entrex, Euro Seven, Eye Mall, Premier Energy Trading, Gaz Est, Ges Furnizare, Getica 95, Local Gaz, Met România, Monsson, Termoenergetica București, MVM Future, Next Energy Distribution, Petrom, Premier Energy, Gas Provider, Renovatio, Romgaz, RWE Supply, MDA Energy, Solprim, Stratum Energy, Sustainable Energy, Termocentrale Constanța, Termo Calor, Termo Ploiești, Tinmar, Transenergo, Termoelectrica Giurgiu, Gaz Vest Trading, Vimetco | V155: Distrigaz Sud Rețele | W155: iunie - septembrie 2025 | X155: 2025-09-25 | Y155: 09:00:00 | Z155: 2025-09-25 | AA155: 13:00:00 | AB155: București | AC155: Efectuată | AE155: 2025-09-25 | AF155: 09:03:00 | AG155: 2025-09-25 | AH155: 12:51:00 | AI155: 2025-09-17 | AJ155: 09:39:00 | AK155: 2025-09-17 | AL155: 09:25:00 | AM155: 79912/23.09.2025 | AN155: DA | AP155: forțe proprii | AR155: =IF(B155="X",IF(AN155="","Afectat sau NU?",IF(AN155="DA",IF(((AK155+AL155)-(AE155+AF155))*24<-720,"Neinformat",((AK155+AL155)-(AE155+AF155))*24),"Nu a fost afectat producator/consumator")),"") ->  | AS155: =IF(B155="X",IF(AN155="DA",IF(AR155<6,LEN(TRIM(V155))-LEN(SUBSTITUTE(V155,CHAR(44),""))+1,0),"-"),"") ->  | AT155: =IF(B155="X",IF(AN155="DA",LEN(TRIM(V155))-LEN(SUBSTITUTE(V155,CHAR(44),""))+1,"-"),"") ->  | AU155: =IF(B155="X",IF(AN155="","Afectat sau NU?",IF(AN155="DA",IF(((AI155+AJ155)-(AE155+AF155))*24<-720,"Neinformat",((AI155+AJ155)-(AE155+AF155))*24),"Nu a fost afectat producator/consumator")),"") ->  | AV155: =IF(B155="X",IF(AN155="DA",IF(AU155<6,LEN(TRIM(U155))-LEN(SUBSTITUTE(U155,CHAR(44),""))+1,0),"-"),"") ->  | AW155: =IF(B155="X",IF(AN155="DA",LEN(TRIM(U155))-LEN(SUBSTITUTE(U155,CHAR(44),""))+1,"-"),"") ->  | AX155: =IF(B155="X",IF(AN155="","Afectat sau NU?",IF(AN155="DA",((AG155+AH155)-(AE155+AF155))*24,"Nu a fost afectat producator/consumator")),"") ->  | AY155: =IF(B155="X",IF(AN155="DA",IF(AX155>24,IF(BA155="NU",0,LEN(TRIM(V155))-LEN(SUBSTITUTE(V155,CHAR(44),""))+1),0),"-"),"") ->  | AZ155: =IF(B155="X",IF(AN155="DA",IF(AX155>24,LEN(TRIM(V155))-LEN(SUBSTITUTE(V155,CHAR(44),""))+1,0),"-"),"") ->  | BF155: =IF(C155="X",IF(AN155="","Afectat sau NU?",IF(AN155="DA",IF(AK155="","Neinformat",NETWORKDAYS((AK155+1)+AL155,(AE155-1)+AF155,$BS$2:$BS$18)),"Nu a fost afectat producator/consumator")),"") -> 5 | BG155: =IF(C155="X",IF(AN155="DA",IF(AND(BF155>=5,AK155<>""),LEN(TRIM(V155))-LEN(SUBSTITUTE(V155,CHAR(44),""))+1,0),"-"),"") -> 1 | BH155: =IF(C155="X",IF(AN155="DA",LEN(TRIM(V155))-LEN(SUBSTITUTE(V155,CHAR(44),""))+1,"-"),"") -> 1 | BI155: =IF(C155="X",IF(AN155="","Afectat sau NU?",IF(AN155="DA",IF(AI155="","Neinformat",NETWORKDAYS((AI155+1)+AJ155,(AE155-1)+AF155,$BS$2:$BS$18)),"Nu a fost afectat producator/consumator")),"") -> 5 | BJ155: =IF(C155="X",IF(AN155="DA",IF(AND(BI155>=5,AI155<>""),LEN(TRIM(U155))-LEN(SUBSTITUTE(U155,CHAR(44),""))+1,0),"-"),"") -> 46 | BK155: =IF(C155="X",IF(AN155="DA",LEN(TRIM(U155))-LEN(SUBSTITUTE(U155,CHAR(44),""))+1,"-"),"") -> 46 | BL155: =IF(C155="X",IF(AN155="","Afectat sau NU?",IF(AN155="DA",((AG155+AH155)-(Z155+AA155))*24,"Nu a fost afectat producator/consumator")),"") -> -0.15 | BM155: =IF(C155="X",IF(AN155<>"DA","-",IF(AND(AN155="DA",BL155<=0),LEN(TRIM(V155))-LEN(SUBSTITUTE(V155,CHAR(44),""))+1+LEN(TRIM(U155))-LEN(SUBSTITUTE(U155,CHAR(44),""))+1,0)),"") -> 47 | BN155: =IF(C155="X",IF(AN155="DA",LEN(TRIM(V155))-LEN(SUBSTITUTE(V155,CHAR(44),""))+1+LEN(TRIM(U155))-LEN(SUBSTITUTE(U155,CHAR(44),""))+1,"-"),"") -> 47
A156: 137 | B156: - | C156: x | D156: Montare panou de măsură DN100 în SRM Videle | E156: 151914 | F156: Videle | G156: Teleorman | H156: 543275.88 | I156: 310029.43 | J156: 543275.88 | K156: 310029.43 | L156: - | M156: - | N156: SM1111D0 | O156: Videle | P156: - | Q156: - | R156: - | S156: - | T156: SM-SD001 | U156: Nova Power, Distrigaz Vest, Engie, E.on Energie, Electrica Furnizare, Energy Distribution, PPC Energie, Entrex, Euro Seven, Eye Mall, Premier Energy Trading, Gaz Est, Getica 95, Local Gaz, Met România, MVM Future, Next Energy Distribution, Neogas Grid, Petrom, Premier Energy, Gas Provider, Renovatio, Romgaz, MDA Energy, Solprim, Tinmar, Transenergo, Vimetco | V156: Neogas Grid | W156: iunie - septembrie 2025 | X156: 2025-09-17 | Y156: 08:00:00 | Z156: 2025-09-17 | AA156: 14:00:00 | AB156: București | AC156: Efectuată | AE156: 2025-09-17 | AF156: 08:00:00 | AG156: 2025-09-17 | AH156: 13:55:00 | AI156: 2025-09-09 | AJ156: 09:19:00 | AK156: 2025-09-09 | AL156: 09:13:00 | AM156: 77175/15.09.2025 | AN156: DA | AP156: forțe proprii | AR156: =IF(B156="X",IF(AN156="","Afectat sau NU?",IF(AN156="DA",IF(((AK156+AL156)-(AE156+AF156))*24<-720,"Neinformat",((AK156+AL156)-(AE156+AF156))*24),"Nu a fost afectat producator/consumator")),"") ->  | AS156: =IF(B156="X",IF(AN156="DA",IF(AR156<6,LEN(TRIM(V156))-LEN(SUBSTITUTE(V156,CHAR(44),""))+1,0),"-"),"") ->  | AT156: =IF(B156="X",IF(AN156="DA",LEN(TRIM(V156))-LEN(SUBSTITUTE(V156,CHAR(44),""))+1,"-"),"") ->  | AU156: =IF(B156="X",IF(AN156="","Afectat sau NU?",IF(AN156="DA",IF(((AI156+AJ156)-(AE156+AF156))*24<-720,"Neinformat",((AI156+AJ156)-(AE156+AF156))*24),"Nu a fost afectat producator/consumator")),"") ->  | AV156: =IF(B156="X",IF(AN156="DA",IF(AU156<6,LEN(TRIM(U156))-LEN(SUBSTITUTE(U156,CHAR(44),""))+1,0),"-"),"") ->  | AW156: =IF(B156="X",IF(AN156="DA",LEN(TRIM(U156))-LEN(SUBSTITUTE(U156,CHAR(44),""))+1,"-"),"") ->  | AX156: =IF(B156="X",IF(AN156="","Afectat sau NU?",IF(AN156="DA",((AG156+AH156)-(AE156+AF156))*24,"Nu a fost afectat producator/consumator")),"") ->  | AY156: =IF(B156="X",IF(AN156="DA",IF(AX156>24,IF(BA156="NU",0,LEN(TRIM(V156))-LEN(SUBSTITUTE(V156,CHAR(44),""))+1),0),"-"),"") ->  | AZ156: =IF(B156="X",IF(AN156="DA",IF(AX156>24,LEN(TRIM(V156))-LEN(SUBSTITUTE(V156,CHAR(44),""))+1,0),"-"),"") ->  | BF156: =IF(C156="X",IF(AN156="","Afectat sau NU?",IF(AN156="DA",IF(AK156="","Neinformat",NETWORKDAYS((AK156+1)+AL156,(AE156-1)+AF156,$BS$2:$BS$18)),"Nu a fost afectat producator/consumator")),"") -> 5 | BG156: =IF(C156="X",IF(AN156="DA",IF(AND(BF156>=5,AK156<>""),LEN(TRIM(V156))-LEN(SUBSTITUTE(V156,CHAR(44),""))+1,0),"-"),"") -> 1 | BH156: =IF(C156="X",IF(AN156="DA",LEN(TRIM(V156))-LEN(SUBSTITUTE(V156,CHAR(44),""))+1,"-"),"") -> 1 | BI156: =IF(C156="X",IF(AN156="","Afectat sau NU?",IF(AN156="DA",IF(AI156="","Neinformat",NETWORKDAYS((AI156+1)+AJ156,(AE156-1)+AF156,$BS$2:$BS$18)),"Nu a fost afectat producator/consumator")),"") -> 5 | BJ156: =IF(C156="X",IF(AN156="DA",IF(AND(BI156>=5,AI156<>""),LEN(TRIM(U156))-LEN(SUBSTITUTE(U156,CHAR(44),""))+1,0),"-"),"") -> 28 | BK156: =IF(C156="X",IF(AN156="DA",LEN(TRIM(U156))-LEN(SUBSTITUTE(U156,CHAR(44),""))+1,"-"),"") -> 28 | BL156: =IF(C156="X",IF(AN156="","Afectat sau NU?",IF(AN156="DA",((AG156+AH156)-(Z156+AA156))*24,"Nu a fost afectat producator/consumator")),"") -> -0.08333333343 | BM156: =IF(C156="X",IF(AN156<>"DA","-",IF(AND(AN156="DA",BL156<=0),LEN(TRIM(V156))-LEN(SUBSTITUTE(V156,CHAR(44),""))+1+LEN(TRIM(U156))-LEN(SUBSTITUTE(U156,CHAR(44),""))+1,0)),"") -> 29 | BN156: =IF(C156="X",IF(AN156="DA",LEN(TRIM(V156))-LEN(SUBSTITUTE(V156,CHAR(44),""))+1+LEN(TRIM(U156))-LEN(SUBSTITUTE(U156,CHAR(44),""))+1,"-"),"") -> 29
A157: 138 | B157: - | C157: x | D157: Demontare robinete amonte/aval filtre în SRM Tunari | E157: 105589 | F157: Tunari | G157: Ilfov | H157: 590859.85 | I157: 338211.21 | J157: 590859.85 | K157: 338211.21 | L157: - | M157: - | N157: SM0168D0 | O157: București Tunari | P157: - | Q157: - | R157: - | S157: - | T157: SM-SD001 | V157: Distrigaz Sud Rețele | W157: iunie - septembrie 2025 | AB157: București | AP157: forțe proprii | AR157: =IF(B157="X",IF(AN157="","Afectat sau NU?",IF(AN157="DA",IF(((AK157+AL157)-(AE157+AF157))*24<-720,"Neinformat",((AK157+AL157)-(AE157+AF157))*24),"Nu a fost afectat producator/consumator")),"") ->  | AS157: =IF(B157="X",IF(AN157="DA",IF(AR157<6,LEN(TRIM(V157))-LEN(SUBSTITUTE(V157,CHAR(44),""))+1,0),"-"),"") ->  | AT157: =IF(B157="X",IF(AN157="DA",LEN(TRIM(V157))-LEN(SUBSTITUTE(V157,CHAR(44),""))+1,"-"),"") ->  | AU157: =IF(B157="X",IF(AN157="","Afectat sau NU?",IF(AN157="DA",IF(((AI157+AJ157)-(AE157+AF157))*24<-720,"Neinformat",((AI157+AJ157)-(AE157+AF157))*24),"Nu a fost afectat producator/consumator")),"") ->  | AV157: =IF(B157="X",IF(AN157="DA",IF(AU157<6,LEN(TRIM(U157))-LEN(SUBSTITUTE(U157,CHAR(44),""))+1,0),"-"),"") ->  | AW157: =IF(B157="X",IF(AN157="DA",LEN(TRIM(U157))-LEN(SUBSTITUTE(U157,CHAR(44),""))+1,"-"),"") ->  | AX157: =IF(B157="X",IF(AN157="","Afectat sau NU?",IF(AN157="DA",((AG157+AH157)-(AE157+AF157))*24,"Nu a fost afectat producator/consumator")),"") ->  | AY157: =IF(B157="X",IF(AN157="DA",IF(AX157>24,IF(BA157="NU",0,LEN(TRIM(V157))-LEN(SUBSTITUTE(V157,CHAR(44),""))+1),0),"-"),"") ->  | AZ157: =IF(B157="X",IF(AN157="DA",IF(AX157>24,LEN(TRIM(V157))-LEN(SUBSTITUTE(V157,CHAR(44),""))+1,0),"-"),"") ->  | BF157: =IF(C157="X",IF(AN157="","Afectat sau NU?",IF(AN157="DA",IF(AK157="","Neinformat",NETWORKDAYS((AK157+1)+AL157,(AE157-1)+AF157,$BS$2:$BS$18)),"Nu a fost afectat producator/consumator")),"") -> Afectat sau NU? | BG157: =IF(C157="X",IF(AN157="DA",IF(AND(BF157>=5,AK157<>""),LEN(TRIM(V157))-LEN(SUBSTITUTE(V157,CHAR(44),""))+1,0),"-"),"") -> - | BH157: =IF(C157="X",IF(AN157="DA",LEN(TRIM(V157))-LEN(SUBSTITUTE(V157,CHAR(44),""))+1,"-"),"") -> - | BI157: =IF(C157="X",IF(AN157="","Afectat sau NU?",IF(AN157="DA",IF(AI157="","Neinformat",NETWORKDAYS((AI157+1)+AJ157,(AE157-1)+AF157,$BS$2:$BS$18)),"Nu a fost afectat producator/consumator")),"") -> Afectat sau NU? | BJ157: =IF(C157="X",IF(AN157="DA",IF(AND(BI157>=5,AI157<>""),LEN(TRIM(U157))-LEN(SUBSTITUTE(U157,CHAR(44),""))+1,0),"-"),"") -> - | BK157: =IF(C157="X",IF(AN157="DA",LEN(TRIM(U157))-LEN(SUBSTITUTE(U157,CHAR(44),""))+1,"-"),"") -> - | BL157: =IF(C157="X",IF(AN157="","Afectat sau NU?",IF(AN157="DA",((AG157+AH157)-(Z157+AA157))*24,"Nu a fost afectat producator/consumator")),"") -> Afectat sau NU? | BM157: =IF(C157="X",IF(AN157<>"DA","-",IF(AND(AN157="DA",BL157<=0),LEN(TRIM(V157))-LEN(SUBSTITUTE(V157,CHAR(44),""))+1+LEN(TRIM(U157))-LEN(SUBSTITUTE(U157,CHAR(44),""))+1,0)),"") -> - | BN157: =IF(C157="X",IF(AN157="DA",LEN(TRIM(V157))-LEN(SUBSTITUTE(V157,CHAR(44),""))+1+LEN(TRIM(U157))-LEN(SUBSTITUTE(U157,CHAR(44),""))+1,"-"),"") -> -
A158: 139 | B158: - | C158: x | D158: Dezafectare odorizator de pe conducta DN500 Valea Călugărească - Teleajen | E158: 135958 | F158: Valea Călugărească | G158: Prahova | H158: 591730.05 | I158: 384301.9 | J158: 591730.05 | K158: 384301.9 | L158: - | M158: - | N158: SM0136D1 | O158: Valea Călugărească | P158: - | Q158: - | R158: - | S158: - | T158: SM-SD001 | U158: Alpha Metal, Nova Power, BTD Construct, Complexul Energetic Oltenia, Crest Energy, Distrigaz Sud Rețele, Distrigaz Vest, Engie, E.on Energie, Electrocentrale București, Electrica Furnizare, Electric Planners, Energy Core, Energy Distribution, PPC Energie, Entrex, Euro Seven, Eye Mall, Premier Energy Trading, Gaz Est, Ges Furnizare, Getica 95, Local Gaz, Met România, Monsson, Termoenergetica București, MVM Future, Next Energy Distribution, Petrom, Premier Energy, Gas Provider, Renovatio, Romgaz, RWE Supply, MDA Energy, Solprim, Stratum Energy, Sustainable Energy, Termocentrale Constanța, Termo Calor, Termo Ploiești, Tinmar, Transenergo, Termoelectrica Giurgiu, Gaz Vest Trading, Vimetco | V158: Distrigaz Sud Rețele | W158: iunie - septembrie 2025 | X158: 2025-08-25 | Y158: 08:00:00 | Z158: 2025-08-25 | AA158: 14:00:00 | AB158: București | AC158: Efectuată | AE158: 2025-08-25 | AF158: 08:10:00 | AG158: 2025-08-25 | AH158: 11:05:00 | AI158: 2025-08-14 | AJ158: 12:07:00 | AK158: 2025-08-14 | AL158: 11:59:00 | AM158: 70837/21.08.2025 | AN158: DA | AP158: forțe proprii | BF158: 5 | BG158: 1 | BH158: 1 | BI158: 5 | BJ158: 46 | BK158: 46 | BL158: -2.916666667 | BM158: 47 | BN158: 47
A159: =A158+1 -> 140 | B159: - | C159: x | D159: Dezafectare odorizator de pe conducta DN500 Valea Călugărească - Teleajen | E159: 135958 | F159: Valea Călugărească | G159: Prahova | H159: 591722.7 | I159: 384288.61 | J159: 591722.7 | K159: 384288.61 | L159: - | M159: - | N159: SM1112D0 | O159: Urlați | P159: - | Q159: - | R159: - | S159: - | T159: SM-SD001 | U159: Alpha Metal, Nova Power, BTD Construct, Complexul Energetic Oltenia, Crest Energy, Distrigaz Sud Rețele, Distrigaz Vest, Engie, E.on Energie, Electrocentrale București, Electrica Furnizare, Electric Planners, Energy Core, Energy Distribution, PPC Energie, Entrex, Euro Seven, Eye Mall, Premier Energy Trading, Gaz Est, Ges Furnizare, Getica 95, Local Gaz, Met România, Monsson, Termoenergetica București, MVM Future, Next Energy Distribution, Petrom, Premier Energy, Gas Provider, Renovatio, Romgaz, RWE Supply, MDA Energy, Solprim, Stratum Energy, Sustainable Energy, Termocentrale Constanța, Termo Calor, Termo Ploiești, Tinmar, Transenergo, Termoelectrica Giurgiu, Gaz Vest Trading, Vimetco | V159: Distrigaz Sud Rețele | W159: iunie - septembrie 2025 | X159: 2025-08-25 | Y159: 08:00:00 | Z159: 2025-08-25 | AA159: 14:00:00 | AB159: București | AC159: Efectuată | AE159: 2025-08-25 | AF159: 08:10:00 | AG159: 2025-08-25 | AH159: 11:05:00 | AI159: 2025-08-14 | AJ159: 12:07:00 | AK159: 2025-08-14 | AL159: 11:59:00 | AM159: 70837/21.08.2025 | AN159: DA | AP159: forțe proprii | AR159: =IF(B159="X",IF(AN159="","Afectat sau NU?",IF(AN159="DA",IF(((AK159+AL159)-(AE159+AF159))*24<-720,"Neinformat",((AK159+AL159)-(AE159+AF159))*24),"Nu a fost afectat producator/consumator")),"") ->  | AS159: =IF(B159="X",IF(AN159="DA",IF(AR159<6,LEN(TRIM(V159))-LEN(SUBSTITUTE(V159,CHAR(44),""))+1,0),"-"),"") ->  | AT159: =IF(B159="X",IF(AN159="DA",LEN(TRIM(V159))-LEN(SUBSTITUTE(V159,CHAR(44),""))+1,"-"),"") ->  | AU159: =IF(B159="X",IF(AN159="","Afectat sau NU?",IF(AN159="DA",IF(((AI159+AJ159)-(AE159+AF159))*24<-720,"Neinformat",((AI159+AJ159)-(AE159+AF159))*24),"Nu a fost afectat producator/consumator")),"") ->  | AV159: =IF(B159="X",IF(AN159="DA",IF(AU159<6,LEN(TRIM(U159))-LEN(SUBSTITUTE(U159,CHAR(44),""))+1,0),"-"),"") ->  | AW159: =IF(B159="X",IF(AN159="DA",LEN(TRIM(U159))-LEN(SUBSTITUTE(U159,CHAR(44),""))+1,"-"),"") ->  | AX159: =IF(B159="X",IF(AN159="","Afectat sau NU?",IF(AN159="DA",((AG159+AH159)-(AE159+AF159))*24,"Nu a fost afectat producator/consumator")),"") ->  | AY159: =IF(B159="X",IF(AN159="DA",IF(AX159>24,IF(BA159="NU",0,LEN(TRIM(V159))-LEN(SUBSTITUTE(V159,CHAR(44),""))+1),0),"-"),"") ->  | AZ159: =IF(B159="X",IF(AN159="DA",IF(AX159>24,LEN(TRIM(V159))-LEN(SUBSTITUTE(V159,CHAR(44),""))+1,0),"-"),"") ->  | BF159: 5 | BG159: =IF(C159="X",IF(AN159="DA",IF(AND(BF159>=5,AK159<>""),LEN(TRIM(V159))-LEN(SUBSTITUTE(V159,CHAR(44),""))+1,0),"-"),"") -> 1 | BH159: =IF(C159="X",IF(AN159="DA",LEN(TRIM(V159))-LEN(SUBSTITUTE(V159,CHAR(44),""))+1,"-"),"") -> 1 | BI159: 5 | BJ159: =IF(C159="X",IF(AN159="DA",IF(AND(BI159>=5,AI159<>""),LEN(TRIM(U159))-LEN(SUBSTITUTE(U159,CHAR(44),""))+1,0),"-"),"") -> 46 | BK159: =IF(C159="X",IF(AN159="DA",LEN(TRIM(U159))-LEN(SUBSTITUTE(U159,CHAR(44),""))+1,"-"),"") -> 46 | BL159: =IF(C159="X",IF(AN159="","Afectat sau NU?",IF(AN159="DA",((AG159+AH159)-(Z159+AA159))*24,"Nu a fost afectat producator/consumator")),"") -> -2.916666667 | BM159: =IF(C159="X",IF(AN159<>"DA","-",IF(AND(AN159="DA",BL159<=0),LEN(TRIM(V159))-LEN(SUBSTITUTE(V159,CHAR(44),""))+1+LEN(TRIM(U159))-LEN(SUBSTITUTE(U159,CHAR(44),""))+1,0)),"") -> 47 | BN159: =IF(C159="X",IF(AN159="DA",LEN(TRIM(V159))-LEN(SUBSTITUTE(V159,CHAR(44),""))+1+LEN(TRIM(U159))-LEN(SUBSTITUTE(U159,CHAR(44),""))+1,"-"),"") -> 47
A160: 141 | B160: - | C160: x | D160: Dezafectare odorizator de pe conducta DN500 Valea Călugărească - Teleajen | E160: 135949 | F160: Valea Călugărească | G160: Prahova | H160: 591757.81 | I160: 384324.71 | J160: 591757.81 | K160: 384324.71 | L160: - | M160: - | N160: - | O160: - | P160: - | Q160: - | R160: PM0307 | S160: Valea Călugărească Dacian Petroleum | T160: PM-PP001 | U160: Dacian Petroleum | V160: Dacian Petroleum | W160: iunie - septembrie 2025 | X160: 2025-08-25 | Y160: 08:00:00 | Z160: 2025-08-25 | AA160: 14:00:00 | AB160: București | AC160: Efectuată | AE160: 2025-08-25 | AF160: 08:10:00 | AG160: 2025-08-25 | AH160: 11:05:00 | AI160: 2025-08-14 | AJ160: 09:43:00 | AK160: 2025-08-14 | AL160: 09:30:00 | AM160: 70837/21.08.2025 | AN160: DA | AP160: forțe proprii | AR160: =IF(B160="X",IF(AN160="","Afectat sau NU?",IF(AN160="DA",IF(((AK160+AL160)-(AE160+AF160))*24<-720,"Neinformat",((AK160+AL160)-(AE160+AF160))*24),"Nu a fost afectat producator/consumator")),"") ->  | AS160: =IF(B160="X",IF(AN160="DA",IF(AR160<6,LEN(TRIM(V160))-LEN(SUBSTITUTE(V160,CHAR(44),""))+1,0),"-"),"") ->  | AT160: =IF(B160="X",IF(AN160="DA",LEN(TRIM(V160))-LEN(SUBSTITUTE(V160,CHAR(44),""))+1,"-"),"") ->  | AU160: =IF(B160="X",IF(AN160="","Afectat sau NU?",IF(AN160="DA",IF(((AI160+AJ160)-(AE160+AF160))*24<-720,"Neinformat",((AI160+AJ160)-(AE160+AF160))*24),"Nu a fost afectat producator/consumator")),"") ->  | AV160: =IF(B160="X",IF(AN160="DA",IF(AU160<6,LEN(TRIM(U160))-LEN(SUBSTITUTE(U160,CHAR(44),""))+1,0),"-"),"") ->  | AW160: =IF(B160="X",IF(AN160="DA",LEN(TRIM(U160))-LEN(SUBSTITUTE(U160,CHAR(44),""))+1,"-"),"") ->  | AX160: =IF(B160="X",IF(AN160="","Afectat sau NU?",IF(AN160="DA",((AG160+AH160)-(AE160+AF160))*24,"Nu a fost afectat producator/consumator")),"") ->  | AY160: =IF(B160="X",IF(AN160="DA",IF(AX160>24,IF(BA160="NU",0,LEN(TRIM(V160))-LEN(SUBSTITUTE(V160,CHAR(44),""))+1),0),"-"),"") ->  | AZ160: =IF(B160="X",IF(AN160="DA",IF(AX160>24,LEN(TRIM(V160))-LEN(SUBSTITUTE(V160,CHAR(44),""))+1,0),"-"),"") ->  | BF160: 5 | BG160: =IF(C160="X",IF(AN160="DA",IF(AND(BF160>=5,AK160<>""),LEN(TRIM(V160))-LEN(SUBSTITUTE(V160,CHAR(44),""))+1,0),"-"),"") -> 1 | BH160: =IF(C160="X",IF(AN160="DA",LEN(TRIM(V160))-LEN(SUBSTITUTE(V160,CHAR(44),""))+1,"-"),"") -> 1 | BI160: 5 | BJ160: =IF(C160="X",IF(AN160="DA",IF(AND(BI160>=5,AI160<>""),LEN(TRIM(U160))-LEN(SUBSTITUTE(U160,CHAR(44),""))+1,0),"-"),"") -> 1 | BK160: =IF(C160="X",IF(AN160="DA",LEN(TRIM(U160))-LEN(SUBSTITUTE(U160,CHAR(44),""))+1,"-"),"") -> 1 | BL160: =IF(C160="X",IF(AN160="","Afectat sau NU?",IF(AN160="DA",((AG160+AH160)-(Z160+AA160))*24,"Nu a fost afectat producator/consumator")),"") -> -2.916666667 | BM160: =IF(C160="X",IF(AN160<>"DA","-",IF(AND(AN160="DA",BL160<=0),LEN(TRIM(V160))-LEN(SUBSTITUTE(V160,CHAR(44),""))+1+LEN(TRIM(U160))-LEN(SUBSTITUTE(U160,CHAR(44),""))+1,0)),"") -> 2 | BN160: =IF(C160="X",IF(AN160="DA",LEN(TRIM(V160))-LEN(SUBSTITUTE(V160,CHAR(44),""))+1+LEN(TRIM(U160))-LEN(SUBSTITUTE(U160,CHAR(44),""))+1,"-"),"") -> 2
A161: 142 | B161: - | C161: x | D161: Lucrări de mentenanță în SRM Ploiești Vest | E161: 130543 | F161: Ploiești | G161: Prahova | H161: 578816.62 | I161: 380663.81 | J161: 578816.62 | K161: 380663.81 | L161: - | M161: - | N161: SM0125D0 | O161: Ploiești Vest | P161: - | Q161: - | R161: - | S161: - | T161: SM-SD001 | V161: Distrigaz Sud Rețele | W161: iunie - septembrie 2025 | AB161: București | AP161: forțe proprii | AR161: =IF(B161="X",IF(AN161="","Afectat sau NU?",IF(AN161="DA",IF(((AK161+AL161)-(AE161+AF161))*24<-720,"Neinformat",((AK161+AL161)-(AE161+AF161))*24),"Nu a fost afectat producator/consumator")),"") ->  | AS161: =IF(B161="X",IF(AN161="DA",IF(AR161<6,LEN(TRIM(V161))-LEN(SUBSTITUTE(V161,CHAR(44),""))+1,0),"-"),"") ->  | AT161: =IF(B161="X",IF(AN161="DA",LEN(TRIM(V161))-LEN(SUBSTITUTE(V161,CHAR(44),""))+1,"-"),"") ->  | AU161: =IF(B161="X",IF(AN161="","Afectat sau NU?",IF(AN161="DA",IF(((AI161+AJ161)-(AE161+AF161))*24<-720,"Neinformat",((AI161+AJ161)-(AE161+AF161))*24),"Nu a fost afectat producator/consumator")),"") ->  | AV161: =IF(B161="X",IF(AN161="DA",IF(AU161<6,LEN(TRIM(U161))-LEN(SUBSTITUTE(U161,CHAR(44),""))+1,0),"-"),"") ->  | AW161: =IF(B161="X",IF(AN161="DA",LEN(TRIM(U161))-LEN(SUBSTITUTE(U161,CHAR(44),""))+1,"-"),"") ->  | AX161: =IF(B161="X",IF(AN161="","Afectat sau NU?",IF(AN161="DA",((AG161+AH161)-(AE161+AF161))*24,"Nu a fost afectat producator/consumator")),"") ->  | AY161: =IF(B161="X",IF(AN161="DA",IF(AX161>24,IF(BA161="NU",0,LEN(TRIM(V161))-LEN(SUBSTITUTE(V161,CHAR(44),""))+1),0),"-"),"") ->  | AZ161: =IF(B161="X",IF(AN161="DA",IF(AX161>24,LEN(TRIM(V161))-LEN(SUBSTITUTE(V161,CHAR(44),""))+1,0),"-"),"") ->  | BF161: =IF(C161="X",IF(AN161="","Afectat sau NU?",IF(AN161="DA",IF(AK161="","Neinformat",NETWORKDAYS((AK161+1)+AL161,(AE161-1)+AF161,$BS$2:$BS$18)),"Nu a fost afectat producator/consumator")),"") -> Afectat sau NU? | BG161: =IF(C161="X",IF(AN161="DA",IF(AND(BF161>=5,AK161<>""),LEN(TRIM(V161))-LEN(SUBSTITUTE(V161,CHAR(44),""))+1,0),"-"),"") -> - | BH161: =IF(C161="X",IF(AN161="DA",LEN(TRIM(V161))-LEN(SUBSTITUTE(V161,CHAR(44),""))+1,"-"),"") -> - | BI161: =IF(C161="X",IF(AN161="","Afectat sau NU?",IF(AN161="DA",IF(AI161="","Neinformat",NETWORKDAYS((AI161+1)+AJ161,(AE161-1)+AF161,$BS$2:$BS$18)),"Nu a fost afectat producator/consumator")),"") -> Afectat sau NU? | BJ161: =IF(C161="X",IF(AN161="DA",IF(AND(BI161>=5,AI161<>""),LEN(TRIM(U161))-LEN(SUBSTITUTE(U161,CHAR(44),""))+1,0),"-"),"") -> - | BK161: =IF(C161="X",IF(AN161="DA",LEN(TRIM(U161))-LEN(SUBSTITUTE(U161,CHAR(44),""))+1,"-"),"") -> - | BL161: =IF(C161="X",IF(AN161="","Afectat sau NU?",IF(AN161="DA",((AG161+AH161)-(Z161+AA161))*24,"Nu a fost afectat producator/consumator")),"") -> Afectat sau NU? | BM161: =IF(C161="X",IF(AN161<>"DA","-",IF(AND(AN161="DA",BL161<=0),LEN(TRIM(V161))-LEN(SUBSTITUTE(V161,CHAR(44),""))+1+LEN(TRIM(U161))-LEN(SUBSTITUTE(U161,CHAR(44),""))+1,0)),"") -> - | BN161: =IF(C161="X",IF(AN161="DA",LEN(TRIM(V161))-LEN(SUBSTITUTE(V161,CHAR(44),""))+1+LEN(TRIM(U161))-LEN(SUBSTITUTE(U161,CHAR(44),""))+1,"-"),"") -> -
A162: 143 | B162: - | C162: x | D162: Punere în siguranță a conductei de transport gaze naturale DN500 Sinaia - Filipești (tronson Posada - Bobolia) la subtraversare râu Prahova, zona Nistorești - Breaza | E162: 131158 | F162: Nistorești | G162: Prahova | H162: 552081.85 | I162: 411912.9 | J162: 552081.85 | K162: 411912.9 | L162: - | M162: - | N162: SM0087D0 | O162: SC Izvorul Rece Nistorești | P162: - | Q162: - | R162: - | S162: - | T162: SM-CF001 | V162: Izvorul Rece PS | W162: 21 aprilie - septembrie 2025 | AB162: București | AP162: PMDI 2025-2027 Anexa3_A.1.1 | AR162: =IF(B162="X",IF(AN162="","Afectat sau NU?",IF(AN162="DA",IF(((AK162+AL162)-(AE162+AF162))*24<-720,"Neinformat",((AK162+AL162)-(AE162+AF162))*24),"Nu a fost afectat producator/consumator")),"") ->  | AS162: =IF(B162="X",IF(AN162="DA",IF(AR162<6,LEN(TRIM(V162))-LEN(SUBSTITUTE(V162,CHAR(44),""))+1,0),"-"),"") ->  | AT162: =IF(B162="X",IF(AN162="DA",LEN(TRIM(V162))-LEN(SUBSTITUTE(V162,CHAR(44),""))+1,"-"),"") ->  | AU162: =IF(B162="X",IF(AN162="","Afectat sau NU?",IF(AN162="DA",IF(((AI162+AJ162)-(AE162+AF162))*24<-720,"Neinformat",((AI162+AJ162)-(AE162+AF162))*24),"Nu a fost afectat producator/consumator")),"") ->  | AV162: =IF(B162="X",IF(AN162="DA",IF(AU162<6,LEN(TRIM(U162))-LEN(SUBSTITUTE(U162,CHAR(44),""))+1,0),"-"),"") ->  | AW162: =IF(B162="X",IF(AN162="DA",LEN(TRIM(U162))-LEN(SUBSTITUTE(U162,CHAR(44),""))+1,"-"),"") ->  | AX162: =IF(B162="X",IF(AN162="","Afectat sau NU?",IF(AN162="DA",((AG162+AH162)-(AE162+AF162))*24,"Nu a fost afectat producator/consumator")),"") ->  | AY162: =IF(B162="X",IF(AN162="DA",IF(AX162>24,IF(BA162="NU",0,LEN(TRIM(V162))-LEN(SUBSTITUTE(V162,CHAR(44),""))+1),0),"-"),"") ->  | AZ162: =IF(B162="X",IF(AN162="DA",IF(AX162>24,LEN(TRIM(V162))-LEN(SUBSTITUTE(V162,CHAR(44),""))+1,0),"-"),"") ->  | BF162: =IF(C162="X",IF(AN162="","Afectat sau NU?",IF(AN162="DA",IF(AK162="","Neinformat",NETWORKDAYS((AK162+1)+AL162,(AE162-1)+AF162,$BS$2:$BS$18)),"Nu a fost afectat producator/consumator")),"") -> Afectat sau NU? | BG162: =IF(C162="X",IF(AN162="DA",IF(AND(BF162>=5,AK162<>""),LEN(TRIM(V162))-LEN(SUBSTITUTE(V162,CHAR(44),""))+1,0),"-"),"") -> - | BH162: =IF(C162="X",IF(AN162="DA",LEN(TRIM(V162))-LEN(SUBSTITUTE(V162,CHAR(44),""))+1,"-"),"") -> - | BI162: =IF(C162="X",IF(AN162="","Afectat sau NU?",IF(AN162="DA",IF(AI162="","Neinformat",NETWORKDAYS((AI162+1)+AJ162,(AE162-1)+AF162,$BS$2:$BS$18)),"Nu a fost afectat producator/consumator")),"") -> Afectat sau NU? | BJ162: =IF(C162="X",IF(AN162="DA",IF(AND(BI162>=5,AI162<>""),LEN(TRIM(U162))-LEN(SUBSTITUTE(U162,CHAR(44),""))+1,0),"-"),"") -> - | BK162: =IF(C162="X",IF(AN162="DA",LEN(TRIM(U162))-LEN(SUBSTITUTE(U162,CHAR(44),""))+1,"-"),"") -> - | BL162: =IF(C162="X",IF(AN162="","Afectat sau NU?",IF(AN162="DA",((AG162+AH162)-(Z162+AA162))*24,"Nu a fost afectat producator/consumator")),"") -> Afectat sau NU? | BM162: =IF(C162="X",IF(AN162<>"DA","-",IF(AND(AN162="DA",BL162<=0),LEN(TRIM(V162))-LEN(SUBSTITUTE(V162,CHAR(44),""))+1+LEN(TRIM(U162))-LEN(SUBSTITUTE(U162,CHAR(44),""))+1,0)),"") -> - | BN162: =IF(C162="X",IF(AN162="DA",LEN(TRIM(V162))-LEN(SUBSTITUTE(V162,CHAR(44),""))+1+LEN(TRIM(U162))-LEN(SUBSTITUTE(U162,CHAR(44),""))+1,"-"),"") -> -
A163: 144 | B163: - | C163: x | D163: Înlocuire robinet secționare R7 pe conducta DN700 Platou Izvor Sinaia - Filipești | E163: 131381 | F163: Posada | G163: Prahova | H163: 548893.7 | I163: 420137.21 | J163: 548893.7 | K163: 420137.21 | L163: - | M163: - | N163: SM0081D0 | O163: Posada | P163: - | Q163: - | R163: - | S163: - | T163: SM-SD001 | V163: Distrigaz Sud Rețele | W163: 21 aprilie - septembrie 2025 | AB163: București | AP163: forțe proprii | BF163: Afectat sau NU? | BG163: - | BH163: - | BI163: Afectat sau NU? | BJ163: - | BK163: - | BL163: Afectat sau NU? | BM163: - | BN163: -
A164: =A163+1 -> 145 | B164: - | C164: x | D164: Înlocuire robineți secționare R30 și R33 pe conducta DN700 Platou Izvor Sinaia - Filipești | E164: 131112 | F164: Breaza de Jos | G164: Prahova | H164: 551059.15 | I164: 410660.89 | J164: 551059.15 | K164: 410660.89 | L164: - | M164: - | N164: SM0085D1 | O164: Breaza PH | P164: - | Q164: - | R164: - | S164: - | T164: SM-SD001 | V164: Distrigaz Sud Rețele | W164: 21 aprilie - septembrie 2025 | AB164: București | AP164: forțe proprii | AR164: =IF(B164="X",IF(AN164="","Afectat sau NU?",IF(AN164="DA",IF(((AK164+AL164)-(AE164+AF164))*24<-720,"Neinformat",((AK164+AL164)-(AE164+AF164))*24),"Nu a fost afectat producator/consumator")),"") ->  | AS164: =IF(B164="X",IF(AN164="DA",IF(AR164<6,LEN(TRIM(V164))-LEN(SUBSTITUTE(V164,CHAR(44),""))+1,0),"-"),"") ->  | AT164: =IF(B164="X",IF(AN164="DA",LEN(TRIM(V164))-LEN(SUBSTITUTE(V164,CHAR(44),""))+1,"-"),"") ->  | AU164: =IF(B164="X",IF(AN164="","Afectat sau NU?",IF(AN164="DA",IF(((AI164+AJ164)-(AE164+AF164))*24<-720,"Neinformat",((AI164+AJ164)-(AE164+AF164))*24),"Nu a fost afectat producator/consumator")),"") ->  | AV164: =IF(B164="X",IF(AN164="DA",IF(AU164<6,LEN(TRIM(U164))-LEN(SUBSTITUTE(U164,CHAR(44),""))+1,0),"-"),"") ->  | AW164: =IF(B164="X",IF(AN164="DA",LEN(TRIM(U164))-LEN(SUBSTITUTE(U164,CHAR(44),""))+1,"-"),"") ->  | AX164: =IF(B164="X",IF(AN164="","Afectat sau NU?",IF(AN164="DA",((AG164+AH164)-(AE164+AF164))*24,"Nu a fost afectat producator/consumator")),"") ->  | AY164: =IF(B164="X",IF(AN164="DA",IF(AX164>24,IF(BA164="NU",0,LEN(TRIM(V164))-LEN(SUBSTITUTE(V164,CHAR(44),""))+1),0),"-"),"") ->  | AZ164: =IF(B164="X",IF(AN164="DA",IF(AX164>24,LEN(TRIM(V164))-LEN(SUBSTITUTE(V164,CHAR(44),""))+1,0),"-"),"") ->  | BF164: Afectat sau NU? | BG164: =IF(C164="X",IF(AN164="DA",IF(AND(BF164>=5,AK164<>""),LEN(TRIM(V164))-LEN(SUBSTITUTE(V164,CHAR(44),""))+1,0),"-"),"") -> - | BH164: =IF(C164="X",IF(AN164="DA",LEN(TRIM(V164))-LEN(SUBSTITUTE(V164,CHAR(44),""))+1,"-"),"") -> - | BI164: Afectat sau NU? | BJ164: =IF(C164="X",IF(AN164="DA",IF(AND(BI164>=5,AI164<>""),LEN(TRIM(U164))-LEN(SUBSTITUTE(U164,CHAR(44),""))+1,0),"-"),"") -> - | BK164: =IF(C164="X",IF(AN164="DA",LEN(TRIM(U164))-LEN(SUBSTITUTE(U164,CHAR(44),""))+1,"-"),"") -> - | BL164: =IF(C164="X",IF(AN164="","Afectat sau NU?",IF(AN164="DA",((AG164+AH164)-(Z164+AA164))*24,"Nu a fost afectat producator/consumator")),"") -> Afectat sau NU? | BM164: =IF(C164="X",IF(AN164<>"DA","-",IF(AND(AN164="DA",BL164<=0),LEN(TRIM(V164))-LEN(SUBSTITUTE(V164,CHAR(44),""))+1+LEN(TRIM(U164))-LEN(SUBSTITUTE(U164,CHAR(44),""))+1,0)),"") -> - | BN164: =IF(C164="X",IF(AN164="DA",LEN(TRIM(V164))-LEN(SUBSTITUTE(V164,CHAR(44),""))+1+LEN(TRIM(U164))-LEN(SUBSTITUTE(U164,CHAR(44),""))+1,"-"),"") -> -
A165: 146 | B165: - | C165: x | D165: Înlocuire robineți secționare R30 și R33 pe conducta DN700 Platou Izvor Sinaia - Filipești | E165: 131112 | F165: Breaza de Jos | G165: Prahova | H165: 551059.15 | I165: 410660.89 | J165: 551059.15 | K165: 410660.89 | L165: - | M165: - | N165: SM0085D2 | O165: SC Parc Industrial Breaza | P165: - | Q165: - | R165: - | S165: - | T165: SM-CF001 | V165: Parc Industrial Breaza | W165: 21 aprilie - septembrie 2025 | AB165: București | AP165: forțe proprii | AR165: =IF(B165="X",IF(AN165="","Afectat sau NU?",IF(AN165="DA",IF(((AK165+AL165)-(AE165+AF165))*24<-720,"Neinformat",((AK165+AL165)-(AE165+AF165))*24),"Nu a fost afectat producator/consumator")),"") ->  | AS165: =IF(B165="X",IF(AN165="DA",IF(AR165<6,LEN(TRIM(V165))-LEN(SUBSTITUTE(V165,CHAR(44),""))+1,0),"-"),"") ->  | AT165: =IF(B165="X",IF(AN165="DA",LEN(TRIM(V165))-LEN(SUBSTITUTE(V165,CHAR(44),""))+1,"-"),"") ->  | AU165: =IF(B165="X",IF(AN165="","Afectat sau NU?",IF(AN165="DA",IF(((AI165+AJ165)-(AE165+AF165))*24<-720,"Neinformat",((AI165+AJ165)-(AE165+AF165))*24),"Nu a fost afectat producator/consumator")),"") ->  | AV165: =IF(B165="X",IF(AN165="DA",IF(AU165<6,LEN(TRIM(U165))-LEN(SUBSTITUTE(U165,CHAR(44),""))+1,0),"-"),"") ->  | AW165: =IF(B165="X",IF(AN165="DA",LEN(TRIM(U165))-LEN(SUBSTITUTE(U165,CHAR(44),""))+1,"-"),"") ->  | AX165: =IF(B165="X",IF(AN165="","Afectat sau NU?",IF(AN165="DA",((AG165+AH165)-(AE165+AF165))*24,"Nu a fost afectat producator/consumator")),"") ->  | AY165: =IF(B165="X",IF(AN165="DA",IF(AX165>24,IF(BA165="NU",0,LEN(TRIM(V165))-LEN(SUBSTITUTE(V165,CHAR(44),""))+1),0),"-"),"") ->  | AZ165: =IF(B165="X",IF(AN165="DA",IF(AX165>24,LEN(TRIM(V165))-LEN(SUBSTITUTE(V165,CHAR(44),""))+1,0),"-"),"") ->  | BF165: =IF(C165="X",IF(AN165="","Afectat sau NU?",IF(AN165="DA",IF(AK165="","Neinformat",NETWORKDAYS((AK165+1)+AL165,(AE165-1)+AF165,$BS$2:$BS$18)),"Nu a fost afectat producator/consumator")),"") -> Afectat sau NU? | BG165: =IF(C165="X",IF(AN165="DA",IF(AND(BF165>=5,AK165<>""),LEN(TRIM(V165))-LEN(SUBSTITUTE(V165,CHAR(44),""))+1,0),"-"),"") -> - | BH165: =IF(C165="X",IF(AN165="DA",LEN(TRIM(V165))-LEN(SUBSTITUTE(V165,CHAR(44),""))+1,"-"),"") -> - | BI165: =IF(C165="X",IF(AN165="","Afectat sau NU?",IF(AN165="DA",IF(AI165="","Neinformat",NETWORKDAYS((AI165+1)+AJ165,(AE165-1)+AF165,$BS$2:$BS$18)),"Nu a fost afectat producator/consumator")),"") -> Afectat sau NU? | BJ165: =IF(C165="X",IF(AN165="DA",IF(AND(BI165>=5,AI165<>""),LEN(TRIM(U165))-LEN(SUBSTITUTE(U165,CHAR(44),""))+1,0),"-"),"") -> - | BK165: =IF(C165="X",IF(AN165="DA",LEN(TRIM(U165))-LEN(SUBSTITUTE(U165,CHAR(44),""))+1,"-"),"") -> - | BL165: =IF(C165="X",IF(AN165="","Afectat sau NU?",IF(AN165="DA",((AG165+AH165)-(Z165+AA165))*24,"Nu a fost afectat producator/consumator")),"") -> Afectat sau NU? | BM165: =IF(C165="X",IF(AN165<>"DA","-",IF(AND(AN165="DA",BL165<=0),LEN(TRIM(V165))-LEN(SUBSTITUTE(V165,CHAR(44),""))+1+LEN(TRIM(U165))-LEN(SUBSTITUTE(U165,CHAR(44),""))+1,0)),"") -> - | BN165: =IF(C165="X",IF(AN165="DA",LEN(TRIM(V165))-LEN(SUBSTITUTE(V165,CHAR(44),""))+1+LEN(TRIM(U165))-LEN(SUBSTITUTE(U165,CHAR(44),""))+1,"-"),"") -> -
A166: 147 | B166: - | C166: x | D166: Înlocuire robineți secționare R95-Drăgăneasa și R98-Provița de Jos pe conducta DN700 Platou Izvor Sinaia - Filipești | E166: 134862 | F166: Provița de Jos | G166: Prahova | H166: 552168.05 | I166: 402387.58 | J166: 552168.05 | K166: 402387.58 | L166: - | M166: - | N166: SM0096D0 | O166: Provița de Jos | P166: - | Q166: - | R166: - | S166: - | T166: SM-SD001 | V166: Distrigaz Sud Rețele | W166: 21 aprilie - septembrie 2025 | AB166: București | AP166: forțe proprii | AR166: =IF(B166="X",IF(AN166="","Afectat sau NU?",IF(AN166="DA",IF(((AK166+AL166)-(AE166+AF166))*24<-720,"Neinformat",((AK166+AL166)-(AE166+AF166))*24),"Nu a fost afectat producator/consumator")),"") ->  | AS166: =IF(B166="X",IF(AN166="DA",IF(AR166<6,LEN(TRIM(V166))-LEN(SUBSTITUTE(V166,CHAR(44),""))+1,0),"-"),"") ->  | AT166: =IF(B166="X",IF(AN166="DA",LEN(TRIM(V166))-LEN(SUBSTITUTE(V166,CHAR(44),""))+1,"-"),"") ->  | AU166: =IF(B166="X",IF(AN166="","Afectat sau NU?",IF(AN166="DA",IF(((AI166+AJ166)-(AE166+AF166))*24<-720,"Neinformat",((AI166+AJ166)-(AE166+AF166))*24),"Nu a fost afectat producator/consumator")),"") ->  | AV166: =IF(B166="X",IF(AN166="DA",IF(AU166<6,LEN(TRIM(U166))-LEN(SUBSTITUTE(U166,CHAR(44),""))+1,0),"-"),"") ->  | AW166: =IF(B166="X",IF(AN166="DA",LEN(TRIM(U166))-LEN(SUBSTITUTE(U166,CHAR(44),""))+1,"-"),"") ->  | AX166: =IF(B166="X",IF(AN166="","Afectat sau NU?",IF(AN166="DA",((AG166+AH166)-(AE166+AF166))*24,"Nu a fost afectat producator/consumator")),"") ->  | AY166: =IF(B166="X",IF(AN166="DA",IF(AX166>24,IF(BA166="NU",0,LEN(TRIM(V166))-LEN(SUBSTITUTE(V166,CHAR(44),""))+1),0),"-"),"") ->  | AZ166: =IF(B166="X",IF(AN166="DA",IF(AX166>24,LEN(TRIM(V166))-LEN(SUBSTITUTE(V166,CHAR(44),""))+1,0),"-"),"") ->  | BF166: Afectat sau NU? | BG166: =IF(C166="X",IF(AN166="DA",IF(AND(BF166>=5,AK166<>""),LEN(TRIM(V166))-LEN(SUBSTITUTE(V166,CHAR(44),""))+1,0),"-"),"") -> - | BH166: =IF(C166="X",IF(AN166="DA",LEN(TRIM(V166))-LEN(SUBSTITUTE(V166,CHAR(44),""))+1,"-"),"") -> - | BI166: Afectat sau NU? | BJ166: =IF(C166="X",IF(AN166="DA",IF(AND(BI166>=5,AI166<>""),LEN(TRIM(U166))-LEN(SUBSTITUTE(U166,CHAR(44),""))+1,0),"-"),"") -> - | BK166: =IF(C166="X",IF(AN166="DA",LEN(TRIM(U166))-LEN(SUBSTITUTE(U166,CHAR(44),""))+1,"-"),"") -> - | BL166: =IF(C166="X",IF(AN166="","Afectat sau NU?",IF(AN166="DA",((AG166+AH166)-(Z166+AA166))*24,"Nu a fost afectat producator/consumator")),"") -> Afectat sau NU? | BM166: =IF(C166="X",IF(AN166<>"DA","-",IF(AND(AN166="DA",BL166<=0),LEN(TRIM(V166))-LEN(SUBSTITUTE(V166,CHAR(44),""))+1+LEN(TRIM(U166))-LEN(SUBSTITUTE(U166,CHAR(44),""))+1,0)),"") -> - | BN166: =IF(C166="X",IF(AN166="DA",LEN(TRIM(V166))-LEN(SUBSTITUTE(V166,CHAR(44),""))+1+LEN(TRIM(U166))-LEN(SUBSTITUTE(U166,CHAR(44),""))+1,"-"),"") -> -
A167: 148 | B167: - | C167: x | D167: Înlocuire robineți secționare R95-Drăgăneasa și R98-Provița de Jos pe conducta DN700 Platou Izvor Sinaia - Filipești | E167: 134069 | F167: Măgureni | G167: Prahova | H167: 558802.49 | I167: 394534.41 | J167: 558802.49 | K167: 394534.41 | L167: - | M167: - | N167: SM0506D0 | O167: Măgureni | P167: - | Q167: - | R167: - | S167: - | T167: SM-SD001 | V167: MM Data | W167: 21 aprilie - septembrie 2025 | AB167: București | AP167: forțe proprii | AR167: =IF(B167="X",IF(AN167="","Afectat sau NU?",IF(AN167="DA",IF(((AK167+AL167)-(AE167+AF167))*24<-720,"Neinformat",((AK167+AL167)-(AE167+AF167))*24),"Nu a fost afectat producator/consumator")),"") ->  | AS167: =IF(B167="X",IF(AN167="DA",IF(AR167<6,LEN(TRIM(V167))-LEN(SUBSTITUTE(V167,CHAR(44),""))+1,0),"-"),"") ->  | AT167: =IF(B167="X",IF(AN167="DA",LEN(TRIM(V167))-LEN(SUBSTITUTE(V167,CHAR(44),""))+1,"-"),"") ->  | AU167: =IF(B167="X",IF(AN167="","Afectat sau NU?",IF(AN167="DA",IF(((AI167+AJ167)-(AE167+AF167))*24<-720,"Neinformat",((AI167+AJ167)-(AE167+AF167))*24),"Nu a fost afectat producator/consumator")),"") ->  | AV167: =IF(B167="X",IF(AN167="DA",IF(AU167<6,LEN(TRIM(U167))-LEN(SUBSTITUTE(U167,CHAR(44),""))+1,0),"-"),"") ->  | AW167: =IF(B167="X",IF(AN167="DA",LEN(TRIM(U167))-LEN(SUBSTITUTE(U167,CHAR(44),""))+1,"-"),"") ->  | AX167: =IF(B167="X",IF(AN167="","Afectat sau NU?",IF(AN167="DA",((AG167+AH167)-(AE167+AF167))*24,"Nu a fost afectat producator/consumator")),"") ->  | AY167: =IF(B167="X",IF(AN167="DA",IF(AX167>24,IF(BA167="NU",0,LEN(TRIM(V167))-LEN(SUBSTITUTE(V167,CHAR(44),""))+1),0),"-"),"") ->  | AZ167: =IF(B167="X",IF(AN167="DA",IF(AX167>24,LEN(TRIM(V167))-LEN(SUBSTITUTE(V167,CHAR(44),""))+1,0),"-"),"") ->  | BF167: =IF(C167="X",IF(AN167="","Afectat sau NU?",IF(AN167="DA",IF(AK167="","Neinformat",NETWORKDAYS((AK167+1)+AL167,(AE167-1)+AF167,$BS$2:$BS$18)),"Nu a fost afectat producator/consumator")),"") -> Afectat sau NU? | BG167: =IF(C167="X",IF(AN167="DA",IF(AND(BF167>=5,AK167<>""),LEN(TRIM(V167))-LEN(SUBSTITUTE(V167,CHAR(44),""))+1,0),"-"),"") -> - | BH167: =IF(C167="X",IF(AN167="DA",LEN(TRIM(V167))-LEN(SUBSTITUTE(V167,CHAR(44),""))+1,"-"),"") -> - | BI167: =IF(C167="X",IF(AN167="","Afectat sau NU?",IF(AN167="DA",IF(AI167="","Neinformat",NETWORKDAYS((AI167+1)+AJ167,(AE167-1)+AF167,$BS$2:$BS$18)),"Nu a fost afectat producator/consumator")),"") -> Afectat sau NU? | BJ167: =IF(C167="X",IF(AN167="DA",IF(AND(BI167>=5,AI167<>""),LEN(TRIM(U167))-LEN(SUBSTITUTE(U167,CHAR(44),""))+1,0),"-"),"") -> - | BK167: =IF(C167="X",IF(AN167="DA",LEN(TRIM(U167))-LEN(SUBSTITUTE(U167,CHAR(44),""))+1,"-"),"") -> - | BL167: =IF(C167="X",IF(AN167="","Afectat sau NU?",IF(AN167="DA",((AG167+AH167)-(Z167+AA167))*24,"Nu a fost afectat producator/consumator")),"") -> Afectat sau NU? | BM167: =IF(C167="X",IF(AN167<>"DA","-",IF(AND(AN167="DA",BL167<=0),LEN(TRIM(V167))-LEN(SUBSTITUTE(V167,CHAR(44),""))+1+LEN(TRIM(U167))-LEN(SUBSTITUTE(U167,CHAR(44),""))+1,0)),"") -> - | BN167: =IF(C167="X",IF(AN167="DA",LEN(TRIM(V167))-LEN(SUBSTITUTE(V167,CHAR(44),""))+1+LEN(TRIM(U167))-LEN(SUBSTITUTE(U167,CHAR(44),""))+1,"-"),"") -> -
A168: 149 | B168: - | C168: x | D168: Sistematizare SRM Filipeștii de Târg | E168: 133223 | F168: Filipeștii de Târg | G168: Prahova | H168: 563051.89 | I168: 384470.01 | J168: 563051.89 | K168: 384470.01 | L168: - | M168: - | N168: SM0097D1 | O168: Filipești de Târg (Nedelea) | P168: - | Q168: - | R168: - | S168: - | T168: SM-SD001 | V168: Distrigaz Sud Rețele | W168: 21 aprilie - septembrie 2025 | AB168: București | AP168: forțe proprii | AR168: =IF(B168="X",IF(AN168="","Afectat sau NU?",IF(AN168="DA",IF(((AK168+AL168)-(AE168+AF168))*24<-720,"Neinformat",((AK168+AL168)-(AE168+AF168))*24),"Nu a fost afectat producator/consumator")),"") ->  | AS168: =IF(B168="X",IF(AN168="DA",IF(AR168<6,LEN(TRIM(V168))-LEN(SUBSTITUTE(V168,CHAR(44),""))+1,0),"-"),"") ->  | AT168: =IF(B168="X",IF(AN168="DA",LEN(TRIM(V168))-LEN(SUBSTITUTE(V168,CHAR(44),""))+1,"-"),"") ->  | AU168: =IF(B168="X",IF(AN168="","Afectat sau NU?",IF(AN168="DA",IF(((AI168+AJ168)-(AE168+AF168))*24<-720,"Neinformat",((AI168+AJ168)-(AE168+AF168))*24),"Nu a fost afectat producator/consumator")),"") ->  | AV168: =IF(B168="X",IF(AN168="DA",IF(AU168<6,LEN(TRIM(U168))-LEN(SUBSTITUTE(U168,CHAR(44),""))+1,0),"-"),"") ->  | AW168: =IF(B168="X",IF(AN168="DA",LEN(TRIM(U168))-LEN(SUBSTITUTE(U168,CHAR(44),""))+1,"-"),"") ->  | AX168: =IF(B168="X",IF(AN168="","Afectat sau NU?",IF(AN168="DA",((AG168+AH168)-(AE168+AF168))*24,"Nu a fost afectat producator/consumator")),"") ->  | AY168: =IF(B168="X",IF(AN168="DA",IF(AX168>24,IF(BA168="NU",0,LEN(TRIM(V168))-LEN(SUBSTITUTE(V168,CHAR(44),""))+1),0),"-"),"") ->  | AZ168: =IF(B168="X",IF(AN168="DA",IF(AX168>24,LEN(TRIM(V168))-LEN(SUBSTITUTE(V168,CHAR(44),""))+1,0),"-"),"") ->  | BF168: Afectat sau NU? | BG168: =IF(C168="X",IF(AN168="DA",IF(AND(BF168>=5,AK168<>""),LEN(TRIM(V168))-LEN(SUBSTITUTE(V168,CHAR(44),""))+1,0),"-"),"") -> - | BH168: =IF(C168="X",IF(AN168="DA",LEN(TRIM(V168))-LEN(SUBSTITUTE(V168,CHAR(44),""))+1,"-"),"") -> - | BI168: Afectat sau NU? | BJ168: =IF(C168="X",IF(AN168="DA",IF(AND(BI168>=5,AI168<>""),LEN(TRIM(U168))-LEN(SUBSTITUTE(U168,CHAR(44),""))+1,0),"-"),"") -> - | BK168: =IF(C168="X",IF(AN168="DA",LEN(TRIM(U168))-LEN(SUBSTITUTE(U168,CHAR(44),""))+1,"-"),"") -> - | BL168: =IF(C168="X",IF(AN168="","Afectat sau NU?",IF(AN168="DA",((AG168+AH168)-(Z168+AA168))*24,"Nu a fost afectat producator/consumator")),"") -> Afectat sau NU? | BM168: =IF(C168="X",IF(AN168<>"DA","-",IF(AND(AN168="DA",BL168<=0),LEN(TRIM(V168))-LEN(SUBSTITUTE(V168,CHAR(44),""))+1+LEN(TRIM(U168))-LEN(SUBSTITUTE(U168,CHAR(44),""))+1,0)),"") -> - | BN168: =IF(C168="X",IF(AN168="DA",LEN(TRIM(V168))-LEN(SUBSTITUTE(V168,CHAR(44),""))+1+LEN(TRIM(U168))-LEN(SUBSTITUTE(U168,CHAR(44),""))+1,"-"),"") -> -
A169: 150 | B169: - | C169: x | D169: Sistematizare SRM Filipeștii de Târg | E169: 133223 | F169: Filipeștii de Târg | G169: Prahova | H169: 563051.89 | I169: 384470.01 | J169: 563051.89 | K169: 384470.01 | L169: - | M169: - | N169: SM0097D2 | O169: Filipești de Târg Industrie | P169: - | Q169: - | R169: - | S169: - | T169: SM-SD001 | V169: Distrigaz Sud Rețele | W169: 21 aprilie - septembrie 2025 | AB169: București | AP169: forțe proprii | AR169: =IF(B169="X",IF(AN169="","Afectat sau NU?",IF(AN169="DA",IF(((AK169+AL169)-(AE169+AF169))*24<-720,"Neinformat",((AK169+AL169)-(AE169+AF169))*24),"Nu a fost afectat producator/consumator")),"") ->  | AS169: =IF(B169="X",IF(AN169="DA",IF(AR169<6,LEN(TRIM(V169))-LEN(SUBSTITUTE(V169,CHAR(44),""))+1,0),"-"),"") ->  | AT169: =IF(B169="X",IF(AN169="DA",LEN(TRIM(V169))-LEN(SUBSTITUTE(V169,CHAR(44),""))+1,"-"),"") ->  | AU169: =IF(B169="X",IF(AN169="","Afectat sau NU?",IF(AN169="DA",IF(((AI169+AJ169)-(AE169+AF169))*24<-720,"Neinformat",((AI169+AJ169)-(AE169+AF169))*24),"Nu a fost afectat producator/consumator")),"") ->  | AV169: =IF(B169="X",IF(AN169="DA",IF(AU169<6,LEN(TRIM(U169))-LEN(SUBSTITUTE(U169,CHAR(44),""))+1,0),"-"),"") ->  | AW169: =IF(B169="X",IF(AN169="DA",LEN(TRIM(U169))-LEN(SUBSTITUTE(U169,CHAR(44),""))+1,"-"),"") ->  | AX169: =IF(B169="X",IF(AN169="","Afectat sau NU?",IF(AN169="DA",((AG169+AH169)-(AE169+AF169))*24,"Nu a fost afectat producator/consumator")),"") ->  | AY169: =IF(B169="X",IF(AN169="DA",IF(AX169>24,IF(BA169="NU",0,LEN(TRIM(V169))-LEN(SUBSTITUTE(V169,CHAR(44),""))+1),0),"-"),"") ->  | AZ169: =IF(B169="X",IF(AN169="DA",IF(AX169>24,LEN(TRIM(V169))-LEN(SUBSTITUTE(V169,CHAR(44),""))+1,0),"-"),"") ->  | BF169: Afectat sau NU? | BG169: =IF(C169="X",IF(AN169="DA",IF(AND(BF169>=5,AK169<>""),LEN(TRIM(V169))-LEN(SUBSTITUTE(V169,CHAR(44),""))+1,0),"-"),"") -> - | BH169: =IF(C169="X",IF(AN169="DA",LEN(TRIM(V169))-LEN(SUBSTITUTE(V169,CHAR(44),""))+1,"-"),"") -> - | BI169: Afectat sau NU? | BJ169: =IF(C169="X",IF(AN169="DA",IF(AND(BI169>=5,AI169<>""),LEN(TRIM(U169))-LEN(SUBSTITUTE(U169,CHAR(44),""))+1,0),"-"),"") -> - | BK169: =IF(C169="X",IF(AN169="DA",LEN(TRIM(U169))-LEN(SUBSTITUTE(U169,CHAR(44),""))+1,"-"),"") -> - | BL169: =IF(C169="X",IF(AN169="","Afectat sau NU?",IF(AN169="DA",((AG169+AH169)-(Z169+AA169))*24,"Nu a fost afectat producator/consumator")),"") -> Afectat sau NU? | BM169: =IF(C169="X",IF(AN169<>"DA","-",IF(AND(AN169="DA",BL169<=0),LEN(TRIM(V169))-LEN(SUBSTITUTE(V169,CHAR(44),""))+1+LEN(TRIM(U169))-LEN(SUBSTITUTE(U169,CHAR(44),""))+1,0)),"") -> - | BN169: =IF(C169="X",IF(AN169="DA",LEN(TRIM(V169))-LEN(SUBSTITUTE(V169,CHAR(44),""))+1+LEN(TRIM(U169))-LEN(SUBSTITUTE(U169,CHAR(44),""))+1,"-"),"") -> -
A170: 151 | B170: - | C170: x | D170: Sistematizare SRM Filipeștii de Târg | E170: 133223 | F170: Filipeștii de Târg | G170: Prahova | H170: 563051.89 | I170: 384470.01 | J170: 563051.89 | K170: 384470.01 | L170: - | M170: - | N170: SM0097D3 | O170: Mija | P170: - | Q170: - | R170: - | S170: - | T170: SM-SD001 | V170: Distrigaz Sud Rețele | W170: 21 aprilie - septembrie 2025 | AB170: București | AP170: forțe proprii | AR170: =IF(B170="X",IF(AN170="","Afectat sau NU?",IF(AN170="DA",IF(((AK170+AL170)-(AE170+AF170))*24<-720,"Neinformat",((AK170+AL170)-(AE170+AF170))*24),"Nu a fost afectat producator/consumator")),"") ->  | AS170: =IF(B170="X",IF(AN170="DA",IF(AR170<6,LEN(TRIM(V170))-LEN(SUBSTITUTE(V170,CHAR(44),""))+1,0),"-"),"") ->  | AT170: =IF(B170="X",IF(AN170="DA",LEN(TRIM(V170))-LEN(SUBSTITUTE(V170,CHAR(44),""))+1,"-"),"") ->  | AU170: =IF(B170="X",IF(AN170="","Afectat sau NU?",IF(AN170="DA",IF(((AI170+AJ170)-(AE170+AF170))*24<-720,"Neinformat",((AI170+AJ170)-(AE170+AF170))*24),"Nu a fost afectat producator/consumator")),"") ->  | AV170: =IF(B170="X",IF(AN170="DA",IF(AU170<6,LEN(TRIM(U170))-LEN(SUBSTITUTE(U170,CHAR(44),""))+1,0),"-"),"") ->  | AW170: =IF(B170="X",IF(AN170="DA",LEN(TRIM(U170))-LEN(SUBSTITUTE(U170,CHAR(44),""))+1,"-"),"") ->  | AX170: =IF(B170="X",IF(AN170="","Afectat sau NU?",IF(AN170="DA",((AG170+AH170)-(AE170+AF170))*24,"Nu a fost afectat producator/consumator")),"") ->  | AY170: =IF(B170="X",IF(AN170="DA",IF(AX170>24,IF(BA170="NU",0,LEN(TRIM(V170))-LEN(SUBSTITUTE(V170,CHAR(44),""))+1),0),"-"),"") ->  | AZ170: =IF(B170="X",IF(AN170="DA",IF(AX170>24,LEN(TRIM(V170))-LEN(SUBSTITUTE(V170,CHAR(44),""))+1,0),"-"),"") ->  | BF170: Afectat sau NU? | BG170: =IF(C170="X",IF(AN170="DA",IF(AND(BF170>=5,AK170<>""),LEN(TRIM(V170))-LEN(SUBSTITUTE(V170,CHAR(44),""))+1,0),"-"),"") -> - | BH170: =IF(C170="X",IF(AN170="DA",LEN(TRIM(V170))-LEN(SUBSTITUTE(V170,CHAR(44),""))+1,"-"),"") -> - | BI170: Afectat sau NU? | BJ170: =IF(C170="X",IF(AN170="DA",IF(AND(BI170>=5,AI170<>""),LEN(TRIM(U170))-LEN(SUBSTITUTE(U170,CHAR(44),""))+1,0),"-"),"") -> - | BK170: =IF(C170="X",IF(AN170="DA",LEN(TRIM(U170))-LEN(SUBSTITUTE(U170,CHAR(44),""))+1,"-"),"") -> - | BL170: =IF(C170="X",IF(AN170="","Afectat sau NU?",IF(AN170="DA",((AG170+AH170)-(Z170+AA170))*24,"Nu a fost afectat producator/consumator")),"") -> Afectat sau NU? | BM170: =IF(C170="X",IF(AN170<>"DA","-",IF(AND(AN170="DA",BL170<=0),LEN(TRIM(V170))-LEN(SUBSTITUTE(V170,CHAR(44),""))+1+LEN(TRIM(U170))-LEN(SUBSTITUTE(U170,CHAR(44),""))+1,0)),"") -> - | BN170: =IF(C170="X",IF(AN170="DA",LEN(TRIM(V170))-LEN(SUBSTITUTE(V170,CHAR(44),""))+1+LEN(TRIM(U170))-LEN(SUBSTITUTE(U170,CHAR(44),""))+1,"-"),"") -> -
A171: 152 | B171: - | C171: x | D171: Sistematizare SRM Filipeștii de Târg | E171: 133223 | F171: Filipeștii de Târg | G171: Prahova | H171: 563051.89 | I171: 384470.01 | J171: 563051.89 | K171: 384470.01 | L171: - | M171: - | N171: SM0097D5 | O171: Filipești de Târg (Brătășanca) | P171: - | Q171: - | R171: - | S171: - | T171: SM-SD001 | V171: Distrigaz Sud Rețele | W171: 21 aprilie - septembrie 2025 | AB171: București | AP171: forțe proprii | AR171: =IF(B171="X",IF(AN171="","Afectat sau NU?",IF(AN171="DA",IF(((AK171+AL171)-(AE171+AF171))*24<-720,"Neinformat",((AK171+AL171)-(AE171+AF171))*24),"Nu a fost afectat producator/consumator")),"") ->  | AS171: =IF(B171="X",IF(AN171="DA",IF(AR171<6,LEN(TRIM(V171))-LEN(SUBSTITUTE(V171,CHAR(44),""))+1,0),"-"),"") ->  | AT171: =IF(B171="X",IF(AN171="DA",LEN(TRIM(V171))-LEN(SUBSTITUTE(V171,CHAR(44),""))+1,"-"),"") ->  | AU171: =IF(B171="X",IF(AN171="","Afectat sau NU?",IF(AN171="DA",IF(((AI171+AJ171)-(AE171+AF171))*24<-720,"Neinformat",((AI171+AJ171)-(AE171+AF171))*24),"Nu a fost afectat producator/consumator")),"") ->  | AV171: =IF(B171="X",IF(AN171="DA",IF(AU171<6,LEN(TRIM(U171))-LEN(SUBSTITUTE(U171,CHAR(44),""))+1,0),"-"),"") ->  | AW171: =IF(B171="X",IF(AN171="DA",LEN(TRIM(U171))-LEN(SUBSTITUTE(U171,CHAR(44),""))+1,"-"),"") ->  | AX171: =IF(B171="X",IF(AN171="","Afectat sau NU?",IF(AN171="DA",((AG171+AH171)-(AE171+AF171))*24,"Nu a fost afectat producator/consumator")),"") ->  | AY171: =IF(B171="X",IF(AN171="DA",IF(AX171>24,IF(BA171="NU",0,LEN(TRIM(V171))-LEN(SUBSTITUTE(V171,CHAR(44),""))+1),0),"-"),"") ->  | AZ171: =IF(B171="X",IF(AN171="DA",IF(AX171>24,LEN(TRIM(V171))-LEN(SUBSTITUTE(V171,CHAR(44),""))+1,0),"-"),"") ->  | BF171: Afectat sau NU? | BG171: =IF(C171="X",IF(AN171="DA",IF(AND(BF171>=5,AK171<>""),LEN(TRIM(V171))-LEN(SUBSTITUTE(V171,CHAR(44),""))+1,0),"-"),"") -> - | BH171: =IF(C171="X",IF(AN171="DA",LEN(TRIM(V171))-LEN(SUBSTITUTE(V171,CHAR(44),""))+1,"-"),"") -> - | BI171: Afectat sau NU? | BJ171: =IF(C171="X",IF(AN171="DA",IF(AND(BI171>=5,AI171<>""),LEN(TRIM(U171))-LEN(SUBSTITUTE(U171,CHAR(44),""))+1,0),"-"),"") -> - | BK171: =IF(C171="X",IF(AN171="DA",LEN(TRIM(U171))-LEN(SUBSTITUTE(U171,CHAR(44),""))+1,"-"),"") -> - | BL171: =IF(C171="X",IF(AN171="","Afectat sau NU?",IF(AN171="DA",((AG171+AH171)-(Z171+AA171))*24,"Nu a fost afectat producator/consumator")),"") -> Afectat sau NU? | BM171: =IF(C171="X",IF(AN171<>"DA","-",IF(AND(AN171="DA",BL171<=0),LEN(TRIM(V171))-LEN(SUBSTITUTE(V171,CHAR(44),""))+1+LEN(TRIM(U171))-LEN(SUBSTITUTE(U171,CHAR(44),""))+1,0)),"") -> - | BN171: =IF(C171="X",IF(AN171="DA",LEN(TRIM(V171))-LEN(SUBSTITUTE(V171,CHAR(44),""))+1+LEN(TRIM(U171))-LEN(SUBSTITUTE(U171,CHAR(44),""))+1,"-"),"") -> -
A172: =A171+1 -> 153 | B172: x | C172: - | D172: Reparare defect pe conducta DN400 Luncani - Bacău I | E172: 20304 | F172: Bacău | G172: Bacău | H172: 644131.48 | I172: 564958.99 | J172: 644131.48 | K172: 564958.99 | L172: - | M172: - | N172: SM0443D0 | O172: Bacău I | P172: - | Q172: - | R172: - | S172: - | T172: SM-SD001 | U172: Nova Power, Premier Energy Furnizare, Colterm, CPL Concordia, Delgaz, Design Proiect, Distrigaz Vest, Engie, E.on Energie, Electrica Furnizare, Electric Planners, Energy Core, Energy Distribution, PPC Energie, Entrex, Eye Mall, Premier Energy Trading, Gaz Est, Gazmir, Getica 95, Local Gaz, Mihoc Oil, Met România, MVM Future, Next Energy Distribution, Petrom, Premier Energy, Prisma Serv, Gas Provider, Renovatio, Romgaz, RWE Supply, MDA Energy, Solprim, Tinmar, Transenergo, Gaz Vest Trading | V172: Delgaz Grid | W172: - | X172: 2025-03-31 | Y172: 12:35:00 | Z172: 2025-03-31 | AA172: 20:00:00 | AB172: Bacău | AC172: Efectuată | AE172: 2025-03-31 | AF172: 12:35:00 | AG172: 2025-03-31 | AH172: 21:27:00 | AI172: 2025-03-31 | AJ172: 12:49:00 | AK172: 2025-03-31 | AL172: 12:38:00 | AM172: FM27065/31.03.2025 | AN172: NU | AR172: =IF(B172="X",IF(AN172="","Afectat sau NU?",IF(AN172="DA",IF(((AK172+AL172)-(AE172+AF172))*24<-720,"Neinformat",((AK172+AL172)-(AE172+AF172))*24),"Nu a fost afectat producator/consumator")),"") -> Nu a fost afectat producator/consumator | AS172: =IF(B172="X",IF(AN172="DA",IF(AR172<6,LEN(TRIM(V172))-LEN(SUBSTITUTE(V172,CHAR(44),""))+1,0),"-"),"") -> - | AT172: =IF(B172="X",IF(AN172="DA",LEN(TRIM(V172))-LEN(SUBSTITUTE(V172,CHAR(44),""))+1,"-"),"") -> - | AU172: =IF(B172="X",IF(AN172="","Afectat sau NU?",IF(AN172="DA",IF(((AI172+AJ172)-(AE172+AF172))*24<-720,"Neinformat",((AI172+AJ172)-(AE172+AF172))*24),"Nu a fost afectat producator/consumator")),"") -> Nu a fost afectat producator/consumator | AV172: =IF(B172="X",IF(AN172="DA",IF(AU172<6,LEN(TRIM(U172))-LEN(SUBSTITUTE(U172,CHAR(44),""))+1,0),"-"),"") -> - | AW172: =IF(B172="X",IF(AN172="DA",LEN(TRIM(U172))-LEN(SUBSTITUTE(U172,CHAR(44),""))+1,"-"),"") -> - | AX172: =IF(B172="X",IF(AN172="","Afectat sau NU?",IF(AN172="DA",((AG172+AH172)-(AE172+AF172))*24,"Nu a fost afectat producator/consumator")),"") -> Nu a fost afectat producator/consumator | AY172: =IF(B172="X",IF(AN172="DA",IF(AX172>24,IF(BA172="NU",0,LEN(TRIM(V172))-LEN(SUBSTITUTE(V172,CHAR(44),""))+1),0),"-"),"") -> - | AZ172: =IF(B172="X",IF(AN172="DA",IF(AX172>24,LEN(TRIM(V172))-LEN(SUBSTITUTE(V172,CHAR(44),""))+1,0),"-"),"") -> - | BF172: =IF(C172="X",IF(AN172="","Afectat sau NU?",IF(AN172="DA",IF(AK172="","Neinformat",NETWORKDAYS((AK172+1)+AL172,(AE172-1)+AF172,$BS$2:$BS$18)),"Nu a fost afectat producator/consumator")),"") ->  | BG172: =IF(C172="X",IF(AN172="DA",IF(AND(BF172>=5,AK172<>""),LEN(TRIM(V172))-LEN(SUBSTITUTE(V172,CHAR(44),""))+1,0),"-"),"") ->  | BH172: =IF(C172="X",IF(AN172="DA",LEN(TRIM(V172))-LEN(SUBSTITUTE(V172,CHAR(44),""))+1,"-"),"") ->  | BI172: =IF(C172="X",IF(AN172="","Afectat sau NU?",IF(AN172="DA",IF(AI172="","Neinformat",NETWORKDAYS((AI172+1)+AJ172,(AE172-1)+AF172,$BS$2:$BS$18)),"Nu a fost afectat producator/consumator")),"") ->  | BJ172: =IF(C172="X",IF(AN172="DA",IF(AND(BI172>=5,AI172<>""),LEN(TRIM(U172))-LEN(SUBSTITUTE(U172,CHAR(44),""))+1,0),"-"),"") ->  | BK172: =IF(C172="X",IF(AN172="DA",LEN(TRIM(U172))-LEN(SUBSTITUTE(U172,CHAR(44),""))+1,"-"),"") ->  | BL172: =IF(C172="X",IF(AN172="","Afectat sau NU?",IF(AN172="DA",((AG172+AH172)-(Z172+AA172))*24,"Nu a fost afectat producator/consumator")),"") ->  | BM172: =IF(C172="X",IF(AN172<>"DA","-",IF(AND(AN172="DA",BL172<=0),LEN(TRIM(V172))-LEN(SUBSTITUTE(V172,CHAR(44),""))+1+LEN(TRIM(U172))-LEN(SUBSTITUTE(U172,CHAR(44),""))+1,0)),"") ->  | BN172: =IF(C172="X",IF(AN172="DA",LEN(TRIM(V172))-LEN(SUBSTITUTE(V172,CHAR(44),""))+1+LEN(TRIM(U172))-LEN(SUBSTITUTE(U172,CHAR(44),""))+1,"-"),"") -> 
A173: 154 | B173: x | C173: - | D173: Reparare defect pe conducta DN400 Luncani - Bacău I | E173: 20509 | F173: Pădureni | G173: Bacău | H173: 640677.75 | I173: 566555.03 | J173: 640677.75 | K173: 566555.03 | L173: - | M173: - | N173: SM0444D0 | O173: Pădureni BC | P173: - | Q173: - | R173: - | S173: - | T173: SM-SD001 | U173: Nova Power, Premier Energy Furnizare, Colterm, CPL Concordia, Delgaz, Design Proiect, Distrigaz Vest, Engie, E.on Energie, Electrica Furnizare, Electric Planners, Energy Core, Energy Distribution, PPC Energie, Entrex, Eye Mall, Premier Energy Trading, Gaz Est, Gazmir, Getica 95, Local Gaz, Mihoc Oil, Met România, MVM Future, Next Energy Distribution, Petrom, Premier Energy, Prisma Serv, Gas Provider, Renovatio, Romgaz, RWE Supply, MDA Energy, Solprim, Tinmar, Transenergo, Gaz Vest Trading | V173: Delgaz Grid | W173: - | X173: 2025-03-31 | Y173: 12:45:00 | Z173: 2025-03-31 | AA173: 20:00:00 | AB173: Bacău | AC173: Efectuată | AE173: 2025-03-31 | AF173: 12:45:00 | AG173: 2025-03-31 | AH173: 21:28:00 | AI173: 2025-03-31 | AJ173: 13:00:00 | AK173: 2025-03-31 | AL173: 12:48:00 | AM173: FM27065/31.03.2025 | AN173: NU | AR173: =IF(B173="X",IF(AN173="","Afectat sau NU?",IF(AN173="DA",IF(((AK173+AL173)-(AE173+AF173))*24<-720,"Neinformat",((AK173+AL173)-(AE173+AF173))*24),"Nu a fost afectat producator/consumator")),"") -> Nu a fost afectat producator/consumator | AS173: =IF(B173="X",IF(AN173="DA",IF(AR173<6,LEN(TRIM(V173))-LEN(SUBSTITUTE(V173,CHAR(44),""))+1,0),"-"),"") -> - | AT173: =IF(B173="X",IF(AN173="DA",LEN(TRIM(V173))-LEN(SUBSTITUTE(V173,CHAR(44),""))+1,"-"),"") -> - | AU173: =IF(B173="X",IF(AN173="","Afectat sau NU?",IF(AN173="DA",IF(((AI173+AJ173)-(AE173+AF173))*24<-720,"Neinformat",((AI173+AJ173)-(AE173+AF173))*24),"Nu a fost afectat producator/consumator")),"") -> Nu a fost afectat producator/consumator | AV173: =IF(B173="X",IF(AN173="DA",IF(AU173<6,LEN(TRIM(U173))-LEN(SUBSTITUTE(U173,CHAR(44),""))+1,0),"-"),"") -> - | AW173: =IF(B173="X",IF(AN173="DA",LEN(TRIM(U173))-LEN(SUBSTITUTE(U173,CHAR(44),""))+1,"-"),"") -> - | AX173: =IF(B173="X",IF(AN173="","Afectat sau NU?",IF(AN173="DA",((AG173+AH173)-(AE173+AF173))*24,"Nu a fost afectat producator/consumator")),"") -> Nu a fost afectat producator/consumator | AY173: =IF(B173="X",IF(AN173="DA",IF(AX173>24,IF(BA173="NU",0,LEN(TRIM(V173))-LEN(SUBSTITUTE(V173,CHAR(44),""))+1),0),"-"),"") -> - | AZ173: =IF(B173="X",IF(AN173="DA",IF(AX173>24,LEN(TRIM(V173))-LEN(SUBSTITUTE(V173,CHAR(44),""))+1,0),"-"),"") -> - | BG173: =IF(C173="X",IF(AN173="DA",IF(AND(BF173>=5,AK173<>""),LEN(TRIM(V173))-LEN(SUBSTITUTE(V173,CHAR(44),""))+1,0),"-"),"") ->  | BH173: =IF(C173="X",IF(AN173="DA",LEN(TRIM(V173))-LEN(SUBSTITUTE(V173,CHAR(44),""))+1,"-"),"") ->  | BJ173: =IF(C173="X",IF(AN173="DA",IF(AND(BI173>=5,AI173<>""),LEN(TRIM(U173))-LEN(SUBSTITUTE(U173,CHAR(44),""))+1,0),"-"),"") ->  | BK173: =IF(C173="X",IF(AN173="DA",LEN(TRIM(U173))-LEN(SUBSTITUTE(U173,CHAR(44),""))+1,"-"),"") ->  | BL173: =IF(C173="X",IF(AN173="","Afectat sau NU?",IF(AN173="DA",((AG173+AH173)-(Z173+AA173))*24,"Nu a fost afectat producator/consumator")),"") ->  | BM173: =IF(C173="X",IF(AN173<>"DA","-",IF(AND(AN173="DA",BL173<=0),LEN(TRIM(V173))-LEN(SUBSTITUTE(V173,CHAR(44),""))+1+LEN(TRIM(U173))-LEN(SUBSTITUTE(U173,CHAR(44),""))+1,0)),"") ->  | BN173: =IF(C173="X",IF(AN173="DA",LEN(TRIM(V173))-LEN(SUBSTITUTE(V173,CHAR(44),""))+1+LEN(TRIM(U173))-LEN(SUBSTITUTE(U173,CHAR(44),""))+1,"-"),"") -> 
A174: 155 | B174: x | C174: - | D174: Reparare defect pe conducta DN400 Luncani - Bacău I | E174: 20493 | F174: Luncani | G174: Bacău | H174: 633732.09 | I174: 569097.66 | J174: 633732.09 | K174: 569097.66 | L174: - | M174: - | N174: SM0442D0 | O174: Luncani | P174: - | Q174: - | R174: - | S174: - | T174: SM-SD001 | U174: Nova Power, Premier Energy Furnizare, Colterm, CPL Concordia, Delgaz, Design Proiect, Distrigaz Vest, Engie, E.on Energie, Electrica Furnizare, Electric Planners, Energy Core, Energy Distribution, PPC Energie, Entrex, Eye Mall, Premier Energy Trading, Gaz Est, Gazmir, Getica 95, Local Gaz, Mihoc Oil, Met România, MVM Future, Next Energy Distribution, Petrom, Premier Energy, Prisma Serv, Gas Provider, Renovatio, Romgaz, RWE Supply, MDA Energy, Solprim, Tinmar, Transenergo, Gaz Vest Trading | V174: Delgaz Grid | W174: - | X174: 2025-03-31 | Y174: 14:42:00 | Z174: 2025-03-31 | AA174: 20:00:00 | AB174: Bacău | AC174: Efectuată | AE174: 2025-03-31 | AF174: 14:42:00 | AG174: 2025-03-31 | AH174: 21:28:00 | AI174: 2025-03-31 | AJ174: 14:51:00 | AK174: 2025-03-31 | AL174: 14:44:00 | AM174: FM27065/31.03.2025 | AN174: DA | AR174: =IF(B174="X",IF(AN174="","Afectat sau NU?",IF(AN174="DA",IF(((AK174+AL174)-(AE174+AF174))*24<-720,"Neinformat",((AK174+AL174)-(AE174+AF174))*24),"Nu a fost afectat producator/consumator")),"") -> 0.03333333327 | AS174: =IF(B174="X",IF(AN174="DA",IF(AR174<6,LEN(TRIM(V174))-LEN(SUBSTITUTE(V174,CHAR(44),""))+1,0),"-"),"") -> 1 | AT174: =IF(B174="X",IF(AN174="DA",LEN(TRIM(V174))-LEN(SUBSTITUTE(V174,CHAR(44),""))+1,"-"),"") -> 1 | AU174: =IF(B174="X",IF(AN174="","Afectat sau NU?",IF(AN174="DA",IF(((AI174+AJ174)-(AE174+AF174))*24<-720,"Neinformat",((AI174+AJ174)-(AE174+AF174))*24),"Nu a fost afectat producator/consumator")),"") -> 0.15 | AV174: =IF(B174="X",IF(AN174="DA",IF(AU174<6,LEN(TRIM(U174))-LEN(SUBSTITUTE(U174,CHAR(44),""))+1,0),"-"),"") -> 37 | AW174: =IF(B174="X",IF(AN174="DA",LEN(TRIM(U174))-LEN(SUBSTITUTE(U174,CHAR(44),""))+1,"-"),"") -> 37 | AX174: =IF(B174="X",IF(AN174="","Afectat sau NU?",IF(AN174="DA",((AG174+AH174)-(AE174+AF174))*24,"Nu a fost afectat producator/consumator")),"") -> 6.766666667 | AY174: =IF(B174="X",IF(AN174="DA",IF(AX174>24,IF(BA174="NU",0,LEN(TRIM(V174))-LEN(SUBSTITUTE(V174,CHAR(44),""))+1),0),"-"),"") -> 0 | AZ174: =IF(B174="X",IF(AN174="DA",IF(AX174>24,LEN(TRIM(V174))-LEN(SUBSTITUTE(V174,CHAR(44),""))+1,0),"-"),"") -> 0 | BG174: =IF(C174="X",IF(AN174="DA",IF(AND(BF174>=5,AK174<>""),LEN(TRIM(V174))-LEN(SUBSTITUTE(V174,CHAR(44),""))+1,0),"-"),"") ->  | BH174: =IF(C174="X",IF(AN174="DA",LEN(TRIM(V174))-LEN(SUBSTITUTE(V174,CHAR(44),""))+1,"-"),"") ->  | BJ174: =IF(C174="X",IF(AN174="DA",IF(AND(BI174>=5,AI174<>""),LEN(TRIM(U174))-LEN(SUBSTITUTE(U174,CHAR(44),""))+1,0),"-"),"") ->  | BK174: =IF(C174="X",IF(AN174="DA",LEN(TRIM(U174))-LEN(SUBSTITUTE(U174,CHAR(44),""))+1,"-"),"") ->  | BL174: =IF(C174="X",IF(AN174="","Afectat sau NU?",IF(AN174="DA",((AG174+AH174)-(Z174+AA174))*24,"Nu a fost afectat producator/consumator")),"") ->  | BM174: =IF(C174="X",IF(AN174<>"DA","-",IF(AND(AN174="DA",BL174<=0),LEN(TRIM(V174))-LEN(SUBSTITUTE(V174,CHAR(44),""))+1+LEN(TRIM(U174))-LEN(SUBSTITUTE(U174,CHAR(44),""))+1,0)),"") ->  | BN174: =IF(C174="X",IF(AN174="DA",LEN(TRIM(V174))-LEN(SUBSTITUTE(V174,CHAR(44),""))+1+LEN(TRIM(U174))-LEN(SUBSTITUTE(U174,CHAR(44),""))+1,"-"),"") -> 
A175: 156 | B175: - | C175: x | D175: Interconectare între conducta DN1000 Tuzla - Podișor și conducta DN500 Podișor - Giurgiu, zona Vlașin | E175: 100530 | F175: Giurgiu | G175: Giurgiu | H175: 580171.38 | I175: 269491.9 | J175: 580171.38 | K175: 269491.9 | L175: - | M175: - | N175: SM1047D0 | O175: Giurgiu | P175: - | Q175: - | R175: - | S175: - | T175: SM-SD001 | V175: Distrigaz Sud Rețele | W175: 15 mai - iulie 2025 | AB175: București | AC175: Efectuată (Lucrarea a fost efectuată în perioada 20 - 23.05.2025 fără afectarea serviciului de transport) | AP175: forțe proprii | AR175: =IF(B175="X",IF(AN175="","Afectat sau NU?",IF(AN175="DA",IF(((AK175+AL175)-(AE175+AF175))*24<-720,"Neinformat",((AK175+AL175)-(AE175+AF175))*24),"Nu a fost afectat producator/consumator")),"") ->  | AS175: =IF(B175="X",IF(AN175="DA",IF(AR175<6,LEN(TRIM(V175))-LEN(SUBSTITUTE(V175,CHAR(44),""))+1,0),"-"),"") ->  | AT175: =IF(B175="X",IF(AN175="DA",LEN(TRIM(V175))-LEN(SUBSTITUTE(V175,CHAR(44),""))+1,"-"),"") ->  | AU175: =IF(B175="X",IF(AN175="","Afectat sau NU?",IF(AN175="DA",IF(((AI175+AJ175)-(AE175+AF175))*24<-720,"Neinformat",((AI175+AJ175)-(AE175+AF175))*24),"Nu a fost afectat producator/consumator")),"") ->  | AV175: =IF(B175="X",IF(AN175="DA",IF(AU175<6,LEN(TRIM(U175))-LEN(SUBSTITUTE(U175,CHAR(44),""))+1,0),"-"),"") ->  | AW175: =IF(B175="X",IF(AN175="DA",LEN(TRIM(U175))-LEN(SUBSTITUTE(U175,CHAR(44),""))+1,"-"),"") ->  | AX175: =IF(B175="X",IF(AN175="","Afectat sau NU?",IF(AN175="DA",((AG175+AH175)-(AE175+AF175))*24,"Nu a fost afectat producator/consumator")),"") ->  | AY175: =IF(B175="X",IF(AN175="DA",IF(AX175>24,IF(BA175="NU",0,LEN(TRIM(V175))-LEN(SUBSTITUTE(V175,CHAR(44),""))+1),0),"-"),"") ->  | AZ175: =IF(B175="X",IF(AN175="DA",IF(AX175>24,LEN(TRIM(V175))-LEN(SUBSTITUTE(V175,CHAR(44),""))+1,0),"-"),"") ->  | BF175: Afectat sau NU? | BG175: =IF(C175="X",IF(AN175="DA",IF(AND(BF175>=5,AK175<>""),LEN(TRIM(V175))-LEN(SUBSTITUTE(V175,CHAR(44),""))+1,0),"-"),"") -> - | BH175: =IF(C175="X",IF(AN175="DA",LEN(TRIM(V175))-LEN(SUBSTITUTE(V175,CHAR(44),""))+1,"-"),"") -> - | BI175: Afectat sau NU? | BJ175: =IF(C175="X",IF(AN175="DA",IF(AND(BI175>=5,AI175<>""),LEN(TRIM(U175))-LEN(SUBSTITUTE(U175,CHAR(44),""))+1,0),"-"),"") -> - | BK175: =IF(C175="X",IF(AN175="DA",LEN(TRIM(U175))-LEN(SUBSTITUTE(U175,CHAR(44),""))+1,"-"),"") -> - | BL175: =IF(C175="X",IF(AN175="","Afectat sau NU?",IF(AN175="DA",((AG175+AH175)-(Z175+AA175))*24,"Nu a fost afectat producator/consumator")),"") -> Afectat sau NU? | BM175: =IF(C175="X",IF(AN175<>"DA","-",IF(AND(AN175="DA",BL175<=0),LEN(TRIM(V175))-LEN(SUBSTITUTE(V175,CHAR(44),""))+1+LEN(TRIM(U175))-LEN(SUBSTITUTE(U175,CHAR(44),""))+1,0)),"") -> - | BN175: =IF(C175="X",IF(AN175="DA",LEN(TRIM(V175))-LEN(SUBSTITUTE(V175,CHAR(44),""))+1+LEN(TRIM(U175))-LEN(SUBSTITUTE(U175,CHAR(44),""))+1,"-"),"") -> -
